Workbook

Sheet Quota Inf 2012 (hidden)
A1: PREMI 2012 | F1: 1 - INFORTUNI
A3: Imprese in ordine decrescente | C3: premi | D3: variaz. | E3: incid. sul | F3: compagnie che
D4: 2012/2011 | E4: totale | F4: hanno
C5: (migliaia di EURO) | D5: (%) | E5: (%) | F5: risposto
B7: QUOTA MERCATO | E7: =+SUMIF(F:F,"SI",E:E)&"%" -> 56,86% | F7: =+COUNTIF(F9:F116,"SI") -> 34
A9: 1 | B9: UNIPOL ASSICURAZIONI | C9: 343780 | D9: 0.9 | E9: 10.22 | F9: SI
A10: 2 | B10: ASSICURAZIONI GENERALI | C10: 322714 | D10: -1.9 | E10: 9.59 | F10: SI | G10: oggi 08/10/2014 Memo mi ha ridetto che mi farà sapere se riesce a darmi i premi di portafoglio, non ha voluto che gli scrivessi alcuna email per sollecitare la questione; GENERTEL PERò LI INVIA; oggi 13032014 ho parlato con Memo Michele che mi farà sapere se utilizzando i premi di portafoglio riuscirebbe a plittare i premi per garanzia; l'8 gennaio 2013 Memo Michele mi ha confermato via email che non hanno la distribuzione dei premi per garanzia.
A11: 3 | B11: ALLIANZ | C11: 307310 | D11: -0.9 | E11: 9.13 | G11: GENIALLOYD PERò LI INVIA, oggi 12032014 ho parlato e mandato email a matteo zolia che mi fa avere il nome di un referente
A12: 4 | B12: INA ASSITALIA | C12: 298629 | D12: 1.7 | E12: 8.88
A13: 5 | B13: FONDIARIA - SAI | C13: 223155 | D13: -5.1 | E13: 6.63 | F13: SI
A14: 6 | B14: COMPAGNIA DI ASS. DI MILANO | C14: 155433 | D14: -3.8 | E14: 4.62 | F14: SI
A15: 7 | B15: AXA ASSICURAZIONI | C15: 117659 | D15: -0.2 | E15: 3.5 | F15: SI
A16: 8 | B16: SOCIETA' CATTOLICA | C16: 106730 | D16: -0.5 | E16: 3.17 | G16: oggi 13032014 ho mandato email a Obezzi Cristina per avere notizie.
A17: 9 | B17: ALLEANZA TORO | C17: 102872 | D17: -10 | E17: 3.06 | G17: oggi 12032014 ho parlato con Boaglio che mi fa sapere qualcosa in merito, mi sembra che abbiano le informazioni per i premi di portafoglio ma non per i premi contabilizzati
A18: 10 | B18: GROUPAMA ASSICURAZIONI | C18: 100626 | D18: -6 | E18: 2.99 | G18: oggi 13032014 ho mandato email a Nicolas Puccioni per avere notizie.
A19: 11 | B19: ZURICH INSURANCE PLC | C19: 89950 | D19: -3.6 | E19: 2.67 | G19: oggi 14032014 ho parlato con Paola Di Candia che ci fa sapere, loro all'ufficio bilancio non hanno la spaccatura richiesta per garanzia mentre all'ufficio portafoglio forse riescono
A20: 12 | B20: SOCIETA' REALE MUTUA | C20: 88632 | D20: -3.2 | E20: 2.63 | F20: SI
A21: 13 | B21: ACE EUROPEAN GROUP | C21: 74745 | D21: -10.6 | E21: 2.22 | F21: SI | G21: oggi 11032014 mi hanno risposto che non hanno i software pronti per estrapolare i dati e non sanno se mai li avranno
A22: 14 | B22: CHARTIS EUROPE S.A. | C22: 60250 | D22: 25.7 | E22: 1.79 | F22: SI
A23: 15 | B23: VITTORIA ASSICURAZIONI | C23: 60188 | D23: 21 | E23: 1.79 | F23: SI
A24: 16 | B24: CARIGE R.D. ASSICURAZIONI E RIASSICURAZIONI | C24: 53553 | D24: -6.1 | E24: 1.59 | F24: SI
A25: 17 | B25: ITALIANA ASSICURAZIONI | C25: 46927 | D25: -5.5 | E25: 1.39 | F25: SI
A26: 18 | B26: AXA MPS ASSICURAZIONI DANNI | C26: 41580 | D26: 8.4 | E26: 1.24 | F26: SI | G26: ho parlato oggi 12032014 con il mio amico Michele Delliquadri, dice che manderà i dati
A27: 19 | B27: SARA ASSICURAZIONI | C27: 41464 | D27: 0.1 | E27: 1.23 | F27: SI
A28: 20 | B28: AVIVA ITALIA | C28: 37201 | D28: -10.7 | E28: 1.11 | G28: oggi 14032014 ho mandato email a Banfi per avere notizie.
A29: 21 | B29: UBI ASSICURAZIONI | C29: 36153 | D29: 6.7 | E29: 1.07 | F29: SI
A30: 22 | B30: ITAS MUTUA | C30: 34541 | D30: 4.1 | E30: 1.03 | F30: SI
A31: 23 | B31: HELVETIA SA | C31: 32746 | D31: 3.3 | E31: 0.97 | F31: SI
A32: 24 | B32: CARDIF - ASSURANCES RISQUES DIVERS | C32: 31549 | D32: 21.6 | E32: 0.94
A33: 25 | B33: METLIFE EUROPE | C33: 30187 | D33: -10.1 | E33: 0.9
A34: 26 | B34: CHUBB INSURANCE COMPANY OF EUROPE | C34: 27964 | D34: -18.3 | E34: 0.83
A35: 27 | B35: ASSIMOCO | C35: 23945 | D35: -7.6 | E35: 0.71
A36: 28 | B36: INTESA SANPAOLO ASSICURA | C36: 23273 | D36: -13.8 | E36: 0.69 | G36: oggi 14032014 ho mandato email a Granito per avere notizie.
A37: 29 | B37: DIRECT LINE INSURANCE | C37: 22811 | D37: 58.5 | E37: 0.68 | F37: SI
A38: 30 | B38: PADANA ASSICURAZIONI | C38: 21532 | D38: 7.3 | E38: 0.64
A39: 31 | B39: DONAU VERSICHERUNG AG VIENNA | C39: 21292 | D39: 53.7 | E39: 0.63
A40: 32 | B40: FATA ASSICURAZIONI DANNI | C40: 20874 | D40: -0.8 | E40: 0.62
A41: 33 | B41: MEDIOLANUM ASSICURAZIONI | C41: 19698 | D41: 71.1 | E41: 0.59
A42: 34 | B42: POSTE ASSICURA - Gruppo Assicurativo Poste Vita | C42: 19411 | D42: 26.9 | E42: 0.58 | F42: SI
A43: 35 | B43: HDI ASSICURAZIONI | C43: 17811 | D43: 4.8 | E43: 0.53 | F43: SI
A44: 36 | B44: ERGO ASSICURAZIONI | C44: 17626 | D44: -18.9 | E44: 0.52 | F44: SI
A45: 37 | B45: GENERTEL | C45: 17591 | D45: 23 | E45: 0.52 | F45: SI
A46: 38 | B46: SUN INSURANCE OFFICE LIMITED RSA | C46: 17562 | D46: -8.3 | E46: 0.52 | F46: SI
A47: 39 | B47: ARCA ASSICURAZIONI | C47: 15883 | D47: 0.4 | E47: 0.47 | F47: SI
A48: 40 | B48: LLOYD'S | C48: 14136 | D48: 12.9 | E48: 0.42
A49: 41 | B49: CHIARA ASSICURAZIONI | C49: 13674 | D49: -0.1 | E49: 0.41
A50: 42 | B50: LIGURIA | C50: 12912 | D50: -9 | E50: 0.38
A51: 43 | B51: GENIALLOYD | C51: 12454 | D51: 20.8 | E51: 0.37 | F51: SI
A52: 44 | B52: UNIQA PROTEZIONE | C52: 12244 | D52: 8 | E52: 0.36
A53: 45 | B53: EUROP ASSISTANCE ITALIA | C53: 11644 | D53: 55.6 | E53: 0.35
A54: 46 | B54: AVIPOP ASSICURAZIONI | C54: 10843 | D54: -37.5 | E54: 0.32
A55: 47 | B55: NATIONALE SUISSE | C55: 10467 | D55: -0.4 | E55: 0.31 | F55: SI
A56: 48 | B56: COMPAGNIA ASS. LINEAR | C56: 9089 | D56: 6.7 | E56: 0.27
A57: 49 | B57: TUA ASSICURAZIONI | C57: 8602 | D57: 26 | E57: 0.26
A58: 50 | B58: CREDITRAS ASSICURAZIONI | C58: 7443 | D58: -4 | E58: 0.22
A59: 51 | B59: UNISALUTE | C59: 7244 | D59: 3.6 | E59: 0.22 | F59: SI
A60: 52 | B60: CNP IAM | C60: 6713 | D60: 118.3 | E60: 0.2
A61: 53 | B61: CARDIF ASSICURAZIONI | C61: 6264 | D61: -36.5 | E61: 0.19
A62: 54 | B62: CREDEMASSICURAZIONI | C62: 6055 | D62: -22.2 | E62: 0.18 | F62: SI
A63: 55 | B63: INTESA SANPAOLO VITA | C63: 6030 | D63: -28.4 | E63: 0.18
A64: 56 | B64: ARISCOM COMPAGNIA DI ASSICURAZIONI | C64: 5764 | D64: 24.4 | E64: 0.17 | F64: SI
A65: 57 | B65: BIPIEMME VITA | C65: 5311 | D65: 17.7 | E65: 0.16
A66: 58 | B66: ABC ASSICURA | C66: 4954 | D66: 9.4 | E66: 0.15
A67: 59 | B67: ALLIANZ GLOBAL C. & S. | C67: 4819 | D67: 11.1 | E67: 0.14
A68: 60 | B68: CF ASSICURAZIONI | C68: 3856 | D68: 40.9 | E68: 0.11 | F68: SI
A69: 61 | B69: FILO DIRETTO | C69: 3854 | D69: 10 | E69: 0.11
A70: 62 | B70: ALA ASSICURAZIONI | C70: 3594 | D70: -18.8 | E70: 0.11
A71: 63 | B71: ZURITEL | C71: 3440 | D71: 26.6 | E71: 0.1
A72: 64 | B72: NOBIS COMPAGNIA DI ASSICURAZIONI | C72: 3358 | D72: 61.1 | E72: 0.1 | F72: SI
A73: 65 | B73: ASSICURATRICE MILANESE | C73: 3343 | D73: -13.7 | E73: 0.1
A74: 66 | B74: HDI-GERLING INDUSTRIE | C74: 3241 | D74: 37.4 | E74: 0.1
A75: 67 | B75: INCONTRA ASSICURAZIONI | C75: 3202 | D75: -29.9 | E75: 0.1
A76: 68 | B76: BCC ASSICURAZIONI | C76: 3183 | D76: 43.6 | E76: 0.09
A77: 69 | B77: INCHIARO ASSICURAZIONI | C77: 2902 | D77: 10.3 | E77: 0.09
A78: 70 | B78: QUIXA | C78: 2733 | D78: 56.1 | E78: 0.08
A79: 71 | B79: POSTE VITA - Gruppo Assicurativo Poste Vita | C79: 2399 | D79: -35.7 | E79: 0.07 | F79: SI
A80: 72 | B80: GLOBAL ASSISTANCE | C80: 2127 | D80: 45.7 | E80: 0.06
A81: 73 | B81: ASSICURATRICE VAL PIAVE | C81: 1866 | D81: 9.8 | E81: 0.06
A82: 74 | B82: UNIQA ASSICURAZIONI | C82: 1692 | D82: 9.2 | E82: 0.05
A83: 75 | B83: AXA CORPORATE SOLUTIONS | C83: 1658 | D83: -20.9 | E83: 0.05
A84: 76 | B84: AGA INTERNATIONAL | C84: 1437 | D84: -16.4 | E84: 0.04
A85: 77 | B85: ITAS ASSICURAZIONI | C85: 1339 | D85: 1.1 | E85: 0.04
A86: 78 | B86: ANTONIANA VENETA POP. ASS. | C86: 1227 | D86: 9.1 | E86: 0.04
A87: 79 | B87: AVIVA ASSICURAZIONI | C87: 1145 | D87: -35.2 | E87: 0.03
A88: 80 | B88: BIPIEMME ASSICURAZIONI | C88: 1083 | D88: (.....) | E88: 0.03
A89: 81 | B89: SYSTEMA ASSICURAZIONI | C89: 954 | D89: 15.6 | E89: 0.03
A90: 82 | B90: RBM SALUTE | C90: 941 | D90: -26.5 | E90: 0.03
A91: 83 | B91: DIALOGO ASSICURAZIONI | C91: 888 | D91: -26.4 | E91: 0.03
A92: 84 | B92: LE ASSICURAZIONI DI ROMA | C92: 825 | D92: 5.4 | E92: 0.02
A93: 85 | B93: CREDIT AGRICOLE ASSICURAZIONI | C93: 715 | D93: 14.8 | E93: 0.02
A94: 86 | B94: FINANCIAL INSURANCE COMPANY | C94: 632 | D94: -29 | E94: 0.02
A95: 87 | B95: BANCASSURANCE POPOLARI DANNI | C95: 553 | D95: -54.2 | E95: 0.02
A96: 88 | B96: CATTOLICA PREVIDENZA | C96: 522 | D96: 39.9 | E96: 0.02
A97: 89 | B97: DUOMO UNI ONE | C97: 503 | D97: -95.2 | E97: 0.01
A98: 90 | B98: AXERIA PREVOYANCE | C98: 481 | D98: -34.4 | E98: 0.01
A99: 91 | B99: TIROLER VERSICHERUNG VAG | C99: 352 | D99: 2.6 | E99: 0.01
A100: 92 | B100: R+V ALLGEMEINE | C100: 335 | D100: -46.8 | E100: 0.01
A101: 93 | B101: CARDIF - ASSURANCE VIE | C101: 295 | D101: -30.8 | E101: 0.01
A102: 94 | B102: MITSUI SUMITOMO INSURANCE | C102: 287 | D102: 19.1 | E102: 0.01
A103: 95 | B103: INTER PARTNER ASSISTANCE | C103: 282 | D103: 5.2 | E103: 0.01
A104: 96 | B104: NET INSURANCE | C104: 216 | D104: -8.5 | E104: 0.01
A105: 97 | B105: BENTOS ASSICURAZIONI | C105: 82 | D105: -48.1 | E105: 0
A106: 98 | B106: TOKIO MARINE EUROPE | C106: 73 | D106: -12 | E106: 0
A107: 99 | B107: SACE BT | C107: 45 | D107: -29.7 | E107: 0
A108: 100 | B108: POPOLARE VITA | C108: 23 | D108: -59.6 | E108: 0
A109: 101 | B109: INTERNAT. INS. CO. OF HANNOVER | C109: 22 | D109: -94.2 | E109: 0
A110: 102 | B110: RISPARMIO & PREVIDENZA | C110: 8 | D110: 0 | E110: 0
A111: 103 | B111: ISI INSURANCE Compagnia di Assicurazioni | C111: 7 | D111: -30 | E111: 0 | F111: SI
A112: 104 | B112: SIAT | C112: 6 | D112: -57.1 | E112: 0
A113: 105 | B113: WIENER STADTISCHE VERSIC. | C113: 4 | D113: -69.2 | E113: 0
A114: 106 | B114: ASSICURAZIONI RISCHI AGRICOLI VMG 1857 | C114: 2 | D114: 0 | E114: 0 | F114: SI
A115: 107 | B115: CBA VITA | C115: 1 | D115: 0 | E115: 0
A116: 108 | B116: CNP UNICREDIT VITA | C116: 1 | D116: 0 | E116: 0 | F116: SI

Sheet Quota Inf (2013) (hidden)
A1: PREMI 2013 | F1: 1 - INFORTUNI
A3: Imprese in ordine decrescente | C3: premi | D3: variaz. | E3: incid. sul | F3: compagnie che
D4: 2013/2012 | E4: totale | F4: hanno
C5: (migliaia di EURO) | D5: (%) | E5: (%) | F5: risposto | H5: oggi 12032014 ho parlato con Boaglio che mi fa sapere qualcosa in merito, mi sembra che abbiano le informazioni per i premi di portafoglio ma non per i premi contabilizzati
B7: QUOTA MERCATO | E7: =+SUMIF(F:F,"SI",E:E)&"%" -> 83,44% | F7: =+COUNTIF(F9:F116,"SI") -> 37
A9: 1 | B9: UNIPOLSAI ASSICURAZIONI | C9: 709886 | D9: -1.7 | E9: 21.06 | F9: SI | G9: ogg 22/10/2014 Roberta Lolli mi ha detto che fra 2 giorni inviano il dato; oggi 09/10/2014 ho parlato con Roberta Lolli che mi invierà i dati il più presto possibile, mi farà sapere i tempi nei prox giorni con una email
A10: 2 | B10: GENERALI ITALIA | C10: 648984 | D10: -3.9 | E10: 19.25 | F10: SI | G10: NO POLIZZE COLLETTIVE; oggi 06112015 mi ha scritto Memo Michele per dirmi che manderà dati entro 15 gg; oggi 08102015 mi ha scritto Andrea Zecchi (0110029705-3346468461) che mi fa sapere; oggi 05/10/2015 ho parlato con Tiralongo (ex inaassitalia, i dati del vecchio portafoglio per garanzia li avrebbero) e ci siamo detti che avrei mandato una mail di sollecito a ANDREA ZECCHI, capo anche di MIchele Memo di ex assicuraz. generali, per aver una risposta scritta sui futuri tempi; oggi 25/09/2015 ho parlato con Tiralongo che mi ha detto che il suo nuovo capo è Andrea Zecchi e mercoledì 30 verso 16:00 lo devo chiamare per avere news o farlo parlare con Desantis; oggi 14/09/2015 ho mandato email per avere un aggiornamento; oggi 23/03/2015 ho parlato con Carosi chiedendole di sentirsi nei prox giorni per avere qualche notizia in più sull'avanzamento dei lavori; oggi 11/03/2015 ho scritto a Carosi per avere news; oggi 24/12/2014 Raffaella Carosi mi ha scritto "stiamo lavorando alle estrazioni richieste, non appena possibile provvederemo ad inviare i dati."; OGGI 22/12/2014 ho mandato email a Raffaella Carosi; oggi 19/12/2014 Tiralongo mi ha detto di parlare con il suo capo Raffaella Carosi (raffaella.carosi@generali.com/0684838049) ma non mi ha risposto, poi ho chiamto memo che mi ha detto che stanno facendo le prime estrapolazioni e che sono in contatto con Tiralongo di Roma; oggi 11/12/2014 ho mandato email di sollecito a Tiralongo; oggi 2/12/2014 Tiralongo mi ha detto che dall'alto è arrivato il mandato di preparare i dati, lui per inaassitalia, Memo per Generali e Boaglio per Toro, lunedì prox lo devo richiamare; oggi 28/11/2014 ho sentito Tiralongo che entro oggi o al max lunedi prox mi deve aggiornare sull'avanzamento dei lavori; oggi 14/11/2014 ho chiesto a Tiralongo di rispondermmi con una mail ufficiale sulla fattibilità o meno della trasmissione dei dati, ci dobbiamo sentire martedì prox; oggi 11/11/2014 ho mandato email per info a Tiralongo; OGGI 24/10/2014 Tiralongo ha inviato una email; oggi 22/10/2014 ho sentito Memo e Tiralongo che non avevano news da darmi, sono oberati di lavoro e appena possono mi fanno sapere (con Tiralongo mi sono messo d'accordo che ci saremmo sentiti martedì prossimo); oggi 21/10/2014 ho mandato email a Memo e Tiralongo per avere notizie sui tempi; oggi 08/10/2014 Memo mi ha ridetto che mi farà sapere se riesce a darmi i premi di portafoglio, non ha voluto che gli scrivessi alcuna email per sollecitare la questione(per ex Assicurazioni Generali); per INA ASSITALIA oggi 09/10/2014 ho parlato con Tiralongo che mi fa sapere; GENERTEL PERò LI INVIA; oggi 13032014 ho parlato con Memo Michele che mi farà sapere se utilizzando i premi di portafoglio riuscirebbe a plittare i premi per garanzia; l'8 gennaio 2013 Memo Michele mi ha confermato via email che non hanno la distribuzione dei premi per garanzia.
A11: 3 | B11: ALLIANZ S.P.A. | C11: 306607 | D11: -0.2 | E11: 9.1 | F11: SI | G11: oggi 15/03/2016 ho detto a Simona Colonna che ci saremmo risentiti verso metà maggio per i mesi di Dicembre; STIMATA SPACCATURA INDIVIDUALI E COLLETTIVE; oggi 03112015 Simona Colonna mi ha contattato per dirmi che fra 10 giorni dovrebbe mandare i dati; oggi 14102015 mi ha contattato Simona Colonna, devo risentirla fine della prossima settimana per vedere se mandare il dato parziale o complessivo; oggi 14102015 ho mandato email a Villa; oggi 16/09/2015 ho parlato con Silvana Villa che mi ha detto e scritto di riaggiornarci ad inizi ottobre; oggi 14/09/2015 ho mandato email per avere un aggiornamento; oggi 13/11/2014 mi ha mandato email Silvana Villa e Andrea Borea per dirmi che invieranno i dati non prima di metà dell'anno prossimo; oggi 11/11/2014 ho mandato email per info a Borea; oggi 21/10/2014 Andrea Borea mi ha detto di risentirci intorno al 28 ottobre; oggi 16/10/2014 ho parlato con Andrea Borea, coinvolto nella questione oggi, che mi farà sapere sulla fattibilità dei dati per il Gruppo Allianz; oggi 15/10/2014 non riuscendo a parlare con Roberto Giordano, gli ho scritto una email di sollecito;oggi 09/10/2014 ho parlato con Alberto Sartorio (0407781271), responsabile della parte contabile, il quale mi ha detto che non hanno questo dettaglio di informazione ma che probabilmente sono invece presenti nella sezione portafoglio con resp. GIORDANO ROBERTO che devo contattare io (0407781598-0272162345), oggi 12032014 ho parlato e mandato email a matteo zolia che mi fa avere il nome di un referente
A12: 4 | B12: SOCIETA' CATTOLICA | C12: 112228 | D12: 5.1 | E12: 3.33 | F12: NO | G12: oggi 09112015 ho sentito Castiglione (ufficio bilancio) che mi ha detto che non mi risponde alla email perché non è sua la competenza e che in questo periodo non hanno tempo per evadere questa richiesta, che anche Obezzi (dirigente controllo di gestione) sicuramente è nella stessa situazione, oggi 07102015 Castiglione mi ha detto di risentirci fra un mese perché stanno chiudendo la trimestrale; oggi 28/09/2015 ho parlato con Castiglione che mi ha detto che dall'ufficio contabilità non ha queste info e di risentirci verso fine settimana per sentire gli altri uffici; oggi 25/09/2015 ho inviato email a castiglione carmelita (0458391457) e parlato con Martini Arianna, le devo chiamare lunedì prox; oggi 14/09/2015 ho mandato email per avere un aggiornamento; oggi 23/03/2015 ho parlato con Obezzi Cristina che mi ha detto di risentirci nei prox giorni (le ho inoltrato nuovamente la richiesta dati); oggi 03/12/2014 ho parlato con Irene Murari (0458391224) che cercherà di contattare Obezzi Cristina; oggi 28/11/2014 ho scritto a Obezzi per essere chiamato in giornata o al max lunedì mattina; oggi 21/10/2014 le ho mandato email per avere news; oggi 13/10/2014 ho parlato con Obezzi Cristina che mi farà sapere, oggi 09/10/2014 ho provato a parlare con Obezzi Cristina e poi le ho mandato email di sollecito (0458391673), oggi 13032014 ho mandato email a Obezzi Cristina per avere notizie.
A13: 5 | B13: AXA ASSICURAZIONI | C13: 105905 | D13: -10 | E13: 3.14 | F13: SI
A14: 6 | B14: GROUPAMA ASSICURAZIONI | C14: 96704 | D14: -3.9 | E14: 2.87 | F14: SI | G14: oggi 30/03/2016 Puccioni mi ha detto che ha solo il numero delle polizze collettive e non il numero delle teste; oggi 09/10/2014 Puccioni mi ha detto che entro la prox settimana mi invia i premi contabilizzati ma non la nuova produzione vita, oggi 13032014 ho mandato email a Nicolas Puccioni per avere notizie.
A15: 7 | B15: ZURICH INSURANCE PLC | C15: 91693 | D15: 1.9 | E15: 2.72 | F15: SI | G15: i dati delle teste non sono disponibili; oggi 05/02/2015 ho scritto a Metadow per info; oggi 4/12/2014 mi ha telefonato Luisa Metadow 02 5966 2501 che dice manderà i dati entro il 12 gennaio dall'ufficioi Portafoglio; oggi 3/12/2014 ho parlato con Simona Schinelli e le ho inviato nuovamente la richiesta, mi deve far sapere; oggi 28/11/2014 ho scritto a delpino per essere chiamato in giornata o al max lunedì mattina; oggi 10/10/2014 gli ho inviato un nuovo sollecito proponendogli i premi di portafoglio invece di quelli contabilizzati, marco.delpino@it.zurich.com , oggi 14032014 ho parlato con Paola Di Candia che ci fa sapere, loro all'ufficio bilancio non hanno la spaccatura richiesta per garanzia mentre all'ufficio portafoglio forse riescono
A16: 8 | B16: SOCIETA' REALE MUTUA | C16: 89959 | D16: 1.5 | E16: 2.67 | F16: SI
A17: 9 | B17: AIG EUROPE LIMITED | C17: 86535 | D17: 43.6 | E17: 2.57 | F17: SI
A18: 10 | B18: ACE EUROPEAN GROUP | C18: 74715 | D18: 0 | E18: 2.22 | F18: SI | G18: oggi 15/04/2016 Derienzo mi ha detto che non invierà i dati Giugno 20140e giugno 2015, proverà a Luglio ad inviarci i dati giugno 2016; oggi 17/12/2015 mi ha detto che invieranno i dati del I semestre 2015 a fine gennaio; oggi 08102015 Derienzo con una collega mi hanno detto che invieranno i dati 2014 entro metà novembre; domani 08102015 mi chiama alle 11.00 la DERIENZO; oggi 30/09/2015 ho parlato con la DERIENZO, la devo richiamare mercoledì prossimo per una risposta; oggi 23/03/2015 ho sentito la derienzo chiedendole di risentirci nei prox giorni dopo averle inviato nuovamente i documenti della rilevazione; oggi 04/12/2014 ho sentito la DERIENZO (0227095744) che mi richiama domani mattina; oggi 13/10/2014 ho proposto via telefono e via email a teresa derienzo di estrapolare le informazioni per garanzia dall'ufficio prortafoglio e non da quello contabilità, mi deve far sapere, oggi 17/12/2015 mi ha detto che invieranno i dati del I semestre 2015 a fine gennaio; oggi 08102015 Derienzo con una collega mi hanno detto che invieranno i dati 2014 entro metà novembre; domani 08102015 mi chiama alle 11.00 la DERIENZO; oggi 30/09/2015 ho parlato con la DERIENZO, la devo richiamare mercoledì prossimo per una risposta; oggi 23/03/2015 ho sentito la derienzo chiedendole di risentirci nei prox giorni dopo averle inviato nuovamente i documenti della rilevazione; oggi 04/12/2014 ho sentito la DERIENZO (0227095744) che mi richiama domani mattina; oggi 13/10/2014 ho proposto via telefono e via email a teresa derienzo di estrapolare le informazioni per garanzia dall'ufficio prortafoglio e non da quello contabilità, mi deve far sapere
A19: 11 | B19: VITTORIA ASSICURAZIONI | C19: 71139 | D19: 18.2 | E19: 2.11 | F19: SI
A20: 12 | B20: ITALIANA ASSICURAZIONI | C20: 44192 | D20: -5.8 | E20: 1.31 | F20: SI
A21: 13 | B21: CARIGE R.D. ASSICURAZIONI E RIASSICURAZIONI | C21: 42543 | D21: -20.6 | E21: 1.26 | F21: SI
A22: 14 | B22: SARA ASSICURAZIONI | C22: 42157 | D22: 1.7 | E22: 1.25 | F22: SI | G22: oggi 14/10/2014 Adolfo Priori, responsabile dell'estrazione dati, mi ha detto che mi invierà i dati per lunedì, martedì della prox settimana; oggi 13/10/2014 gli ho mandato una email; oggi 09/10/2014 Salvatore Stefano mi ha detto che se i dati domani non arrivano devo ritelefonargli
A23: 15 | B23: AXA MPS ASSICURAZIONI DANNI | C23: 41405 | D23: -0.4 | E23: 1.23 | F23: estrazione dati a gennaio 2016 | G23: oggi 28/01/2016 ZUENA mi ha scritto per comunicare che invieranno i dati per luglio 2016, insieme a quelli di AXA ASSICURAZIONE e QUADRA ASSICURAZIONE. oggi 19/10/2015 Borgia mi ha scritto che hanno programmato un'estrazione dei dati per gennaio 2016; oggi 16102015 gli ho mandato email per sapere qualcosa; oggi 14102015, non riuscendo a parlare con Borgia, gli ho scritto una email, mi ha risposto che mi avrebbe richiamato; oggi 30/09/2015 ho parlato con Borgia, gli ho girato la email e gli devo telefonare fra qualche giorno per avere news; oggi 13/04/2015 ho inviato a Borgia una email dopo averlo chiamto durante una riunione, oggi 19/03/2015 Michele mi ha detto che l'incaricato alla rilevazione è Pierluigi Borgia 0651760233; oggi 06/02/2015 ho riscritto a MIchele per avere info; oggi 22/12/2014 Di giova Paolo mi ha scritto "e ricerche eseguite sul protocollo formale non hanno permesso purtroppo di rinvenire la comunicazione allegata. Lascio ai Colleghi in indirizzo disporre per l’attuazione."; OGGI 22/12/2014 ho mandato email a Stefano Digiovanpaolo; oggi 19/12/2014 Michele mi ha detto di sentire per le comunicazioni ANIA stefano.digiovanpaolo@axa-mps.it (0651760375); oggi 11/12/2014 ho scritto a Michele per avere il nominativo dell'ufficio legale da contattare; oggi 4/12/2014 ho scritto a Michele per avere una email ufficiale sulla loro disponibilità; oggi 26 novembre Michele mi ha scritto che per estrapolare i dati devono coinvolgere l'it e i tempi si allungherebbero molto; oggi 17/11/2014 Michele mi ha detto di risentirci fine settimana per fare il punto della situazione; oggi 11/11/2014 ho mandato email per info a Michele; oggi 14/10/2014 ho parlato con Michele che mi ha detto invierà i dati fine della prox settimana, oggi 13/10/2014 Michele mi ha detto di richiamarlo domani mattina, ho parlato oggi 12032014 con il mio amico Michele Delliquadri, dice che manderà i dati
A24: 16 | B24: AVIVA ITALIA | C24: 39120 | D24: 5.2 | E24: 1.16 | F24: SI | G24: oggi 10/12/2014 Claudio Roselli ha scritto che entro gennaio 2015 inviano i dati del 2014; oggi 05/12/2014 ho parlato con Fasolin che si attiva a sollecitare internamente, ci dobbiamo sentire nei prox giorni; oggi 14/10/2014 ho mandato email di sollecito a Laura Maria Fasolin e a Banfi; oggi 14032014 ho mandato email a Banfi per avere notizie.
A25: 17 | B25: ITAS MUTUA | C25: 35085 | D25: 1.6 | E25: 1.04 | F25: SI
A26: 18 | B26: cargeas ASSICURAZIONI | C26: 34630 | D26: -4.2 | E26: 1.03 | F26: SI
A27: 19 | B27: ASSICURAZIONI GENERALI | C27: 33068 | D27: -5.7 | E27: 0.98
A28: 20 | B28: CARDIF ASSURANCES RISQUES DIVERS | C28: 31376 | D28: -0.5 | E28: 0.93 | G28: oggi 30/09/2015 ho mandato email di sollecito; oggi 23/03/2015 ho provato a contattare Pescatori, il centralino gli lascierà un messaggio per farmi richiamare, oggi 4/12/2014 ho chiesto al centralino di poter essere richiamato da Nadia Pogliani in quanto non riesco a contattare Pescatori; oggi 13/10/2014 ho sentito Nadia Pogliani che mi ha detto di inviare la mail di sollecito all'attuario Giovanni Pescatori
A29: 21 | B29: METLIFE EUROPE LIMITED | C29: 30488 | D29: 1 | E29: 0.9 | F29: SI | G29: oggi 2/12/2014 Montanari ha scritto che invierà i dati per la fine di gennaio 2015; oggi 28/11/2014 ho scritto a Montanari per essere chiamato in giornata o al max lunedì mattina; oggi 14/10/2014 ho parlato con Stefania Montanari che mi farà sapere
A30: 22 | B30: HELVETIA SA | C30: 30429 | D30: -7.1 | E30: 0.9 | F30: SI | G30: oggi 16/12/2015 Caruso mi ha detto che Helvetia parteciperà mentre helveti Italia non invierà più i dati; il 31/07/2014 ci ha scritto Giuseppe Caruso per comunicare che a causa della migrazione in corso verso il nuovo sistema informativo per la gestione del portafoglio danni, Helvetia Rappresentanza non parteciperà alle rilevazione in oggetto al 30 giugno 2014
A31: 23 | B31: DIRECT LINE INSURANCE | C31: 28262 | D31: 23.9 | E31: 0.84 | F31: SI
A32: 24 | B32: POSTE ASSICURA | C32: 26349 | D32: 35.7 | E32: 0.78 | F32: SI
A33: 25 | B33: ASSIMOCO | C33: 25855 | D33: 8 | E33: 0.77 | F33: SI | G33: oggi 11/11/2014 ho mandato email per info a Carretta; oggi 14/10/2014 ho parlato con Marianna Carretta che mi ha detto di avere il dato e di spedirlo il prima possibile
A34: 26 | B34: CHUBB INSURANCE COMPANY OF EUROPE | C34: 22652 | D34: -19 | E34: 0.67 | G34: oggi 30/09/2015 ho mandato email di sollecito; oggi 14/10/2014 ho inviato email di sollecito a Andrea Beia, lui ci aveva risposto due anni fa che non avevano il dato né per garanzia né per tipologia individuali e collettive
A35: 27 | B35: EUROP ASSISTANCE ITALIA | C35: 22426 | D35: 92.6 | E35: 0.67 | F35: NO | G35: OGGI 04/12/2014 Sarelini mi ha confermato che neanche dall'ufficio portafoglio sono in grado di avere il dato; oggi 28/11/2014 ho scritto a Sarelini per essere chiamato in giornata o al max lunedì mattina; oggi 14/10/2014 ho inviato email di sollecito a Umberto Sarelini, lui ci aveva risposto due anni fa che allo stato attuale non erano in grado di fornire il dato
A36: 28 | B36: HELVETIA ITALIA ASSICURAZIONI | C36: 21143 | D36: -1.8 | E36: 0.63 | F36: NO | G36: oggi 16/12/2015 Caruso mi ha detto che Helvetia parteciperà mentre helveti Italia non invierà più i dati; oggi 21/10/2014 Caruso ha scritto che manderà i dati entro la fine di questa settimna; oggi 15/10/2014 Giuseppe Caruso mi ha detto che non pensa riesca a darmi nessuna informazione neanche per Helvetia italiana ma mi fa sapere lunedì prox; oggi 13/10/2014 ho mandato email a Giuseppe Caruso per sapere se ci possono mandare i dati almeno per quest'altra compagnia
A37: 29 | B37: FATA ASSICURAZIONI DANNI | C37: 20695 | D37: -0.9 | E37: 0.61 | G37: oggi 30/09/2015 ho mandato email di sollecito; oggi 01/12/2014 mi ha scritto Bucca dicendomi "Ho tante cose urgenti da fare ti richiamo io appena finisco ma non prima di 10 giorni, dobbiamo prima ultimare il piano strategico"; oggi 28/11/2014 ho scritto a Bucca per sentirci lunedì mattina, oggi 13/11/2014 Bucca ha scritto che proveranno ad estrapolare i dati prox settimana; oggi 11/11/2014 ho mandato email per info a Bucca; oggi 14/10/2014 ho parlato con Bucca che mi ha detto che hanno i dati e che mi farà sapere quando riuscirà ad inviarli
A38: 30 | B38: GENERTEL | C38: 20563 | D38: 16.9 | E38: 0.61 | F38: SI
A39: 31 | B39: MEDIOLANUM ASSICURAZIONI | C39: 20550 | D39: 4.3 | E39: 0.61 | G39: oggi 30/09/2015 ho mandato email di sollecito; oggi 14/10/2014 ho parlato con Elisa Pennati e inviato la richiesta, mi farà sapere nei prossimi giorni
A40: 32 | B40: INTESA SANPAOLO ASSICURA | C40: 19851 | D40: -15 | E40: 0.59 | F40: SI | G40: oggi 25/11/2014 ho risposto a Granito ad una email dove chiedeva chiarimenti prima di inviare il file; in cui oggi 11/11/2014 ho mandato email per info a Granito; oggi 14/10/2014 ho parlato con Granito che nei prossimi giorni mi farà sapere quando potrà inviare i dati che già hanno; oggi 14032014 ho mandato email a Granito per avere notizie.
A41: 33 | B41: ERGO ASSICURAZIONI | C41: 19569 | D41: 11 | E41: 0.58 | F41: SI
A42: 34 | B42: LLOYD'S | C42: 19218 | D42: 36 | E42: 0.57 | G42: oggi 30/09/2015 ho mandato email di sollecito; oggi ho parlato con Giovanni Toniutti che mi ha fatto capire che sarà molto difficile per loro estrapolare questo tipo di dati
A43: 35 | B43: DONAU VERSICHERUNG AG VIENNA | C43: 19116 | D43: -10.2 | E43: 0.57 | G43: oggi 30/09/2015 ho mandato email di sollecito; oggi 14/10/2014 ho mandato email di sollecito a Basile, mi sono fatto dare il contatto da Marfoli
A44: 36 | B44: HDI ASSICURAZIONI | C44: 17845 | D44: 0.2 | E44: 0.53 | F44: SI
A45: 37 | B45: ARCA ASSICURAZIONI | C45: 17244 | D45: 8.6 | E45: 0.51 | F45: SI
A46: 38 | B46: SUN INSURANCE OFFICE | C46: 16656 | D46: -5.2 | E46: 0.49 | F46: SI
A47: 39 | B47: GENIALLOYD | C47: 16021 | D47: 28.6 | E47: 0.48 | G47: oggi 09/12/2015 Simona Colonna di allianz mi ha detto di mandare una email al direttore generale Alessandra Valentini; oggi andrea borea di Allianz mi ha detto che genyalloyd ha un altro database e quindi di contattare loro; oggi 15/10/2014 ho parlato con Luigi Tomassoli che non lavora più in Genialloyd ma nella capgruppo Allianz; dice di contattare i colleghi di Allianz dell'ufficio Portafoglio
A48: 40 | B48: ALLEANZA ASSICURAZIONI | C48: 14772 | D48: 4.3 | E48: 0.44
A49: 41 | B49: CHIARA ASSICURAZIONI | C49: 14060 | D49: 2.8 | E49: 0.42 | G49: Tiziana Rosaria Pilla 0263288120
A50: 42 | B50: UNIQA PROTEZIONE | C50: 12775 | D50: 4.3 | E50: 0.38 | F50: NO | G50: oggi 01/10/2015 ROSANNA MINUTE mi ha scritto che per il momento non possono inviare i dati; oggi 30/09/2015 ho provato a chiamare Radaelli e poi gli ho mandato email 02 268 583-357; oggi 05/02/2015 ho scritto a radaelli per avere news; OGGI 04/12/2014 ho sentito Radaelli che mi ha detto che invierà direttamente i dati del 2014 a fine gennaio; oggi 01/12/2014 Radaelli mi ha detto che mi telefonerà domani mattina; oggi 28/11/2014 ho scritto a Radaelli per essere chiamato in giornata o al max lunedì mattina; oggi 15/10/2014 ho inviato email di sollecito a Alberto Radaelli
A51: 43 | B51: LIGURIA | C51: 12624 | D51: -2.2 | E51: 0.37
A52: 44 | B52: TUA ASSICURAZIONI | C52: 10938 | D52: 27.2 | E52: 0.32
A53: 45 | B53: NATIONALE SUISSE | C53: 9305 | D53: -11.1 | E53: 0.28 | F53: SI
A54: 46 | B54: AVIPOP ASSICURAZIONI | C54: 9201 | D54: -15.1 | E54: 0.27 | F54: SI | G54: oggi 10/12/2014 Claudio Roselli ha scritto che entro gennaio 2015 inviano i dati del 2014; oggi 05/12/2014 ho parlato con Fasolin che si attiva a sollecitare internamente, ci dobbiamo sentire nei prox giorni; oggi 14/10/2014 ho mandato email di sollecito a Laura Maria Fasolin e a Banfi; oggi 14032014 ho mandato email a Banfi per avere notizie.
A55: 47 | B55: COMPAGNIA ASS. LINEAR | C55: 8905 | D55: -2 | E55: 0.26
A56: 48 | B56: CREDITRAS ASSICURAZIONI | C56: 8033 | D56: 7.9 | E56: 0.24 | G56: oggi 09/12/2015 Simona Colonna di allianz mi ha detto di mandare una email a Elena Tonelli;
A57: 49 | B57: UNISALUTE | C57: 7353 | D57: 1.5 | E57: 0.22 | F57: SI
A58: 50 | B58: BNP PARIBAS CARDIF VITA | C58: 7294 | D58: 16.4 | E58: 0.22
A59: 51 | B59: ARISCOM | C59: 6147 | D59: 6.6 | E59: 0.18 | G59: oggi 15/10/2014 ho parlato con il responsabile Borrelli e gli ho mandato l'ultimo invio che ci hanno fatto; dice provvederà al più presto, il ritardo è dovuto al fatto che radaelli non lavora più con loro
A60: 52 | B60: ABC ASSICURA | C60: 5907 | D60: 19.2 | E60: 0.18
A61: 53 | B61: CREDEMASSICURAZIONI | C61: 5645 | D61: -6.8 | E61: 0.17 | F61: SI
A62: 54 | B62: BIPIEMME VITA | C62: 5572 | D62: 4.9 | E62: 0.17
A63: 55 | B63: HDI-GERLING INDUSTRIE | C63: 4493 | D63: 38.6 | E63: 0.13
A64: 56 | B64: ZURITEL | C64: 4308 | D64: 25.2 | E64: 0.13
A65: 57 | B65: BCC ASSICURAZIONI | C65: 4197 | D65: 31.9 | E65: 0.12
A66: 58 | B66: FILO DIRETTO | C66: 4042 | D66: 4.9 | E66: 0.12 | G66: oggi 01/12/2014 ho parlato con DIBENEDETTO con cui mi devo sentire entro la fine della settimana; ho parlato con FUCA che mi farà sapere, dice che il dato lo hanno
A67: 59 | B67: ASSICURATRICE MILANESE | C67: 3943 | D67: 17.9 | E67: 0.12
A68: 60 | B68: CF ASSICURAZIONI | C68: 3682 | D68: -4.5 | E68: 0.11 | F68: SI
A69: 61 | B69: GLOBAL ASSISTANCE | C69: 3670 | D69: 72.5 | E69: 0.11
A70: 62 | B70: ALLIANZ GLOBAL C & S | C70: 3596 | D70: -25.4 | E70: 0.11
A71: 63 | B71: INTESA SANPAOLO VITA | C71: 3501 | D71: -41.9 | E71: 0.1
A72: 64 | B72: INCONTRA ASSICURAZIONI | C72: 3256 | D72: 1.7 | E72: 0.1
A73: 65 | B73: DIRECT&QUIXA SEGUROS Y REASEGUROS S.A.U. | C73: 3033 | D73: 11 | E73: 0.09
A74: 66 | B74: CREDIT AGRICOLE ASSICURAZIONI | C74: 2994 | D74: 318.7 | E74: 0.09
A75: 67 | B75: CNP IAM | C75: 2689 | D75: -59.9 | E75: 0.08
A76: 68 | B76: INCHIARO ASSICURAZIONI | C76: 2637 | D76: -9.1 | E76: 0.08
A77: 69 | B77: AXA CORPORATE SOLUTIONS | C77: 2605 | D77: 57.1 | E77: 0.08
A78: 70 | B78: POSTE ASSICURA - Gruppo Assicurativo Poste Vita | C78: 2431 | D78: 1.3 | E78: 0.07 | F78: SI
A79: 71 | B79: NOBIS ASSICURAZIONI | C79: 2217 | D79: -34 | E79: 0.07 | F79: NO | G79: oggi 31/03/2016 bovi stefano ha mandato email in cui comunica che almeno per quest'anno sono impossibilitati a inviare dati in quanto hanno cambiato sistema informativo
A80: 72 | B80: ASSICURATRICE VAL PIAVE | C80: 2044 | D80: 9.5 | E80: 0.06
A81: 73 | B81: BIPIEMME ASSICURAZIONI | C81: 1873 | D81: 72.9 | E81: 0.06
A82: 74 | B82: UNIQA ASSICURAZIONI | C82: 1701 | D82: 0.5 | E82: 0.05 | G82: oggi 01/10/2015 ROSANNA MINUTE mi ha scritto che per il momento non possono inviare i dati; oggi 30/09/2015 ho provato a chiamare Radaelli e poi gli ho mandato email 02 268 583-357; oggi 05/02/2015 ho scritto a radaelli per avere news; OGGI 04/12/2014 ho sentito Radaelli che mi ha detto che invierà direttamente i dati del 2014 a fine gennaio; oggi 01/12/2014 Radaelli mi ha detto che mi telefonerà domani mattina; oggi 28/11/2014 ho scritto a Radaelli per essere chiamato in giornata o al max lunedì mattina; oggi 15/10/2014 ho inviato email di sollecito a Alberto Radaelli
A83: 75 | B83: AGA INTERNATIONAL | C83: 1419 | D83: -1.3 | E83: 0.04 | G83: oggi 15/10/2014 ho inviato email di sollecito a Giacomo Salvemini
A84: 76 | B84: ITAS ASSICURAZIONI | C84: 1358 | D84: 1.4 | E84: 0.04
A85: 77 | B85: DUOMO UNI ONE | C85: 1327 | D85: 163.8 | E85: 0.04
A86: 78 | B86: ANTONIANA VENETA POP. ASS. | C86: 1279 | D86: 4.2 | E86: 0.04
A87: 79 | B87: GREAT LAKES REINS. | C87: 1234 | D87: (.....) | E87: 0.04
A88: 80 | B88: RBM SALUTE | C88: 1148 | D88: 22 | E88: 0.03 | G88: =+'Quota Mal (2013)'!G12 -> oggi 09112015 ho parlato con Vecchietti che mi manda i dati al max fra una settimana; oggi 15102015 ho parlato con Vecchietti che mi farà sapere nei prossimi giorni; oggi 11/12/2014 ho mandato email di sollecito a Vecchietti; oggi 03/12/2014 ho parlato con Vecchietti che mi ha detto mi farà sapere nei prox giorni tramite email; oggi 28/11/2014 ho scritto a Vecchietti per essere chiamato in giornata o al max lunedì mattina; oggi 15/10/2014 ho inviato email di sollecito a Vecchietti e Bruno
A89: 81 | B89: ALA ASSICURAZIONI | C89: 1133 | D89: -68.5 | E89: 0.03
A90: 82 | B90: AVIVA ASSICURAZIONI | C90: 1087 | D90: -5.1 | E90: 0.03 | F90: SI | G90: oggi 10/12/2014 Claudio Roselli ha scritto che entro gennaio 2015 inviano i dati del 2014; oggi 05/12/2014 ho parlato con Fasolin che si attiva a sollecitare internamente, ci dobbiamo sentire nei prox giorni; oggi 14/10/2014 ho mandato email di sollecito a Laura Maria Fasolin e a Banfi; oggi 14032014 ho mandato email a Banfi per avere notizie.
A91: 83 | B91: CATTOLICA PREVIDENZA | C91: 989 | D91: 89.5 | E91: 0.03
A92: 84 | B92: LE ASSICURAZIONI DI ROMA | C92: 862 | D92: 4.5 | E92: 0.03 | F92: SI | G92: oggi 29/07/2015 Patrizia LaVia mi ha telefonato, non sono autorizzati ad esercitare il ramo infortuni e malattia, quindi abbiamo deciso di stoppare l'invio dei dati
A93: 85 | B93: SYSTEMA ASSICURAZIONI | C93: 836 | D93: -12.4 | E93: 0.02
A94: 86 | B94: BANCASSURANCE POPOLARI DANNI | C94: 815 | D94: 47.4 | E94: 0.02
A95: 87 | B95: DIALOGO ASSICURAZIONI | C95: 732 | D95: -17.6 | E95: 0.02
A96: 88 | B96: NET INSURANCE | C96: 390 | D96: 58.5 | E96: 0.01
A97: 89 | B97: TIROLER VERSICHERUNG VAG | C97: 357 | D97: 1.4 | E97: 0.01
A98: 90 | B98: MITSUI SUMITOMO INSURANCE | C98: 331 | D98: 15.3 | E98: 0.01
A99: 91 | B99: R+V ALLGEMEINE | C99: 326 | D99: -2.7 | E99: 0.01
A100: 92 | B100: CARDIF ASSURANCE VIE | C100: 280 | D100: -5.1 | E100: 0.01
A101: 93 | B101: INTER PARTNER ASSISTANCE | C101: 261 | D101: -7.4 | E101: 0.01
A102: 94 | B102: AXERIA PREVOYANCE | C102: 221 | D102: -54.1 | E102: 0.01
A103: 95 | B103: ASSURANT LIFE | C103: 103 | D103: -78.8 | E103: 0
A104: 96 | B104: TOKIO MARINE EUROPE | C104: 91 | D104: 24.7 | E104: 0
A105: 97 | B105: ASSURANT GENERAL INSURANCE | C105: 65 | D105: -91.8 | E105: 0
A106: 98 | B106: SACE BT | C106: 41 | D106: -8.9 | E106: 0
A107: 99 | B107: POPOLARE VITA | C107: 16 | D107: -30.4 | E107: 0
A108: 100 | B108: ISI INSURANCE Compagnia di Assicurazioni | C108: 4 | D108: -42.9 | E108: 0 | F108: SI
A109: 101 | B109: ASSICURAZIONI RISCHI AGRICOLI VMG 1857 | C109: 2 | D109: 0 | E109: 0 | F109: SI

Sheet Quota Mal (2013) (hidden)
A1: PREMI 2013 | F1: 2 - MALATTIA
A3: Imprese in ordine decrescente | C3: premi | D3: variaz. | E3: incid. sul | F3: compagnie che
D4: 2013/2012 | E4: totale | F4: hanno
C5: (migliaia di EURO) | D5: (%) | E5: (%) | F5: risposto
B7: QUOTA MERCATO | E7: =+SUMIF(F:F,"SI",E:E)&"%" -> 75,86% | F7: =+COUNTIF(F9:F116,"SI") -> 37
A9: 1 | B9: GENERALI ITALIA | C9: 501830 | D9: -11.2 | E9: 22.7 | F9: =+'Quota Inf (2013)'!F10 -> SI | G9: =+'Quota Inf (2013)'!G10 -> NO POLIZZE COLLETTIVE; oggi 06112015 mi ha scritto Memo Michele per dirmi che manderà dati entro 15 gg; oggi 08102015 mi ha scritto Andrea Zecchi (0110029705-3346468461) che mi fa sapere; oggi 05/10/2015 ho parlato con Tiralongo (ex inaassitalia, i dati del vecchio portafoglio per garanzia li avrebbero) e ci siamo detti che avrei mandato una mail di sollecito a ANDREA ZECCHI, capo anche di MIchele Memo di ex assicuraz. generali, per aver una risposta scritta sui futuri tempi; oggi 25/09/2015 ho parlato con Tiralongo che mi ha detto che il suo nuovo capo è Andrea Zecchi e mercoledì 30 verso 16:00 lo devo chiamare per avere news o farlo parlare con Desantis; oggi 14/09/2015 ho mandato email per avere un aggiornamento; oggi 23/03/2015 ho parlato con Carosi chiedendole di sentirsi nei prox giorni per avere qualche notizia in più sull'avanzamento dei lavori; oggi 11/03/2015 ho scritto a Carosi per avere news; oggi 24/12/2014 Raffaella Carosi mi ha scritto "stiamo lavorando alle estrazioni richieste, non appena possibile provvederemo ad inviare i dati."; OGGI 22/12/2014 ho mandato email a Raffaella Carosi; oggi 19/12/2014 Tiralongo mi ha detto di parlare con il suo capo Raffaella Carosi (raffaella.carosi@generali.com/0684838049) ma non mi ha risposto, poi ho chiamto memo che mi ha detto che stanno facendo le prime estrapolazioni e che sono in contatto con Tiralongo di Roma; oggi 11/12/2014 ho mandato email di sollecito a Tiralongo; oggi 2/12/2014 Tiralongo mi ha detto che dall'alto è arrivato il mandato di preparare i dati, lui per inaassitalia, Memo per Generali e Boaglio per Toro, lunedì prox lo devo richiamare; oggi 28/11/2014 ho sentito Tiralongo che entro oggi o al max lunedi prox mi deve aggiornare sull'avanzamento dei lavori; oggi 14/11/2014 ho chiesto a Tiralongo di rispondermmi con una mail ufficiale sulla fattibilità o meno della trasmissione dei dati, ci dobbiamo sentire martedì prox; oggi 11/11/2014 ho mandato email per info a Tiralongo; OGGI 24/10/2014 Tiralongo ha inviato una email; oggi 22/10/2014 ho sentito Memo e Tiralongo che non avevano news da darmi, sono oberati di lavoro e appena possono mi fanno sapere (con Tiralongo mi sono messo d'accordo che ci saremmo sentiti martedì prossimo); oggi 21/10/2014 ho mandato email a Memo e Tiralongo per avere notizie sui tempi; oggi 08/10/2014 Memo mi ha ridetto che mi farà sapere se riesce a darmi i premi di portafoglio, non ha voluto che gli scrivessi alcuna email per sollecitare la questione(per ex Assicurazioni Generali); per INA ASSITALIA oggi 09/10/2014 ho parlato con Tiralongo che mi fa sapere; GENERTEL PERò LI INVIA; oggi 13032014 ho parlato con Memo Michele che mi farà sapere se utilizzando i premi di portafoglio riuscirebbe a plittare i premi per garanzia; l'8 gennaio 2013 Memo Michele mi ha confermato via email che non hanno la distribuzione dei premi per garanzia.
A10: 2 | B10: UNIPOLSAI ASSICURAZIONI | C10: 298913 | D10: -5 | E10: 13.52 | F10: SI | G10: oggi 09/10/2014 ho parlato con Roberta Lolli che mi invierà i dati il più presto possibile, mi farà sapere i tempi nei prox giorni con una email
A11: 3 | B11: UNISALUTE | C11: 239472 | D11: 6.7 | E11: 10.83 | F11: SI
A12: 4 | B12: RBM SALUTE | C12: 184360 | D12: 47.6 | E12: 8.34 | F12: mandano dati fra max una settimana | G12: oggi 09112015 ho parlato con Vecchietti che mi manda i dati al max fra una settimana; oggi 15102015 ho parlato con Vecchietti che mi farà sapere nei prossimi giorni; oggi 11/12/2014 ho mandato email di sollecito a Vecchietti; oggi 03/12/2014 ho parlato con Vecchietti che mi ha detto mi farà sapere nei prox giorni tramite email; oggi 28/11/2014 ho scritto a Vecchietti per essere chiamato in giornata o al max lunedì mattina; oggi 15/10/2014 ho inviato email di sollecito a Vecchietti e Bruno
A13: 5 | B13: ALLIANZ S.P.A. | C13: 172593 | D13: -1.3 | E13: 7.81 | F13: SI | G13: =+'Quota Inf (2013)'!G11 -> oggi 15/03/2016 ho detto a Simona Colonna che ci saremmo risentiti verso metà maggio per i mesi di Dicembre; STIMATA SPACCATURA INDIVIDUALI E COLLETTIVE; oggi 03112015 Simona Colonna mi ha contattato per dirmi che fra 10 giorni dovrebbe mandare i dati; oggi 14102015 mi ha contattato Simona Colonna, devo risentirla fine della prossima settimana per vedere se mandare il dato parziale o complessivo; oggi 14102015 ho mandato email a Villa; oggi 16/09/2015 ho parlato con Silvana Villa che mi ha detto e scritto di riaggiornarci ad inizi ottobre; oggi 14/09/2015 ho mandato email per avere un aggiornamento; oggi 13/11/2014 mi ha mandato email Silvana Villa e Andrea Borea per dirmi che invieranno i dati non prima di metà dell'anno prossimo; oggi 11/11/2014 ho mandato email per info a Borea; oggi 21/10/2014 Andrea Borea mi ha detto di risentirci intorno al 28 ottobre; oggi 16/10/2014 ho parlato con Andrea Borea, coinvolto nella questione oggi, che mi farà sapere sulla fattibilità dei dati per il Gruppo Allianz; oggi 15/10/2014 non riuscendo a parlare con Roberto Giordano, gli ho scritto una email di sollecito;oggi 09/10/2014 ho parlato con Alberto Sartorio (0407781271), responsabile della parte contabile, il quale mi ha detto che non hanno questo dettaglio di informazione ma che probabilmente sono invece presenti nella sezione portafoglio con resp. GIORDANO ROBERTO che devo contattare io (0407781598-0272162345), oggi 12032014 ho parlato e mandato email a matteo zolia che mi fa avere il nome di un referente
A14: 6 | B14: SOCIETA' REALE MUTUA | C14: 80245 | D14: -12 | E14: 3.63 | F14: SI
A15: 7 | B15: AXA ASSICURAZIONI | C15: 67657 | D15: 14 | E15: 3.06 | F15: SI | G15: oggi 14032014 ho mandato email a Vecchietti (dirigente) e Bruno per avere notizie.
A16: 8 | B16: SOCIETA' CATTOLICA | C16: 63927 | D16: -16.4 | E16: 2.89 | G16: oggi 07102015 Castiglione mi ha detto di risentirci fra un mese perché stanno chiudendo la trimestrale; oggi 28/09/2015 ho parlato con Castiglione che mi ha detto che dall'ufficio contabilità non ha queste info e di risentirci verso fine settimana per sentire gli altri uffici; oggi 25/09/2015 ho inviato email a castiglione carmelita (0458391457) e parlato con Martini Arianna, le devo chiamare lunedì prox; oggi 14/09/2015 ho mandato email per avere un aggiornamento; oggi 23/03/2015 ho parlato con Obezzi Cristina che mi ha detto di risentirci nei prox giorni (le ho inoltrato nuovamente la richiesta dati); oggi 03/12/2014 ho parlato con Irene Murari (0458391224) che cercherà di contattare Obezzi Cristina; oggi 28/11/2014 ho scritto a Obezzi per essere chiamato in giornata o al max lunedì mattina; oggi 21/10/2014 le ho mandato email per avere news; oggi 13/10/2014 ho parlato con Obezzi Cristina che mi farà sapere, oggi 09/10/2014 ho provato a parlare con Obezzi Cristina e poi le ho mandato email di sollecito (0458391673), oggi 13032014 ho mandato email a Obezzi Cristina per avere notizie.
A17: 9 | B17: EUROP ASSISTANCE ITALIA | C17: 54125 | D17: -33.7 | E17: 2.45 | F17: NO | G17: oggi 04/12/2014 Sarelini mi ha confermato che neanche dall'ufficio portafoglio sono in grado di avere il dato; oggi 28/11/2014 ho scritto a Sarelini per essere chiamato in giornata o al max lunedì mattina; oggi 14/10/2014 ho inviato email di sollecito a Umberto Sarelini, lui ci aveva risposto due anni fa che allo stato attuale non erano in grado di fornire il dato
A18: 10 | B18: UBI ASSICURAZIONI | C18: 46557 | D18: 1.5 | E18: 2.11 | F18: SI
A19: 11 | B19: ZURICH INSURANCE PLC | C19: 41236 | D19: -6.8 | E19: 1.87 | F19: SI | G19: i dati delle teste non sono disponibili; oggi 05/02/2015 ho scritto a Metadow per info; oggi 4/12/2014 mi ha telefonato Luisa Metadow 02 5966 2501 che dice manderà i dati entro il 12 gennaio dall'ufficioi Portafoglio; oggi 3/12/2014 ho parlato con Simona Schinelli e le ho inviato nuovamente la richiesta, mi deve far sapere; oggi 28/11/2014 ho scritto a delpino per essere chiamato in giornata o al max lunedì mattina; oggi 10/10/2014 gli ho inviato un nuovo sollecito proponendogli i premi di portafoglio invece di quelli contabilizzati, marco.delpino@it.zurich.com , oggi 14032014 ho parlato con Paola Di Candia che ci fa sapere, loro all'ufficio bilancio non hanno la spaccatura richiesta per garanzia mentre all'ufficio portafoglio forse riescono
A20: 12 | B20: ASSICURAZIONI GENERALI | C20: 37636 | D20: 11.2 | E20: 1.7
A21: 13 | B21: UNIQA ASSICURAZIONI | C21: 33095 | D21: 0.7 | E21: 1.5 | F21: NO | G21: oggi 01/10/2015 ROSANNA MINUTE mi ha scritto che per il momento non possono inviare i dati; oggi 30/09/2015 ho provato a chiamare Radaelli e poi gli ho mandato email 02 268 583-357; oggi 05/02/2015 ho scritto a radaelli per avere news; OGGI 04/12/2014 ho sentito Radaelli che mi ha detto che invierà direttamente i dati del 2014 a fine gennaio; oggi 01/12/2014 Radaelli mi ha detto che mi telefonerà domani mattina; oggi 28/11/2014 ho scritto a Radaelli per essere chiamato in giornata o al max lunedì mattina; oggi 15/10/2014 ho inviato email di sollecito a Alberto Radaelli
A22: 14 | B22: INTESA SANPAOLO ASSICURA | C22: 31781 | D22: -22.2 | E22: 1.44 | F22: SI | G22: oggi 14/10/2014 ho parlato con Granito che nei prossimi giorni mi farà sapere quando potrà inviare i dati che già hanno; oggi 14032014 ho mandato email a Granito per avere notizie.
A23: 15 | B23: METLIFE EUROPE LIMITED | C23: 29014 | D23: -11.5 | E23: 1.31 | F23: SI | G23: oggi 2/12/2014 Montanari ha scritto che invierà i dati per la fine di gennaio 2015; oggi 28/11/2014 ho scritto a Montanari per essere chiamato in giornata o al max lunedì mattina; oggi 14/10/2014 ho parlato con Stefania Montanari che mi farà sapere
A24: 16 | B24: CARDIF ASSURANCES RISQUES DIVERS | C24: 25148 | D24: -20.8 | E24: 1.14 | G24: oggi 30/09/2015 ho mandato email di sollecito; oggi 23/03/2015 ho provato a contattare Pescatori, il centralino gli lascierà un messaggio per farmi richiamare, oggi 4/12/2014 ho chiesto al centralino di poter essere richiamato da Nadia Pogliani in quanto non riesco a contattare Pescatori; oggi 13/10/2014 ho sentito Nadia Pogliani che mi ha detto di inviare la mail di sollecito all'attuario Giovanni Pescatori
A25: 17 | B25: AGA INTERNATIONAL | C25: 20741 | D25: -8.3 | E25: 0.94 | G25: oggi 15102015 ho parlato con Salvemini che mi ha detto che girerà la richiesta al collega dell'ufficio statistico Stefano Lodetti e mi farà sapere; oggi 15/10/2014 ho inviato email di sollecito a Giacomo Salvemini
A26: 18 | B26: GROUPAMA ASSICURAZIONI | C26: 20594 | D26: -15 | E26: 0.93 | F26: SI | G26: oggi 09/10/2014 Puccioni mi ha detto che entro la prox settimana mi invia i premi contabilizzati ma non la nuova produzione vita, oggi 13032014 ho mandato email a Nicolas Puccioni per avere notizie.
A27: 19 | B27: FILO DIRETTO | C27: 19328 | D27: 4.4 | E27: 0.87 | G27: oggi 01/12/2014 ho parlato con DIBENEDETTO con cui mi devo sentire entro la fine della settimana; ho parlato con FUCA che mi farà sapere, dice che il dato lo hanno
A28: 20 | B28: AVIPOP ASSICURAZIONI | C28: 16766 | D28: -19.3 | E28: 0.76 | F28: SI | G28: oggi 10/12/2014 Claudio Roselli ha scritto che entro gennaio 2015 inviano i dati del 2014; oggi 05/12/2014 ho parlato con Fasolin che si attiva a sollecitare internamente, ci dobbiamo sentire nei prox giorni; oggi 14/10/2014 ho mandato email di sollecito a Laura Maria Fasolin e a Banfi; oggi 14032014 ho mandato email a Banfi per avere notizie.
A29: 21 | B29: ITALIANA ASSICURAZIONI | C29: 16336 | D29: -0.5 | E29: 0.74 | F29: SI
A30: 22 | B30: MEDIOLANUM ASSICURAZIONI | C30: 15529 | D30: 31.5 | E30: 0.7 | G30: oggi 30/09/2015 ho mandato email di sollecito; oggi 14/10/2014 ho parlato con Elisa Pennati e inviato la richiesta, mi farà sapere nei prossimi giorni
A31: 23 | B31: ARCA ASSICURAZIONI | C31: 13292 | D31: 11.6 | E31: 0.6 | F31: SI
A32: 24 | B32: VITTORIA ASSICURAZIONI | C32: 11835 | D32: 9.3 | E32: 0.54 | F32: SI
A33: 25 | B33: AXA MPS ASSICURAZIONI DANNI | C33: 10884 | D33: -24.1 | E33: 0.49 | G33: oggi 30/09/2015 ho parlato con Borgia, gli ho girato la email e gli devo telefonare fra qualche giorno per avere news; oggi 06/02/2015 ho riscritto a MIchele per avere info; oggi 22/12/2014 Di giova Paolo mi ha scritto "e ricerche eseguite sul protocollo formale non hanno permesso purtroppo di rinvenire la comunicazione allegata. Lascio ai Colleghi in indirizzo disporre per l’attuazione."; OGGI 22/12/2014 ho mandato email a Stefano Digiovanpaolo; oggi 19/12/2014 Michele mi ha detto di sentire per le comunicazioni ANIA stefano.digiovanpaolo@axa-mps.it (0651760375); oggi 11/12/2014 ho scritto a Michele per avere il nominativo dell'ufficio legale da contattare; oggi 4/12/2014 ho scritto a Michele per avere una email ufficiale sulla loro disponibilità; oggi 26 novembre Michele mi ha scritto che per estrapolare i dati devono coinvolgere l'it e i tempi si allungherebbero molto; oggi 17/11/2014 Michele mi ha detto di risentirci fine settimana per fare il punto della situazione; oggi 11/11/2014 ho mandato email per info a Michele; oggi 14/10/2014 ho parlato con Michele che mi ha detto invierà i dati fine della prox settimana, oggi 13/10/2014 Michele mi ha detto di richiamarlo domani mattina, ho parlato oggi 12032014 con il mio amico Michele Delliquadri, dice che manderà i dati
A34: 26 | B34: ITAS MUTUA | C34: 10372 | D34: 1.7 | E34: 0.47 | F34: SI
A35: 27 | B35: ACE EUROPEAN GROUP | C35: 8888 | D35: 0 | E35: 0.4 | F35: SI | G35: oggi 30/09/2015 ho parlato con la DERIENZO, la devo richiamare mercoledì prossimo per una risposta; oggi 04/12/2014 ho sentito la DERIENZO (0227095744) che mi richiama domani mattina; oggi 13/10/2014 ho proposto via telefono e via email a teresa derienzo di estrapolare le informazioni per garanzia dall'ufficio prortafoglio e non da quello contabilità, mi deve far sapere
A36: 28 | B36: CREDITRAS ASSICURAZIONI | C36: 8763 | D36: -1.6 | E36: 0.4
A37: 29 | B37: ASSIMOCO | C37: 8734 | D37: 18.4 | E37: 0.4 | F37: SI | G37: oggi 14/10/2014 ho parlato con Marianna Carretta che mi ha detto di avere il dato e di spedirlo il prima possibile
A38: 30 | B38: SARA ASSICURAZIONI | C38: 8654 | D38: -1.5 | E38: 0.39 | F38: SI | G38: oggi 14/10/2014 Adolfo Priori, responsabile dell'estrazione dati, mi ha detto che mi invierà i dati per lunedì, martedì della prox settimana; oggi 13/10/2014 gli ho mandato una email; oggi 09/10/2014 Salvatore Stefano mi ha detto che se i dati domani non arrivano devo ritelefonargli
A39: 31 | B39: CATTOLICA PREVIDENZA | C39: 7938 | D39: -47.1 | E39: 0.36
A40: 32 | B40: CREDEMASSICURAZIONI | C40: 7860 | D40: -1.8 | E40: 0.36 | F40: SI
A41: 33 | B41: AVIVA ITALIA | C41: 7378 | D41: -2.3 | E41: 0.33 | F41: SI | G41: oggi 10/12/2014 Claudio Roselli ha scritto che entro gennaio 2015 inviano i dati del 2014; oggi 05/12/2014 ho parlato con Fasolin che si attiva a sollecitare internamente, ci dobbiamo sentire nei prox giorni; oggi 14/10/2014 ho mandato email di sollecito a Laura Maria Fasolin e a Banfi; oggi 14032014 ho mandato email a Banfi per avere notizie.
A42: 34 | B42: AIG EUROPE LIMITED | C42: 7066 | D42: 26 | E42: 0.32 | F42: SI
A43: 35 | B43: POSTE ASSICURA - Gruppo Assicurativo Poste Vita | C43: 5442 | D43: 13.8 | E43: 0.25 | F43: SI
A44: 36 | B44: HELVETIA SA | C44: 5300 | D44: -5.8 | E44: 0.24 | F44: SI | G44: il 31/07/2014 ci ha scritto Giuseppe Caruso per comunicare che a causa della migrazione in corso verso il nuovo sistema informativo per la gestione del portafoglio danni, Helvetia Rappresentanza non parteciperà alle rilevazione in oggetto al 30 giugno 2014
A45: 37 | B45: ALLEANZA ASSICURAZIONI S.p.A. | C45: 4743 | D45: 1.3 | E45: 0.21
A46: 38 | B46: INCONTRA ASSICURAZIONI | C46: 4681 | D46: 3.9 | E46: 0.21
A47: 39 | B47: CARIGE R.D. ASSICURAZIONI E RIASSICURAZIONI | C47: 4464 | D47: -20 | E47: 0.2 | F47: SI
A48: 40 | B48: BNP PARIBAS CARDIF VITA S.p.A. | C48: 4327 | D48: 10.9 | E48: 0.2
A49: 41 | B49: BIPIEMME VITA | C49: 3405 | D49: -4.6 | E49: 0.15
A50: 42 | B50: ERGO ASSICURAZIONI | C50: 3351 | D50: 17.8 | E50: 0.15 | F50: SI
A51: 43 | B51: BIPIEMME ASSICURAZIONI | C51: 3306 | D51: 46.1 | E51: 0.15
A52: 44 | B52: FATA ASSICURAZIONI DANNI | C52: 3082 | D52: 12.9 | E52: 0.14
A53: 45 | B53: GLOBAL ASSISTANCE | C53: 2990 | D53: 23 | E53: 0.14
A54: 46 | B54: HDI ASSICURAZIONI | C54: 2988 | D54: -2.4 | E54: 0.14 | F54: SI
A55: 47 | B55: ANTONIANA VENETA POP. ASS. | C55: 2882 | D55: 24.7 | E55: 0.13
A56: 48 | B56: ABC ASSICURA | C56: 2780 | D56: 20.1 | E56: 0.13
A57: 49 | B57: CHIARA ASSICURAZIONI | C57: 2457 | D57: -23.7 | E57: 0.11
A58: 50 | B58: BCC ASSICURAZIONI | C58: 2417 | D58: 0.5 | E58: 0.11
A59: 51 | B59: ARISCOM | C59: 2393 | D59: 16.8 | E59: 0.11
A60: 52 | B60: INTER PARTNER ASSISTANCE | C60: 1991 | D60: 128.1 | E60: 0.09
A61: 53 | B61: AVIVA ASSICURAZIONI | C61: 1962 | D61: -26.8 | E61: 0.09 | F61: SI | G61: oggi 10/12/2014 Claudio Roselli ha scritto che entro gennaio 2015 inviano i dati del 2014; oggi 05/12/2014 ho parlato con Fasolin che si attiva a sollecitare internamente, ci dobbiamo sentire nei prox giorni; oggi 14/10/2014 ho mandato email di sollecito a Laura Maria Fasolin e a Banfi; oggi 14032014 ho mandato email a Banfi per avere notizie.
A62: 54 | B62: CF ASSICURAZIONI | C62: 1947 | D62: -13.4 | E62: 0.09 | F62: SI
A63: 55 | B63: CBA VITA | C63: 1791 | D63: 4.9 | E63: 0.08
A64: 56 | B64: UNIQA PROTEZIONE | C64: 1740 | D64: -8.3 | E64: 0.08 | F64: NO | G64: oggi 9/12/2014 mi ha detto Minute che non posono inviarci i dati ma lo faranno per i dati del 2015; oggi 4/12/2014 ho mandato email di richiesta invio dati a ROSANNA MINUTE (0432536319), mi ha dato il suo riferimento Radaelli di UNIQA ASSICURAZIONI
A65: 57 | B65: SUN INSURANCE OFFICE LIMITED RSA | C65: 1389 | D65: -5.1 | E65: 0.06 | F65: SI
A66: 58 | B66: TUA ASSICURAZIONI | C66: 1371 | D66: 4.9 | E66: 0.06
A67: 59 | B67: GENERTEL | C67: 1134 | D67: 127.7 | E67: 0.05 | F67: SI
A68: 60 | B68: CNP IAM | C68: 1126 | D68: (.....) | E68: 0.05
A69: 61 | B69: NATIONALE SUISSE | C69: 914 | D69: -6.4 | E69: 0.04 | F69: SI
A70: 62 | B70: LIGURIA | C70: 760 | D70: -9.1 | E70: 0.03
A71: 63 | B71: POSTE VITA - Gruppo Assicurativo Poste Vita | C71: 665 | D71: -19.1 | E71: 0.03 | F71: SI
A72: 64 | B72: ALA ASSICURAZIONI | C72: 596 | D72: -23.1 | E72: 0.03
A73: 65 | B73: INCHIARO ASSICURAZIONI | C73: 536 | D73: -51.3 | E73: 0.02
A74: 66 | B74: INTESA SANPAOLO VITA | C74: 524 | D74: -77.4 | E74: 0.02
A75: 67 | B75: DUOMO UNI ONE | C75: 493 | D75: 146.5 | E75: 0.02
A76: 68 | B76: ASSICURATRICE VAL PIAVE | C76: 354 | D76: 13.1 | E76: 0.02
A77: 69 | B77: ITAS ASSICURAZIONI | C77: 224 | D77: -43.4 | E77: 0.01
A78: 70 | B78: ASSICURATRICE MILANESE | C78: 209 | D78: -22.6 | E78: 0.01
A79: 71 | B79: NOBIS COMPAGNIA DI ASSICURAZIONI | C79: 201 | D79: 14.9 | E79: 0.01 | F79: NO | G79: oggi 31/03/2016 bovi stefano ha mandato email in cui comunica che almeno per quest'anno sono impossibilitati a inviare dati in quanto hanno cambiato sistema informativo
A80: 72 | B80: LLOYD'S | C80: 198 | D80: 147.5 | E80: 0.01
A81: 73 | B81: CARDIF ASSURANCE VIE | C81: 133 | D81: 155.8 | E81: 0.01
A82: 74 | B82: BANCASSURANCE POPOLARI DANNI | C82: 120 | D82: 60 | E82: 0.01
A83: 75 | B83: NET INSURANCE | C83: 110 | D83: 685.7 | E83: 0
A84: 76 | B84: ASSURANT LIFE | C84: 103 | D84: -78.8 | E84: 0
A85: 77 | B85: ASSURANT GENERAL INSURANCE | C85: 65 | D85: -91.8 | E85: 0
A86: 78 | B86: HELVETIA ITALIA ASSICURAZIONI | C86: 58 | D86: -86.3 | E86: 0 | F86: SI
A87: 79 | B87: CF LIFE COMPAGNIA DI ASSICURAZIONI SULLA VITA | C87: 51 | D87: 13.3 | E87: 0 | F87: SI
A88: 80 | B88: CHUBB INSURANCE COMPANY OF EUROPE | C88: 14 | D88: -93.9 | E88: 0
A89: 81 | B89: MAPFRE ASISTENCIA | C89: 13 | D89: (.....) | E89: 0
A90: 82 | B90: ISI INSURANCE Compagnia di Assicurazioni | C90: 8 | D90: -46.7 | E90: 0 | F90: SI
A91: 83 | B91: TOKIO MARINE EUROPE | C91: 3 | D91: 0 | E91: 0
A92: 84 | B92: AFI ESCA IARD | C92: 2 | D92: (.....) | E92: 0
A93: 85 | B93: ASSICURAZIONI RISCHI AGRICOLI VMG 1857 | C93: 1 | D93: 0 | E93: 0 | F93: SI
A94: 86 | B94: GENIALLOYD | C94: 1 | D94: -50 | E94: 0
A95: 87 | B95: SYSTEMA ASSICURAZIONI | C95: 1 | D95: 0 | E95: 0

Sheet 062015vs062014 (hidden)
A1: GIUGNO 2015 | B1: 74.1 | D1: GIUGNO 2014 | E1: 60.8
A2: 003 - ALLIANZ S.P.A. | B2: 116652981.4 | D2: 003 - ALLIANZ S.P.A. | E2: 95355439.58
A3: 005 - GENERALI ITALIA | B3: 153938638 | D3: 005 - GENERALI ITALIA | E3: 18
A4: 007 - COMPAGNIA DI ASS. DI MILANO | D4: 007 - COMPAGNIA DI ASS. DI MILANO
A5: 014 - AXA ASSICURAZIONI | B5: 3.4 | D5: 014 - AXA ASSICURAZIONI | E5: 43599616
A6: 019 - HELVETIA SA | B6: 9013207.091 | D6: 019 - HELVETIA SA | E6: 0.9
A7: 022 - ITAS MUTUA | B7: 17370371.1 | D7: 022 - ITAS MUTUA | E7: 16430939.99
A8: 023 - ITALIANA ASSICURAZIONI | B8: 17542127.65 | D8: 023 - ITALIANA ASSICURAZIONI | E8: 17066883.83
A9: 032 - SARA ASSICURAZIONI | B9: 22836858 | D9: 032 - SARA ASSICURAZIONI | E9: 20962326
A10: 034 - FONDIARIA - SAI | D10: 034 - FONDIARIA - SAI
A11: 034 - UNIPOLSAI ASSICURAZIONI | B11: 246824146.5 | D11: 034 - UNIPOLSAI ASSICURAZIONI | E11: 294385000.1
A12: 035 - SOCIETA' REALE MUTUA | B12: 32389001.79 | D12: 035 - SOCIETA' REALE MUTUA | E12: 31550581.63
A13: 038 - VITTORIA ASSICURAZIONI | B13: 33829167 | D13: 038 - VITTORIA ASSICURAZIONI | E13: 30372090
A14: 045 - ASSICURAZIONI RISCHI AGRICOLI VMG 1857 | B14: 237 | D14: 045 - ASSICURAZIONI RISCHI AGRICOLI VMG 1857 | E14: 237
A15: 080 - SUN INSURANCE OFFICE LIMITED RSA | B15: 5421290.11 | D15: 080 - SUN INSURANCE OFFICE LIMITED RSA | E15: 5555208
A16: 082 - UNIPOL ASSICURAZIONI | D16: 082 - UNIPOL ASSICURAZIONI
A17: 086 - CARIGE R.D. ASSICURAZIONI E RIASSICURAZIONI | B17: 30741578 | D17: 086 - CARIGE R.D. ASSICURAZIONI E RIASSICURAZIONI | E17: 33826773
A18: 133 - HDI ASSICURAZIONI | B18: 8960615 | D18: 133 - HDI ASSICURAZIONI | E18: 8924275.44
A19: 139 - GENIALLOYD | B19: 10401864.96 | D19: 139 - GENIALLOYD | E19: 9434871.09
A20: 151 - GROUPAMA ASSICURAZIONI | B20: 3 | D20: 151 - GROUPAMA ASSICURAZIONI | E20: 90938748
A21: 208 - NATIONALE SUISSE | B21: 3237135.869 | D21: 208 - NATIONALE SUISSE | E21: 3930146
A22: 225 - ISI INSURANCE Compagnia di Assicurazioni | D22: 225 - ISI INSURANCE Compagnia di Assicurazioni
A23: 243 - AXA MPS ASSICURAZIONI DANNI | D23: 243 - AXA MPS ASSICURAZIONI DANNI
A24: 247 - GENERTEL | B24: 10815321 | D24: 247 - GENERTEL | E24: 11393462
A25: 254 - ASSIMOCO | B25: 11888000 | D25: 254 - ASSIMOCO | E25: 11145000
A26: 292 - HELVETIA ITALIA ASSICURAZIONI | D26: 292 - HELVETIA ITALIA ASSICURAZIONI | E26: 568892
A27: 293 - ERGO ASSICURAZIONI | B27: 4770088.65 | D27: 293 - ERGO ASSICURAZIONI | E27: 8423758.73
A28: 304 - CARGEAS ASSICURAZIONI | B28: 7365730 | D28: 304 - CARGEAS ASSICURAZIONI | E28: 6890208
A29: 304 - UBI ASSICURAZIONI | D29: 304 - UBI ASSICURAZIONI
A30: 342 - UNISALUTE | B30: 0 | D30: 342 - UNISALUTE | E30: 0
A31: 344 - AIG EUROPE LIMITED | B31: 3328610 | D31: 344 - AIG EUROPE LIMITED | E31: 2316416
A32: 344 - CHARTIS EUROPE S.A. | D32: 344 - CHARTIS EUROPE S.A.
A33: 352 - AVIVA ITALIA | B33: 25791749 | D33: 352 - AVIVA ITALIA | E33: 1.3
A34: 378 - AVIVA ASSICURAZIONI | D34: 378 - AVIVA ASSICURAZIONI
A35: 417 - ARCA ASSICURAZIONI | B35: 9003219 | D35: 417 - ARCA ASSICURAZIONI | E35: 8972323
A36: 419 - INTESA SANPAOLO ASSICURA | B36: 3859460 | D36: 419 - INTESA SANPAOLO ASSICURA | E36: 3458788
A37: 426 - CNP UNICREDIT VITA | B37: 0 | D37: 426 - CNP UNICREDIT VITA | E37: 0
A38: 428 - CREDEMASSICURAZIONI | B38: 1296596.09 | D38: 428 - CREDEMASSICURAZIONI | E38: 1416407.21
A39: 431 - POSTE VITA - Gruppo Assicurativo Poste Vita | B39: 0 | D39: 431 - POSTE VITA - Gruppo Assicurativo Poste Vita | E39: 907640
A40: 432 - DIRECT LINE INSURANCE | B40: 17777333 | D40: 432 - DIRECT LINE INSURANCE | E40: 16046279.82
A41: 457 - AVIPOP ASSICURAZIONI | B41: 1585578 | D41: 457 - AVIPOP ASSICURAZIONI
A42: 464 - CF ASSICURAZIONI | B42: 1176644 | D42: 464 - CF ASSICURAZIONI | E42: 1856310
A43: 469 - ARISCOM COMPAGNIA DI ASSICURAZIONI | D43: 469 - ARISCOM COMPAGNIA DI ASSICURAZIONI
A44: 474 - NOBIS COMPAGNIA DI ASSICURAZIONI | D44: 474 - NOBIS COMPAGNIA DI ASSICURAZIONI | E44: 1136548
A45: 480 - POSTE ASSICURA - Gruppo Assicurativo Poste Vita | B45: 17758023 | D45: 480 - POSTE ASSICURA - Gruppo Assicurativo Poste Vita | E45: 15593
A46: 618 - METLIFE EUROPE LIMITED | B46: 8714740 | D46: 618 - METLIFE EUROPE LIMITED | E46: 6660065.91
A47: 853 - ACE EUROPEAN GROUP LTD | D47: 853 - ACE EUROPEAN GROUP LTD
A48: 864 - ZURICH INSURANCE PLC | B48: 28996930 | D48: 864 - ZURICH INSURANCE PLC | E48: 28868401
A49: Totale complessivo | B49: 863287241.2 | D49: Totale complessivo | E49: 812409228.4

Sheet PREMI CONTAB. (hidden)
B1: PREMI PORTAFOGLIO DIRETTO AL IV TRIMESTRE 2015
B2: Valori in milioni di euro
B3: Rami | C3: PREMI ITA ed EXTRA UE** | D3: QUOTA MERCATO ITA ed EXTRA UE | E3: PREMI UE*** | F3: QUOTA MERCATO UE | G3: PREMI TOTALI | H3: VAR.* % PREMI ITA ed EXTRA UE | I3: VAR.* % PREMI UE | J3: VAR.* % PREMI TOTALI
C4: al IV trim. 2015 | D4: al IV trim. 2015 | E4: al IV trim. 2015 | F4: al IV trim. 2015 | G4: al IV trim. 2015 | H4: 2015/2014 | I4: 2015/2014 | J4: 2015/2014
B5: R.C. Autoveicoli terrestri | C5: 14186.552 | D5: =+C5/G5 -> 0.949170632 | E5: 759.709 | F5: =+E5/G5 -> 0.05082936796 | G5: =+C5+E5 -> 14946.261 | H5: -0.06541190173 | I5: -0.05465090813 | J5: -0.06487084043
B6: Corpi di veicoli terrestri | C6: 2455.469 | D6: =+C6/G6 -> 0.9134069598 | E6: 232.784 | F6: =+E6/G6 -> 0.08659304016 | G6: =+C6+E6 -> 2688.253 | H6: 0.028697913 | I6: 0.08466362865 | J6: 0.03331472927
B7: Totale settore Auto | C7: =SUM(C5:C6) -> 16642.021 | D7: 0.9437187211 | E7: =SUM(E5:E6) -> 992.493 | F7: 0.05628127886 | G7: 17634.514 | H7: -0.05262404365 | I7: -0.02528770174 | J7: -0.05112630403
B8: Infortuni | C8: 2962.512 | D8: 0.8728990473 | E8: 431.365 | F8: 0.1271009527 | G8: 3393.877 | H8: -0.003783086878 | I8: 0.05956287643 | J8: 0.003844859235
B9: Malattia | C9: 2142.617 | D9: 0.9381983285 | E9: 141.14 | F9: 0.06180167154 | G9: 2283.757 | H9: 0.04187551665 | I9: 0.03024153814 | J9: 0.04114890515
B10: Corpi di veicoli ferroviari | C10: 4.049 | D10: 0.9438228438 | E10: 0.241 | F10: 0.05617715618 | G10: 4.29 | H10: -0.003445729756 | I10: -0.5726950355 | J10: -0.07283336935
B11: Corpi di veicoli aerei | C11: 18.361 | D11: 0.6328542378 | E11: 10.652 | F11: 0.3671457622 | G11: 29.013 | H11: 0.02403792526 | I11: -0.3030164235 | J11: -0.126456508
B12: Corpi veicoli marittimi | C12: 230.181 | D12: 0.7091219963 | E12: 94.419 | F12: 0.2908780037 | G12: 324.6 | H12: -0.03867341015 | I12: 0.8609496029 | J12: 0.1186237413
B13: Merci trasportate | C13: 165.869 | D13: 0.5253807267 | E13: 149.843 | F13: 0.4746192733 | G13: 315.712 | H13: -0.03186851029 | I13: 0.01637398341 | J13: -0.009555838599
B14: Incendio ed elementi naturali | C14: 2289.687 | D14: 0.8645910624 | E14: 358.602 | F14: 0.1354089376 | G14: 2648.289 | H14: -0.002411096796 | I14: 0.0228674929 | J14: 0.0009384663879
B15: Altri danni ai beni | C15: 2729.766 | D15: 0.8804236975 | E15: 370.748 | F15: 0.1195763025 | G15: 3100.514 | H15: -0.01705466329 | I15: 0.07209304343 | J15: -0.007182961217
B16: R.C. Aeromobili | C16: 10.265 | D16: 0.5401778667 | E16: 8.738 | F16: 0.4598221333 | G16: 19.003 | H16: -0.284918147 | I16: -0.2185655518 | J16: -0.2558640404
B17: R.C. Veicoli marittimi | C17: 31.47 | D17: 0.9342437287 | E17: 2.215 | F17: 0.06575627134 | G17: 33.685 | H17: -0.003009662601 | I17: 0.3887147335 | J17: 0.01583232811
B18: R.C. Generale | C18: 2871.354 | D18: 0.6943031842 | E18: 1264.237 | F18: 0.3056968158 | G18: 4135.591 | H18: 0.01433028542 | I18: 0.1358853618 | J18: 0.04863500419
B19: Credito | C19: 59.95 | D19: 0.1234766239 | E19: 425.567 | F19: 0.8765233761 | G19: 485.517 | H19: -0.1483407205 | I19: 0.06433258971 | J19: 0.03249644859
B20: Cauzione | C20: 362.519 | D20: 0.7260675638 | E20: 136.772 | F20: 0.2739324362 | G20: 499.291 | H20: -0.05570894959 | I20: 0.1335980042 | J20: -0.01044080078
B21: Perdite pecuniarie | C21: 551.314 | D21: 0.7238321561 | E21: 210.346 | F21: 0.2761678439 | G21: 761.66 | H21: 0.07522691724 | I21: -0.07554442174 | J21: 0.02888513354
B22: Tutela Legale | C22: 326.794 | D22: 0.8653241715 | E22: 50.861 | F22: 0.1346758285 | G22: 377.655 | H22: 0.06336371416 | I22: 0.03193539879 | J22: 0.05901998833
B23: Assistenza | C23: 603.456 | D23: 0.9181934235 | E23: 53.765 | F23: 0.08180657648 | G23: 657.221 | H23: 0.1022198518 | I23: 0.070184518 | J23: 0.09952729533
B24: Totale altri rami danni | C24: =SUM(C8:C23) -> 15360.164 | D24: 0.8054759192 | E24: =SUM(E8:E23) -> 3709.511 | F24: 0.1945240808 | G24: 19069.675 | H24: 0.00828600725 | I24: 0.08216525762 | J24: 0.02185639104
B25: Totale rami danni | C25: =+C24+C7 -> 32002.185 | D25: 0.8718946222 | E25: =+E24+E7 -> 4702.004 | F25: 0.1281053778 | G25: 36704.189 | H25: -0.02433473814 | I25: 0.05755648431 | J25: -0.01455940442
B27: PREMI LAVORO DIRETTO AL II TRIMESTRE 2015
B28: Valori in milioni di euro
B29: Rami | C29: PREMI ITA ed EXTRA UE** | D29: QUOTA MERCATO ITA ed EXTRA UE | E29: PREMI UE*** | F29: QUOTA MERCATO UE | G29: PREMI TOTALI | H29: VAR.* % PREMI ITA ed EXTRA UE | I29: VAR.* % PREMI UE | J29: VAR.* % PREMI TOTALI
C30: al II trim. 2015 | D30: al II trim. 2015 | E30: al II trim. 2015 | F30: al II trim. 2015 | G30: al II trim. 2015 | H30: 2015/2014 | I30: 2015/2014 | J30: 2015/2014
B31: R.C. Autoveicoli terrestri | C31: 7451.321 | D31: 0.9510222315 | E31: 383.744 | F31: 0.04897776853 | G31: 7835.065 | H31: -0.07010618129 | I31: -0.1044104536 | J31: -0.07184741701
B32: Corpi di veicoli terrestri | C32: 1255.111 | D32: 0.9123176707 | E32: 120.628 | F32: 0.08768232928 | G32: 1375.739 | H32: 0.01179870614 | I32: 0.094181142 | J32: 0.01852271381
B33: Totale settore Auto | C33: 8706.432 | D33: 0.9452412623 | E33: 504.372 | F33: 0.05475873767 | G33: 9210.804 | H33: -0.0591265224 | I33: -0.0637707039 | J33: -0.05938202402
B34: Infortuni | C34: 1433.776 | D34: 0.8625005113 | E34: 228.572 | F34: 0.1374994887 | G34: 1662.348 | H34: -0.004430075631 | I34: 0.08118386634 | J34: 0.006528958897
B35: Malattia | C35: 1032.719 | D35: 0.9373850642 | E35: 68.983 | F35: 0.0626149358 | G35: 1101.702 | H35: 0.01960484252 | I35: 0.1261427452 | J35: 0.02568060492
B36: Corpi di veicoli ferroviari | C36: 2.911 | D36: 0.9253019708 | E36: 0.235 | F36: 0.07469802924 | G36: 3.146 | H36: 0.1935219352 | I36: 0.07305936073 | J36: 0.1835966892
B37: Corpi di veicoli aerei | C37: 12.969 | D37: 0.6504012036 | E37: 6.971 | F37: 0.3495987964 | G37: 19.94 | H37: -0.2725487996 | I37: 0.1220022533 | J37: -0.1705835864
B38: Corpi veicoli marittimi | C38: 112.397 | D38: 0.7624684558 | E38: 35.015 | F38: 0.2375315442 | G38: 147.412 | H38: 0.07215285263 | I38: 0.6657152371 | J38: 0.1712937213
B39: Merci trasportate | C39: 89.913 | D39: 0.5385269614 | E39: 77.048 | F39: 0.4614730386 | G39: 166.961 | H39: -0.02217461284 | I39: 0.06679220204 | J39: 0.01696350258
B40: Incendio ed elementi naturali | C40: 1026.589 | D40: 0.8619200386 | E40: 164.46 | F40: 0.1380799614 | G40: 1191.049 | H40: 0.004630784934 | I40: 0.00437881314 | J40: 0.004595985155
B41: Altri danni ai beni | C41: 1322.839 | D41: 0.8986238445 | E41: 149.233 | F41: 0.1013761555 | G41: 1472.072 | H41: -0.004387100465 | I41: 0.04482951761 | J41: 0.0003900786817
B42: R.C. Aeromobili | C42: 4.658 | D42: 0.5418799442 | E42: 3.938 | F42: 0.4581200558 | G42: 8.596 | H42: -0.1278786744 | I42: -0.2635122499 | J42: -0.1957335329
B43: R.C. Veicoli marittimi | C43: 16.8 | D43: 0.9303871075 | E43: 1.257 | F43: 0.06961289251 | G43: 18.057 | H43: -0.09769590204 | I43: 0.2396449704 | J43: -0.08027300973
B44: R.C. Generale | C44: 1377.99 | D44: 0.6844526301 | E44: 635.283 | F44: 0.3155473699 | G44: 2013.273 | H44: 0.04138437111 | I44: 0.09270808966 | J44: 0.05705095996
B45: Credito | C45: 31.67 | D45: 0.1224051235 | E45: 227.061 | F45: 0.8775948765 | G45: 258.731 | H45: -0.1822454038 | I45: 0.08522719126 | J45: 0.04345108224
B46: Cauzione | C46: 183.223 | D46: 0.7420939652 | E46: 63.677 | F46: 0.2579060348 | G46: 246.9 | H46: -0.02293052052 | I46: 0.1126507077 | J46: 0.008772109024
B47: Perdite pecuniarie | C47: 269.259 | D47: 0.7189576864 | E47: 105.254 | F47: 0.2810423136 | G47: 374.513 | H47: 0.08214371835 | I47: -0.1274207455 | J47: 0.01372061801
B48: Tutela Legale | C48: 162.068 | D48: 0.868834267 | E48: 24.467 | F48: 0.131165733 | G48: 186.535 | H48: 0.0821053475 | I48: 0.05876498334 | J48: 0.07898542342
B49: Assistenza | C49: 303.289 | D49: 0.9146837245 | E49: 28.289 | F49: 0.08531627551 | G49: 331.578 | H49: 0.1120159274 | I49: 0.0947755418 | J49: 0.1105238832
B50: Totale altri rami danni | C50: 7383.07 | D50: 0.8022623083 | E50: 1819.743 | F50: 0.1977376917 | G50: 9202.813 | H50: 0.01620097768 | I50: 0.0687446702 | J50: 0.02617702209
B51: Totale rami danni | C51: 16089.502 | D51: 0.8737828098 | E51: 2324.115 | F51: 0.1262171902 | G51: 18413.617 | H51: - 2,6% | I51: 0.03689448515 | J51: - 1,8%
B53: TAVOLA 1a - PREMI LAVORO DIRETTO AL 2° TRIMESTRE 2014
B54: Valori in milioni di euro
B55: Rami | C55: PREMI ITA ed EXTRA UE** | D55: QUOTA MERCATO ITA ed EXTRA UE | E55: PREMI UE*** | F55: QUOTA MERCATO UE | G55: PREMI TOTALI | H55: VAR.* % PREMI ITA ed EXTRA UE | I55: VAR.* % PREMI UE | J55: VAR.* % PREMI TOTALI
C56: 2014 | D56: 2014 | E56: 2014 | F56: 2014 | G56: 2014 | H56: 2014/2013 | I56: 2014/2013 | J56: 2014/2013
B57: R.C. Autoveicoli terrestri | C57: 8013.125 | D57: 0.9495473871 | E57: 425.764 | F57: 0.0504526129 | G57: 8438.889 | H57: -0.06693770425 | I57: -0.1473055139 | J57: -0.07135363955
B58: Corpi di veicoli terrestri | C58: 1238.901 | D58: 0.9289328341 | E58: 94.781 | F58: 0.07106716594 | G58: 1333.682 | H58: -0.02694150108 | I58: -0.07566803199 | J58: -0.03057329748
B59: Totale settore Auto | C59: 9252.026 | D59: 0.9467340785 | E59: 520.545 | F59: 0.05326592153 | G59: 9772.571 | H59: -0.06177369299 | I59: -0.1351004227 | J59: -0.06599159862
B61: Infortuni | C61: 1433.719 | D61: 0.8738965199 | E61: 206.886 | F61: 0.1261034801 | G61: 1640.605 | H61: 0.002007903017 | I61: 0.03730333022 | J61: 0.006325860643
B62: Malattia | C62: 1011.109 | D62: 0.9432488481 | E62: 60.834 | F62: 0.05675115188 | G62: 1071.943 | H62: -0.01572528165 | I62: -0.1713908223 | J62: -0.02610840571
B63: Corpi di veicoli ferroviari | C63: 2.439 | D63: 0.9176072235 | E63: 0.219 | F63: 0.08239277652 | G63: 2.658 | H63: -0.0953264095 | I63: -0.5867924528 | J63: -0.1760694358
B64: Corpi di veicoli aerei | C64: 17.828 | D64: 0.7415664906 | E64: 6.213 | F64: 0.2584335094 | G64: 24.041 | H64: 0.31368359 | I64: -0.2177033493 | J64: 0.1175103426
B65: Corpi veicoli marittimi | C65: 104.833 | D65: 0.8329731276 | E65: 21.021 | F65: 0.1670268724 | G65: 125.854 | H65: -0.1681109048 | I65: 0.001476893759 | J65: -0.1438969308
B66: Merci trasportate | C66: 91.949 | D66: 0.5647556691 | E66: 70.863 | F66: 0.4352443309 | G66: 162.812 | H66: -0.1537916437 | I66: 0.04757188262 | J66: -0.076532146
B67: Incendio ed elementi naturali | C67: 1022.599 | D67: 0.8659855189 | E67: 158.251 | F67: 0.1340144811 | G67: 1180.85 | H67: -0.00178343775 | I67: 0.01977677823 | J67: 0.001052892147
B68: Altri danni ai beni | C68: 1332.445 | D68: 0.9040463596 | E68: 141.423 | F68: 0.09595364035 | G68: 1473.868 | H68: 0.05525654286 | I68: -0.01363528575 | J68: 0.04823150211
B69: R.C. Aeromobili | C69: 5.341 | D69: 0.4997193114 | E69: 5.347 | F69: 0.5002806886 | G69: 10.688 | H69: -0.02 | I69: -0.1222915299 | J69: -0.07399064287
B70: R.C. Veicoli marittimi | C70: 18.619 | D70: 0.948352264 | E70: 1.014 | F70: 0.05164773595 | G70: 19.633 | H70: 0.01488062793 | I70: 0.2320777643 | J70: 0.02420574887
B71: R.C. Generale | C71: 1321.178 | D71: 0.7354611516 | E71: 475.216 | F71: 0.2645388484 | G71: 1796.394 | H71: -0.017466804 | I71: 0.02821213518 | J71: -0.005782464654
B72: Credito | C72: 38.728 | D72: 0.1572512699 | E72: 207.553 | F72: 0.8427487301 | G72: 246.281 | H72: -0.1731853117 | I72: 0.04968947241 | J72: 0.007004186975
B73: Cauzione | C73: 187.524 | D73: 0.7885388458 | E73: 50.288 | F73: 0.2114611542 | G73: 237.812 | H73: -0.03097887029 | I73: -0.08608814175 | J73: -0.04317947728
B74: Perdite pecuniarie | C74: 250.808 | D74: 0.6903377813 | E74: 112.504 | F74: 0.3096622187 | G74: 363.312 | H74: 0.1069486618 | I74: 0.1457202505 | J74: 0.1186713099
B75: Tutela Legale | C75: 150.3 | D75: 0.8670270146 | E75: 23.051 | F75: 0.1329729854 | G75: 173.351 | H75: 0.05233677577 | I75: 0.07273827252 | J75: 0.05500477747
B76: Assistenza | C76: 272.023 | D76: 0.9133836323 | E76: 25.796 | F76: 0.08661636766 | G76: 297.819 | H76: 0.07748096743 | I76: 0.2199574367 | J76: 0.088491888
B77: Totale altri rami danni | C77: 7261.442 | D77: 0.8225540306 | E77: 1566.479 | F77: 0.1774459694 | G77: 8827.921 | H77: 0.004788401897 | I77: 0.02303809488 | J77: 0.007979068376
B78: Totale rami danni | C78: 16513.468 | D78: 0.8877973765 | E78: 2087.024 | F78: 0.1122026235 | G78: 18600.492 | H78: -0.03362337075 | I78: -0.02158168152 | J78: -0.03228704479

Sheet Quota Inf (2014) (hidden)
A1: PREMI 2014 | F1: 1 - INFORTUNI
A3: Imprese in ordine decrescente | C3: premi | D3: variaz. | E3: incid. sul | F3: compagnie che
D4: 2014/2013 | E4: totale | F4: hanno
C5: (migliaia di EURO) | D5: (%) | E5: (%) | F5: risposto | H5: oggi 12032014 ho parlato con Boaglio che mi fa sapere qualcosa in merito, mi sembra che abbiano le informazioni per i premi di portafoglio ma non per i premi contabilizzati
B7: QUOTA MERCATO | E7: =+SUMIF(F:F,"SI",E:E)&"%" -> 79,44% | F7: =+COUNTIF(F108:F116,"SI") -> 0
A9: 1 | B9: UNIPOLSAI ASSICURAZIONI | C9: 690405 | D9: -2.7 | E9: 20.42 | F9: =+VLOOKUP(B9,'Quota Inf (2013)'!$B$9:$G$109,5,FALSE) -> SI | G9: ogg 22/10/2014 Roberta Lolli mi ha detto che fra 2 giorni inviano il dato; oggi 09/10/2014 ho parlato con Roberta Lolli che mi invierà i dati il più presto possibile, mi farà sapere i tempi nei prox giorni con una email
A10: 2 | B10: GENERALI ITALIA | C10: 607145 | D10: -6.4 | E10: 17.96 | F10: =+VLOOKUP(B10,'Quota Inf (2013)'!$B$9:$G$109,5,FALSE) -> SI | G10: NO POLIZZE COLLETTIVE; oggi 06112015 mi ha scritto Memo Michele per dirmi che manderà dati entro 15 gg; oggi 08102015 mi ha scritto Andrea Zecchi (0110029705-3346468461) che mi fa sapere; oggi 05/10/2015 ho parlato con Tiralongo (ex inaassitalia, i dati del vecchio portafoglio per garanzia li avrebbero) e ci siamo detti che avrei mandato una mail di sollecito a ANDREA ZECCHI, capo anche di MIchele Memo di ex assicuraz. generali, per aver una risposta scritta sui futuri tempi; oggi 25/09/2015 ho parlato con Tiralongo che mi ha detto che il suo nuovo capo è Andrea Zecchi e mercoledì 30 verso 16:00 lo devo chiamare per avere news o farlo parlare con Desantis; oggi 14/09/2015 ho mandato email per avere un aggiornamento; oggi 23/03/2015 ho parlato con Carosi chiedendole di sentirsi nei prox giorni per avere qualche notizia in più sull'avanzamento dei lavori; oggi 11/03/2015 ho scritto a Carosi per avere news; oggi 24/12/2014 Raffaella Carosi mi ha scritto "stiamo lavorando alle estrazioni richieste, non appena possibile provvederemo ad inviare i dati."; OGGI 22/12/2014 ho mandato email a Raffaella Carosi; oggi 19/12/2014 Tiralongo mi ha detto di parlare con il suo capo Raffaella Carosi (raffaella.carosi@generali.com/0684838049) ma non mi ha risposto, poi ho chiamto memo che mi ha detto che stanno facendo le prime estrapolazioni e che sono in contatto con Tiralongo di Roma; oggi 11/12/2014 ho mandato email di sollecito a Tiralongo; oggi 2/12/2014 Tiralongo mi ha detto che dall'alto è arrivato il mandato di preparare i dati, lui per inaassitalia, Memo per Generali e Boaglio per Toro, lunedì prox lo devo richiamare; oggi 28/11/2014 ho sentito Tiralongo che entro oggi o al max lunedi prox mi deve aggiornare sull'avanzamento dei lavori; oggi 14/11/2014 ho chiesto a Tiralongo di rispondermmi con una mail ufficiale sulla fattibilità o meno della trasmissione dei dati, ci dobbiamo sentire martedì prox; oggi 11/11/2014 ho mandato email per info a Tiralongo; OGGI 24/10/2014 Tiralongo ha inviato una email; oggi 22/10/2014 ho sentito Memo e Tiralongo che non avevano news da darmi, sono oberati di lavoro e appena possono mi fanno sapere (con Tiralongo mi sono messo d'accordo che ci saremmo sentiti martedì prossimo); oggi 21/10/2014 ho mandato email a Memo e Tiralongo per avere notizie sui tempi; oggi 08/10/2014 Memo mi ha ridetto che mi farà sapere se riesce a darmi i premi di portafoglio, non ha voluto che gli scrivessi alcuna email per sollecitare la questione(per ex Assicurazioni Generali); per INA ASSITALIA oggi 09/10/2014 ho parlato con Tiralongo che mi fa sapere; GENERTEL PERò LI INVIA; oggi 13032014 ho parlato con Memo Michele che mi farà sapere se utilizzando i premi di portafoglio riuscirebbe a plittare i premi per garanzia; l'8 gennaio 2013 Memo Michele mi ha confermato via email che non hanno la distribuzione dei premi per garanzia.
A11: 3 | B11: ALLIANZ S.P.A. | C11: 308588 | D11: 0.2 | E11: 9.13 | F11: =+VLOOKUP(B11,'Quota Inf (2013)'!$B$9:$G$109,5,FALSE) -> SI | G11: oggi 15/03/2016 ho detto a Simona Colonna che ci saremmo risentiti verso metà maggio per i mesi di Dicembre; STIMATA SPACCATURA INDIVIDUALI E COLLETTIVE; oggi 03112015 Simona Colonna mi ha contattato per dirmi che fra 10 giorni dovrebbe mandare i dati; oggi 14102015 mi ha contattato Simona Colonna, devo risentirla fine della prossima settimana per vedere se mandare il dato parziale o complessivo; oggi 14102015 ho mandato email a Villa; oggi 16/09/2015 ho parlato con Silvana Villa che mi ha detto e scritto di riaggiornarci ad inizi ottobre; oggi 14/09/2015 ho mandato email per avere un aggiornamento; oggi 13/11/2014 mi ha mandato email Silvana Villa e Andrea Borea per dirmi che invieranno i dati non prima di metà dell'anno prossimo; oggi 11/11/2014 ho mandato email per info a Borea; oggi 21/10/2014 Andrea Borea mi ha detto di risentirci intorno al 28 ottobre; oggi 16/10/2014 ho parlato con Andrea Borea, coinvolto nella questione oggi, che mi farà sapere sulla fattibilità dei dati per il Gruppo Allianz; oggi 15/10/2014 non riuscendo a parlare con Roberto Giordano, gli ho scritto una email di sollecito;oggi 09/10/2014 ho parlato con Alberto Sartorio (0407781271), responsabile della parte contabile, il quale mi ha detto che non hanno questo dettaglio di informazione ma che probabilmente sono invece presenti nella sezione portafoglio con resp. GIORDANO ROBERTO che devo contattare io (0407781598-0272162345), oggi 12032014 ho parlato e mandato email a matteo zolia che mi fa avere il nome di un referente
A12: 4 | B12: SOCIETA' CATTOLICA | C12: 152348 | D12: 35.7 | E12: 4.51 | F12: =+VLOOKUP(B12,'Quota Inf (2013)'!$B$9:$G$109,5,FALSE) -> NO | G12: oggi 09112015 ho sentito Castiglione (ufficio bilancio) che mi ha detto che non mi risponde alla email perché non è sua la competenza e che in questo periodo non hanno tempo per evadere questa richiesta, che anche Obezzi (dirigente controllo di gestione) sicuramente è nella stessa situazione, oggi 07102015 Castiglione mi ha detto di risentirci fra un mese perché stanno chiudendo la trimestrale; oggi 28/09/2015 ho parlato con Castiglione che mi ha detto che dall'ufficio contabilità non ha queste info e di risentirci verso fine settimana per sentire gli altri uffici; oggi 25/09/2015 ho inviato email a castiglione carmelita (0458391457) e parlato con Martini Arianna, le devo chiamare lunedì prox; oggi 14/09/2015 ho mandato email per avere un aggiornamento; oggi 23/03/2015 ho parlato con Obezzi Cristina che mi ha detto di risentirci nei prox giorni (le ho inoltrato nuovamente la richiesta dati); oggi 03/12/2014 ho parlato con Irene Murari (0458391224) che cercherà di contattare Obezzi Cristina; oggi 28/11/2014 ho scritto a Obezzi per essere chiamato in giornata o al max lunedì mattina; oggi 21/10/2014 le ho mandato email per avere news; oggi 13/10/2014 ho parlato con Obezzi Cristina che mi farà sapere, oggi 09/10/2014 ho provato a parlare con Obezzi Cristina e poi le ho mandato email di sollecito (0458391673), oggi 13032014 ho mandato email a Obezzi Cristina per avere notizie.
A13: 5 | B13: AXA ASSICURAZIONI | C13: 113357 | D13: 7 | E13: 3.35 | F13: =+VLOOKUP(B13,'Quota Inf (2013)'!$B$9:$G$109,5,FALSE) -> SI | G13: 0
A14: 6 | B14: GROUPAMA ASSICURAZIONI | C14: 100227 | D14: 3.6 | E14: 2.96 | F14: =+VLOOKUP(B14,'Quota Inf (2013)'!$B$9:$G$109,5,FALSE) -> SI | G14: oggi 30/03/2016 Puccioni mi ha detto che ha solo il numero delle polizze collettive e non il numero delle teste; oggi 09/10/2014 Puccioni mi ha detto che entro la prox settimana mi invia i premi contabilizzati ma non la nuova produzione vita, oggi 13032014 ho mandato email a Nicolas Puccioni per avere notizie.
A15: 7 | B15: ZURICH INSURANCE PLC | C15: 93105 | D15: 1.5 | E15: 2.75 | F15: =+VLOOKUP(B15,'Quota Inf (2013)'!$B$9:$G$109,5,FALSE) -> SI | G15: i dati delle teste non sono disponibili; oggi 05/02/2015 ho scritto a Metadow per info; oggi 4/12/2014 mi ha telefonato Luisa Metadow 02 5966 2501 che dice manderà i dati entro il 12 gennaio dall'ufficioi Portafoglio; oggi 3/12/2014 ho parlato con Simona Schinelli e le ho inviato nuovamente la richiesta, mi deve far sapere; oggi 28/11/2014 ho scritto a delpino per essere chiamato in giornata o al max lunedì mattina; oggi 10/10/2014 gli ho inviato un nuovo sollecito proponendogli i premi di portafoglio invece di quelli contabilizzati, marco.delpino@it.zurich.com , oggi 14032014 ho parlato con Paola Di Candia che ci fa sapere, loro all'ufficio bilancio non hanno la spaccatura richiesta per garanzia mentre all'ufficio portafoglio forse riescono
A16: 8 | B16: SOCIETA' REALE MUTUA | C16: 90569 | D16: 0.7 | E16: 2.68 | F16: =+VLOOKUP(B16,'Quota Inf (2013)'!$B$9:$G$109,5,FALSE) -> SI | G16: 0
A17: 9 | B17: AIG EUROPE LIMITED | C17: 88467 | D17: 2.2 | E17: 2.62 | F17: =+VLOOKUP(B17,'Quota Inf (2013)'!$B$9:$G$109,5,FALSE) -> SI | G17: 0
A18: 10 | B18: VITTORIA ASSICURAZIONI | C18: 76094 | D18: 7 | E18: 2.25 | F18: =+VLOOKUP(B18,'Quota Inf (2013)'!$B$9:$G$109,5,FALSE) -> SI | G18: 0
A19: 11 | B19: ACE EUROPEAN GROUP LTD | C19: 60882 | D19: -18.5 | E19: 1.8 | F19: =+VLOOKUP(B19,'Quota Inf (2013)'!$B$9:$G$109,5,FALSE) ->  | G19: oggi 15/04/2016 Derienzo mi ha detto che non invierà i dati Giugno 20140e giugno 2015, proverà a Luglio ad inviarci i dati giugno 2016; oggi 17/12/2015 mi ha detto che invieranno i dati del I semestre 2015 a fine gennaio; oggi 08102015 Derienzo con una collega mi hanno detto che invieranno i dati 2014 entro metà novembre; domani 08102015 mi chiama alle 11.00 la DERIENZO; oggi 30/09/2015 ho parlato con la DERIENZO, la devo richiamare mercoledì prossimo per una risposta; oggi 23/03/2015 ho sentito la derienzo chiedendole di risentirci nei prox giorni dopo averle inviato nuovamente i documenti della rilevazione; oggi 04/12/2014 ho sentito la DERIENZO (0227095744) che mi richiama domani mattina; oggi 13/10/2014 ho proposto via telefono e via email a teresa derienzo di estrapolare le informazioni per garanzia dall'ufficio prortafoglio e non da quello contabilità, mi deve far sapere
A20: 12 | B20: AXA MPS ASSICURAZIONI DANNI | C20: 45175 | D20: 9.1 | E20: 1.34 | F20: =+VLOOKUP(B20,'Quota Inf (2013)'!$B$9:$G$109,5,FALSE) -> estrazione dati a gennaio 2016 | G20: oggi 28/01/2016 ZUENA mi ha scritto per comunicare che invieranno i dati per luglio 2016, insieme a quelli di AXA ASSICURAZIONE e QUADRA ASSICURAZIONE. oggi 19/10/2015 Borgia mi ha scritto che hanno programmato un'estrazione dei dati per gennaio 2016; oggi 16102015 gli ho mandato email per sapere qualcosa; oggi 14102015, non riuscendo a parlare con Borgia, gli ho scritto una email, mi ha risposto che mi avrebbe richiamato; oggi 30/09/2015 ho parlato con Borgia, gli ho girato la email e gli devo telefonare fra qualche giorno per avere news; oggi 13/04/2015 ho inviato a Borgia una email dopo averlo chiamto durante una riunione, oggi 19/03/2015 Michele mi ha detto che l'incaricato alla rilevazione è Pierluigi Borgia 0651760233; oggi 06/02/2015 ho riscritto a MIchele per avere info; oggi 22/12/2014 Di giova Paolo mi ha scritto "e ricerche eseguite sul protocollo formale non hanno permesso purtroppo di rinvenire la comunicazione allegata. Lascio ai Colleghi in indirizzo disporre per l’attuazione."; OGGI 22/12/2014 ho mandato email a Stefano Digiovanpaolo; oggi 19/12/2014 Michele mi ha detto di sentire per le comunicazioni ANIA stefano.digiovanpaolo@axa-mps.it (0651760375); oggi 11/12/2014 ho scritto a Michele per avere il nominativo dell'ufficio legale da contattare; oggi 4/12/2014 ho scritto a Michele per avere una email ufficiale sulla loro disponibilità; oggi 26 novembre Michele mi ha scritto che per estrapolare i dati devono coinvolgere l'it e i tempi si allungherebbero molto; oggi 17/11/2014 Michele mi ha detto di risentirci fine settimana per fare il punto della situazione; oggi 11/11/2014 ho mandato email per info a Michele; oggi 14/10/2014 ho parlato con Michele che mi ha detto invierà i dati fine della prox settimana, oggi 13/10/2014 Michele mi ha detto di richiamarlo domani mattina, ho parlato oggi 12032014 con il mio amico Michele Delliquadri, dice che manderà i dati
A21: 13 | B21: SARA ASSICURAZIONI | C21: 43476 | D21: 3.1 | E21: 1.29 | F21: =+VLOOKUP(B21,'Quota Inf (2013)'!$B$9:$G$109,5,FALSE) -> SI | G21: oggi 14/10/2014 Adolfo Priori, responsabile dell'estrazione dati, mi ha detto che mi invierà i dati per lunedì, martedì della prox settimana; oggi 13/10/2014 gli ho mandato una email; oggi 09/10/2014 Salvatore Stefano mi ha detto che se i dati domani non arrivano devo ritelefonargli
A22: 14 | B22: ITALIANA ASSICURAZIONI | C22: 43155 | D22: -2.3 | E22: 1.28 | F22: =+VLOOKUP(B22,'Quota Inf (2013)'!$B$9:$G$109,5,FALSE) -> SI | G22: 0
A23: 15 | B23: AVIVA ITALIA | C23: 42212 | D23: 5 | E23: 1.25 | F23: =+VLOOKUP(B23,'Quota Inf (2013)'!$B$9:$G$109,5,FALSE) -> SI | G23: oggi 10/12/2014 Claudio Roselli ha scritto che entro gennaio 2015 inviano i dati del 2014; oggi 05/12/2014 ho parlato con Fasolin che si attiva a sollecitare internamente, ci dobbiamo sentire nei prox giorni; oggi 14/10/2014 ho mandato email di sollecito a Laura Maria Fasolin e a Banfi; oggi 14032014 ho mandato email a Banfi per avere notizie.
A24: 16 | B24: CARGEAS ASSICURAZIONI | C24: 37180 | D24: 7.4 | E24: 1.1 | F24: =+VLOOKUP(B24,'Quota Inf (2013)'!$B$9:$G$109,5,FALSE) -> SI | G24: 0
A25: 17 | B25: CARIGE R.D. ASSICURAZIONI E RIASSICURAZIONI | C25: 36720 | D25: -13.7 | E25: 1.09 | F25: =+VLOOKUP(B25,'Quota Inf (2013)'!$B$9:$G$109,5,FALSE) -> SI | G25: 0
A26: 18 | B26: CARDIF ASSURANCES RISQUES DIVERS | C26: 35525 | D26: 13.2 | E26: 1.05 | F26: =+VLOOKUP(B26,'Quota Inf (2013)'!$B$9:$G$109,5,FALSE) -> 0 | G26: oggi 30/09/2015 ho mandato email di sollecito; oggi 23/03/2015 ho provato a contattare Pescatori, il centralino gli lascierà un messaggio per farmi richiamare, oggi 4/12/2014 ho chiesto al centralino di poter essere richiamato da Nadia Pogliani in quanto non riesco a contattare Pescatori; oggi 13/10/2014 ho sentito Nadia Pogliani che mi ha detto di inviare la mail di sollecito all'attuario Giovanni Pescatori
A27: 19 | B27: ITAS MUTUA | C27: 35082 | D27: 0 | E27: 1.04 | F27: =+VLOOKUP(B27,'Quota Inf (2013)'!$B$9:$G$109,5,FALSE) -> SI | G27: 0
A28: 20 | B28: ASSICURAZIONI GENERALI | C28: 34170 | D28: 3.3 | E28: 1.01 | F28: =+VLOOKUP(B28,'Quota Inf (2013)'!$B$9:$G$109,5,FALSE) -> 0 | G28: 0
A29: 21 | B29: POSTE ASSICURA - Gruppo Assicurativo Poste Vita | C29: 32282 | D29: 22.5 | E29: 0.95 | F29: =+VLOOKUP(B29,'Quota Inf (2013)'!$B$9:$G$109,5,FALSE) -> SI | G29: 0
A30: 22 | B30: DIRECT LINE INSURANCE | C30: 31380 | D30: 11 | E30: 0.93 | F30: =+VLOOKUP(B30,'Quota Inf (2013)'!$B$9:$G$109,5,FALSE) -> SI | G30: 0
A31: 23 | B31: HELVETIA SA | C31: 30793 | D31: 1.2 | E31: 0.91 | F31: =+VLOOKUP(B31,'Quota Inf (2013)'!$B$9:$G$109,5,FALSE) -> SI | G31: oggi 16/12/2015 Caruso mi ha detto che Helvetia parteciperà mentre helveti Italia non invierà più i dati; il 31/07/2014 ci ha scritto Giuseppe Caruso per comunicare che a causa della migrazione in corso verso il nuovo sistema informativo per la gestione del portafoglio danni, Helvetia Rappresentanza non parteciperà alle rilevazione in oggetto al 30 giugno 2014
A32: 24 | B32: METLIFE EUROPE LIMITED | C32: 29750 | D32: -2.4 | E32: 0.88 | F32: =+VLOOKUP(B32,'Quota Inf (2013)'!$B$9:$G$109,5,FALSE) -> SI | G32: oggi 2/12/2014 Montanari ha scritto che invierà i dati per la fine di gennaio 2015; oggi 28/11/2014 ho scritto a Montanari per essere chiamato in giornata o al max lunedì mattina; oggi 14/10/2014 ho parlato con Stefania Montanari che mi farà sapere
A33: 25 | B33: ASSIMOCO | C33: 27233 | D33: 5.3 | E33: 0.81 | F33: =+VLOOKUP(B33,'Quota Inf (2013)'!$B$9:$G$109,5,FALSE) -> SI | G33: oggi 11/11/2014 ho mandato email per info a Carretta; oggi 14/10/2014 ho parlato con Marianna Carretta che mi ha detto di avere il dato e di spedirlo il prima possibile
A34: 26 | B34: LLOYD'S | C34: 26483 | D34: 37.8 | E34: 0.78 | F34: =+VLOOKUP(B34,'Quota Inf (2013)'!$B$9:$G$109,5,FALSE) -> 0 | G34: oggi 30/09/2015 ho mandato email di sollecito; oggi ho parlato con Giovanni Toniutti che mi ha fatto capire che sarà molto difficile per loro estrapolare questo tipo di dati
A35: 27 | B35: MEDIOLANUM ASSICURAZIONI | C35: 24247 | D35: 18 | E35: 0.72 | F35: =+VLOOKUP(B35,'Quota Inf (2013)'!$B$9:$G$109,5,FALSE) -> 0 | G35: oggi 30/09/2015 ho mandato email di sollecito; oggi 14/10/2014 ho parlato con Elisa Pennati e inviato la richiesta, mi farà sapere nei prossimi giorni
A36: 28 | B36: GENERTEL | C36: 23083 | D36: 12.3 | E36: 0.68 | F36: =+VLOOKUP(B36,'Quota Inf (2013)'!$B$9:$G$109,5,FALSE) -> SI | G36: 0
A37: 29 | B37: HELVETIA ITALIA ASSICURAZIONI | C37: 22606 | D37: 6.9 | E37: 0.67 | F37: =+VLOOKUP(B37,'Quota Inf (2013)'!$B$9:$G$109,5,FALSE) -> NO | G37: oggi 16/12/2015 Caruso mi ha detto che Helvetia parteciperà mentre helveti Italia non invierà più i dati; oggi 21/10/2014 Caruso ha scritto che manderà i dati entro la fine di questa settimna; oggi 15/10/2014 Giuseppe Caruso mi ha detto che non pensa riesca a darmi nessuna informazione neanche per Helvetia italiana ma mi fa sapere lunedì prox; oggi 13/10/2014 ho mandato email a Giuseppe Caruso per sapere se ci possono mandare i dati almeno per quest'altra compagnia
A38: 30 | B38: EUROP ASSISTANCE ITALIA | C38: 20423 | D38: -8.9 | E38: 0.6 | F38: =+VLOOKUP(B38,'Quota Inf (2013)'!$B$9:$G$109,5,FALSE) -> NO | G38: OGGI 04/12/2014 Sarelini mi ha confermato che neanche dall'ufficio portafoglio sono in grado di avere il dato; oggi 28/11/2014 ho scritto a Sarelini per essere chiamato in giornata o al max lunedì mattina; oggi 14/10/2014 ho inviato email di sollecito a Umberto Sarelini, lui ci aveva risposto due anni fa che allo stato attuale non erano in grado di fornire il dato
A39: 31 | B39: FATA ASSICURAZIONI DANNI | C39: 20021 | D39: -3.3 | E39: 0.59 | F39: =+VLOOKUP(B39,'Quota Inf (2013)'!$B$9:$G$109,5,FALSE) -> 0 | G39: oggi 30/09/2015 ho mandato email di sollecito; oggi 01/12/2014 mi ha scritto Bucca dicendomi "Ho tante cose urgenti da fare ti richiamo io appena finisco ma non prima di 10 giorni, dobbiamo prima ultimare il piano strategico"; oggi 28/11/2014 ho scritto a Bucca per sentirci lunedì mattina, oggi 13/11/2014 Bucca ha scritto che proveranno ad estrapolare i dati prox settimana; oggi 11/11/2014 ho mandato email per info a Bucca; oggi 14/10/2014 ho parlato con Bucca che mi ha detto che hanno i dati e che mi farà sapere quando riuscirà ad inviarli
A40: 32 | B40: HDI ASSICURAZIONI | C40: 18763 | D40: 5.1 | E40: 0.55 | F40: =+VLOOKUP(B40,'Quota Inf (2013)'!$B$9:$G$109,5,FALSE) -> SI | G40: 0
A41: 33 | B41: CHUBB INSURANCE COMPANY OF EUROPE | C41: 18720 | D41: -17.4 | E41: 0.55 | F41: =+VLOOKUP(B41,'Quota Inf (2013)'!$B$9:$G$109,5,FALSE) -> 0 | G41: oggi 30/09/2015 ho mandato email di sollecito; oggi 14/10/2014 ho inviato email di sollecito a Andrea Beia, lui ci aveva risposto due anni fa che non avevano il dato né per garanzia né per tipologia individuali e collettive
A42: 34 | B42: INTESA SANPAOLO ASSICURA | C42: 18456 | D42: -7 | E42: 0.55 | F42: =+VLOOKUP(B42,'Quota Inf (2013)'!$B$9:$G$109,5,FALSE) -> SI | G42: oggi 25/11/2014 ho risposto a Granito ad una email dove chiedeva chiarimenti prima di inviare il file; in cui oggi 11/11/2014 ho mandato email per info a Granito; oggi 14/10/2014 ho parlato con Granito che nei prossimi giorni mi farà sapere quando potrà inviare i dati che già hanno; oggi 14032014 ho mandato email a Granito per avere notizie.
A43: 35 | B43: GENIALLOYD | C43: 18337 | D43: 14.5 | E43: 0.54 | F43: =+VLOOKUP(B43,'Quota Inf (2013)'!$B$9:$G$109,5,FALSE) -> 0 | G43: oggi 09/12/2015 Simona Colonna di allianz mi ha detto di mandare una email al direttore generale Alessandra Valentini; oggi andrea borea di Allianz mi ha detto che genyalloyd ha un altro database e quindi di contattare loro; oggi 15/10/2014 ho parlato con Luigi Tomassoli che non lavora più in Genialloyd ma nella capgruppo Allianz; dice di contattare i colleghi di Allianz dell'ufficio Portafoglio
A44: 36 | B44: ARCA ASSICURAZIONI | C44: 17327 | D44: 0.5 | E44: 0.51 | F44: =+VLOOKUP(B44,'Quota Inf (2013)'!$B$9:$G$109,5,FALSE) -> SI | G44: 0
A45: 37 | B45: UNIQA ASSICURAZIONI | C45: 16257 | D45: 12.3 | E45: 0.48 | F45: =+VLOOKUP(B45,'Quota Inf (2013)'!$B$9:$G$109,5,FALSE) -> 0 | G45: oggi 01/10/2015 ROSANNA MINUTE mi ha scritto che per il momento non possono inviare i dati; oggi 30/09/2015 ho provato a chiamare Radaelli e poi gli ho mandato email 02 268 583-357; oggi 05/02/2015 ho scritto a radaelli per avere news; OGGI 04/12/2014 ho sentito Radaelli che mi ha detto che invierà direttamente i dati del 2014 a fine gennaio; oggi 01/12/2014 Radaelli mi ha detto che mi telefonerà domani mattina; oggi 28/11/2014 ho scritto a Radaelli per essere chiamato in giornata o al max lunedì mattina; oggi 15/10/2014 ho inviato email di sollecito a Alberto Radaelli
A46: 38 | B46: ALLEANZA ASSICURAZIONI | C46: 15857 | D46: 7.3 | E46: 0.47 | F46: =+VLOOKUP(B46,'Quota Inf (2013)'!$B$9:$G$109,5,FALSE) -> 0 | G46: 0
A47: 39 | B47: ERGO ASSICURAZIONI | C47: 15363 | D47: -21.5 | E47: 0.45 | F47: =+VLOOKUP(B47,'Quota Inf (2013)'!$B$9:$G$109,5,FALSE) -> SI | G47: 0
A48: 40 | B48: SUN INSURANCE OFFICE LIMITED RSA | C48: 15306 | D48: -8.1 | E48: 0.45 | F48: =+VLOOKUP(B48,'Quota Inf (2013)'!$B$9:$G$109,5,FALSE) -> 
A49: 41 | B49: CHIARA ASSICURAZIONI | C49: 14505 | D49: 3.2 | E49: 0.43 | F49: =+VLOOKUP(B49,'Quota Inf (2013)'!$B$9:$G$109,5,FALSE) -> 0 | G49: Tiziana Rosaria Pilla 0263288120
A50: 42 | B50: TUA ASSICURAZIONI | C50: 14483 | D50: 18.1 | E50: 0.43 | F50: =+VLOOKUP(B50,'Quota Inf (2013)'!$B$9:$G$109,5,FALSE) -> 0 | G50: 0
A51: 43 | B51: DONAU VERSICHERUNG AG VIENNA | C51: 12576 | D51: -34.2 | E51: 0.37 | F51: =+VLOOKUP(B51,'Quota Inf (2013)'!$B$9:$G$109,5,FALSE) -> 0 | G51: oggi 30/09/2015 ho mandato email di sollecito; oggi 14/10/2014 ho mandato email di sollecito a Basile, mi sono fatto dare il contatto da Marfoli
A52: 44 | B52: LIGURIA | C52: 11901 | D52: -5.7 | E52: 0.35 | F52: =+VLOOKUP(B52,'Quota Inf (2013)'!$B$9:$G$109,5,FALSE) -> 0 | G52: 0
A53: 45 | B53: AVIPOP ASSICURAZIONI | C53: 9007 | D53: -2.1 | E53: 0.27 | F53: =+VLOOKUP(B53,'Quota Inf (2013)'!$B$9:$G$109,5,FALSE) -> SI | G53: oggi 10/12/2014 Claudio Roselli ha scritto che entro gennaio 2015 inviano i dati del 2014; oggi 05/12/2014 ho parlato con Fasolin che si attiva a sollecitare internamente, ci dobbiamo sentire nei prox giorni; oggi 14/10/2014 ho mandato email di sollecito a Laura Maria Fasolin e a Banfi; oggi 14032014 ho mandato email a Banfi per avere notizie.
A54: 46 | B54: NATIONALE SUISSE | C54: 8533 | D54: -8.3 | E54: 0.25 | F54: =+VLOOKUP(B54,'Quota Inf (2013)'!$B$9:$G$109,5,FALSE) -> SI | G54: 0
A55: 47 | B55: COMPAGNIA ASS. LINEAR | C55: 8478 | D55: -4.8 | E55: 0.25 | F55: =+VLOOKUP(B55,'Quota Inf (2013)'!$B$9:$G$109,5,FALSE) -> 0 | G55: 0
A56: 48 | B56: CREDITRAS ASSICURAZIONI | C56: 8249 | D56: 2.7 | E56: 0.24 | F56: =+VLOOKUP(B56,'Quota Inf (2013)'!$B$9:$G$109,5,FALSE) -> 0 | G56: oggi 09/12/2015 Simona Colonna di allianz mi ha detto di mandare una email a Elena Tonelli;
A57: 49 | B57: UNISALUTE | C57: 7462 | D57: 1.5 | E57: 0.22 | F57: =+VLOOKUP(B57,'Quota Inf (2013)'!$B$9:$G$109,5,FALSE) -> SI | G57: 0
A58: 50 | B58: ARISCOM | C58: 6248 | D58: 1.6 | E58: 0.18 | F58: =+VLOOKUP(B58,'Quota Inf (2013)'!$B$9:$G$109,5,FALSE) -> 0 | G58: oggi 15/10/2014 ho parlato con il responsabile Borrelli e gli ho mandato l'ultimo invio che ci hanno fatto; dice provvederà al più presto, il ritardo è dovuto al fatto che radaelli non lavora più con loro
A59: 51 | B59: CREDEMASSICURAZIONI | C59: 6004 | D59: 6.4 | E59: 0.18 | F59: =+VLOOKUP(B59,'Quota Inf (2013)'!$B$9:$G$109,5,FALSE) -> SI | G59: 0
A60: 52 | B60: CREDIT AGRICOLE ASSICURAZIONI | C60: 5879 | D60: 96.4 | E60: 0.17 | F60: =+VLOOKUP(B60,'Quota Inf (2013)'!$B$9:$G$109,5,FALSE) -> 0 | G60: 0
A61: 53 | B61: BNP PARIBAS CARDIF VITA | C61: 5749 | D61: -21.2 | E61: 0.17 | F61: =+VLOOKUP(B61,'Quota Inf (2013)'!$B$9:$G$109,5,FALSE) -> 0 | G61: 0
A62: 54 | B62: BIPIEMME VITA | C62: 5580 | D62: 0.1 | E62: 0.17 | F62: =+VLOOKUP(B62,'Quota Inf (2013)'!$B$9:$G$109,5,FALSE) -> 0 | G62: 0
A63: 55 | B63: INCONTRA ASSICURAZIONI | C63: 5191 | D63: 59.4 | E63: 0.15 | F63: =+VLOOKUP(B63,'Quota Inf (2013)'!$B$9:$G$109,5,FALSE) -> 0 | G63: 0
A64: 56 | B64: GLOBAL ASSISTANCE | C64: 4964 | D64: 35.3 | E64: 0.15 | F64: =+VLOOKUP(B64,'Quota Inf (2013)'!$B$9:$G$109,5,FALSE) -> 0 | G64: 0
A65: 57 | B65: HDI-GERLING INDUSTRIE | C65: 4781 | D65: 6.4 | E65: 0.14 | F65: =+VLOOKUP(B65,'Quota Inf (2013)'!$B$9:$G$109,5,FALSE) -> 0 | G65: 0
A66: 58 | B66: ZURITEL | C66: 4722 | D66: 9.6 | E66: 0.14 | F66: =+VLOOKUP(B66,'Quota Inf (2013)'!$B$9:$G$109,5,FALSE) -> 0 | G66: 0
A67: 59 | B67: BCC ASSICURAZIONI | C67: 4220 | D67: 0.5 | E67: 0.12 | F67: =+VLOOKUP(B67,'Quota Inf (2013)'!$B$9:$G$109,5,FALSE) -> 0 | G67: 0
A68: 60 | B68: WIENER STADTISCHE VERSIC. | C68: 3998 | D68: (.....) | E68: 0.12
A69: 61 | B69: CF ASSICURAZIONI | C69: 3808 | D69: 3.4 | E69: 0.11 | F69: =+VLOOKUP(B69,'Quota Inf (2013)'!$B$9:$G$109,5,FALSE) -> SI | G69: CF LIFE non partecipa in quanto contabilizza premi come assicurazioni complementari di ramo I
A70: 62 | B70: ASSICURATRICE MILANESE | C70: 3335 | D70: -15.4 | E70: 0.1 | F70: =+VLOOKUP(B70,'Quota Inf (2013)'!$B$9:$G$109,5,FALSE) -> 0 | G70: 0
A71: 63 | B71: FILO DIRETTO | C71: 3159 | D71: -21.8 | E71: 0.09 | F71: =+VLOOKUP(B71,'Quota Inf (2013)'!$B$9:$G$109,5,FALSE) -> 0 | G71: oggi 01/12/2014 ho parlato con DIBENEDETTO con cui mi devo sentire entro la fine della settimana; ho parlato con FUCA che mi farà sapere, dice che il dato lo hanno
A72: 64 | B72: FINANCIAL INSURANCE COMPANY | C72: 3106 | D72: 412.5 | E72: 0.09
A73: 65 | B73: ABC ASSICURA | C73: 2985 | D73: -49.5 | E73: 0.09 | F73: =+VLOOKUP(B73,'Quota Inf (2013)'!$B$9:$G$109,5,FALSE) -> 0 | G73: 0
A74: 66 | B74: BIPIEMME ASSICURAZIONI | C74: 2976 | D74: 58.9 | E74: 0.09 | F74: =+VLOOKUP(B74,'Quota Inf (2013)'!$B$9:$G$109,5,FALSE) -> 0 | G74: 0
A75: 67 | B75: NOBIS COMPAGNIA DI ASSICURAZIONI | C75: 2964 | D75: 33.7 | E75: 0.09 | F75: =+VLOOKUP(B75,'Quota Inf (2013)'!$B$9:$G$109,5,FALSE) -> 
A76: 68 | B76: DIRECT&QUIXA SEGUROS Y REASEGUROS S.A.U. | C76: 2903 | D76: -4.3 | E76: 0.09 | F76: =+VLOOKUP(B76,'Quota Inf (2013)'!$B$9:$G$109,5,FALSE) -> 0 | G76: 0
A77: 69 | B77: INCHIARO ASSICURAZIONI | C77: 2873 | D77: 8.9 | E77: 0.08 | F77: =+VLOOKUP(B77,'Quota Inf (2013)'!$B$9:$G$109,5,FALSE) -> 0 | G77: 0
A78: 70 | B78: ALLIANZ GLOBAL C & S | C78: 2771 | D78: -22.9 | E78: 0.08 | F78: =+VLOOKUP(B78,'Quota Inf (2013)'!$B$9:$G$109,5,FALSE) -> 0 | G78: 0
A79: 71 | B79: ASSICURATRICE VAL PIAVE | C79: 2329 | D79: 13.9 | E79: 0.07 | F79: =+VLOOKUP(B79,'Quota Inf (2013)'!$B$9:$G$109,5,FALSE) -> 0 | G79: 0
A80: 72 | B80: AXA CORPORATE SOLUTIONS | C80: 2074 | D80: -20.4 | E80: 0.06 | F80: =+VLOOKUP(B80,'Quota Inf (2013)'!$B$9:$G$109,5,FALSE) -> 0 | G80: 0
A81: 73 | B81: CNP IAM | C81: 2048 | D81: -23.8 | E81: 0.06 | F81: =+VLOOKUP(B81,'Quota Inf (2013)'!$B$9:$G$109,5,FALSE) -> 0 | G81: 0
A82: 74 | B82: GREAT LAKES REINS. | C82: 1684 | D82: 36.5 | E82: 0.05 | F82: =+VLOOKUP(B82,'Quota Inf (2013)'!$B$9:$G$109,5,FALSE) -> 0 | G82: 0
A83: 75 | B83: AGA INTERNATIONAL | C83: 1518 | D83: 7 | E83: 0.04 | F83: =+VLOOKUP(B83,'Quota Inf (2013)'!$B$9:$G$109,5,FALSE) -> 0 | G83: oggi 15/10/2014 ho inviato email di sollecito a Giacomo Salvemini
A84: 76 | B84: INTESA SANPAOLO VITA | C84: 1466 | D84: -58.1 | E84: 0.04 | F84: =+VLOOKUP(B84,'Quota Inf (2013)'!$B$9:$G$109,5,FALSE) -> 0 | G84: 0
A85: 77 | B85: ITAS ASSICURAZIONI | C85: 1460 | D85: 7.5 | E85: 0.04 | F85: =+VLOOKUP(B85,'Quota Inf (2013)'!$B$9:$G$109,5,FALSE) -> 0 | G85: 0
A86: 78 | B86: POSTE VITA - Gruppo Assicurativo Poste Vita | C86: 1178 | D86: -51.5 | E86: 0.03 | F86: =+VLOOKUP(B86,'Quota Inf (2013)'!$B$9:$G$109,5,FALSE) -> 
A87: 79 | B87: ALA ASSICURAZIONI | C87: 1148 | D87: 1.3 | E87: 0.03 | F87: =+VLOOKUP(B87,'Quota Inf (2013)'!$B$9:$G$109,5,FALSE) -> 0 | G87: 0
A88: 80 | B88: CATTOLICA PREVIDENZA | C88: 866 | D88: -12.4 | E88: 0.03 | F88: =+VLOOKUP(B88,'Quota Inf (2013)'!$B$9:$G$109,5,FALSE) -> 0 | G88: 0
A89: 81 | B89: RBM SALUTE | C89: 845 | D89: -26.4 | E89: 0.02 | F89: =+VLOOKUP(B89,'Quota Inf (2013)'!$B$9:$G$109,5,FALSE) -> 0 | G89: oggi 09112015 ho parlato con Vecchietti che mi manda i dati al max fra una settimana; oggi 15102015 ho parlato con Vecchietti che mi farà sapere nei prossimi giorni; oggi 11/12/2014 ho mandato email di sollecito a Vecchietti; oggi 03/12/2014 ho parlato con Vecchietti che mi ha detto mi farà sapere nei prox giorni tramite email; oggi 28/11/2014 ho scritto a Vecchietti per essere chiamato in giornata o al max lunedì mattina; oggi 15/10/2014 ho inviato email di sollecito a Vecchietti e Bruno
A90: 82 | B90: BANCASSURANCE POPOLARI DANNI | C90: 833 | D90: 2.2 | E90: 0.02 | F90: =+VLOOKUP(B90,'Quota Inf (2013)'!$B$9:$G$109,5,FALSE) -> 0 | G90: 0
A91: 83 | B91: LE ASSICURAZIONI DI ROMA | C91: 696 | D91: -19.3 | E91: 0.02 | F91: =+VLOOKUP(B91,'Quota Inf (2013)'!$B$9:$G$109,5,FALSE) -> SI | G91: oggi 29/07/2015 Patrizia LaVia mi ha telefonato, non sono autorizzati ad esercitare il ramo infortuni e malattia, quindi abbiamo deciso di stoppare l'invio dei dati
A92: 84 | B92: DIALOGO ASSICURAZIONI | C92: 598 | D92: -18.3 | E92: 0.02 | F92: =+VLOOKUP(B92,'Quota Inf (2013)'!$B$9:$G$109,5,FALSE) -> 0 | G92: 0
A93: 85 | B93: NET INSURANCE | C93: 550 | D93: 41 | E93: 0.02 | F93: =+VLOOKUP(B93,'Quota Inf (2013)'!$B$9:$G$109,5,FALSE) -> 0 | G93: 0
A94: 86 | B94: TIROLER VERSICHERUNG VAG | C94: 371 | D94: 3.9 | E94: 0.01 | F94: =+VLOOKUP(B94,'Quota Inf (2013)'!$B$9:$G$109,5,FALSE) -> 0 | G94: 0
A95: 87 | B95: MSIG INSURANCE EUROPE AG | C95: 355 | D95: 7.3 | E95: 0.01
A96: 88 | B96: R+V ALLGEMEINE | C96: 340 | D96: 4.3 | E96: 0.01 | F96: =+VLOOKUP(B96,'Quota Inf (2013)'!$B$9:$G$109,5,FALSE) -> 0 | G96: 0
A97: 89 | B97: AXERIA PREVOYANCE | C97: 267 | D97: 20.8 | E97: 0.01 | F97: =+VLOOKUP(B97,'Quota Inf (2013)'!$B$9:$G$109,5,FALSE) -> 0 | G97: 0
A98: 90 | B98: SYSTEMA ASSICURAZIONI | C98: 149 | D98: -82.2 | E98: 0 | F98: =+VLOOKUP(B98,'Quota Inf (2013)'!$B$9:$G$109,5,FALSE) -> 0 | G98: 0
A99: 91 | B99: TOKIO MARINE EUROPE | C99: 68 | D99: -25.3 | E99: 0 | F99: =+VLOOKUP(B99,'Quota Inf (2013)'!$B$9:$G$109,5,FALSE) -> 0 | G99: 0
A100: 92 | B100: SACE BT | C100: 21 | D100: -48.8 | E100: 0 | F100: =+VLOOKUP(B100,'Quota Inf (2013)'!$B$9:$G$109,5,FALSE) -> 0 | G100: 0
A101: 93 | B101: POPOLARE VITA | C101: 14 | D101: -12.5 | E101: 0 | F101: =+VLOOKUP(B101,'Quota Inf (2013)'!$B$9:$G$109,5,FALSE) -> 0 | G101: 0
A102: 94 | B102: ASSURANT LIFE | C102: 12 | D102: -88.3 | E102: 0 | F102: =+VLOOKUP(B102,'Quota Inf (2013)'!$B$9:$G$109,5,FALSE) -> 0 | G102: 0
A103: 95 | B103: ASSURANT GENERAL INSURANCE | C103: 6 | D103: -90.8 | E103: 0 | F103: =+VLOOKUP(B103,'Quota Inf (2013)'!$B$9:$G$109,5,FALSE) -> 0 | G103: 0
A104: 96 | B104: ASSICURAZIONI RISCHI AGRICOLI VMG 1857 | C104: 2 | D104: 0 | E104: 0 | F104: =+VLOOKUP(B104,'Quota Inf (2013)'!$B$9:$G$109,5,FALSE) -> SI | G104: 0
A105: 97 | B105: MAPFRE ASISTENCIA | C105: 2 | D105: -84.6 | E105: 0
A106: 98 | B106: CBA VITA | C106: 1 | D106: 0 | E106: 0
A107: 99 | B107: INTER PARTNER ASSISTANCE | C107: -3 | D107: -101.1 | E107: 0 | F107: =+VLOOKUP(B107,'Quota Inf (2013)'!$B$9:$G$109,5,FALSE) -> 0 | G107: 0

Sheet Quota Mal (2014) (hidden)
A1: PREMI 2014 | F1: 2 - MALATTIA
A3: Imprese in ordine decrescente | C3: premi | D3: variaz. | E3: incid. sul | F3: compagnie che
D4: 2014/2013 | E4: totale | F4: hanno
C5: (migliaia di EURO) | D5: (%) | E5: (%) | F5: risposto | H5: oggi 12032014 ho parlato con Boaglio che mi fa sapere qualcosa in merito, mi sembra che abbiano le informazioni per i premi di portafoglio ma non per i premi contabilizzati
B7: QUOTA MERCATO | E7: =+SUMIF(F:F,"SI",E:E)&"%" -> 70,12% | F7: =+COUNTIF(F108:F116,"SI") -> 0
A9: 1 | B9: GENERALI ITALIA | C9: 458900 | D9: -8.6 | E9: 20.54 | F9: =+VLOOKUP(B9,'Quota Inf (2013)'!$B$9:$G$109,5,FALSE) -> SI | G9: NO POLIZZE COLLETTIVE; oggi 06112015 mi ha scritto Memo Michele per dirmi che manderà dati entro 15 gg; oggi 08102015 mi ha scritto Andrea Zecchi (0110029705-3346468461) che mi fa sapere; oggi 05/10/2015 ho parlato con Tiralongo (ex inaassitalia, i dati del vecchio portafoglio per garanzia li avrebbero) e ci siamo detti che avrei mandato una mail di sollecito a ANDREA ZECCHI, capo anche di MIchele Memo di ex assicuraz. generali, per aver una risposta scritta sui futuri tempi; oggi 25/09/2015 ho parlato con Tiralongo che mi ha detto che il suo nuovo capo è Andrea Zecchi e mercoledì 30 verso 16:00 lo devo chiamare per avere news o farlo parlare con Desantis; oggi 14/09/2015 ho mandato email per avere un aggiornamento; oggi 23/03/2015 ho parlato con Carosi chiedendole di sentirsi nei prox giorni per avere qualche notizia in più sull'avanzamento dei lavori; oggi 11/03/2015 ho scritto a Carosi per avere news; oggi 24/12/2014 Raffaella Carosi mi ha scritto "stiamo lavorando alle estrazioni richieste, non appena possibile provvederemo ad inviare i dati."; OGGI 22/12/2014 ho mandato email a Raffaella Carosi; oggi 19/12/2014 Tiralongo mi ha detto di parlare con il suo capo Raffaella Carosi (raffaella.carosi@generali.com/0684838049) ma non mi ha risposto, poi ho chiamto memo che mi ha detto che stanno facendo le prime estrapolazioni e che sono in contatto con Tiralongo di Roma; oggi 11/12/2014 ho mandato email di sollecito a Tiralongo; oggi 2/12/2014 Tiralongo mi ha detto che dall'alto è arrivato il mandato di preparare i dati, lui per inaassitalia, Memo per Generali e Boaglio per Toro, lunedì prox lo devo richiamare; oggi 28/11/2014 ho sentito Tiralongo che entro oggi o al max lunedi prox mi deve aggiornare sull'avanzamento dei lavori; oggi 14/11/2014 ho chiesto a Tiralongo di rispondermmi con una mail ufficiale sulla fattibilità o meno della trasmissione dei dati, ci dobbiamo sentire martedì prox; oggi 11/11/2014 ho mandato email per info a Tiralongo; OGGI 24/10/2014 Tiralongo ha inviato una email; oggi 22/10/2014 ho sentito Memo e Tiralongo che non avevano news da darmi, sono oberati di lavoro e appena possono mi fanno sapere (con Tiralongo mi sono messo d'accordo che ci saremmo sentiti martedì prossimo); oggi 21/10/2014 ho mandato email a Memo e Tiralongo per avere notizie sui tempi; oggi 08/10/2014 Memo mi ha ridetto che mi farà sapere se riesce a darmi i premi di portafoglio, non ha voluto che gli scrivessi alcuna email per sollecitare la questione(per ex Assicurazioni Generali); per INA ASSITALIA oggi 09/10/2014 ho parlato con Tiralongo che mi fa sapere; GENERTEL PERò LI INVIA; oggi 13032014 ho parlato con Memo Michele che mi farà sapere se utilizzando i premi di portafoglio riuscirebbe a plittare i premi per garanzia; l'8 gennaio 2013 Memo Michele mi ha confermato via email che non hanno la distribuzione dei premi per garanzia.
A10: 2 | B10: RBM SALUTE | C10: 261779 | D10: 42 | E10: 11.72 | F10: =+VLOOKUP(B10,'Quota Inf (2013)'!$B$9:$G$109,5,FALSE) -> 0 | G10: oggi 21/11/2016 ho parlato con la segretaria Sonia Sordi che gli girerà la mia email di sollecito inviata il 17/11/2016; oggi 09112015 ho parlato con Vecchietti che mi manda i dati al max fra una settimana; oggi 15102015 ho parlato con Vecchietti che mi farà sapere nei prossimi giorni; oggi 11/12/2014 ho mandato email di sollecito a Vecchietti; oggi 03/12/2014 ho parlato con Vecchietti che mi ha detto mi farà sapere nei prox giorni tramite email; oggi 28/11/2014 ho scritto a Vecchietti per essere chiamato in giornata o al max lunedì mattina; oggi 15/10/2014 ho inviato email di sollecito a Vecchietti e Bruno
A11: 3 | B11: UNISALUTE | C11: 261428 | D11: 9.2 | E11: 11.7 | F11: =+VLOOKUP(B11,'Quota Inf (2013)'!$B$9:$G$109,5,FALSE) -> SI | G11: 0
A12: 4 | B12: UNIPOLSAI ASSICURAZIONI | C12: 240858 | D12: -19.4 | E12: 10.78 | F12: =+VLOOKUP(B12,'Quota Inf (2013)'!$B$9:$G$109,5,FALSE) -> SI | G12: ogg 22/10/2014 Roberta Lolli mi ha detto che fra 2 giorni inviano il dato; oggi 09/10/2014 ho parlato con Roberta Lolli che mi invierà i dati il più presto possibile, mi farà sapere i tempi nei prox giorni con una email
A13: 5 | B13: ALLIANZ S.P.A. | C13: 172275 | D13: -1.8 | E13: 7.71 | F13: =+VLOOKUP(B13,'Quota Inf (2013)'!$B$9:$G$109,5,FALSE) -> SI | G13: oggi 15/03/2016 ho detto a Simona Colonna che ci saremmo risentiti verso metà maggio per i mesi di Dicembre; STIMATA SPACCATURA INDIVIDUALI E COLLETTIVE; oggi 03112015 Simona Colonna mi ha contattato per dirmi che fra 10 giorni dovrebbe mandare i dati; oggi 14102015 mi ha contattato Simona Colonna, devo risentirla fine della prossima settimana per vedere se mandare il dato parziale o complessivo; oggi 14102015 ho mandato email a Villa; oggi 16/09/2015 ho parlato con Silvana Villa che mi ha detto e scritto di riaggiornarci ad inizi ottobre; oggi 14/09/2015 ho mandato email per avere un aggiornamento; oggi 13/11/2014 mi ha mandato email Silvana Villa e Andrea Borea per dirmi che invieranno i dati non prima di metà dell'anno prossimo; oggi 11/11/2014 ho mandato email per info a Borea; oggi 21/10/2014 Andrea Borea mi ha detto di risentirci intorno al 28 ottobre; oggi 16/10/2014 ho parlato con Andrea Borea, coinvolto nella questione oggi, che mi farà sapere sulla fattibilità dei dati per il Gruppo Allianz; oggi 15/10/2014 non riuscendo a parlare con Roberto Giordano, gli ho scritto una email di sollecito;oggi 09/10/2014 ho parlato con Alberto Sartorio (0407781271), responsabile della parte contabile, il quale mi ha detto che non hanno questo dettaglio di informazione ma che probabilmente sono invece presenti nella sezione portafoglio con resp. GIORDANO ROBERTO che devo contattare io (0407781598-0272162345), oggi 12032014 ho parlato e mandato email a matteo zolia che mi fa avere il nome di un referente
A14: 6 | B14: SOCIETA' REALE MUTUA | C14: 84660 | D14: 5.5 | E14: 3.79 | F14: =+VLOOKUP(B14,'Quota Inf (2013)'!$B$9:$G$109,5,FALSE) -> SI | G14: 0
A15: 7 | B15: SOCIETA' CATTOLICA | C15: 62515 | D15: -2.2 | E15: 2.8 | F15: =+VLOOKUP(B15,'Quota Inf (2013)'!$B$9:$G$109,5,FALSE) -> NO | G15: oggi 09112015 ho sentito Castiglione (ufficio bilancio) che mi ha detto che non mi risponde alla email perché non è sua la competenza e che in questo periodo non hanno tempo per evadere questa richiesta, che anche Obezzi (dirigente controllo di gestione) sicuramente è nella stessa situazione, oggi 07102015 Castiglione mi ha detto di risentirci fra un mese perché stanno chiudendo la trimestrale; oggi 28/09/2015 ho parlato con Castiglione che mi ha detto che dall'ufficio contabilità non ha queste info e di risentirci verso fine settimana per sentire gli altri uffici; oggi 25/09/2015 ho inviato email a castiglione carmelita (0458391457) e parlato con Martini Arianna, le devo chiamare lunedì prox; oggi 14/09/2015 ho mandato email per avere un aggiornamento; oggi 23/03/2015 ho parlato con Obezzi Cristina che mi ha detto di risentirci nei prox giorni (le ho inoltrato nuovamente la richiesta dati); oggi 03/12/2014 ho parlato con Irene Murari (0458391224) che cercherà di contattare Obezzi Cristina; oggi 28/11/2014 ho scritto a Obezzi per essere chiamato in giornata o al max lunedì mattina; oggi 21/10/2014 le ho mandato email per avere news; oggi 13/10/2014 ho parlato con Obezzi Cristina che mi farà sapere, oggi 09/10/2014 ho provato a parlare con Obezzi Cristina e poi le ho mandato email di sollecito (0458391673), oggi 13032014 ho mandato email a Obezzi Cristina per avere notizie.
A16: 8 | B16: EUROP ASSISTANCE ITALIA | C16: 53564 | D16: -1 | E16: 2.4 | F16: =+VLOOKUP(B16,'Quota Inf (2013)'!$B$9:$G$109,5,FALSE) -> NO | G16: OGGI 04/12/2014 Sarelini mi ha confermato che neanche dall'ufficio portafoglio sono in grado di avere il dato; oggi 28/11/2014 ho scritto a Sarelini per essere chiamato in giornata o al max lunedì mattina; oggi 14/10/2014 ho inviato email di sollecito a Umberto Sarelini, lui ci aveva risposto due anni fa che allo stato attuale non erano in grado di fornire il dato
A17: 9 | B17: AXA ASSICURAZIONI | C17: 51449 | D17: -24 | E17: 2.3 | F17: =+VLOOKUP(B17,'Quota Inf (2013)'!$B$9:$G$109,5,FALSE) -> SI | G17: 0
A18: 10 | B18: ZURICH INSURANCE PLC | C18: 50942 | D18: 23.5 | E18: 2.28 | F18: =+VLOOKUP(B18,'Quota Inf (2013)'!$B$9:$G$109,5,FALSE) -> SI | G18: i dati delle teste non sono disponibili; oggi 05/02/2015 ho scritto a Metadow per info; oggi 4/12/2014 mi ha telefonato Luisa Metadow 02 5966 2501 che dice manderà i dati entro il 12 gennaio dall'ufficioi Portafoglio; oggi 3/12/2014 ho parlato con Simona Schinelli e le ho inviato nuovamente la richiesta, mi deve far sapere; oggi 28/11/2014 ho scritto a delpino per essere chiamato in giornata o al max lunedì mattina; oggi 10/10/2014 gli ho inviato un nuovo sollecito proponendogli i premi di portafoglio invece di quelli contabilizzati, marco.delpino@it.zurich.com , oggi 14032014 ho parlato con Paola Di Candia che ci fa sapere, loro all'ufficio bilancio non hanno la spaccatura richiesta per garanzia mentre all'ufficio portafoglio forse riescono
A19: 11 | B19: CARGEAS ASSICURAZIONI | C19: 47899 | D19: 2.9 | E19: 2.14 | F19: =+VLOOKUP(B19,'Quota Inf (2013)'!$B$9:$G$109,5,FALSE) -> SI | G19: 0
A20: 12 | B20: CACI NON LIFE | C20: 40856 | D20: 24.7 | E20: 1.83 | F20: =+VLOOKUP(B20,'Quota Inf (2013)'!$B$9:$G$109,5,FALSE) -> 
A21: 13 | B21: ASSICURAZIONI GENERALI | C21: 39275 | D21: 4.4 | E21: 1.76 | F21: =+VLOOKUP(B21,'Quota Inf (2013)'!$B$9:$G$109,5,FALSE) -> 0 | G21: 0
A22: 14 | B22: UNIQA ASSICURAZIONI | C22: 35857 | D22: 2.9 | E22: 1.6 | F22: =+VLOOKUP(B22,'Quota Inf (2013)'!$B$9:$G$109,5,FALSE) -> 0 | G22: oggi 01/10/2015 ROSANNA MINUTE mi ha scritto che per il momento non possono inviare i dati; oggi 30/09/2015 ho provato a chiamare Radaelli e poi gli ho mandato email 02 268 583-357; oggi 05/02/2015 ho scritto a radaelli per avere news; OGGI 04/12/2014 ho sentito Radaelli che mi ha detto che invierà direttamente i dati del 2014 a fine gennaio; oggi 01/12/2014 Radaelli mi ha detto che mi telefonerà domani mattina; oggi 28/11/2014 ho scritto a Radaelli per essere chiamato in giornata o al max lunedì mattina; oggi 15/10/2014 ho inviato email di sollecito a Alberto Radaelli
A23: 15 | B23: INTESA SANPAOLO ASSICURA | C23: 27649 | D23: -13 | E23: 1.24 | F23: =+VLOOKUP(B23,'Quota Inf (2013)'!$B$9:$G$109,5,FALSE) -> SI | G23: oggi 25/11/2014 ho risposto a Granito ad una email dove chiedeva chiarimenti prima di inviare il file; in cui oggi 11/11/2014 ho mandato email per info a Granito; oggi 14/10/2014 ho parlato con Granito che nei prossimi giorni mi farà sapere quando potrà inviare i dati che già hanno; oggi 14032014 ho mandato email a Granito per avere notizie.
A24: 16 | B24: CARDIF ASSURANCES RISQUES DIVERS | C24: 24621 | D24: -2.1 | E24: 1.1 | F24: =+VLOOKUP(B24,'Quota Inf (2013)'!$B$9:$G$109,5,FALSE) -> 0 | G24: oggi 30/09/2015 ho mandato email di sollecito; oggi 23/03/2015 ho provato a contattare Pescatori, il centralino gli lascierà un messaggio per farmi richiamare, oggi 4/12/2014 ho chiesto al centralino di poter essere richiamato da Nadia Pogliani in quanto non riesco a contattare Pescatori; oggi 13/10/2014 ho sentito Nadia Pogliani che mi ha detto di inviare la mail di sollecito all'attuario Giovanni Pescatori
A25: 17 | B25: AGA INTERNATIONAL | C25: 22587 | D25: 8.9 | E25: 1.01 | F25: =+VLOOKUP(B25,'Quota Inf (2013)'!$B$9:$G$109,5,FALSE) -> 0 | G25: oggi 15/10/2014 ho inviato email di sollecito a Giacomo Salvemini
A26: 18 | B26: MEDIOLANUM ASSICURAZIONI | C26: 20189 | D26: 30 | E26: 0.9 | F26: =+VLOOKUP(B26,'Quota Inf (2013)'!$B$9:$G$109,5,FALSE) -> 0 | G26: oggi 30/09/2015 ho mandato email di sollecito; oggi 14/10/2014 ho parlato con Elisa Pennati e inviato la richiesta, mi farà sapere nei prossimi giorni
A27: 19 | B27: GROUPAMA ASSICURAZIONI | C27: 19572 | D27: -5 | E27: 0.88 | F27: =+VLOOKUP(B27,'Quota Inf (2013)'!$B$9:$G$109,5,FALSE) -> SI | G27: oggi 30/03/2016 Puccioni mi ha detto che ha solo il numero delle polizze collettive e non il numero delle teste; oggi 09/10/2014 Puccioni mi ha detto che entro la prox settimana mi invia i premi contabilizzati ma non la nuova produzione vita, oggi 13032014 ho mandato email a Nicolas Puccioni per avere notizie.
A28: 20 | B28: ITALIANA ASSICURAZIONI | C28: 16920 | D28: 3.6 | E28: 0.76 | F28: =+VLOOKUP(B28,'Quota Inf (2013)'!$B$9:$G$109,5,FALSE) -> SI | G28: 0
A29: 21 | B29: CREDITRAS ASSICURAZIONI | C29: 16105 | D29: 83.8 | E29: 0.72 | F29: =+VLOOKUP(B29,'Quota Inf (2013)'!$B$9:$G$109,5,FALSE) -> 0 | G29: oggi 09/12/2015 Simona Colonna di allianz mi ha detto di mandare una email a Elena Tonelli;
A30: 22 | B30: FILO DIRETTO | C30: 15274 | D30: -21 | E30: 0.68 | F30: =+VLOOKUP(B30,'Quota Inf (2013)'!$B$9:$G$109,5,FALSE) -> 0 | G30: oggi 01/12/2014 ho parlato con DIBENEDETTO con cui mi devo sentire entro la fine della settimana; ho parlato con FUCA che mi farà sapere, dice che il dato lo hanno
A31: 23 | B31: AVIPOP ASSICURAZIONI | C31: 15205 | D31: -9.3 | E31: 0.68 | F31: =+VLOOKUP(B31,'Quota Inf (2013)'!$B$9:$G$109,5,FALSE) -> SI | G31: oggi 10/12/2014 Claudio Roselli ha scritto che entro gennaio 2015 inviano i dati del 2014; oggi 05/12/2014 ho parlato con Fasolin che si attiva a sollecitare internamente, ci dobbiamo sentire nei prox giorni; oggi 14/10/2014 ho mandato email di sollecito a Laura Maria Fasolin e a Banfi; oggi 14032014 ho mandato email a Banfi per avere notizie.
A32: 24 | B32: ACE EUROPEAN GROUP LTD | C32: 13556 | D32: 52.5 | E32: 0.61 | F32: =+VLOOKUP(B32,'Quota Inf (2013)'!$B$9:$G$109,5,FALSE) -> 
A33: 25 | B33: METLIFE EUROPE LIMITED | C33: 12630 | D33: -56.5 | E33: 0.57 | F33: =+VLOOKUP(B33,'Quota Inf (2013)'!$B$9:$G$109,5,FALSE) -> SI | G33: oggi 2/12/2014 Montanari ha scritto che invierà i dati per la fine di gennaio 2015; oggi 28/11/2014 ho scritto a Montanari per essere chiamato in giornata o al max lunedì mattina; oggi 14/10/2014 ho parlato con Stefania Montanari che mi farà sapere
A34: 26 | B34: ARCA ASSICURAZIONI | C34: 12621 | D34: -5.1 | E34: 0.56 | F34: =+VLOOKUP(B34,'Quota Inf (2013)'!$B$9:$G$109,5,FALSE) -> SI | G34: 0
A35: 27 | B35: AVIVA ITALIA | C35: 12045 | D35: 29 | E35: 0.54 | F35: =+VLOOKUP(B35,'Quota Inf (2013)'!$B$9:$G$109,5,FALSE) -> SI | G35: oggi 10/12/2014 Claudio Roselli ha scritto che entro gennaio 2015 inviano i dati del 2014; oggi 05/12/2014 ho parlato con Fasolin che si attiva a sollecitare internamente, ci dobbiamo sentire nei prox giorni; oggi 14/10/2014 ho mandato email di sollecito a Laura Maria Fasolin e a Banfi; oggi 14032014 ho mandato email a Banfi per avere notizie.
A36: 28 | B36: VITTORIA ASSICURAZIONI | C36: 11903 | D36: 0.6 | E36: 0.53 | F36: =+VLOOKUP(B36,'Quota Inf (2013)'!$B$9:$G$109,5,FALSE) -> SI | G36: 0
A37: 29 | B37: AXA MPS ASSICURAZIONI DANNI | C37: 11011 | D37: 1.2 | E37: 0.49 | F37: =+VLOOKUP(B37,'Quota Inf (2013)'!$B$9:$G$109,5,FALSE) -> estrazione dati a gennaio 2016 | G37: oggi 28/01/2016 ZUENA mi ha scritto per comunicare che invieranno i dati per luglio 2016, insieme a quelli di AXA ASSICURAZIONE e QUADRA ASSICURAZIONE. oggi 19/10/2015 Borgia mi ha scritto che hanno programmato un'estrazione dei dati per gennaio 2016; oggi 16102015 gli ho mandato email per sapere qualcosa; oggi 14102015, non riuscendo a parlare con Borgia, gli ho scritto una email, mi ha risposto che mi avrebbe richiamato; oggi 30/09/2015 ho parlato con Borgia, gli ho girato la email e gli devo telefonare fra qualche giorno per avere news; oggi 13/04/2015 ho inviato a Borgia una email dopo averlo chiamto durante una riunione, oggi 19/03/2015 Michele mi ha detto che l'incaricato alla rilevazione è Pierluigi Borgia 0651760233; oggi 06/02/2015 ho riscritto a MIchele per avere info; oggi 22/12/2014 Di giova Paolo mi ha scritto "e ricerche eseguite sul protocollo formale non hanno permesso purtroppo di rinvenire la comunicazione allegata. Lascio ai Colleghi in indirizzo disporre per l’attuazione."; OGGI 22/12/2014 ho mandato email a Stefano Digiovanpaolo; oggi 19/12/2014 Michele mi ha detto di sentire per le comunicazioni ANIA stefano.digiovanpaolo@axa-mps.it (0651760375); oggi 11/12/2014 ho scritto a Michele per avere il nominativo dell'ufficio legale da contattare; oggi 4/12/2014 ho scritto a Michele per avere una email ufficiale sulla loro disponibilità; oggi 26 novembre Michele mi ha scritto che per estrapolare i dati devono coinvolgere l'it e i tempi si allungherebbero molto; oggi 17/11/2014 Michele mi ha detto di risentirci fine settimana per fare il punto della situazione; oggi 11/11/2014 ho mandato email per info a Michele; oggi 14/10/2014 ho parlato con Michele che mi ha detto invierà i dati fine della prox settimana, oggi 13/10/2014 Michele mi ha detto di richiamarlo domani mattina, ho parlato oggi 12032014 con il mio amico Michele Delliquadri, dice che manderà i dati
A38: 30 | B38: ITAS MUTUA | C38: 10135 | D38: -2.3 | E38: 0.45 | F38: =+VLOOKUP(B38,'Quota Inf (2013)'!$B$9:$G$109,5,FALSE) -> SI | G38: 0
A39: 31 | B39: ASSIMOCO | C39: 9370 | D39: 7.3 | E39: 0.42 | F39: =+VLOOKUP(B39,'Quota Inf (2013)'!$B$9:$G$109,5,FALSE) -> SI | G39: oggi 11/11/2014 ho mandato email per info a Carretta; oggi 14/10/2014 ho parlato con Marianna Carretta che mi ha detto di avere il dato e di spedirlo il prima possibile
A40: 32 | B40: POSTE ASSICURA - Gruppo Assicurativo Poste Vita | C40: 7532 | D40: 38.4 | E40: 0.34 | F40: =+VLOOKUP(B40,'Quota Inf (2013)'!$B$9:$G$109,5,FALSE) -> SI | G40: 0
A41: 33 | B41: CREDEMASSICURAZIONI | C41: 7521 | D41: -4.3 | E41: 0.34 | F41: =+VLOOKUP(B41,'Quota Inf (2013)'!$B$9:$G$109,5,FALSE) -> SI | G41: 0
A42: 34 | B42: SARA ASSICURAZIONI | C42: 7212 | D42: -16.7 | E42: 0.32 | F42: =+VLOOKUP(B42,'Quota Inf (2013)'!$B$9:$G$109,5,FALSE) -> SI | G42: oggi 14/10/2014 Adolfo Priori, responsabile dell'estrazione dati, mi ha detto che mi invierà i dati per lunedì, martedì della prox settimana; oggi 13/10/2014 gli ho mandato una email; oggi 09/10/2014 Salvatore Stefano mi ha detto che se i dati domani non arrivano devo ritelefonargli
A43: 35 | B43: AIG EUROPE LIMITED | C43: 7147 | D43: 1.1 | E43: 0.32 | F43: =+VLOOKUP(B43,'Quota Inf (2013)'!$B$9:$G$109,5,FALSE) -> SI | G43: 0
A44: 36 | B44: HELVETIA SA | C44: 5289 | D44: -0.2 | E44: 0.24 | F44: =+VLOOKUP(B44,'Quota Inf (2013)'!$B$9:$G$109,5,FALSE) -> SI | G44: oggi 16/12/2015 Caruso mi ha detto che Helvetia parteciperà mentre helveti Italia non invierà più i dati; il 31/07/2014 ci ha scritto Giuseppe Caruso per comunicare che a causa della migrazione in corso verso il nuovo sistema informativo per la gestione del portafoglio danni, Helvetia Rappresentanza non parteciperà alle rilevazione in oggetto al 30 giugno 2014
A45: 37 | B45: ALLEANZA ASSICURAZIONI | C45: 5111 | D45: 7.8 | E45: 0.23 | F45: =+VLOOKUP(B45,'Quota Inf (2013)'!$B$9:$G$109,5,FALSE) -> 0 | G45: 0
A46: 38 | B46: CARIGE R.D. ASSICURAZIONI E RIASSICURAZIONI | C46: 4409 | D46: -1.2 | E46: 0.2 | F46: =+VLOOKUP(B46,'Quota Inf (2013)'!$B$9:$G$109,5,FALSE) -> SI | G46: 0
A47: 39 | B47: BIPIEMME ASSICURAZIONI | C47: 3840 | D47: 16.2 | E47: 0.17 | F47: =+VLOOKUP(B47,'Quota Inf (2013)'!$B$9:$G$109,5,FALSE) -> 0 | G47: 0
A48: 40 | B48: BNP PARIBAS CARDIF VITA | C48: 3630 | D48: -16.1 | E48: 0.16 | F48: =+VLOOKUP(B48,'Quota Inf (2013)'!$B$9:$G$109,5,FALSE) -> 0 | G48: 0
A49: 41 | B49: FATA ASSICURAZIONI DANNI | C49: 3363 | D49: 9.1 | E49: 0.15 | F49: =+VLOOKUP(B49,'Quota Inf (2013)'!$B$9:$G$109,5,FALSE) -> 0 | G49: oggi 30/09/2015 ho mandato email di sollecito; oggi 01/12/2014 mi ha scritto Bucca dicendomi "Ho tante cose urgenti da fare ti richiamo io appena finisco ma non prima di 10 giorni, dobbiamo prima ultimare il piano strategico"; oggi 28/11/2014 ho scritto a Bucca per sentirci lunedì mattina, oggi 13/11/2014 Bucca ha scritto che proveranno ad estrapolare i dati prox settimana; oggi 11/11/2014 ho mandato email per info a Bucca; oggi 14/10/2014 ho parlato con Bucca che mi ha detto che hanno i dati e che mi farà sapere quando riuscirà ad inviarli
A50: 42 | B50: ERGO ASSICURAZIONI | C50: 3146 | D50: -6.1 | E50: 0.14 | F50: =+VLOOKUP(B50,'Quota Inf (2013)'!$B$9:$G$109,5,FALSE) -> SI | G50: 0
A51: 43 | B51: BIPIEMME VITA | C51: 3118 | D51: -8.4 | E51: 0.14 | F51: =+VLOOKUP(B51,'Quota Inf (2013)'!$B$9:$G$109,5,FALSE) -> 0 | G51: 0
A52: 44 | B52: GLOBAL ASSISTANCE | C52: 3091 | D52: 3.4 | E52: 0.14 | F52: =+VLOOKUP(B52,'Quota Inf (2013)'!$B$9:$G$109,5,FALSE) -> 0 | G52: 0
A53: 45 | B53: CATTOLICA PREVIDENZA | C53: 3073 | D53: -61.3 | E53: 0.14 | F53: =+VLOOKUP(B53,'Quota Inf (2013)'!$B$9:$G$109,5,FALSE) -> 0 | G53: 0
A54: 46 | B54: HDI ASSICURAZIONI | C54: 2810 | D54: -6 | E54: 0.13 | F54: =+VLOOKUP(B54,'Quota Inf (2013)'!$B$9:$G$109,5,FALSE) -> SI | G54: 0
A55: 47 | B55: INTER PARTNER ASSISTANCE | C55: 2806 | D55: 40.9 | E55: 0.13 | F55: =+VLOOKUP(B55,'Quota Inf (2013)'!$B$9:$G$109,5,FALSE) -> 0 | G55: 0
A56: 48 | B56: INCONTRA ASSICURAZIONI | C56: 2739 | D56: -41.5 | E56: 0.12 | F56: =+VLOOKUP(B56,'Quota Inf (2013)'!$B$9:$G$109,5,FALSE) -> 0 | G56: 0
A57: 49 | B57: CHIARA ASSICURAZIONI | C57: 2532 | D57: 3.1 | E57: 0.11 | F57: =+VLOOKUP(B57,'Quota Inf (2013)'!$B$9:$G$109,5,FALSE) -> 0 | G57: Tiziana Rosaria Pilla 0263288120
A58: 50 | B58: BCC ASSICURAZIONI | C58: 2308 | D58: -4.5 | E58: 0.1 | F58: =+VLOOKUP(B58,'Quota Inf (2013)'!$B$9:$G$109,5,FALSE) -> 0 | G58: 0
A59: 51 | B59: ABC ASSICURA | C59: 2285 | D59: -17.8 | E59: 0.1 | F59: =+VLOOKUP(B59,'Quota Inf (2013)'!$B$9:$G$109,5,FALSE) -> 0 | G59: 0
A60: 52 | B60: CF ASSICURAZIONI | C60: 2102 | D60: 8 | E60: 0.09 | F60: =+VLOOKUP(B60,'Quota Inf (2013)'!$B$9:$G$109,5,FALSE) -> SI | G60: 0
A61: 53 | B61: ARISCOM | C61: 2032 | D61: -15.1 | E61: 0.09 | F61: =+VLOOKUP(B61,'Quota Inf (2013)'!$B$9:$G$109,5,FALSE) -> 0 | G61: oggi 15/10/2014 ho parlato con il responsabile Borrelli e gli ho mandato l'ultimo invio che ci hanno fatto; dice provvederà al più presto, il ritardo è dovuto al fatto che radaelli non lavora più con loro
A62: 54 | B62: GENERTEL | C62: 1992 | D62: 75.7 | E62: 0.09 | F62: =+VLOOKUP(B62,'Quota Inf (2013)'!$B$9:$G$109,5,FALSE) -> SI | G62: 0
A63: 55 | B63: TUA ASSICURAZIONI | C63: 1700 | D63: -8.8 | E63: 0.08 | F63: =+VLOOKUP(B63,'Quota Inf (2013)'!$B$9:$G$109,5,FALSE) -> 0 | G63: 0
A64: 56 | B64: CBA VITA | C64: 1662 | D64: -9.1 | E64: 0.07 | F64: =+VLOOKUP(B64,'Quota Inf (2013)'!$B$9:$G$109,5,FALSE) -> 
A65: 57 | B65: SUN INSURANCE OFFICE LIMITED RSA | C65: 1111 | D65: -20 | E65: 0.05 | F65: =+VLOOKUP(B65,'Quota Inf (2013)'!$B$9:$G$109,5,FALSE) -> 
A66: 58 | B66: CNP IAM | C66: 1009 | D66: -10.4 | E66: 0.05 | F66: =+VLOOKUP(B66,'Quota Inf (2013)'!$B$9:$G$109,5,FALSE) -> 0 | G66: 0
A67: 59 | B67: NATIONALE SUISSE | C67: 810 | D67: -11.4 | E67: 0.04 | F67: =+VLOOKUP(B67,'Quota Inf (2013)'!$B$9:$G$109,5,FALSE) -> SI | G67: 0
A68: 60 | B68: LIGURIA | C68: 775 | D68: 2 | E68: 0.03
A69: 61 | B69: INCHIARO ASSICURAZIONI | C69: 682 | D69: 27.2 | E69: 0.03 | F69: =+VLOOKUP(B69,'Quota Inf (2013)'!$B$9:$G$109,5,FALSE) -> 0 | G69: 0
A70: 62 | B70: ALA ASSICURAZIONI | C70: 607 | D70: 1.8 | E70: 0.03 | F70: =+VLOOKUP(B70,'Quota Inf (2013)'!$B$9:$G$109,5,FALSE) -> 0 | G70: 0
A71: 63 | B71: ITAS ASSICURAZIONI | C71: 517 | D71: 130.8 | E71: 0.02 | F71: =+VLOOKUP(B71,'Quota Inf (2013)'!$B$9:$G$109,5,FALSE) -> 0 | G71: 0
A72: 64 | B72: FINANCIAL INSURANCE COMPANY | C72: 464 | D72: 21.8 | E72: 0.02
A73: 65 | B73: ASSICURATRICE VAL PIAVE | C73: 427 | D73: 20.6 | E73: 0.02 | F73: =+VLOOKUP(B73,'Quota Inf (2013)'!$B$9:$G$109,5,FALSE) -> 0 | G73: 0
A74: 66 | B74: POSTE VITA - Gruppo Assicurativo Poste Vita | C74: 416 | D74: -37.4 | E74: 0.02 | F74: =+VLOOKUP(B74,'Quota Inf (2013)'!$B$9:$G$109,5,FALSE) -> 
A75: 67 | B75: NOBIS COMPAGNIA DI ASSICURAZIONI | C75: 330 | D75: 64.2 | E75: 0.01 | F75: =+VLOOKUP(B75,'Quota Inf (2013)'!$B$9:$G$109,5,FALSE) -> 
A76: 68 | B76: BANCASSURANCE POPOLARI DANNI | C76: 321 | D76: 167.5 | E76: 0.01 | F76: =+VLOOKUP(B76,'Quota Inf (2013)'!$B$9:$G$109,5,FALSE) -> 0 | G76: 0
A77: 69 | B77: HELVETIA ITALIA ASSICURAZIONI | C77: 166 | D77: 186.2 | E77: 0.01 | F77: =+VLOOKUP(B77,'Quota Inf (2013)'!$B$9:$G$109,5,FALSE) -> NO | G77: oggi 16/12/2015 Caruso mi ha detto che Helvetia parteciperà mentre helveti Italia non invierà più i dati; oggi 21/10/2014 Caruso ha scritto che manderà i dati entro la fine di questa settimna; oggi 15/10/2014 Giuseppe Caruso mi ha detto che non pensa riesca a darmi nessuna informazione neanche per Helvetia italiana ma mi fa sapere lunedì prox; oggi 13/10/2014 ho mandato email a Giuseppe Caruso per sapere se ci possono mandare i dati almeno per quest'altra compagnia
A78: 70 | B78: ASSICURATRICE MILANESE | C78: 163 | D78: -22 | E78: 0.01 | F78: =+VLOOKUP(B78,'Quota Inf (2013)'!$B$9:$G$109,5,FALSE) -> 0 | G78: 0
A79: 71 | B79: NET INSURANCE | C79: 140 | D79: 27.3 | E79: 0.01 | F79: =+VLOOKUP(B79,'Quota Inf (2013)'!$B$9:$G$109,5,FALSE) -> 0 | G79: 0
A80: 72 | B80: LLOYD'S | C80: 70 | D80: -64.6 | E80: 0 | F80: =+VLOOKUP(B80,'Quota Inf (2013)'!$B$9:$G$109,5,FALSE) -> 0 | G80: oggi 30/09/2015 ho mandato email di sollecito; oggi ho parlato con Giovanni Toniutti che mi ha fatto capire che sarà molto difficile per loro estrapolare questo tipo di dati
A81: 73 | B81: POPOLARE VITA | C81: 70 | D81: (.....) | E81: 0 | F81: =+VLOOKUP(B81,'Quota Inf (2013)'!$B$9:$G$109,5,FALSE) -> 0 | G81: 0
A82: 74 | B82: CREDIT AGRICOLE ASSICURAZIONI | C82: 65 | D82: (.....) | E82: 0 | F82: =+VLOOKUP(B82,'Quota Inf (2013)'!$B$9:$G$109,5,FALSE) -> 0 | G82: 0
A83: 75 | B83: MAPFRE ASISTENCIA | C83: 46 | D83: (.....) | E83: 0 | F83: =+VLOOKUP(B83,'Quota Inf (2013)'!$B$9:$G$109,5,FALSE) -> 
A84: 76 | B84: LE ASSICURAZIONI DI ROMA | C84: 45 | D84: -11.8 | E84: 0 | F84: =+VLOOKUP(B84,'Quota Inf (2013)'!$B$9:$G$109,5,FALSE) -> SI | G84: oggi 29/07/2015 Patrizia LaVia mi ha telefonato, non sono autorizzati ad esercitare il ramo infortuni e malattia, quindi abbiamo deciso di stoppare l'invio dei dati
A85: 77 | B85: AFI ESCA IARD | C85: 18 | D85: 800 | E85: 0 | F85: =+VLOOKUP(B85,'Quota Inf (2013)'!$B$9:$G$109,5,FALSE) -> 
A86: 78 | B86: ASSURANT LIFE | C86: 12 | D86: -88.3 | E86: 0 | F86: =+VLOOKUP(B86,'Quota Inf (2013)'!$B$9:$G$109,5,FALSE) -> 0 | G86: 0
A87: 79 | B87: INTESA SANPAOLO VITA | C87: 8 | D87: -98.5 | E87: 0 | F87: =+VLOOKUP(B87,'Quota Inf (2013)'!$B$9:$G$109,5,FALSE) -> 0 | G87: 0
A88: 80 | B88: ASSURANT GENERAL INSURANCE | C88: 6 | D88: -90.8 | E88: 0 | F88: =+VLOOKUP(B88,'Quota Inf (2013)'!$B$9:$G$109,5,FALSE) -> 0 | G88: 0
A89: 81 | B89: HDI-GERLING INDUSTRIE | C89: 3 | D89: (.....) | E89: 0 | F89: =+VLOOKUP(B89,'Quota Inf (2013)'!$B$9:$G$109,5,FALSE) -> 0 | G89: 0
A90: 82 | B90: TOKIO MARINE EUROPE | C90: 3 | D90: 0 | E90: 0 | F90: =+VLOOKUP(B90,'Quota Inf (2013)'!$B$9:$G$109,5,FALSE) -> 0 | G90: 0
A91: 83 | B91: CHUBB INSURANCE COMPANY OF EUROPE | C91: 2 | D91: -85.7 | E91: 0 | F91: =+VLOOKUP(B91,'Quota Inf (2013)'!$B$9:$G$109,5,FALSE) -> 0 | G91: oggi 30/09/2015 ho mandato email di sollecito; oggi 14/10/2014 ho inviato email di sollecito a Andrea Beia, lui ci aveva risposto due anni fa che non avevano il dato né per garanzia né per tipologia individuali e collettive
A92: 84 | B92: ASSICURAZIONI RISCHI AGRICOLI VMG 1857 | C92: 1 | D92: 0 | E92: 0 | F92: =+VLOOKUP(B92,'Quota Inf (2013)'!$B$9:$G$109,5,FALSE) -> SI | G92: 0
A93: 85 | B93: GENIALLOYD | C93: 1 | D93: 0 | E93: 0 | F93: =+VLOOKUP(B93,'Quota Inf (2013)'!$B$9:$G$109,5,FALSE) -> 0 | G93: oggi 09/12/2015 Simona Colonna di allianz mi ha detto di mandare una email al direttore generale Alessandra Valentini; oggi andrea borea di Allianz mi ha detto che genyalloyd ha un altro database e quindi di contattare loro; oggi 15/10/2014 ho parlato con Luigi Tomassoli che non lavora più in Genialloyd ma nella capgruppo Allianz; dice di contattare i colleghi di Allianz dell'ufficio Portafoglio
A94: 86 | B94: ZURITEL | C94: 1 | D94: (.....) | E94: 0 | F94: =+VLOOKUP(B94,'Quota Inf (2013)'!$B$9:$G$109,5,FALSE) -> 0 | G94: 0
A95: 87 | B95: MSIG INSURANCE EUROPE AG | C95: 355 | D95: 7.3 | E95: 0.01
A96: 88 | B96: R+V ALLGEMEINE | C96: 340 | D96: 4.3 | E96: 0.01 | F96: =+VLOOKUP(B96,'Quota Inf (2013)'!$B$9:$G$109,5,FALSE) -> 0 | G96: 0
A97: 89 | B97: AXERIA PREVOYANCE | C97: 267 | D97: 20.8 | E97: 0.01 | F97: =+VLOOKUP(B97,'Quota Inf (2013)'!$B$9:$G$109,5,FALSE) -> 0 | G97: 0
A98: 90 | B98: SYSTEMA ASSICURAZIONI | C98: 149 | D98: -82.2 | E98: 0 | F98: =+VLOOKUP(B98,'Quota Inf (2013)'!$B$9:$G$109,5,FALSE) -> 0 | G98: 0
A99: 91 | B99: TOKIO MARINE EUROPE | C99: 68 | D99: -25.3 | E99: 0 | F99: =+VLOOKUP(B99,'Quota Inf (2013)'!$B$9:$G$109,5,FALSE) -> 0 | G99: 0
A100: 92 | B100: SACE BT | C100: 21 | D100: -48.8 | E100: 0 | F100: =+VLOOKUP(B100,'Quota Inf (2013)'!$B$9:$G$109,5,FALSE) -> 0 | G100: 0
A101: 93 | B101: POPOLARE VITA | C101: 14 | D101: -12.5 | E101: 0 | F101: =+VLOOKUP(B101,'Quota Inf (2013)'!$B$9:$G$109,5,FALSE) -> 0 | G101: 0
A102: 94 | B102: ASSURANT LIFE | C102: 12 | D102: -88.3 | E102: 0 | F102: =+VLOOKUP(B102,'Quota Inf (2013)'!$B$9:$G$109,5,FALSE) -> 0 | G102: 0
A103: 95 | B103: ASSURANT GENERAL INSURANCE | C103: 6 | D103: -90.8 | E103: 0 | F103: =+VLOOKUP(B103,'Quota Inf (2013)'!$B$9:$G$109,5,FALSE) -> 0 | G103: 0
A104: 96 | B104: ASSICURAZIONI RISCHI AGRICOLI VMG 1857 | C104: 2 | D104: 0 | E104: 0 | F104: =+VLOOKUP(B104,'Quota Inf (2013)'!$B$9:$G$109,5,FALSE) -> SI | G104: 0
A105: 97 | B105: MAPFRE ASISTENCIA | C105: 2 | D105: -84.6 | E105: 0
A106: 98 | B106: CBA VITA | C106: 1 | D106: 0 | E106: 0
A107: 99 | B107: INTER PARTNER ASSISTANCE | C107: -3 | D107: -101.1 | E107: 0 | F107: =+VLOOKUP(B107,'Quota Inf (2013)'!$B$9:$G$109,5,FALSE) -> 0 | G107: 0

Sheet Quota Mal 2012 (hidden)
A1: PREMI 2012 | F1: 2 - MALATTIA
A3: Imprese in ordine decrescente | C3: premi | D3: variaz. | E3: incid. sul | F3: compagnie che
D4: 2012/2011 | E4: totale | F4: hanno
C5: (migliaia di EURO) | D5: (%) | E5: (%) | F5: risposto
B7: QUOTA MERCATO | E7: =+SUMIF(F:F,"SI",E:E)&"%" -> 53,25% | F7: =+COUNTIF(F9:F116,"SI") -> 33
A9: 1 | B9: ASSICURAZIONI GENERALI | C9: 357397 | D9: 9.7 | E9: 15.63 | F9: =+IF(VLOOKUP(B9,'Quota Inf 2012'!$B$9:$F$116,5,FALSE)="SI","SI","") -> SI
A10: 2 | B10: UNISALUTE | C10: 224530 | D10: 10.3 | E10: 9.82 | F10: =+IF(VLOOKUP(B10,'Quota Inf 2012'!$B$9:$F$116,5,FALSE)="SI","SI","") -> SI
A11: 3 | B11: INA ASSITALIA | C11: 187639 | D11: -7.6 | E11: 8.2 | F11: =+IF(VLOOKUP(B11,'Quota Inf 2012'!$B$9:$F$116,5,FALSE)="SI","SI","") -> 
A12: 4 | B12: ALLIANZ | C12: 174925 | D12: -1.1 | E12: 7.65 | F12: =+IF(VLOOKUP(B12,'Quota Inf 2012'!$B$9:$F$116,5,FALSE)="SI","SI","") -> 
A13: 5 | B13: UNIPOL ASSICURAZIONI | C13: 140463 | D13: 2.8 | E13: 6.14 | F13: =+IF(VLOOKUP(B13,'Quota Inf 2012'!$B$9:$F$116,5,FALSE)="SI","SI","") -> SI
A14: 6 | B14: FONDIARIA - SAI | C14: 131833 | D14: -14.5 | E14: 5.76 | F14: =+IF(VLOOKUP(B14,'Quota Inf 2012'!$B$9:$F$116,5,FALSE)="SI","SI","") -> SI
A15: 7 | B15: RBM SALUTE | C15: 124878 | D15: 121.2 | E15: 5.46 | F15: =+IF(VLOOKUP(B15,'Quota Inf 2012'!$B$9:$F$116,5,FALSE)="SI","SI","") ->  | G15: oggi 14032014 ho mandato email a Vecchietti (dirigente) e Bruno per avere notizie.
A16: 8 | B16: SOCIETA' REALE MUTUA | C16: 91225 | D16: 10.2 | E16: 3.99 | F16: =+IF(VLOOKUP(B16,'Quota Inf 2012'!$B$9:$F$116,5,FALSE)="SI","SI","") -> SI
A17: 9 | B17: EUROP ASSISTANCE ITALIA | C17: 81684 | D17: -12.6 | E17: 3.57 | F17: =+IF(VLOOKUP(B17,'Quota Inf 2012'!$B$9:$F$116,5,FALSE)="SI","SI","") -> 
A18: 10 | B18: SOCIETA' CATTOLICA | C18: 72911 | D18: -1.7 | E18: 3.19 | F18: =+IF(VLOOKUP(B18,'Quota Inf 2012'!$B$9:$F$116,5,FALSE)="SI","SI","") -> 
A19: 11 | B19: AXA ASSICURAZIONI | C19: 59336 | D19: -6.3 | E19: 2.59 | F19: =+IF(VLOOKUP(B19,'Quota Inf 2012'!$B$9:$F$116,5,FALSE)="SI","SI","") -> SI
A20: 12 | B20: ALLEANZA TORO | C20: 58480 | D20: -10.4 | E20: 2.56 | F20: =+IF(VLOOKUP(B20,'Quota Inf 2012'!$B$9:$F$116,5,FALSE)="SI","SI","") -> 
A21: 13 | B21: UBI ASSICURAZIONI | C21: 45852 | D21: -11 | E21: 2 | F21: =+IF(VLOOKUP(B21,'Quota Inf 2012'!$B$9:$F$116,5,FALSE)="SI","SI","") -> SI
A22: 14 | B22: ZURICH INSURANCE PLC | C22: 44256 | D22: -10.5 | E22: 1.93 | F22: =+IF(VLOOKUP(B22,'Quota Inf 2012'!$B$9:$F$116,5,FALSE)="SI","SI","") -> 
A23: 15 | B23: COMPAGNIA DI ASS. DI MILANO | C23: 42400 | D23: -16.2 | E23: 1.85 | F23: =+IF(VLOOKUP(B23,'Quota Inf 2012'!$B$9:$F$116,5,FALSE)="SI","SI","") -> SI
A24: 16 | B24: INTESA SANPAOLO ASSICURA | C24: 40840 | D24: -11.6 | E24: 1.79 | F24: =+IF(VLOOKUP(B24,'Quota Inf 2012'!$B$9:$F$116,5,FALSE)="SI","SI","") ->  | G24: oggi 14032014 ho mandato email a Granito per avere notizie.
A25: 17 | B25: UNIQA ASSICURAZIONI | C25: 32853 | D25: 0.6 | E25: 1.44 | F25: =+IF(VLOOKUP(B25,'Quota Inf 2012'!$B$9:$F$116,5,FALSE)="SI","SI","") -> 
A26: 18 | B26: METLIFE EUROPE | C26: 32773 | D26: -8.3 | E26: 1.43 | F26: =+IF(VLOOKUP(B26,'Quota Inf 2012'!$B$9:$F$116,5,FALSE)="SI","SI","") -> 
A27: 19 | B27: CARDIF - ASSURANCES RISQUES DIVERS | C27: 31737 | D27: -38.7 | E27: 1.39 | F27: =+IF(VLOOKUP(B27,'Quota Inf 2012'!$B$9:$F$116,5,FALSE)="SI","SI","") -> 
A28: 20 | B28: GROUPAMA ASSICURAZIONI | C28: 24214 | D28: -36.1 | E28: 1.06 | F28: =+IF(VLOOKUP(B28,'Quota Inf 2012'!$B$9:$F$116,5,FALSE)="SI","SI","") ->  | G28: oggi 13032014 ho mandato email a Nicolas Puccioni per avere notizie.
A29: 21 | B29: AGA INTERNATIONAL | C29: 22612 | D29: -5.7 | E29: 0.99 | F29: =+IF(VLOOKUP(B29,'Quota Inf 2012'!$B$9:$F$116,5,FALSE)="SI","SI","") -> 
A30: 22 | B30: AVIPOP ASSICURAZIONI | C30: 20772 | D30: -42.8 | E30: 0.91 | F30: =+IF(VLOOKUP(B30,'Quota Inf 2012'!$B$9:$F$116,5,FALSE)="SI","SI","") -> 
A31: 23 | B31: FILO DIRETTO | C31: 18514 | D31: -10.9 | E31: 0.81 | F31: =+IF(VLOOKUP(B31,'Quota Inf 2012'!$B$9:$F$116,5,FALSE)="SI","SI","") -> 
A32: 24 | B32: ITALIANA ASSICURAZIONI | C32: 16423 | D32: 7.4 | E32: 0.72 | F32: =+IF(VLOOKUP(B32,'Quota Inf 2012'!$B$9:$F$116,5,FALSE)="SI","SI","") -> SI
A33: 25 | B33: CATTOLICA PREVIDENZA | C33: 14994 | D33: -8.5 | E33: 0.66 | F33: =+IF(VLOOKUP(B33,'Quota Inf 2012'!$B$9:$F$116,5,FALSE)="SI","SI","") -> 
A34: 26 | B34: AXA MPS ASSICURAZIONI DANNI | C34: 14346 | D34: -13.9 | E34: 0.63 | F34: =+IF(VLOOKUP(B34,'Quota Inf 2012'!$B$9:$F$116,5,FALSE)="SI","SI","") -> SI
A35: 27 | B35: ARCA ASSICURAZIONI | C35: 11911 | D35: 19.6 | E35: 0.52 | F35: =+IF(VLOOKUP(B35,'Quota Inf 2012'!$B$9:$F$116,5,FALSE)="SI","SI","") -> SI
A36: 28 | B36: MEDIOLANUM ASSICURAZIONI | C36: 11808 | D36: 67.3 | E36: 0.52 | F36: =+IF(VLOOKUP(B36,'Quota Inf 2012'!$B$9:$F$116,5,FALSE)="SI","SI","") -> 
A37: 29 | B37: VITTORIA ASSICURAZIONI | C37: 10831 | D37: 2.1 | E37: 0.47 | F37: =+IF(VLOOKUP(B37,'Quota Inf 2012'!$B$9:$F$116,5,FALSE)="SI","SI","") -> SI
A38: 30 | B38: ITAS MUTUA | C38: 10198 | D38: 8.1 | E38: 0.45 | F38: =+IF(VLOOKUP(B38,'Quota Inf 2012'!$B$9:$F$116,5,FALSE)="SI","SI","") -> SI
A39: 31 | B39: CREDITRAS ASSICURAZIONI | C39: 8904 | D39: -39.2 | E39: 0.39 | F39: =+IF(VLOOKUP(B39,'Quota Inf 2012'!$B$9:$F$116,5,FALSE)="SI","SI","") -> 
A40: 32 | B40: ACE EUROPEAN GROUP | C40: 8887 | D40: 262.1 | E40: 0.39 | F40: =+IF(VLOOKUP(B40,'Quota Inf 2012'!$B$9:$F$116,5,FALSE)="SI","SI","") -> SI
A41: 33 | B41: SARA ASSICURAZIONI | C41: 8782 | D41: -6.8 | E41: 0.38 | F41: =+IF(VLOOKUP(B41,'Quota Inf 2012'!$B$9:$F$116,5,FALSE)="SI","SI","") -> SI
A42: 34 | B42: CREDEMASSICURAZIONI | C42: 8008 | D42: 1.2 | E42: 0.35 | F42: =+IF(VLOOKUP(B42,'Quota Inf 2012'!$B$9:$F$116,5,FALSE)="SI","SI","") -> SI
A43: 35 | B43: AVIVA ITALIA | C43: 7553 | D43: -31.2 | E43: 0.33 | F43: =+IF(VLOOKUP(B43,'Quota Inf 2012'!$B$9:$F$116,5,FALSE)="SI","SI","") -> 
A44: 36 | B44: ASSIMOCO | C44: 7379 | D44: -23.2 | E44: 0.32 | F44: =+IF(VLOOKUP(B44,'Quota Inf 2012'!$B$9:$F$116,5,FALSE)="SI","SI","") -> 
A45: 37 | B45: HELVETIA SA | C45: 5625 | D45: -10.6 | E45: 0.25 | F45: =+IF(VLOOKUP(B45,'Quota Inf 2012'!$B$9:$F$116,5,FALSE)="SI","SI","") -> SI
A46: 38 | B46: CHARTIS EUROPE S.A. | C46: 5607 | D46: 26.7 | E46: 0.25 | F46: =+IF(VLOOKUP(B46,'Quota Inf 2012'!$B$9:$F$116,5,FALSE)="SI","SI","") -> SI
A47: 39 | B47: CARIGE R.D. ASSICURAZIONI E RIASSICURAZIONI | C47: 5582 | D47: -14.8 | E47: 0.24 | F47: =+IF(VLOOKUP(B47,'Quota Inf 2012'!$B$9:$F$116,5,FALSE)="SI","SI","") -> SI
A48: 40 | B48: POSTE ASSICURA - Gruppo Assicurativo Poste Vita | C48: 4783 | D48: -9.3 | E48: 0.21 | F48: =+IF(VLOOKUP(B48,'Quota Inf 2012'!$B$9:$F$116,5,FALSE)="SI","SI","") -> SI
A49: 41 | B49: INCONTRA ASSICURAZIONI | C49: 4504 | D49: -36.5 | E49: 0.2 | F49: =+IF(VLOOKUP(B49,'Quota Inf 2012'!$B$9:$F$116,5,FALSE)="SI","SI","") -> 
A50: 42 | B50: CARDIF ASSICURAZIONI | C50: 3903 | D50: -25 | E50: 0.17 | F50: =+IF(VLOOKUP(B50,'Quota Inf 2012'!$B$9:$F$116,5,FALSE)="SI","SI","") -> 
A51: 43 | B51: BIPIEMME VITA | C51: 3571 | D51: 5.7 | E51: 0.16 | F51: =+IF(VLOOKUP(B51,'Quota Inf 2012'!$B$9:$F$116,5,FALSE)="SI","SI","") -> 
A52: 44 | B52: RISPARMIO & PREVIDENZA | C52: 3524 | D52: -9.2 | E52: 0.15 | F52: =+IF(VLOOKUP(B52,'Quota Inf 2012'!$B$9:$F$116,5,FALSE)="SI","SI","") -> 
A53: 45 | B53: CHIARA ASSICURAZIONI | C53: 3220 | D53: -12.7 | E53: 0.14 | F53: =+IF(VLOOKUP(B53,'Quota Inf 2012'!$B$9:$F$116,5,FALSE)="SI","SI","") -> 
A54: 46 | B54: HDI ASSICURAZIONI | C54: 3061 | D54: 12.4 | E54: 0.13 | F54: =+IF(VLOOKUP(B54,'Quota Inf 2012'!$B$9:$F$116,5,FALSE)="SI","SI","") -> SI
A55: 47 | B55: ERGO ASSICURAZIONI | C55: 2845 | D55: -36.4 | E55: 0.12 | F55: =+IF(VLOOKUP(B55,'Quota Inf 2012'!$B$9:$F$116,5,FALSE)="SI","SI","") -> SI
A56: 48 | B56: FATA ASSICURAZIONI DANNI | C56: 2731 | D56: -0.7 | E56: 0.12 | F56: =+IF(VLOOKUP(B56,'Quota Inf 2012'!$B$9:$F$116,5,FALSE)="SI","SI","") -> 
A57: 49 | B57: AVIVA ASSICURAZIONI | C57: 2680 | D57: -2.8 | E57: 0.12 | F57: =+IF(VLOOKUP(B57,'Quota Inf 2012'!$B$9:$F$116,5,FALSE)="SI","SI","") -> 
A58: 50 | B58: GLOBAL ASSISTANCE | C58: 2431 | D58: 17.2 | E58: 0.11 | F58: =+IF(VLOOKUP(B58,'Quota Inf 2012'!$B$9:$F$116,5,FALSE)="SI","SI","") -> 
A59: 51 | B59: BCC ASSICURAZIONI | C59: 2406 | D59: 30.8 | E59: 0.11 | F59: =+IF(VLOOKUP(B59,'Quota Inf 2012'!$B$9:$F$116,5,FALSE)="SI","SI","") -> 
A60: 52 | B60: INTESA SANPAOLO VITA | C60: 2320 | D60: -22.5 | E60: 0.1 | F60: =+IF(VLOOKUP(B60,'Quota Inf 2012'!$B$9:$F$116,5,FALSE)="SI","SI","") -> 
A61: 53 | B61: ABC ASSICURA | C61: 2314 | D61: -29.1 | E61: 0.1 | F61: =+IF(VLOOKUP(B61,'Quota Inf 2012'!$B$9:$F$116,5,FALSE)="SI","SI","") -> 
A62: 54 | B62: ANTONIANA VENETA POP. ASS. | C62: 2312 | D62: 8.5 | E62: 0.1 | F62: =+IF(VLOOKUP(B62,'Quota Inf 2012'!$B$9:$F$116,5,FALSE)="SI","SI","") -> 
A63: 55 | B63: BIPIEMME ASSICURAZIONI | C63: 2263 | D63: (.....) | E63: 0.1 | F63: =+IF(VLOOKUP(B63,'Quota Inf 2012'!$B$9:$F$116,5,FALSE)="SI","SI","") -> 
A64: 56 | B64: CF ASSICURAZIONI | C64: 2249 | D64: 25.9 | E64: 0.1 | F64: =+IF(VLOOKUP(B64,'Quota Inf 2012'!$B$9:$F$116,5,FALSE)="SI","SI","") -> SI
A65: 57 | B65: ARISCOM COMPAGNIA DI ASSICURAZIONI | C65: 2048 | D65: 71.5 | E65: 0.09 | F65: =+IF(VLOOKUP(B65,'Quota Inf 2012'!$B$9:$F$116,5,FALSE)="SI","SI","") -> SI
A66: 58 | B66: UNIQA PROTEZIONE | C66: 1897 | D66: -5.1 | E66: 0.08 | F66: =+IF(VLOOKUP(B66,'Quota Inf 2012'!$B$9:$F$116,5,FALSE)="SI","SI","") -> 
A67: 59 | B67: CBA VITA | C67: 1672 | D67: -2.4 | E67: 0.07 | F67: =+IF(VLOOKUP(B67,'Quota Inf 2012'!$B$9:$F$116,5,FALSE)="SI","SI","") -> 
A68: 60 | B68: SUN INSURANCE OFFICE LIMITED RSA | C68: 1464 | D68: -8.6 | E68: 0.06 | F68: =+IF(VLOOKUP(B68,'Quota Inf 2012'!$B$9:$F$116,5,FALSE)="SI","SI","") -> SI
A69: 61 | B69: TUA ASSICURAZIONI | C69: 1307 | D69: 12 | E69: 0.06 | F69: =+IF(VLOOKUP(B69,'Quota Inf 2012'!$B$9:$F$116,5,FALSE)="SI","SI","") -> 
A70: 62 | B70: INCHIARO ASSICURAZIONI | C70: 1101 | D70: -9.1 | E70: 0.05 | F70: =+IF(VLOOKUP(B70,'Quota Inf 2012'!$B$9:$F$116,5,FALSE)="SI","SI","") -> 
A71: 63 | B71: NATIONALE SUISSE | C71: 976 | D71: -1.7 | E71: 0.04 | F71: =+IF(VLOOKUP(B71,'Quota Inf 2012'!$B$9:$F$116,5,FALSE)="SI","SI","") -> SI
A72: 64 | B72: INTER PARTNER ASSISTANCE | C72: 873 | D72: 818.9 | E72: 0.04 | F72: =+IF(VLOOKUP(B72,'Quota Inf 2012'!$B$9:$F$116,5,FALSE)="SI","SI","") -> 
A73: 65 | B73: LIGURIA | C73: 836 | D73: -11.3 | E73: 0.04 | F73: =+IF(VLOOKUP(B73,'Quota Inf 2012'!$B$9:$F$116,5,FALSE)="SI","SI","") -> 
A74: 66 | B74: POSTE VITA - Gruppo Assicurativo Poste Vita | C74: 822 | D74: -26.9 | E74: 0.04 | F74: =+IF(VLOOKUP(B74,'Quota Inf 2012'!$B$9:$F$116,5,FALSE)="SI","SI","") -> SI
A75: 67 | B75: ALA ASSICURAZIONI | C75: 775 | D75: 11.2 | E75: 0.03 | F75: =+IF(VLOOKUP(B75,'Quota Inf 2012'!$B$9:$F$116,5,FALSE)="SI","SI","") -> 
A76: 68 | B76: GENERTEL | C76: 498 | D76: 159.4 | E76: 0.02 | F76: =+IF(VLOOKUP(B76,'Quota Inf 2012'!$B$9:$F$116,5,FALSE)="SI","SI","") -> SI
A77: 69 | B77: FINANCIAL INSURANCE COMPANY | C77: 435 | D77: -40.1 | E77: 0.02 | F77: =+IF(VLOOKUP(B77,'Quota Inf 2012'!$B$9:$F$116,5,FALSE)="SI","SI","") -> 
A78: 70 | B78: PADANA ASSICURAZIONI | C78: 424 | D78: -94.2 | E78: 0.02 | F78: =+IF(VLOOKUP(B78,'Quota Inf 2012'!$B$9:$F$116,5,FALSE)="SI","SI","") -> 
A79: 71 | B79: ITAS ASSICURAZIONI | C79: 396 | D79: -14.1 | E79: 0.02 | F79: =+IF(VLOOKUP(B79,'Quota Inf 2012'!$B$9:$F$116,5,FALSE)="SI","SI","") -> 
A80: 72 | B80: ASSICURATRICE VAL PIAVE | C80: 313 | D80: 11.8 | E80: 0.01 | F80: =+IF(VLOOKUP(B80,'Quota Inf 2012'!$B$9:$F$116,5,FALSE)="SI","SI","") -> 
A81: 73 | B81: ASSICURATRICE MILANESE | C81: 270 | D81: -19.2 | E81: 0.01 | F81: =+IF(VLOOKUP(B81,'Quota Inf 2012'!$B$9:$F$116,5,FALSE)="SI","SI","") -> 
A82: 74 | B82: CHUBB INSURANCE COMPANY OF EUROPE | C82: 231 | D82: -84.8 | E82: 0.01 | F82: =+IF(VLOOKUP(B82,'Quota Inf 2012'!$B$9:$F$116,5,FALSE)="SI","SI","") -> 
A83: 75 | B83: DUOMO UNI ONE | C83: 200 | D83: -83.8 | E83: 0.01 | F83: =+IF(VLOOKUP(B83,'Quota Inf 2012'!$B$9:$F$116,5,FALSE)="SI","SI","") -> 
A84: 76 | B84: NOBIS COMPAGNIA DI ASSICURAZIONI | C84: 175 | D84: 92.3 | E84: 0.01 | F84: =+IF(VLOOKUP(B84,'Quota Inf 2012'!$B$9:$F$116,5,FALSE)="SI","SI","") -> SI
A85: 77 | B85: AXERIA PREVOYANCE | C85: 102 | D85: 1357.1 | E85: 0 | F85: =+IF(VLOOKUP(B85,'Quota Inf 2012'!$B$9:$F$116,5,FALSE)="SI","SI","") -> 
A86: 78 | B86: LLOYD'S | C86: 80 | D86: 1233.3 | E86: 0 | F86: =+IF(VLOOKUP(B86,'Quota Inf 2012'!$B$9:$F$116,5,FALSE)="SI","SI","") -> 
A87: 79 | B87: BANCASSURANCE POPOLARI DANNI | C87: 74 | D87: -91.2 | E87: 0 | F87: =+IF(VLOOKUP(B87,'Quota Inf 2012'!$B$9:$F$116,5,FALSE)="SI","SI","") -> 
A88: 80 | B88: CREDIT AGRICOLE ASSICURAZIONI | C88: 71 | D88: -34.3 | E88: 0 | F88: =+IF(VLOOKUP(B88,'Quota Inf 2012'!$B$9:$F$116,5,FALSE)="SI","SI","") -> 
A89: 81 | B89: CARDIF - ASSURANCE VIE | C89: 52 | D89: 15.6 | E89: 0 | F89: =+IF(VLOOKUP(B89,'Quota Inf 2012'!$B$9:$F$116,5,FALSE)="SI","SI","") -> 
A90: 82 | B90: LE ASSICURAZIONI DI ROMA | C90: 45 | D90: 21.6 | E90: 0 | F90: =+IF(VLOOKUP(B90,'Quota Inf 2012'!$B$9:$F$116,5,FALSE)="SI","SI","") -> 
A91: 83 | B91: ISI INSURANCE Compagnia di Assicurazioni | C91: 15 | D91: -34.8 | E91: 0 | F91: =+IF(VLOOKUP(B91,'Quota Inf 2012'!$B$9:$F$116,5,FALSE)="SI","SI","") -> SI
A92: 84 | B92: NET INSURANCE | C92: 14 | D92: -26.3 | E92: 0 | F92: =+IF(VLOOKUP(B92,'Quota Inf 2012'!$B$9:$F$116,5,FALSE)="SI","SI","") -> 
A93: 85 | B93: BENTOS ASSICURAZIONI | C93: 10 | D93: -52.4 | E93: 0 | F93: =+IF(VLOOKUP(B93,'Quota Inf 2012'!$B$9:$F$116,5,FALSE)="SI","SI","") -> 
A94: 86 | B94: TOKIO MARINE EUROPE | C94: 3 | D94: -57.1 | E94: 0 | F94: =+IF(VLOOKUP(B94,'Quota Inf 2012'!$B$9:$F$116,5,FALSE)="SI","SI","") -> 
A95: 87 | B95: GENIALLOYD | C95: 2 | D95: 100 | E95: 0 | F95: =+IF(VLOOKUP(B95,'Quota Inf 2012'!$B$9:$F$116,5,FALSE)="SI","SI","") -> SI
A96: 88 | B96: ASSICURAZIONI RISCHI AGRICOLI VMG 1857 | C96: 1 | D96: 0 | E96: 0 | F96: =+IF(VLOOKUP(B96,'Quota Inf 2012'!$B$9:$F$116,5,FALSE)="SI","SI","") -> SI
A97: 89 | B97: SYSTEMA ASSICURAZIONI | C97: 1 | D97: 0 | E97: 0 | F97: =+IF(VLOOKUP(B97,'Quota Inf 2012'!$B$9:$F$116,5,FALSE)="SI","SI","") -> 
A98: 90 | B98: CNP UNICREDIT VITA | C98: 1 | D98: 0 | E98: 0 | F98: =+IF(VLOOKUP(B98,'Quota Inf 2012'!$B$9:$F$116,5,FALSE)="SI","SI","") -> SI

Sheet Quota Inf (2) (hidden)
B1: PREMI 2011 | E1: 1 - INFORTUNI
B3: Imprese in ordine decrescente | C3: premi | D3: variaz. | E3: incid. sul
D4: 2011/2010 | E4: totale
C5: (migliaia di EURO) | D5: (%) | E5: (%)
B7: QUOTA MERCATO | E7: =+SUMIF(F:F,"SI",E:E) -> 56.23 | F7: =+COUNTIF(F9:F117,"SI") -> 33 | G7: OSSERVAZIONI
A9: 1 | B9: UNIPOL ASSICURAZIONI | C9: 340641 | D9: -0.5 | E9: 10.06 | F9: SI
A10: 2 | B10: ASSICURAZIONI GENERALI | C10: 328894 | D10: -0.7 | E10: 9.71 | F10: SI | G10: ho parlato con Memo non dispongono della distribuzione per garanzia
A11: 3 | B11: ALLIANZ | C11: 310009 | D11: -6.8 | E11: 9.16 | F11: CI FANNO SAPERE | G11: oggi 09102012 ho parlato con Pavlic che solleciterà nuovamente il suo responsabile dott. Natali affinché ci risponda - ho mandato e-mail a NATALI che non risponde, il giorno 04 ottobre l'ho mandata a Tom Pavlic che la rigira all'ufficio competente,
A12: 4 | B12: INA ASSITALIA | C12: 293742 | D12: -3.4 | E12: 8.68 | F12: NO
A13: 5 | B13: FONDIARIA - SAI | C13: 235119 | D13: -1.4 | E13: 6.94 | F13: SI
A14: 6 | B14: COMPAGNIA DI ASS. DI MILANO | C14: 161500 | D14: -6.5 | E14: 4.77 | F14: SI
A15: 7 | B15: AXA ASSICURAZIONI | C15: 117899 | D15: -5.1 | E15: 3.48 | F15: SI
A16: 8 | B16: ALLEANZA TORO | C16: 114263 | D16: -2 | E16: 3.37 | F16: NO | G16: il 280912 Boaglio ha mandato e-mail in cui scrive che per il momento i dati non sono disponibili, ci farà saper lui quando saranno pronti
A17: 9 | B17: SOCIETA' CATTOLICA | C17: 107261 | D17: 26.8 | E17: 3.17 | F17: NO PER QUESTO SEMESTRE
A18: 10 | B18: GROUPAMA ASSICURAZIONI | C18: 107041 | D18: 6.7 | E18: 3.16 | F18: NO
A19: 11 | B19: ZURICH INSURANCE | C19: 93338 | D19: -6.2 | E19: 2.76 | F19: CI FANNO SAPERE | G19: oggi 09102012 ho parlato con Di Candia per sollecitare una risposta da parte loro, mi ha anticipato che al momento non hanno questo tipo di dati, ci fanno sapere tramite e-mail
A20: 12 | B20: SOCIETA' REALE MUTUA | C20: 91594 | D20: 0.9 | E20: 2.71 | F20: SI
A21: 13 | B21: ACE EUROPEAN GROUP LTD | C21: 83577 | D21: 7.8 | E21: 2.47 | F21: SI | G21: non dispongono della distribuzione per garanzia
A22: 14 | B22: CARIGE R.D. ASSICURAZIONI E RIASSICURAZIONI | C22: 57032 | D22: 3.6 | E22: 1.68 | F22: SI
A23: 15 | B23: VITTORIA ASSICURAZIONI | C23: 49728 | D23: 26 | E23: 1.47 | F23: SI
A24: 16 | B24: ITALIANA ASSICURAZIONI | C24: 49652 | D24: -2 | E24: 1.47 | F24: SI
A25: 17 | B25: CHARTIS EUROPE S.A. | C25: 47922 | D25: -0.9 | E25: 1.42 | F25: SI
A26: 18 | B26: AVIVA ITALIA | C26: 41646 | D26: 12.1 | E26: 1.23 | F26: CI FANNO SAPERE | G26: oggi 09102012 ho parlato con LauraMaria Fasolin 022775398 che mi deve far sapere, ci fanno sapere
A27: 19 | B27: SARA ASSICURAZIONI | C27: 41403 | D27: -5.8 | E27: 1.22 | F27: SI
A28: 20 | B28: AXA MPS ASSICURAZIONI DANNI | C28: 38353 | D28: 12.7 | E28: 1.13 | F28: SI | G28: ci hanno comunicato i dati ma ad oggi non hanno ancora le informazioni sulle polizze collettive
A29: 21 | B29: CHUBB INSURANCE COMPANY OF EUROPE | C29: 34233 | D29: 5.6 | E29: 1.01 | F29: NO
A30: 22 | B30: UBI ASSICURAZIONI | C30: 33885 | D30: 7.3 | E30: 1 | F30: SI
A31: 23 | B31: ALICO ITALIA | C31: 33587 | D31: 17.4 | E31: 0.99 | F31: CI FANNO SAPERE | G31: stefania montanari ci fa sapere
A32: 24 | B32: ITAS MUTUA | C32: 33186 | D32: 10.1 | E32: 0.98 | F32: SI | G32: hanno problemi con le polizze collettive
A33: 25 | B33: HELVETIA SA | C33: 31695 | D33: 3.9 | E33: 0.94 | F33: SI
A34: 26 | B34: INTESA SANPAOLO ASSICURA | C34: 26995 | D34: -7.3 | E34: 0.8 | F34: CI FANNO SAPERE | G34: oggi 09102012 ho parlato con Granito che parlerà con quelli dell'IT per avere una tempistica e mi farà sapere, ci fanno sapere
A35: 27 | B35: CARDIF - ASSURANCES RISQUES DIVERS | C35: 25938 | D35: 60.9 | E35: 0.77 | F35: NO
A36: 28 | B36: ASSIMOCO | C36: 25913 | D36: 4.9 | E36: 0.77 | F36: NO
A37: 29 | B37: ERGO ASSICURAZIONI | C37: 21746 | D37: -0.9 | E37: 0.64 | F37: SI
A38: 30 | B38: FATA ASSICURAZIONI DANNI | C38: 21043 | D38: 0.8 | E38: 0.62 | F38: CI FANNO SAPERE | G38: il giorno 04102012 ho parlato con Bucca e mandato e-mail, dice che mi farà sapere
A39: 31 | B39: PADANA ASSICURAZIONI | C39: 20070 | D39: 1.5 | E39: 0.59 | F39: CI FANNO SAPERE | G39: devo telefonare a Cavalliere Marco 025351800
A40: 32 | B40: SUN INSURANCE OFFICE LIMITED RSA | C40: 19158 | D40: -5.1 | E40: 0.57 | F40: SI | G40: oggi 09102012 ho parlato con Parodi che sta sollecitando il loto IT ma per il momento sanno solo che ci stanno lavorando ma non sanno dare dei tempi
A41: 33 | B41: AVIPOP ASSICURAZIONI | C41: 17353 | D41: -19.1 | E41: 0.51 | F41: CI FANNO SAPERE | G41: oggi 09102012 ho parlato con LauraMaria Fasolin 022775398 che mi deve far sapere, ci fanno sapere
A42: 34 | B42: HDI ASSICURAZIONI | C42: 16999 | D42: 9.6 | E42: 0.5 | F42: SI
A43: 35 | B43: ARCA ASSICURAZIONI | C43: 15814 | D43: -25.2 | E43: 0.47 | F43: SI
A44: 36 | B44: POSTE ASSICURA - Gruppo Assicurativo Poste Vita | C44: 15291 | D44: 109.6 | E44: 0.45 | F44: SI
A45: 37 | B45: DIRECT LINE INSURANCE | C45: 14393 | D45: 22.9 | E45: 0.43 | F45: SI
A46: 38 | B46: GENERTEL | C46: 14303 | D46: 18.5 | E46: 0.42 | F46: SI
A47: 39 | B47: LIGURIA | C47: 14183 | D47: -10.1 | E47: 0.42 | F47: CI FANNO SAPERE | G47: ci devono contattare
A48: 40 | B48: DONAU VERSICHERUNG AG VIENNA | C48: 13855 | D48: 550.5 | E48: 0.41
A49: 41 | B49: CHIARA ASSICURAZIONI | C49: 13687 | D49: 20.7 | E49: 0.4
A50: 42 | B50: LLOYD'S | C50: 12518 | D50: 10.3 | E50: 0.37
A51: 43 | B51: MEDIOLANUM ASSICURAZIONI | C51: 11510 | D51: 8 | E51: 0.34 | F51: CI FANNO SAPERE | G51: entro il 10 ottobre
A52: 44 | B52: UNIQA Protezione | C52: 11340 | D52: 2.5 | E52: 0.33
A53: 45 | B53: DUOMO UNI ONE | C53: 10540 | D53: -71.1 | E53: 0.31
A54: 46 | B54: NATIONALE SUISSE | C54: 10514 | D54: 6.6 | E54: 0.31 | F54: SI
A55: 47 | B55: GENIALLOYD | C55: 10308 | D55: 26.8 | E55: 0.3 | F55: SI | G55: DEVO CHIEDERE PERO' SPIEGAZIONI SUI DATI
A56: 48 | B56: CARDIF ASSICURAZIONI | C56: 9861 | D56: -29.4 | E56: 0.29
A57: 49 | B57: COMPAGNIA ASS. LINEAR | C57: 8516 | D57: 6.7 | E57: 0.25
A58: 50 | B58: INTESA SANPAOLO VITA | C58: 8427 | D58: -27.7 | E58: 0.25
A59: 51 | B59: CREDEMASSICURAZIONI | C59: 7782 | D59: -7.5 | E59: 0.23 | F59: SI | G59: Schiarea mi ha mandato e-mail, non hanno distribuzione per le polizze individuali, dice che per INFORTUNI si potrebbero dividere i premi tra MR e IP, mentre per MALATTIA tra IP e DIARIA
A60: 52 | B60: CREDITRAS ASSICURAZIONI | C60: 7755 | D60: 53.3 | E60: 0.23
A61: 53 | B61: EUROP ASSISTANCE ITALIA | C61: 7481 | D61: 64 | E61: 0.22
A62: 54 | B62: UNISALUTE | C62: 6994 | D62: 37.4 | E62: 0.21 | F62: SI
A63: 55 | B63: TUA ASSICURAZIONI | C63: 6825 | D63: 5.8 | E63: 0.2
A64: 56 | B64: ARISCOM COMPAGNIA DI ASSICURAZIONI | C64: 4635 | D64: 31.2 | E64: 0.14
A65: 57 | B65: INCONTRA ASSICURAZIONI | C65: 4569 | D65: -25.4 | E65: 0.13
A66: 58 | B66: ABC ASSICURA | C66: 4530 | D66: 21.1 | E66: 0.13
A67: 59 | B67: BIPIEMME VITA | C67: 4513 | D67: 28.1 | E67: 0.13
A68: 60 | B68: ALA ASSICURAZIONI | C68: 4427 | D68: 48.8 | E68: 0.13
A69: 61 | B69: ALLIANZ GLOBAL C&S | C69: 4338 | D69: 95.5 | E69: 0.13
A70: 62 | B70: ASSICURATRICE MILANESE | C70: 3872 | D70: 18.2 | E70: 0.11
A71: 63 | B71: POSTE VITA - Gruppo Assicurativo Poste Vita | C71: 3729 | D71: -32.1 | E71: 0.11 | F71: SI
A72: 64 | B72: FILO DIRETTO | C72: 3488 | D72: 0.9 | E72: 0.1 | F72: NO
A73: 65 | B73: CNP IAM | C73: 3075 | D73: -13.6 | E73: 0.09
A74: 66 | B74: CF ASSICURAZIONI | C74: 2737 | D74: 675.4 | E74: 0.08 | F74: SI
A75: 67 | B75: ZURITEL | C75: 2717 | D75: -8.6 | E75: 0.08 | F75: CI FANNO SAPERE | G75: oggi 09102012 ho parlato con Di Candia per sollecitare una risposta da parte loro, mi ha anticipato che al momento non hanno questo tipo di dati, ci fanno sapere tramite e-mail
A76: 68 | B76: INCHIARO ASSICURAZIONI | C76: 2630 | D76: 36.7 | E76: 0.08
A77: 69 | B77: HDI-GERLING INDUSTRIE | C77: 2359 | D77: 17 | E77: 0.07
A78: 70 | B78: BCC ASSICURAZIONI | C78: 2217 | D78: 174.7 | E78: 0.07
A79: 71 | B79: AXA CORPORATE SOLUTIONS | C79: 2095 | D79: 16.1 | E79: 0.06
A80: 72 | B80: NOBIS COMPAGNIA DI ASSICURAZIONI | C80: 2083 | D80: 83.7 | E80: 0.06 | F80: SI
A81: 73 | B81: AVIVA ASSICURAZIONI | C81: 1768 | D81: -19.3 | E81: 0.05 | F81: CI FANNO SAPERE | G81: oggi 09102012 ho parlato con LauraMaria Fasolin 022775398 che mi deve far sapere, ci fanno sapere
A82: 74 | B82: QUIXA | C82: 1751 | D82: 77.2 | E82: 0.05
A83: 75 | B83: AGA INTERNATIONAL | C83: 1744 | D83: 1.5 | E83: 0.05
A84: 76 | B84: ASSICURATRICE VAL PIAVE | C84: 1700 | D84: 9 | E84: 0.05
A85: 77 | B85: UNIQA ASSICURAZIONI | C85: 1549 | D85: 15.7 | E85: 0.05
A86: 78 | B86: GLOBAL ASSISTANCE | C86: 1460 | D86: -0.8 | E86: 0.04
A87: 79 | B87: ITAS ASSICURAZIONI | C87: 1324 | D87: 10.4 | E87: 0.04
A88: 80 | B88: BANCASSURANCE POPOLARI DANNI | C88: 1322 | D88: -40.7 | E88: 0.04
A89: 81 | B89: RBM SALUTE | C89: 1280 | D89: 700 | E89: 0.04
A90: 82 | B90: DIALOGO ASSICURAZIONI | C90: 1206 | D90: 9.4 | E90: 0.04
A91: 83 | B91: ANTONIANA VENETA DANNI | C91: 1125 | D91: 8.1 | E91: 0.03
A92: 84 | B92: FINANCIAL INSURANCE COMPANY | C92: 890 | D92: -13.7 | E92: 0.03
A93: 85 | B93: SYSTEMA ASSICURAZIONI | C93: 825 | D93: 129.8 | E93: 0.02
A94: 86 | B94: LE ASSICURAZIONI DI ROMA | C94: 783 | D94: -3.6 | E94: 0.02
A95: 87 | B95: AXERIA PREVOYANCE | C95: 733 | D95: 47.5 | E95: 0.02
A96: 88 | B96: R+V ALLGEMEINE | C96: 630 | D96: 25.7 | E96: 0.02
A97: 89 | B97: CREDIT AGRICOLE ASSICURAZIONI | C97: 623 | D97: 43.5 | E97: 0.02
A98: 90 | B98: CARDIF - ASSURANCE VIE | C98: 426 | D98: (.....) | E98: 0.01
A99: 91 | B99: INTERNAT. INS. CO. OF HANNOVER | C99: 377 | D99: -50.2 | E99: 0.01
A100: 92 | B100: CATTOLICA PREVIDENZA | C100: 373 | D100: -22 | E100: 0.01
A101: 93 | B101: TIROLER VERSICHERUNG VAG | C101: 343 | D101: 26.6 | E101: 0.01
A102: 94 | B102: INTER PARTNER ASSISTANCE | C102: 268 | D102: 32.7 | E102: 0.01
A103: 95 | B103: MITSUI SUMITOMO INSURANCE | C103: 241 | D103: -5.1 | E103: 0.01
A104: 96 | B104: NET INSURANCE | C104: 236 | D104: -20.3 | E104: 0.01
A105: 97 | B105: BENTOS ASSICURAZIONI | C105: 158 | D105: -56.7 | E105: 0
A106: 98 | B106: RB VITA | C106: 107 | D106: -9.3 | E106: 0
A107: 99 | B107: UNIQA Previdenza | C107: 88 | D107: -23.5 | E107: 0
A108: 100 | B108: TOKIO MARINE EUROPE | C108: 83 | D108: 48.2 | E108: 0
A109: 101 | B109: SACE BT | C109: 64 | D109: -16.9 | E109: 0
A110: 102 | B110: POPOLARE VITA | C110: 57 | D110: -13.6 | E110: 0
A111: 103 | B111: SIAT | C111: 14 | D111: (.....) | E111: 0
A112: 104 | B112: WIENER STADTISCHE VERSIC. | C112: 13 | D112: (.....) | E112: 0
A113: 105 | B113: ISI INSURANCE Compagnia di Assicurazioni | C113: 10 | D113: -50 | E113: 0 | F113: SI
A114: 106 | B114: RISPARMIO & PREVIDENZA | C114: 8 | D114: 0 | E114: 0
A115: 107 | B115: ASSICURAZIONI RISCHI AGRICOLI VMG 1857 | C115: 2 | D115: -50 | E115: 0 | F115: SI
A116: 108 | B116: CBA VITA | C116: 1 | D116: 0 | E116: 0
A117: 109 | B117: CNP UNICREDIT VITA | C117: 1 | D117: 0 | E117: 0 | F117: SI

Sheet Quota Mal (2) (hidden)
B1: PREMI 2011 | E1: 2 - MALATTIA
B3: Imprese in ordine decrescente | C3: premi | D3: variaz. | E3: incid. sul
D4: 2011/2010 | E4: totale
C5: (migliaia di EURO) | D5: (%) | E5: (%)
F6: =37-36.77 -> 0.23
B7: QUOTA MERCATO | E7: =+SUMIF(F:F,"SI",E:E) -> 51.17 | F7: =+COUNTIF(F9:F117,"SI") -> 32 | G7: OSSERVAZIONI
A9: 1 | B9: ASSICURAZIONI GENERALI | C9: 325866 | D9: -4.5 | E9: 14.06 | F9: si | G9: ho parlato con Memo non dispongono della distribuzione per garanzia
A10: 2 | B10: UNISALUTE | C10: 203636 | D10: 19.4 | E10: 8.79 | F10: SI
A11: 3 | B11: INA ASSITALIA | C11: 203005 | D11: -3.7 | E11: 8.76 | F11: NO
A12: 4 | B12: ALLIANZ S.P.A. | C12: 176933 | D12: 10.2 | E12: 7.64 | F12: CI FANNO SAPERE | G12: oggi 09102012 ho parlato con Pavlic che solleciterà nuovamente il suo responsabile dott. Natali affinché ci risponda - ho mandato e-mail a NATALI che non risponde, il giorno 04 ottobre l'ho mandata a Tom Pavlic che la rigira all'ufficio competente,
A13: 5 | B13: FONDIARIA - SAI | C13: 154170 | D13: -11.3 | E13: 6.65 | F13: SI
A14: 6 | B14: UNIPOL ASSICURAZIONI | C14: 136689 | D14: -11 | E14: 5.9 | F14: SI
A15: 7 | B15: EUROP ASSISTANCE ITALIA | C15: 93451 | D15: 2.3 | E15: 4.03 | F15: NO
A16: 8 | B16: SOCIETA' REALE MUTUA | C16: 82790 | D16: 8.3 | E16: 3.57 | F16: SI
A17: 9 | B17: SOCIETA' CATTOLICA | C17: 74169 | D17: 6.7 | E17: 3.2 | F17: NO PER QUESTO SEMESTRE
A18: 10 | B18: ALLEANZA TORO | C18: 65271 | D18: -18.5 | E18: 2.82 | F18: NO | G18: il 280912 Boaglio ha mandato e-mail in cui scrive che per il momento i dati non sono disponibili, ci farà saper lui quando saranno pronti
A19: 11 | B19: AXA ASSICURAZIONI | C19: 63303 | D19: 0.8 | E19: 2.73 | F19: SI
A20: 12 | B20: RBM SALUTE | C20: 56869 | D20: 53.6 | E20: 2.45 | F20: CI FANNO SAPERE | G20: entro il mese di Ottobre_Roland David 0291431768
A21: 13 | B21: CARDIF ASSURANCES RISQUES DIVERS | C21: 51761 | D21: 19.5 | E21: 2.23 | F21: NO
A22: 14 | B22: UBI ASSICURAZIONI | C22: 51508 | D22: 13.2 | E22: 2.22 | F22: SI
A23: 15 | B23: COMPAGNIA DI ASS. DI MILANO | C23: 50583 | D23: -9.3 | E23: 2.18 | F23: SI
A24: 16 | B24: ZURICH INSURANCE PLC | C24: 49450 | D24: -3.7 | E24: 2.13 | F24: CI FANNO SAPERE | G24: oggi 09102012 ho parlato con Di Candia per sollecitare una risposta da parte loro, mi ha anticipato che al momento non hanno questo tipo di dati, ci fanno sapere tramite e-mail
A25: 17 | B25: INTESA SANPAOLO ASSICURA | C25: 46188 | D25: -4.8 | E25: 1.99 | F25: CI FANNO SAPERE | G25: oggi 09102012 ho parlato con Granito che parlerà con quelli dell'IT per avere una tempistica e mi farà sapere, ci fanno sapere
A26: 18 | B26: GROUPAMA ASSICURAZIONI | C26: 37883 | D26: 18 | E26: 1.63 | F26: NO
A27: 19 | B27: AVIPOP ASSICURAZIONI | C27: 36305 | D27: -21.7 | E27: 1.57 | F27: CI FANNO SAPERE | G27: oggi 09102012 ho parlato con LauraMaria Fasolin 022775398 che mi deve far sapere, ci fanno sapere
A28: 20 | B28: ALICO ITALIA | C28: 35734 | D28: 27.2 | E28: 1.54 | F28: CI FANNO SAPERE | G28: stefania montanari ci fa sapere
A29: 21 | B29: UNIQA ASSICURAZIONI | C29: 32669 | D29: 2.4 | E29: 1.41 | F29: NO | G29: NO per il momento, forse nel 2013 Alberto Radaelli 02268583358
A30: 22 | B30: AGA INTERNATIONAL | C30: 24104 | D30: 0.5 | E30: 1.04 | F30: NO
A31: 23 | B31: FILO DIRETTO | C31: 20943 | D31: 13.8 | E31: 0.9 | F31: NO | G31: ci fa sapere
A32: 24 | B32: AXA MPS ASSICURAZIONI DANNI | C32: 16653 | D32: -1.4 | E32: 0.72 | F32: SI | G32: ci hanno comunicato i dati ma ad oggi non hanno ancora le informazioni sulle polizze collettive
A33: 25 | B33: CATTOLICA PREVIDENZA | C33: 16386 | D33: -30.9 | E33: 0.71 | F33: NO PER QUESTO SEMESTRE
A34: 26 | B34: ITALIANA ASSICURAZIONI | C34: 15290 | D34: -4.4 | E34: 0.66 | F34: SI
A35: 27 | B35: CREDITRAS | C35: 14639 | D35: 43.8 | E35: 0.63 | F35: NO
A36: 28 | B36: AVIVA ITALIA | C36: 10986 | D36: 48.7 | E36: 0.47 | F36: CI FANNO SAPERE | G36: oggi 09102012 ho parlato con LauraMaria Fasolin 022775398 che mi deve far sapere, ci fanno sapere
A37: 29 | B37: VITTORIA ASSICURAZIONI | C37: 10605 | D37: 4.7 | E37: 0.46 | F37: SI
A38: 30 | B38: ARCA ASSICURAZIONI | C38: 9959 | D38: 14.1 | E38: 0.43 | F38: SI
A39: 31 | B39: ASSIMOCO | C39: 9614 | D39: 32.9 | E39: 0.41 | F39: NO
A40: 32 | B40: ITAS MUTUA | C40: 9430 | D40: 6 | E40: 0.41 | F40: SI | G40: problemi con le polizze collettive
A41: 33 | B41: SARA ASSICURAZIONI | C41: 9425 | D41: -2.2 | E41: 0.41 | F41: SI
A42: 34 | B42: CREDEMASSICURAZIONI | C42: 7911 | D42: 34.1 | E42: 0.34 | F42: SI | G42: Schiarea mi ha mandato e-mail, non hanno distribuzione per le polizze individuali, dice che per INFORTUNI si potrebbero dividere i premi tra MR e IP, mentre per MALATTIA tra IP e DIARIA
A43: 35 | B43: PADANA ASSICURAZIONI | C43: 7263 | D43: 4.6 | E43: 0.31 | F43: CI FANNO SAPERE | G43: devo telefonare a Cavalliere Marco 025351800
A44: 36 | B44: INCONTRA ASSICURAZIONI | C44: 7097 | D44: -42.5 | E44: 0.31 | F44: NO
A45: 37 | B45: MEDIOLANUM ASSICURAZIONI | C45: 7056 | D45: 2.4 | E45: 0.3 | F45: CI FANNO SAPERE | G45: stanno elaborando i dati, entro il 10 ottobre
A46: 38 | B46: CARIGE R.D. ASSICURAZIONI E RIASSICURAZIONI | C46: 6550 | D46: -12 | E46: 0.28 | F46: SI
A47: 39 | B47: HELVETIA SA | C47: 6290 | D47: 6.6 | E47: 0.27 | F47: SI
A48: 40 | B48: POSTE ASSICURA - Gruppo Assicurativo Poste Vita | C48: 5271 | D48: 468 | E48: 0.23 | F48: SI
A49: 41 | B49: CARDIF ASSICURAZIONI | C49: 5205 | D49: -56.6 | E49: 0.22
A50: 42 | B50: CNP IAM S.A. | C50: 4873 | D50: -10.1 | E50: 0.21
A51: 43 | B51: ERGO ASSICURAZIONI | C51: 4472 | D51: -6.2 | E51: 0.19 | F51: SI
A52: 44 | B52: CHARTIS EUROPE S.A. | C52: 4425 | D52: 5.5 | E52: 0.19 | F52: SI
A53: 45 | B53: RISPARMIO & PREVIDENZA | C53: 3882 | D53: -1 | E53: 0.17
A54: 46 | B54: CHIARA ASSICURAZIONI | C54: 3690 | D54: 8.4 | E54: 0.16
A55: 47 | B55: BIPIEMME VITA | C55: 3377 | D55: 13.2 | E55: 0.15
A56: 48 | B56: ABC ASSICURA | C56: 3263 | D56: -6.1 | E56: 0.14
A57: 49 | B57: INTESA SANPAOLO VITA | C57: 2995 | D57: -32.8 | E57: 0.13
A58: 50 | B58: AVIVA ASSICURAZIONI | C58: 2757 | D58: 60.5 | E58: 0.12 | F58: CI FANNO SAPERE | G58: oggi 09102012 ho parlato con LauraMaria Fasolin 022775398 che mi deve far sapere, ci fanno sapere
A59: 51 | B59: FATA ASSICURAZIONI DANNI | C59: 2749 | D59: -6.1 | E59: 0.12 | F59: CI FANNO SAPERE | G59: il giorno 04102012 ho parlato con Bucca e mandato e-mail, dice che mi farà sapere
A60: 52 | B60: HDI ASSICURAZIONI | C60: 2722 | D60: -27.5 | E60: 0.12 | F60: SI
A61: 53 | B61: ACE EUROPEAN GROUP LTD | C61: 2454 | D61: 13.7 | E61: 0.11 | F61: si | G61: non hanno premi contabilizzati nel semestre e cmq non dispongono della distribuzione per garanzia
A62: 54 | B62: ANTONIANA VENETA POPOLARE ASSICURAZIONI | C62: 2131 | D62: 14.9 | E62: 0.09
A63: 55 | B63: GLOBAL ASSISTANCE | C63: 2075 | D63: 25.3 | E63: 0.09
A64: 56 | B64: UNIQA Protezione | C64: 1998 | D64: -7 | E64: 0.09
A65: 57 | B65: BCC ASSICURAZIONI | C65: 1839 | D65: 1232.6 | E65: 0.08
A66: 58 | B66: CF ASSICURAZIONI | C66: 1786 | D66: 540.1 | E66: 0.08 | F66: SI
A67: 59 | B67: CBA VITA | C67: 1713 | D67: 4.7 | E67: 0.07
A68: 60 | B68: SUN INSURANCE OFFICE LIMITED RSA | C68: 1601 | D68: -14.4 | E68: 0.07 | F68: SI | G68: oggi 09102012 ho parlato con Parodi che sta sollecitando il loto IT ma per il momento sanno solo che ci stanno lavorando ma non sanno dare dei tempi
A69: 61 | B69: CHUBB INSURANCE COMPANY OF EUROPE | C69: 1523 | D69: -46.7 | E69: 0.07
A70: 62 | B70: DUOMO UNI ONE | C70: 1231 | D70: -76.3 | E70: 0.05
A71: 63 | B71: INCHIARO ASSICURAZIONI | C71: 1211 | D71: 30.1 | E71: 0.05
A72: 64 | B72: ARISCOM COMPAGNIA DI ASSICURAZIONI | C72: 1194 | D72: 38.8 | E72: 0.05
A73: 65 | B73: TUA ASSICURAZIONI | C73: 1167 | D73: -4.3 | E73: 0.05
A74: 66 | B74: POSTE VITA - Gruppo Assicurativo Poste Vita | C74: 1124 | D74: -29 | E74: 0.05 | F74: SI
A75: 67 | B75: NATIONALE SUISSE | C75: 993 | D75: -9.2 | E75: 0.04 | F75: SI
A76: 68 | B76: BANCASSURANCE POPOLARI DANNI | C76: 947 | D76: -52.3 | E76: 0.04
A77: 69 | B77: LIGURIA | C77: 942 | D77: -10.4 | E77: 0.04
A78: 70 | B78: FINANCIAL INSURANCE COMPANY | C78: 726 | D78: -28.5 | E78: 0.03
A79: 71 | B79: ALA ASSICURAZIONI | C79: 697 | D79: -14.7 | E79: 0.03
A80: 72 | B80: ITAS ASSICURAZIONI | C80: 461 | D80: -39.2 | E80: 0.02
A81: 73 | B81: ASSICURATRICE MILANESE | C81: 334 | D81: -11.4 | E81: 0.01
A82: 74 | B82: ASSICURATRICE VAL PIAVE | C82: 280 | D82: 12.9 | E82: 0.01
A83: 75 | B83: GENERTEL | C83: 192 | D83: -24.7 | E83: 0.01 | F83: SI
A84: 76 | B84: CREDIT AGRICOLE ASSICURAZIONI | C84: 108 | D84: 184.2 | E84: 0
A85: 77 | B85: INTER PARTNER ASSISTANCE | C85: 95 | D85: -54.1 | E85: 0
A86: 78 | B86: NOBIS COMPAGNIA DI ASSICURAZIONI | C86: 91 | D86: 5.8 | E86: 0 | F86: SI
A87: 79 | B87: RB VITA | C87: 72 | D87: -8.9 | E87: 0
A88: 80 | B88: UNIQA Previdenza | C88: 55 | D88: -36.8 | E88: 0
A89: 81 | B89: CARDIF - ASSURANCE VIE | C89: 45 | D89: (.....) | E89: 0
A90: 82 | B90: LE ASSICURAZIONI DI ROMA | C90: 37 | D90: 8.8 | E90: 0
A91: 83 | B91: ISI INSURANCE Compagnia di Assicurazioni | C91: 23 | D91: -51.1 | E91: 0 | F91: SI
A92: 84 | B92: BENTOS ASSICURAZIONI | C92: 21 | D92: -72 | E92: 0
A93: 85 | B93: NET INSURANCE | C93: 17 | D93: -43.3 | E93: 0
A94: 86 | B94: POPOLARE VITA | C94: 12 | D94: -14.3 | E94: 0
A95: 87 | B95: TOKIO MARINE EUROPE | C95: 7 | D95: 40 | E95: 0
A96: 88 | B96: AXERIA PREVOYANCE | C96: 7 | D96: -99.2 | E96: 0
A97: 89 | B97: LLOYD'S | C97: 6 | D97: -60 | E97: 0
A98: 90 | B98: ASSICURAZIONI RISCHI AGRICOLI VMG 1857 | C98: 1 | D98: 0 | E98: 0 | F98: SI
A99: 91 | B99: GENIALLOYD | C99: 1 | D99: (.....) | E99: 0 | F99: SI | G99: DEVO CHIEDERE PERO' SPIEGAZIONI SUI DATI
A100: 92 | B100: SARA VITA | C100: 1 | D100: -75 | E100: 0
A101: 93 | B101: SYSTEMA ASSICURAZIONI | C101: 1 | D101: 0 | E101: 0
A102: 94 | B102: CNP UNICREDIT VITA | C102: 1 | D102: 0 | E102: 0 | F102: SI

Sheet Quota Inf (2015) (hidden)
A1: PREMI 2015 | F1: 1 - INFORTUNI
A3: Imprese in ordine decrescente | C3: premi | D3: variaz. | E3: incid. sul | F3: compagnie che
D4: 2015/2014 | E4: totale | F4: hanno
C5: (migliaia di EURO) | D5: (%) | E5: (%) | F5: risposto
B7: QUOTA MERCATO | E7: =+SUMIF(F:F,"SI",E:E)&"%" -> 77,5% | F7: =+COUNTIF(F108:F116,"SI") -> 0
A9: 1 | B9: UNIPOLSAI ASSICURAZIONI | C9: 631023 | D9: -10.2 | E9: 18.59 | F9: =+VLOOKUP(B9,'Quota Inf (2013)'!$B$9:$G$109,5,FALSE) -> SI
A10: 2 | B10: GENERALI ITALIA | C10: 604080 | D10: -0.5 | E10: 17.8 | F10: =+VLOOKUP(B10,'Quota Inf (2013)'!$B$9:$G$109,5,FALSE) -> SI
A11: 3 | B11: ALLIANZ S.P.A. | C11: 367290 | D11: 19 | E11: 10.82 | F11: =+VLOOKUP(B11,'Quota Inf (2013)'!$B$9:$G$109,5,FALSE) -> SI
A12: 4 | B12: SOCIETA' CATTOLICA | C12: 152798 | D12: -0.3 | E12: 4.5 | F12: =+VLOOKUP(B12,'Quota Inf (2013)'!$B$9:$G$109,5,FALSE) -> NO
A13: 5 | B13: AXA ASSICURAZIONI | C13: 110969 | D13: -2.1 | E13: 3.27 | F13: NO
A14: 6 | B14: GROUPAMA ASSICURAZIONI | C14: 102142 | D14: 1.9 | E14: 3.01 | F14: =+VLOOKUP(B14,'Quota Inf (2013)'!$B$9:$G$109,5,FALSE) -> SI
A15: 7 | B15: AIG EUROPE LIMITED | C15: 94981 | D15: 7.4 | E15: 2.8 | F15: =+VLOOKUP(B15,'Quota Inf (2013)'!$B$9:$G$109,5,FALSE) -> SI
A16: 8 | B16: ZURICH INSURANCE PLC | C16: 93992 | D16: 1 | E16: 2.77 | F16: =+VLOOKUP(B16,'Quota Inf (2013)'!$B$9:$G$109,5,FALSE) -> SI
A17: 9 | B17: SOCIETA' REALE MUTUA | C17: 93622 | D17: 3.4 | E17: 2.76 | F17: =+VLOOKUP(B17,'Quota Inf (2013)'!$B$9:$G$109,5,FALSE) -> SI
A18: 10 | B18: VITTORIA ASSICURAZIONI | C18: 80099 | D18: 5.3 | E18: 2.36 | F18: =+VLOOKUP(B18,'Quota Inf (2013)'!$B$9:$G$109,5,FALSE) -> SI
A19: 11 | B19: ACE EUROPEAN GROUP LTD | C19: 57077 | D19: -6.2 | E19: 1.68 | F19: =+VLOOKUP(B19,'Quota Inf (2013)'!$B$9:$G$109,5,FALSE) -> 
A20: 12 | B20: METLIFE EUROPE LIMITED | C20: 51562 | D20: 73.3 | E20: 1.52 | F20: =+VLOOKUP(B20,'Quota Inf (2013)'!$B$9:$G$109,5,FALSE) -> SI
A21: 13 | B21: AXA MPS ASSICURAZIONI DANNI | C21: 48954 | D21: 8.4 | E21: 1.44 | F21: =+VLOOKUP(B21,'Quota Inf (2013)'!$B$9:$G$109,5,FALSE) -> estrazione dati a gennaio 2016
A22: 14 | B22: SARA ASSICURAZIONI | C22: 47593 | D22: 6.7 | E22: 1.4 | F22: =+VLOOKUP(B22,'Quota Inf (2013)'!$B$9:$G$109,5,FALSE) -> SI
A23: 15 | B23: ITALIANA ASSICURAZIONI | C23: 44480 | D23: 3.1 | E23: 1.31 | F23: =+VLOOKUP(B23,'Quota Inf (2013)'!$B$9:$G$109,5,FALSE) -> SI
A24: 16 | B24: AVIVA ITALIA | C24: 43493 | D24: 3 | E24: 1.28 | F24: =+VLOOKUP(B24,'Quota Inf (2013)'!$B$9:$G$109,5,FALSE) -> SI
A25: 17 | B25: POSTE ASSICURA - GRUPPO ASSICURATIVO POSTE VITA | C25: 38670 | D25: 19.8 | E25: 1.14 | F25: =+VLOOKUP(B25,'Quota Inf (2013)'!$B$9:$G$109,5,FALSE) -> SI
A26: 18 | B26: CARDIF ASSURANCES RISQUES DIVERS | C26: 38376 | D26: 8 | E26: 1.13 | F26: =+VLOOKUP(B26,'Quota Inf (2013)'!$B$9:$G$109,5,FALSE) -> 0
A27: 19 | B27: ITAS MUTUA | C27: 37290 | D27: 6.3 | E27: 1.1 | F27: =+VLOOKUP(B27,'Quota Inf (2013)'!$B$9:$G$109,5,FALSE) -> SI
A28: 20 | B28: DIRECT LINE INSURANCE | C28: 35945 | D28: 14.5 | E28: 1.06 | F28: =+VLOOKUP(B28,'Quota Inf (2013)'!$B$9:$G$109,5,FALSE) -> SI
A29: 21 | B29: CARIGE R.D. ASSICURAZIONI E RIASSICURAZIONI | C29: 35828 | D29: -2.4 | E29: 1.06 | F29: =+VLOOKUP(B29,'Quota Inf (2013)'!$B$9:$G$109,5,FALSE) -> SI
A30: 22 | B30: CARGEAS ASSICURAZIONI | C30: 32109 | D30: -13.6 | E30: 0.95 | F30: =+VLOOKUP(B30,'Quota Inf (2013)'!$B$9:$G$109,5,FALSE) -> SI
A31: 23 | B31: HELVETIA SA | C31: 29740 | D31: -3.4 | E31: 0.88 | F31: =+VLOOKUP(B31,'Quota Inf (2013)'!$B$9:$G$109,5,FALSE) -> SI
A32: 24 | B32: ASSIMOCO | C32: 28198 | D32: 3.5 | E32: 0.83 | F32: =+VLOOKUP(B32,'Quota Inf (2013)'!$B$9:$G$109,5,FALSE) -> SI
A33: 25 | B33: LLOYD'S | C33: 26168 | D33: -1.2 | E33: 0.77 | F33: =+VLOOKUP(B33,'Quota Inf (2013)'!$B$9:$G$109,5,FALSE) -> 0
A34: 26 | B34: INTESA SANPAOLO ASSICURA | C34: 25056 | D34: 35.8 | E34: 0.74 | F34: =+VLOOKUP(B34,'Quota Inf (2013)'!$B$9:$G$109,5,FALSE) -> SI
A35: 27 | B35: MEDIOLANUM ASSICURAZIONI | C35: 24981 | D35: 3 | E35: 0.74 | F35: =+VLOOKUP(B35,'Quota Inf (2013)'!$B$9:$G$109,5,FALSE) -> 
A36: 28 | B36: HELVETIA ITALIA ASSICURAZIONI | C36: 23481 | D36: 3.9 | E36: 0.69 | F36: =+VLOOKUP(B36,'Quota Inf (2013)'!$B$9:$G$109,5,FALSE) -> NO
A37: 29 | B37: GENERTEL | C37: 22392 | D37: -3 | E37: 0.66 | F37: =+VLOOKUP(B37,'Quota Inf (2013)'!$B$9:$G$109,5,FALSE) -> SI
A38: 30 | B38: GENIALLOYD | C38: 20689 | D38: 12.8 | E38: 0.61 | F38: =+VLOOKUP(B38,'Quota Inf (2013)'!$B$9:$G$109,5,FALSE) -> 0
A39: 31 | B39: FATA ASSICURAZIONI DANNI | C39: 20162 | D39: 0.7 | E39: 0.59 | F39: =+VLOOKUP(B39,'Quota Inf (2013)'!$B$9:$G$109,5,FALSE) -> 0
A40: 32 | B40: HDI ASSICURAZIONI | C40: 19020 | D40: 1.4 | E40: 0.56 | F40: =+VLOOKUP(B40,'Quota Inf (2013)'!$B$9:$G$109,5,FALSE) -> SI
A41: 33 | B41: ARCA ASSICURAZIONI | C41: 18978 | D41: 9.5 | E41: 0.56 | F41: =+VLOOKUP(B41,'Quota Inf (2013)'!$B$9:$G$109,5,FALSE) -> SI
A42: 34 | B42: CHUBB INSURANCE COMPANY OF EUROPE | C42: 16923 | D42: -9.6 | E42: 0.5 | F42: =+VLOOKUP(B42,'Quota Inf (2013)'!$B$9:$G$109,5,FALSE) -> 0
A43: 35 | B43: TUA ASSICURAZIONI | C43: 16704 | D43: 15.3 | E43: 0.49 | F43: =+VLOOKUP(B43,'Quota Inf (2013)'!$B$9:$G$109,5,FALSE) -> 0
A44: 36 | B44: UNIQA ASSICURAZIONI | C44: 16277 | D44: 0.1 | E44: 0.48 | F44: =+VLOOKUP(B44,'Quota Inf (2013)'!$B$9:$G$109,5,FALSE) -> 0
A45: 37 | B45: UNISALUTE | C45: 15979 | D45: 114.1 | E45: 0.47 | F45: =+VLOOKUP(B45,'Quota Inf (2013)'!$B$9:$G$109,5,FALSE) -> SI
A46: 38 | B46: CHIARA ASSICURAZIONI | C46: 15038 | D46: 3.7 | E46: 0.44 | F46: =+VLOOKUP(B46,'Quota Inf (2013)'!$B$9:$G$109,5,FALSE) -> 0
A47: 39 | B47: ALLEANZA ASSICURAZIONI | C47: 14954 | D47: -5.7 | E47: 0.44 | F47: =+VLOOKUP(B47,'Quota Inf (2013)'!$B$9:$G$109,5,FALSE) -> 0
A48: 40 | B48: SUN INSURANCE OFFICE LIMITED RSA | C48: 14703 | D48: -3.9 | E48: 0.43 | F48: =+VLOOKUP(B48,'Quota Inf (2013)'!$B$9:$G$109,5,FALSE) -> 
A49: 41 | B49: AVIPOP ASSICURAZIONI | C49: 10403 | D49: 15.5 | E49: 0.31 | F49: =+VLOOKUP(B49,'Quota Inf (2013)'!$B$9:$G$109,5,FALSE) -> SI
A50: 42 | B50: WIENER STADTISCHE VERSIC. | C50: 9932 | D50: 148.4 | E50: 0.29 | F50: =+VLOOKUP(B50,'Quota Inf (2013)'!$B$9:$G$109,5,FALSE) -> 
A51: 43 | B51: CREDIT AGRICOLE ASSICURAZIONI | C51: 9345 | D51: 59 | E51: 0.28 | F51: =+VLOOKUP(B51,'Quota Inf (2013)'!$B$9:$G$109,5,FALSE) -> 0
A52: 44 | B52: ERGO ASSICURAZIONI | C52: 9100 | D52: -40.8 | E52: 0.27 | F52: =+VLOOKUP(B52,'Quota Inf (2013)'!$B$9:$G$109,5,FALSE) -> SI
A53: 45 | B53: CREDITRAS ASSICURAZIONI | C53: 9059 | D53: 9.8 | E53: 0.27 | F53: =+VLOOKUP(B53,'Quota Inf (2013)'!$B$9:$G$109,5,FALSE) -> 0
A54: 46 | B54: COMPAGNIA ASS. LINEAR | C54: 8706 | D54: -4.1 | E54: 0.26 | F54: =+VLOOKUP(B54,'Quota Inf (2013)'!$B$9:$G$109,5,FALSE) -> 0
A55: 47 | B55: ABC ASSICURA | C55: 8233 | D55: 175.8 | E55: 0.24 | F55: =+VLOOKUP(B55,'Quota Inf (2013)'!$B$9:$G$109,5,FALSE) -> 0
A56: 48 | B56: EUROP ASSISTANCE ITALIA | C56: 7940 | D56: -61.1 | E56: 0.23 | F56: =+VLOOKUP(B56,'Quota Inf (2013)'!$B$9:$G$109,5,FALSE) -> NO
A57: 49 | B57: NATIONALE SUISSE | C57: 7736 | D57: -9.3 | E57: 0.23 | F57: =+VLOOKUP(B57,'Quota Inf (2013)'!$B$9:$G$109,5,FALSE) -> SI
A58: 50 | B58: ARISCOM COMPAGNIA DI ASSICURAZIONI | C58: 6199 | D58: -0.8 | E58: 0.18 | F58: =+VLOOKUP(B58,'Quota Inf (2013)'!$B$9:$G$109,5,FALSE) -> 
A59: 51 | B59: GLOBAL ASSISTANCE | C59: 5689 | D59: 14.6 | E59: 0.17 | F59: =+VLOOKUP(B59,'Quota Inf (2013)'!$B$9:$G$109,5,FALSE) -> 0
A60: 52 | B60: HDI GLOBAL SE | C60: 5258 | D60: 10 | E60: 0.15 | F60: =+VLOOKUP(B60,'Quota Inf (2013)'!$B$9:$G$109,5,FALSE) -> 
A61: 53 | B61: BCC ASSICURAZIONI | C61: 5137 | D61: 21.7 | E61: 0.15 | F61: =+VLOOKUP(B61,'Quota Inf (2013)'!$B$9:$G$109,5,FALSE) -> 0
A62: 54 | B62: INCONTRA ASSICURAZIONI | C62: 5055 | D62: -2.6 | E62: 0.15 | F62: =+VLOOKUP(B62,'Quota Inf (2013)'!$B$9:$G$109,5,FALSE) -> 0
A63: 55 | B63: NOBIS ASSICURAZIONI | C63: 5028 | D63: 69.6 | E63: 0.15 | F63: =+VLOOKUP(B63,'Quota Inf (2013)'!$B$9:$G$109,5,FALSE) -> NO
A64: 56 | B64: BIPIEMME VITA | C64: 4952 | D64: -11.3 | E64: 0.15 | F64: =+VLOOKUP(B64,'Quota Inf (2013)'!$B$9:$G$109,5,FALSE) -> 0
A65: 57 | B65: CREDEMASSICURAZIONI | C65: 4704 | D65: -21.7 | E65: 0.14 | F65: =+VLOOKUP(B65,'Quota Inf (2013)'!$B$9:$G$109,5,FALSE) -> SI
A66: 58 | B66: BIPIEMME ASSICURAZIONI | C66: 4612 | D66: 55 | E66: 0.14 | F66: =+VLOOKUP(B66,'Quota Inf (2013)'!$B$9:$G$109,5,FALSE) -> 0
A67: 59 | B67: BNP PARIBAS CARDIF VITA | C67: 4482 | D67: -22 | E67: 0.13 | F67: =+VLOOKUP(B67,'Quota Inf (2013)'!$B$9:$G$109,5,FALSE) -> 0
A68: 60 | B68: DONAU VERSICHERUNG AG VIENNA | C68: 4265 | D68: -66.1 | E68: 0.13
A69: 61 | B69: ZURICH INSURANCE COMPANY | C69: 3914 | D69: -17.1 | E69: 0.12 | F69: =+VLOOKUP(B69,'Quota Inf (2013)'!$B$9:$G$109,5,FALSE) -> 
A70: 62 | B70: FILO DIRETTO | C70: 3394 | D70: 7.4 | E70: 0.1 | F70: =+VLOOKUP(B70,'Quota Inf (2013)'!$B$9:$G$109,5,FALSE) -> 0
A71: 63 | B71: CF ASSICURAZIONI | C71: 3360 | D71: -11.8 | E71: 0.1 | F71: =+VLOOKUP(B71,'Quota Inf (2013)'!$B$9:$G$109,5,FALSE) -> SI
A72: 64 | B72: ASSICURATRICE MILANESE | C72: 3350 | D72: 0.4 | E72: 0.1
A73: 65 | B73: GREAT LAKES REINS. | C73: 3285 | D73: 95.1 | E73: 0.1 | F73: =+VLOOKUP(B73,'Quota Inf (2013)'!$B$9:$G$109,5,FALSE) -> 0
A74: 66 | B74: INCHIARO ASSICURAZIONI | C74: 2982 | D74: 3.8 | E74: 0.09 | F74: =+VLOOKUP(B74,'Quota Inf (2013)'!$B$9:$G$109,5,FALSE) -> 0
A75: 67 | B75: ASSICURAZIONI GENERALI | C75: 2883 | D75: -91.6 | E75: 0.08 | F75: =+VLOOKUP(B75,'Quota Inf (2013)'!$B$9:$G$109,5,FALSE) -> 0
A76: 68 | B76: AXA GLOBAL DIRECT SEGUROS Y REASEGUROS | C76: 2802 | D76: -3.5 | E76: 0.08 | F76: =+VLOOKUP(B76,'Quota Inf (2013)'!$B$9:$G$109,5,FALSE) -> 
A77: 69 | B77: FINANCIAL INSURANCE COMPANY | C77: 2794 | D77: -10 | E77: 0.08 | F77: =+VLOOKUP(B77,'Quota Inf (2013)'!$B$9:$G$109,5,FALSE) -> 
A78: 70 | B78: ASSICURATRICE VAL PIAVE | C78: 2636 | D78: 13.2 | E78: 0.08 | F78: =+VLOOKUP(B78,'Quota Inf (2013)'!$B$9:$G$109,5,FALSE) -> 0
A79: 71 | B79: ALLIANZ GLOBAL C & S | C79: 2312 | D79: -16.6 | E79: 0.07 | F79: =+VLOOKUP(B79,'Quota Inf (2013)'!$B$9:$G$109,5,FALSE) -> 0
A80: 72 | B80: CNP IAM | C80: 2273 | D80: 11 | E80: 0.07 | F80: =+VLOOKUP(B80,'Quota Inf (2013)'!$B$9:$G$109,5,FALSE) -> 0
A81: 73 | B81: ITAS ASSICURAZIONI | C81: 2120 | D81: 45.2 | E81: 0.06 | F81: =+VLOOKUP(B81,'Quota Inf (2013)'!$B$9:$G$109,5,FALSE) -> 0
A82: 74 | B82: AXA CORPORATE SOLUTIONS | C82: 1792 | D82: -13.6 | E82: 0.05 | F82: =+VLOOKUP(B82,'Quota Inf (2013)'!$B$9:$G$109,5,FALSE) -> 0
A83: 75 | B83: INTESA SANPAOLO VITA | C83: 1343 | D83: -8.4 | E83: 0.04 | F83: =+VLOOKUP(B83,'Quota Inf (2013)'!$B$9:$G$109,5,FALSE) -> 0
A84: 76 | B84: AGA INTERNATIONAL | C84: 1319 | D84: -13.1 | E84: 0.04 | F84: =+VLOOKUP(B84,'Quota Inf (2013)'!$B$9:$G$109,5,FALSE) -> 0
A85: 77 | B85: BANCASSURANCE POPOLARI DANNI | C85: 714 | D85: -14.3 | E85: 0.02 | F85: =+VLOOKUP(B85,'Quota Inf (2013)'!$B$9:$G$109,5,FALSE) -> 0
A86: 78 | B86: LE ASSICURAZIONI DI ROMA | C86: 617 | D86: -11.4 | E86: 0.02 | F86: =+VLOOKUP(B86,'Quota Inf (2013)'!$B$9:$G$109,5,FALSE) -> SI
A87: 79 | B87: TIROLER VERSICHERUNG | C87: 413 | D87: 11.3 | E87: 0.01 | F87: =+VLOOKUP(B87,'Quota Inf (2013)'!$B$9:$G$109,5,FALSE) -> 
A88: 80 | B88: NET INSURANCE | C88: 348 | D88: -36.7 | E88: 0.01 | F88: =+VLOOKUP(B88,'Quota Inf (2013)'!$B$9:$G$109,5,FALSE) -> 0
A89: 81 | B89: MSIG INSURANCE EUROPE | C89: 329 | D89: -7.3 | E89: 0.01 | F89: =+VLOOKUP(B89,'Quota Inf (2013)'!$B$9:$G$109,5,FALSE) -> 
A90: 82 | B90: R+V ALLGEMEINE | C90: 318 | D90: -6.5 | E90: 0.01 | F90: =+VLOOKUP(B90,'Quota Inf (2013)'!$B$9:$G$109,5,FALSE) -> 0
A91: 83 | B91: AXERIA PREVOYANCE | C91: 239 | D91: -10.5 | E91: 0.01 | F91: =+VLOOKUP(B91,'Quota Inf (2013)'!$B$9:$G$109,5,FALSE) -> 0
A92: 84 | B92: RBM SALUTE | C92: 202 | D92: -76.1 | E92: 0.01 | F92: =+VLOOKUP(B92,'Quota Inf (2013)'!$B$9:$G$109,5,FALSE) -> 0
A93: 85 | B93: PRAMERICA LIFE | C93: 107 | D93: (.....) | E93: 0 | F93: =+VLOOKUP(B93,'Quota Inf (2013)'!$B$9:$G$109,5,FALSE) -> 
A94: 86 | B94: INTER PARTNER ASSISTANCE | C94: 92 | D94: 3166.7 | E94: 0 | F94: =+VLOOKUP(B94,'Quota Inf (2013)'!$B$9:$G$109,5,FALSE) -> 0
A95: 87 | B95: QUADRA ASSICURAZIONI | C95: 91 | D95: (.....) | E95: 0
A96: 88 | B96: TOKIO MARINE EUROPE | C96: 85 | D96: 25 | E96: 0 | F96: =+VLOOKUP(B96,'Quota Inf (2013)'!$B$9:$G$109,5,FALSE) -> 0
A97: 89 | B97: MAPFRE ASISTENCIA | C97: 38 | D97: 1800 | E97: 0 | F97: =+VLOOKUP(B97,'Quota Inf (2013)'!$B$9:$G$109,5,FALSE) -> 
A98: 90 | B98: AFI ESCA IARD | C98: 30 | D98: 57.9 | E98: 0 | F98: =+VLOOKUP(B98,'Quota Inf (2013)'!$B$9:$G$109,5,FALSE) -> 
A99: 91 | B99: SACE BT | C99: 20 | D99: -4.8 | E99: 0 | F99: =+VLOOKUP(B99,'Quota Inf (2013)'!$B$9:$G$109,5,FALSE) -> 0
A100: 92 | B100: POPOLARE VITA | C100: 13 | D100: -7.1 | E100: 0 | F100: =+VLOOKUP(B100,'Quota Inf (2013)'!$B$9:$G$109,5,FALSE) -> 0
A101: 93 | B101: AMTRUST EUROPE LIMITED | C101: 7 | D101: (.....) | E101: 0 | F101: =+VLOOKUP(B101,'Quota Inf (2013)'!$B$9:$G$109,5,FALSE) -> 
A102: 94 | B102: ASSICURAZIONI RISCHI AGRICOLI VMG 1857 | C102: 2 | D102: 0 | E102: 0 | F102: =+VLOOKUP(B102,'Quota Inf (2013)'!$B$9:$G$109,5,FALSE) -> SI
A103: 95 | B103: SIAT | C103: 1 | D103: (.....) | E103: 0 | F103: =+VLOOKUP(B103,'Quota Inf (2013)'!$B$9:$G$109,5,FALSE) -> 
A104: 96 | B104: CBA VITA | C104: 1 | D104: 0 | E104: 0 | F104: =+VLOOKUP(B104,'Quota Inf (2013)'!$B$9:$G$109,5,FALSE) -> 

Sheet Quota Mal (2015) (hidden)
A1: PREMI 2015 | F1: 2 - MALATTIA
A3: Imprese in ordine decrescente | C3: premi | D3: variaz. | E3: incid. sul | F3: compagnie che
D4: 2015/2014 | E4: totale | F4: hanno
C5: (migliaia di EURO) | D5: (%) | E5: (%) | F5: risposto
B7: QUOTA MERCATO | E7: =+SUMIF(F:F,"SI",E:E)&"%" -> 67,98% | F7: =+COUNTIF(F108:F116,"SI") -> 0
A9: 1 | B9: GENERALI ITALIA | C9: 459007 | D9: 0 | E9: 20.1 | F9: =+VLOOKUP(B9,'Quota Inf (2013)'!$B$9:$G$109,5,FALSE) -> SI
A10: 2 | B10: RBM SALUTE | C10: 319260 | D10: 22 | E10: 13.98 | F10: NO
A11: 3 | B11: UNISALUTE | C11: 284036 | D11: 8.6 | E11: 12.44 | F11: =+VLOOKUP(B11,'Quota Inf (2013)'!$B$9:$G$109,5,FALSE) -> SI
A12: 4 | B12: UNIPOLSAI ASSICURAZIONI | C12: 227286 | D12: -5.9 | E12: 9.95 | F12: =+VLOOKUP(B12,'Quota Inf (2013)'!$B$9:$G$109,5,FALSE) -> SI
A13: 5 | B13: ALLIANZ S.P.A. | C13: 179856 | D13: 4.4 | E13: 7.88 | F13: =+VLOOKUP(B13,'Quota Inf (2013)'!$B$9:$G$109,5,FALSE) -> SI
A14: 6 | B14: SOCIETA' REALE MUTUA | C14: 89988 | D14: 6.3 | E14: 3.94 | F14: =+VLOOKUP(B14,'Quota Inf (2013)'!$B$9:$G$109,5,FALSE) -> SI
A15: 7 | B15: AXA ASSICURAZIONI | C15: 62792 | D15: 22 | E15: 2.75 | F15: NO
A16: 8 | B16: SOCIETA' CATTOLICA | C16: 58760 | D16: -10.4 | E16: 2.57 | F16: =+VLOOKUP(B16,'Quota Inf (2013)'!$B$9:$G$109,5,FALSE) -> NO
A17: 9 | B17: EUROP ASSISTANCE ITALIA | C17: 53224 | D17: -0.6 | E17: 2.33 | F17: =+VLOOKUP(B17,'Quota Inf (2013)'!$B$9:$G$109,5,FALSE) -> NO
A18: 10 | B18: CARGEAS ASSICURAZIONI | C18: 46477 | D18: -3 | E18: 2.04 | F18: =+VLOOKUP(B18,'Quota Inf (2013)'!$B$9:$G$109,5,FALSE) -> SI
A19: 11 | B19: ZURICH INSURANCE PLC | C19: 44103 | D19: -13.4 | E19: 1.93 | F19: =+VLOOKUP(B19,'Quota Inf (2013)'!$B$9:$G$109,5,FALSE) -> SI
A20: 12 | B20: INTESA SANPAOLO ASSICURA | C20: 36288 | D20: 31.2 | E20: 1.59 | F20: =+VLOOKUP(B20,'Quota Inf (2013)'!$B$9:$G$109,5,FALSE) -> SI
A21: 13 | B21: UNIQA ASSICURAZIONI | C21: 34965 | D21: -2.5 | E21: 1.53 | F21: =+VLOOKUP(B21,'Quota Inf (2013)'!$B$9:$G$109,5,FALSE) -> 0
A22: 14 | B22: CARDIF ASSURANCES RISQUES DIVERS | C22: 24050 | D22: -2.3 | E22: 1.05 | F22: =+VLOOKUP(B22,'Quota Inf (2013)'!$B$9:$G$109,5,FALSE) -> 0
A23: 15 | B23: METLIFE EUROPE LIMITED | C23: 23917 | D23: 89.4 | E23: 1.05 | F23: =+VLOOKUP(B23,'Quota Inf (2013)'!$B$9:$G$109,5,FALSE) -> SI
A24: 16 | B24: AGA INTERNATIONAL | C24: 22408 | D24: -0.8 | E24: 0.98 | F24: =+VLOOKUP(B24,'Quota Inf (2013)'!$B$9:$G$109,5,FALSE) -> 0
A25: 17 | B25: MEDIOLANUM ASSICURAZIONI | C25: 21944 | D25: 8.7 | E25: 0.96 | F25: =+VLOOKUP(B25,'Quota Inf (2013)'!$B$9:$G$109,5,FALSE) -> 
A26: 18 | B26: ASSICURAZIONI GENERALI | C26: 21082 | D26: -46.3 | E26: 0.92 | F26: =+VLOOKUP(B26,'Quota Inf (2013)'!$B$9:$G$109,5,FALSE) -> 0
A27: 19 | B27: GROUPAMA ASSICURAZIONI | C27: 20236 | D27: 3.4 | E27: 0.89 | F27: =+VLOOKUP(B27,'Quota Inf (2013)'!$B$9:$G$109,5,FALSE) -> SI
A28: 20 | B28: AVIPOP ASSICURAZIONI | C28: 18464 | D28: 21.4 | E28: 0.81 | F28: =+VLOOKUP(B28,'Quota Inf (2013)'!$B$9:$G$109,5,FALSE) -> SI
A29: 21 | B29: ITALIANA ASSICURAZIONI | C29: 17250 | D29: 2 | E29: 0.76 | F29: =+VLOOKUP(B29,'Quota Inf (2013)'!$B$9:$G$109,5,FALSE) -> SI
A30: 22 | B30: FILO DIRETTO | C30: 16752 | D30: 9.7 | E30: 0.73 | F30: =+VLOOKUP(B30,'Quota Inf (2013)'!$B$9:$G$109,5,FALSE) -> 0
A31: 23 | B31: CREDITRAS ASSICURAZIONI | C31: 16104 | D31: 0 | E31: 0.71 | F31: =+VLOOKUP(B31,'Quota Inf (2013)'!$B$9:$G$109,5,FALSE) -> 0
A32: 24 | B32: ACE EUROPEAN GROUP LTD | C32: 12622 | D32: -6.9 | E32: 0.55 | F32: =+VLOOKUP(B32,'Quota Inf (2013)'!$B$9:$G$109,5,FALSE) -> 
A33: 25 | B33: VITTORIA ASSICURAZIONI | C33: 12357 | D33: 3.8 | E33: 0.54 | F33: =+VLOOKUP(B33,'Quota Inf (2013)'!$B$9:$G$109,5,FALSE) -> SI
A34: 26 | B34: ARCA ASSICURAZIONI | C34: 12353 | D34: -2.1 | E34: 0.54 | F34: =+VLOOKUP(B34,'Quota Inf (2013)'!$B$9:$G$109,5,FALSE) -> SI
A35: 27 | B35: AXA MPS ASSICURAZIONI DANNI | C35: 11937 | D35: 8.4 | E35: 0.52 | F35: =+VLOOKUP(B35,'Quota Inf (2013)'!$B$9:$G$109,5,FALSE) -> estrazione dati a gennaio 2016
A36: 28 | B36: ITAS MUTUA | C36: 11012 | D36: 8.7 | E36: 0.48 | F36: =+VLOOKUP(B36,'Quota Inf (2013)'!$B$9:$G$109,5,FALSE) -> SI
A37: 29 | B37: ASSIMOCO | C37: 10663 | D37: 13.8 | E37: 0.47 | F37: =+VLOOKUP(B37,'Quota Inf (2013)'!$B$9:$G$109,5,FALSE) -> SI
A38: 30 | B38: AVIVA ITALIA | C38: 9953 | D38: -17.4 | E38: 0.44 | F38: =+VLOOKUP(B38,'Quota Inf (2013)'!$B$9:$G$109,5,FALSE) -> SI
A39: 31 | B39: CREDEMASSICURAZIONI | C39: 7913 | D39: 5.2 | E39: 0.35 | F39: =+VLOOKUP(B39,'Quota Inf (2013)'!$B$9:$G$109,5,FALSE) -> SI
A40: 32 | B40: CREDIT AGRICOLE ASSICURAZIONI | C40: 7715 | D40: 11769.2 | E40: 0.34 | F40: =+VLOOKUP(B40,'Quota Inf (2013)'!$B$9:$G$109,5,FALSE) -> 0
A41: 33 | B41: SARA ASSICURAZIONI | C41: 7606 | D41: -2.7 | E41: 0.33 | F41: =+VLOOKUP(B41,'Quota Inf (2013)'!$B$9:$G$109,5,FALSE) -> SI
A42: 34 | B42: POSTE ASSICURA - GRUPPO ASSICURATIVO POSTE VITA | C42: 7400 | D42: -1.8 | E42: 0.32 | F42: =+VLOOKUP(B42,'Quota Inf (2013)'!$B$9:$G$109,5,FALSE) -> SI
A43: 35 | B43: AIG EUROPE LIMITED | C43: 7181 | D43: 0.5 | E43: 0.31 | F43: =+VLOOKUP(B43,'Quota Inf (2013)'!$B$9:$G$109,5,FALSE) -> SI
A44: 36 | B44: HELVETIA SA | C44: 5287 | D44: 0 | E44: 0.23 | F44: =+VLOOKUP(B44,'Quota Inf (2013)'!$B$9:$G$109,5,FALSE) -> SI
A45: 37 | B45: ALLEANZA ASSICURAZIONI | C45: 5082 | D45: -0.6 | E45: 0.22 | F45: =+VLOOKUP(B45,'Quota Inf (2013)'!$B$9:$G$109,5,FALSE) -> 0
A46: 38 | B46: BIPIEMME ASSICURAZIONI | C46: 4363 | D46: 13.6 | E46: 0.19 | F46: =+VLOOKUP(B46,'Quota Inf (2013)'!$B$9:$G$109,5,FALSE) -> 0
A47: 39 | B47: CARIGE R.D. ASSICURAZIONI E RIASSICURAZIONI | C47: 4262 | D47: -3.3 | E47: 0.19 | F47: =+VLOOKUP(B47,'Quota Inf (2013)'!$B$9:$G$109,5,FALSE) -> SI
A48: 40 | B48: INTER PARTNER ASSISTANCE | C48: 3873 | D48: 38 | E48: 0.17 | F48: =+VLOOKUP(B48,'Quota Inf (2013)'!$B$9:$G$109,5,FALSE) -> 0
A49: 41 | B49: GLOBAL ASSISTANCE | C49: 3802 | D49: 23 | E49: 0.17 | F49: =+VLOOKUP(B49,'Quota Inf (2013)'!$B$9:$G$109,5,FALSE) -> 0
A50: 42 | B50: BIPIEMME VITA | C50: 3089 | D50: -0.9 | E50: 0.14 | F50: =+VLOOKUP(B50,'Quota Inf (2013)'!$B$9:$G$109,5,FALSE) -> 0
A51: 43 | B51: BCC ASSICURAZIONI | C51: 3008 | D51: 30.3 | E51: 0.13 | F51: =+VLOOKUP(B51,'Quota Inf (2013)'!$B$9:$G$109,5,FALSE) -> 0
A52: 44 | B52: ARISCOM COMPAGNIA DI ASSICURAZIONI | C52: 2804 | D52: 38 | E52: 0.12 | F52: =+VLOOKUP(B52,'Quota Inf (2013)'!$B$9:$G$109,5,FALSE) -> 
A53: 45 | B53: BNP PARIBAS CARDIF VITA | C53: 2682 | D53: -26.1 | E53: 0.12 | F53: =+VLOOKUP(B53,'Quota Inf (2013)'!$B$9:$G$109,5,FALSE) -> 0
A54: 46 | B54: INCONTRA ASSICURAZIONI | C54: 2582 | D54: -5.7 | E54: 0.11 | F54: =+VLOOKUP(B54,'Quota Inf (2013)'!$B$9:$G$109,5,FALSE) -> 0
A55: 47 | B55: ERGO ASSICURAZIONI | C55: 2542 | D55: -19.2 | E55: 0.11 | F55: =+VLOOKUP(B55,'Quota Inf (2013)'!$B$9:$G$109,5,FALSE) -> SI
A56: 48 | B56: GENERTEL | C56: 2509 | D56: 26 | E56: 0.11 | F56: =+VLOOKUP(B56,'Quota Inf (2013)'!$B$9:$G$109,5,FALSE) -> SI
A57: 49 | B57: CHIARA ASSICURAZIONI | C57: 2452 | D57: -3.2 | E57: 0.11 | F57: =+VLOOKUP(B57,'Quota Inf (2013)'!$B$9:$G$109,5,FALSE) -> 0
A58: 50 | B58: ABC ASSICURA | C58: 2355 | D58: 3.1 | E58: 0.1 | F58: =+VLOOKUP(B58,'Quota Inf (2013)'!$B$9:$G$109,5,FALSE) -> 0
A59: 51 | B59: FATA ASSICURAZIONI DANNI | C59: 2337 | D59: -30.5 | E59: 0.1 | F59: =+VLOOKUP(B59,'Quota Inf (2013)'!$B$9:$G$109,5,FALSE) -> 0
A60: 52 | B60: HDI ASSICURAZIONI | C60: 2268 | D60: -19.3 | E60: 0.1 | F60: =+VLOOKUP(B60,'Quota Inf (2013)'!$B$9:$G$109,5,FALSE) -> SI
A61: 53 | B61: TUA ASSICURAZIONI | C61: 1724 | D61: 1.4 | E61: 0.08 | F61: =+VLOOKUP(B61,'Quota Inf (2013)'!$B$9:$G$109,5,FALSE) -> 0
A62: 54 | B62: CBA VITA | C62: 1452 | D62: -12.6 | E62: 0.06 | F62: =+VLOOKUP(B62,'Quota Inf (2013)'!$B$9:$G$109,5,FALSE) -> 
A63: 55 | B63: CF ASSICURAZIONI | C63: 1220 | D63: -42 | E63: 0.05 | F63: =+VLOOKUP(B63,'Quota Inf (2013)'!$B$9:$G$109,5,FALSE) -> SI
A64: 56 | B64: CNP IAM | C64: 1123 | D64: 11.3 | E64: 0.05 | F64: =+VLOOKUP(B64,'Quota Inf (2013)'!$B$9:$G$109,5,FALSE) -> 0
A65: 57 | B65: SUN INSURANCE OFFICE LIMITED RSA | C65: 1097 | D65: -1.3 | E65: 0.05 | F65: =+VLOOKUP(B65,'Quota Inf (2013)'!$B$9:$G$109,5,FALSE) -> 
A66: 58 | B66: INCHIARO ASSICURAZIONI | C66: 979 | D66: 43.5 | E66: 0.04 | F66: =+VLOOKUP(B66,'Quota Inf (2013)'!$B$9:$G$109,5,FALSE) -> 0
A67: 59 | B67: NATIONALE SUISSE | C67: 711 | D67: -12.2 | E67: 0.03 | F67: =+VLOOKUP(B67,'Quota Inf (2013)'!$B$9:$G$109,5,FALSE) -> SI
A68: 60 | B68: FINANCIAL INSURANCE COMPANY | C68: 608 | D68: 31 | E68: 0.03
A69: 61 | B69: NOBIS ASSICURAZIONI | C69: 501 | D69: 51.8 | E69: 0.02 | F69: =+VLOOKUP(B69,'Quota Inf (2013)'!$B$9:$G$109,5,FALSE) -> NO
A70: 62 | B70: ASSICURATRICE VAL PIAVE | C70: 481 | D70: 12.6 | E70: 0.02 | F70: =+VLOOKUP(B70,'Quota Inf (2013)'!$B$9:$G$109,5,FALSE) -> 0
A71: 63 | B71: ITAS ASSICURAZIONI | C71: 338 | D71: -34.6 | E71: 0.01 | F71: =+VLOOKUP(B71,'Quota Inf (2013)'!$B$9:$G$109,5,FALSE) -> 0
A72: 64 | B72: BANCASSURANCE POPOLARI DANNI | C72: 316 | D72: -1.6 | E72: 0.01
A73: 65 | B73: HELVETIA ITALIA ASSICURAZIONI | C73: 175 | D73: 5.4 | E73: 0.01 | F73: =+VLOOKUP(B73,'Quota Inf (2013)'!$B$9:$G$109,5,FALSE) -> NO
A74: 66 | B74: NET INSURANCE | C74: 165 | D74: 17.9 | E74: 0.01 | F74: =+VLOOKUP(B74,'Quota Inf (2013)'!$B$9:$G$109,5,FALSE) -> 0
A75: 67 | B75: ASSICURATRICE MILANESE | C75: 150 | D75: -8 | E75: 0.01 | F75: =+VLOOKUP(B75,'Quota Inf (2013)'!$B$9:$G$109,5,FALSE) -> 0
A76: 68 | B76: POPOLARE VITA | C76: 76 | D76: 8.6 | E76: 0 | F76: =+VLOOKUP(B76,'Quota Inf (2013)'!$B$9:$G$109,5,FALSE) -> 0
A77: 69 | B77: HDI GLOBAL SE | C77: 72 | D77: 2300 | E77: 0 | F77: =+VLOOKUP(B77,'Quota Inf (2013)'!$B$9:$G$109,5,FALSE) -> 
A78: 70 | B78: LE ASSICURAZIONI DI ROMA | C78: 65 | D78: 44.4 | E78: 0 | F78: =+VLOOKUP(B78,'Quota Inf (2013)'!$B$9:$G$109,5,FALSE) -> SI
A79: 71 | B79: PRAMERICA LIFE | C79: 65 | D79: (.....) | E79: 0 | F79: =+VLOOKUP(B79,'Quota Inf (2013)'!$B$9:$G$109,5,FALSE) -> 
A80: 72 | B80: MAPFRE ASISTENCIA | C80: 65 | D80: 41.3 | E80: 0 | F80: =+VLOOKUP(B80,'Quota Inf (2013)'!$B$9:$G$109,5,FALSE) -> 
A81: 73 | B81: POSTE VITA - GRUPPO ASSICURATIVO POSTE VITA | C81: 56 | D81: -86.5 | E81: 0 | F81: =+VLOOKUP(B81,'Quota Inf (2013)'!$B$9:$G$109,5,FALSE) -> 
A82: 74 | B82: QUADRA ASSICURAZIONI | C82: 29 | D82: (.....) | E82: 0 | F82: =+VLOOKUP(B82,'Quota Inf (2013)'!$B$9:$G$109,5,FALSE) -> 
A83: 75 | B83: LLOYD'S | C83: 21 | D83: -70 | E83: 0 | F83: =+VLOOKUP(B83,'Quota Inf (2013)'!$B$9:$G$109,5,FALSE) -> 0
A84: 76 | B84: INTESA SANPAOLO VITA | C84: 7 | D84: -12.5 | E84: 0 | F84: =+VLOOKUP(B84,'Quota Inf (2013)'!$B$9:$G$109,5,FALSE) -> 0
A85: 77 | B85: ASSICURAZIONI RISCHI AGRICOLI VMG 1857 | C85: 1 | D85: 0 | E85: 0 | F85: =+VLOOKUP(B85,'Quota Inf (2013)'!$B$9:$G$109,5,FALSE) -> SI
A86: 78 | B86: GENIALLOYD | C86: 1 | D86: 0 | E86: 0 | F86: =+VLOOKUP(B86,'Quota Inf (2013)'!$B$9:$G$109,5,FALSE) -> 0
A87: 79 | B87: COMPAGNIA ASS. LINEAR | C87: 1 | D87: (.....) | E87: 0 | F87: =+VLOOKUP(B87,'Quota Inf (2013)'!$B$9:$G$109,5,FALSE) -> 0
A88: 80 | B88: ASSURANT GENERAL INSURANCE | C88: 6 | D88: -90.8 | E88: 0 | F88: =+VLOOKUP(B88,'Quota Inf (2013)'!$B$9:$G$109,5,FALSE) -> 0
A89: 81 | B89: HDI-GERLING INDUSTRIE | C89: 3 | D89: (.....) | E89: 0 | F89: =+VLOOKUP(B89,'Quota Inf (2013)'!$B$9:$G$109,5,FALSE) -> 0
A90: 82 | B90: TOKIO MARINE EUROPE | C90: 3 | D90: 0 | E90: 0 | F90: =+VLOOKUP(B90,'Quota Inf (2013)'!$B$9:$G$109,5,FALSE) -> 0
A91: 83 | B91: CHUBB INSURANCE COMPANY OF EUROPE | C91: 2 | D91: -85.7 | E91: 0 | F91: =+VLOOKUP(B91,'Quota Inf (2013)'!$B$9:$G$109,5,FALSE) -> 0
A92: 84 | B92: ASSICURAZIONI RISCHI AGRICOLI VMG 1857 | C92: 1 | D92: 0 | E92: 0 | F92: =+VLOOKUP(B92,'Quota Inf (2013)'!$B$9:$G$109,5,FALSE) -> SI
A93: 85 | B93: GENIALLOYD | C93: 1 | D93: 0 | E93: 0 | F93: =+VLOOKUP(B93,'Quota Inf (2013)'!$B$9:$G$109,5,FALSE) -> 0
A94: 86 | B94: ZURITEL | C94: 1 | D94: (.....) | E94: 0 | F94: =+VLOOKUP(B94,'Quota Inf (2013)'!$B$9:$G$109,5,FALSE) -> 0
A95: 87 | B95: MSIG INSURANCE EUROPE AG | C95: 355 | D95: 7.3 | E95: 0.01
A96: 88 | B96: R+V ALLGEMEINE | C96: 340 | D96: 4.3 | E96: 0.01 | F96: =+VLOOKUP(B96,'Quota Inf (2013)'!$B$9:$G$109,5,FALSE) -> 0
A97: 89 | B97: AXERIA PREVOYANCE | C97: 267 | D97: 20.8 | E97: 0.01 | F97: =+VLOOKUP(B97,'Quota Inf (2013)'!$B$9:$G$109,5,FALSE) -> 0
A98: 90 | B98: SYSTEMA ASSICURAZIONI | C98: 149 | D98: -82.2 | E98: 0 | F98: =+VLOOKUP(B98,'Quota Inf (2013)'!$B$9:$G$109,5,FALSE) -> 0
A99: 91 | B99: TOKIO MARINE EUROPE | C99: 68 | D99: -25.3 | E99: 0 | F99: =+VLOOKUP(B99,'Quota Inf (2013)'!$B$9:$G$109,5,FALSE) -> 0
A100: 92 | B100: SACE BT | C100: 21 | D100: -48.8 | E100: 0 | F100: =+VLOOKUP(B100,'Quota Inf (2013)'!$B$9:$G$109,5,FALSE) -> 0
A101: 93 | B101: POPOLARE VITA | C101: 14 | D101: -12.5 | E101: 0 | F101: =+VLOOKUP(B101,'Quota Inf (2013)'!$B$9:$G$109,5,FALSE) -> 0
A102: 94 | B102: ASSURANT LIFE | C102: 12 | D102: -88.3 | E102: 0 | F102: =+VLOOKUP(B102,'Quota Inf (2013)'!$B$9:$G$109,5,FALSE) -> 0
A103: 95 | B103: ASSURANT GENERAL INSURANCE | C103: 6 | D103: -90.8 | E103: 0 | F103: =+VLOOKUP(B103,'Quota Inf (2013)'!$B$9:$G$109,5,FALSE) -> 0
A104: 96 | B104: ASSICURAZIONI RISCHI AGRICOLI VMG 1857 | C104: 2 | D104: 0 | E104: 0 | F104: =+VLOOKUP(B104,'Quota Inf (2013)'!$B$9:$G$109,5,FALSE) -> SI
A105: 97 | B105: MAPFRE ASISTENCIA | C105: 2 | D105: -84.6 | E105: 0
A106: 98 | B106: CBA VITA | C106: 1 | D106: 0 | E106: 0
A107: 99 | B107: INTER PARTNER ASSISTANCE | C107: -3 | D107: -101.1 | E107: 0 | F107: =+VLOOKUP(B107,'Quota Inf (2013)'!$B$9:$G$109,5,FALSE) -> 0

Sheet Quota Inf (2016) (hidden)
E1: 1 - INFORTUNI
B3: Imprese in ordine decrescente | C3: premi | D3: variaz. | E3: incid. sul
D4: 2016/2015 | E4: totale
C5: (migliaia di EURO) | D5: (%) | E5: (%)
B6: TOTALE RAMO | C6: 3419673 | D6: 0.8 | E6: 100
B7: di cui Imprese Italiane ed Extra-UE | C7: 3008313 | D7: 1 | E7: -88
B8: di cui Imprese UE | C8: 411360 | D8: -1.3 | E8: -12
A9: 1 | B9: UNIPOLSAI ASSICURAZIONI | C9: 626882 | D9: -0.7 | E9: 18.33
A10: 2 | B10: GENERALI ITALIA | C10: 576036 | D10: -4.6 | E10: 16.84
A11: 3 | B11: ALLIANZ S.P.A. | C11: 356790 | D11: -2.9 | E11: 10.43
A12: 4 | B12: SOCIETA' CATTOLICA | C12: 168964 | D12: -2.3 | E12: 4.94
A13: 5 | B13: AXA ASSICURAZIONI | C13: 112686 | D13: 1.5 | E13: 3.3
A14: 6 | B14: GROUPAMA ASSICURAZIONI | C14: 100233 | D14: -1.9 | E14: 2.93
A15: 7 | B15: ZURICH INSURANCE PLC | C15: 92780 | D15: -1.3 | E15: 2.71
A16: 8 | B16: SOCIETA' REALE MUTUA | C16: 91320 | D16: -2.5 | E16: 2.67
A17: 9 | B17: AIG EUROPE LIMITED | C17: 90891 | D17: -4.3 | E17: 2.66
A18: 10 | B18: VITTORIA ASSICURAZIONI | C18: 80780 | D18: 0.9 | E18: 2.36
A19: 11 | B19: ACE EUROPEAN GROUP LTD | C19: 56864 | D19: -0.4 | E19: 1.66
A20: 12 | B20: ITAS MUTUA | C20: 54378 | D20: 0.5 | E20: 1.59
A21: 13 | B21: SARA ASSICURAZIONI | C21: 53375 | D21: 12.1 | E21: 1.56
A22: 14 | B22: METLIFE EUROPE LIMITED | C22: 52725 | D22: 2.3 | E22: 1.54
A23: 15 | B23: POSTE ASSICURA - Gruppo Assicurativo Poste Vita | C23: 52286 | D23: 35.2 | E23: 1.53
A24: 16 | B24: AXA MPS ASSICURAZIONI DANNI | C24: 51654 | D24: 5.5 | E24: 1.51
A25: 17 | B25: INTESA SANPAOLO ASSICURA | C25: 49414 | D25: 97.2 | E25: 1.44
A26: 18 | B26: AVIVA ITALIA | C26: 45135 | D26: 3.8 | E26: 1.32
A27: 19 | B27: ITALIANA ASSICURAZIONI | C27: 44599 | D27: 0.3 | E27: 1.3
A28: 20 | B28: CARIGE R.D. ASSICURAZIONI E RIASSICURAZIONI | C28: 38334 | D28: 7 | E28: 1.12
A29: 21 | B29: DIRECT LINE INSURANCE | C29: 37670 | D29: 4.8 | E29: 1.1
A30: 22 | B30: HELVETIA SA | C30: 37294 | D30: -0.5 | E30: 1.09
A31: 23 | B31: CARGEAS ASSICURAZIONI | C31: 36589 | D31: 14 | E31: 1.07
A32: 24 | B32: CARDIF ASSURANCES RISQUES DIVERS | C32: 34936 | D32: -9 | E32: 1.02
A33: 25 | B33: LLOYD'S | C33: 30248 | D33: 15.6 | E33: 0.88
A34: 26 | B34: ASSIMOCO | C34: 29322 | D34: 4 | E34: 0.86
A35: 27 | B35: CREDITRAS ASSICURAZIONI | C35: 28346 | D35: 212.9 | E35: 0.83
A36: 28 | B36: HELVETIA ITALIA ASSICURAZIONI | C36: 23038 | D36: -1.9 | E36: 0.67
A37: 29 | B37: GENIALLOYD | C37: 22257 | D37: 7.6 | E37: 0.65
A38: 30 | B38: GENERTEL | C38: 20450 | D38: -8.7 | E38: 0.6
A39: 31 | B39: HDI ASSICURAZIONI | C39: 19628 | D39: 3.2 | E39: 0.57
A40: 32 | B40: ARCA ASSICURAZIONI | C40: 19594 | D40: 3.2 | E40: 0.57
A41: 33 | B41: AVIPOP ASSICURAZIONI | C41: 17744 | D41: 70.6 | E41: 0.52
A42: 34 | B42: TUA ASSICURAZIONI | C42: 17601 | D42: 5.4 | E42: 0.51
A43: 35 | B43: MEDIOLANUM ASSICURAZIONI | C43: 16995 | D43: -32 | E43: 0.5
A44: 36 | B44: UNIQA ASSICURAZIONE | C44: 16243 | D44: -0.2 | E44: 0.47
A45: 37 | B45: UNISALUTE | C45: 15505 | D45: -3 | E45: 0.45
A46: 38 | B46: CHIARA ASSICURAZIONI | C46: 15221 | D46: 1.2 | E46: 0.45
A47: 39 | B47: ALLEANZA ASSICURAZIONI | C47: 14990 | D47: 0.2 | E47: 0.44
A48: 40 | B48: CHUBB INSURANCE COMPANY OF EUROPE | C48: 14874 | D48: -12.1 | E48: 0.43
A49: 41 | B49: CREDIT AGRICOLE ASSICURAZIONI | C49: 10395 | D49: 11.2 | E49: 0.3
A50: 42 | B50: WIENER STADTISCHE VERSIC. | C50: 10391 | D50: 4.6 | E50: 0.3
A51: 43 | B51: EUROP ASSISTANCE ITALIA | C51: 8811 | D51: 11 | E51: 0.26
A52: 44 | B52: COMPAGNIA ASS. LINEAR | C52: 8683 | D52: -0.3 | E52: 0.25
A53: 45 | B53: ERGO ASSICURAZIONI | C53: 8104 | D53: -10.9 | E53: 0.24
A54: 46 | B54: NOBIS ASSICURAZIONI | C54: 7478 | D54: 48.7 | E54: 0.22
A55: 47 | B55: ABC ASSICURA | C55: 6259 | D55: -24 | E55: 0.18
A56: 48 | B56: HDI GLOBAL | C56: 5805 | D56: 10.4 | E56: 0.17
A57: 49 | B57: INCONTRA ASSICURAZIONI | C57: 5739 | D57: 13.5 | E57: 0.17
A58: 50 | B58: GREAT LAKES INSURANCE | C58: 5700 | D58: 73.5 | E58: 0.17
A59: 51 | B59: ARISCOM COMPAGNIA DI ASSICURAZIONI | C59: 5581 | D59: -10 | E59: 0.16
A60: 52 | B60: CREDEMASSICURAZIONI | C60: 5185 | D60: 10.2 | E60: 0.15
A61: 53 | B61: GLOBAL ASSISTANCE | C61: 5004 | D61: -12 | E61: 0.15
A62: 54 | B62: BIPIEMME ASSICURAZIONI | C62: 4931 | D62: 6.9 | E62: 0.14
A63: 55 | B63: BCC ASSICURAZIONI | C63: 4890 | D63: -4.8 | E63: 0.14
A64: 56 | B64: CF ASSICURAZIONI | C64: 4640 | D64: 38.1 | E64: 0.14
A65: 57 | B65: BIPIEMME VITA | C65: 4289 | D65: -13.4 | E65: 0.13
A66: 58 | B66: FILO DIRETTO | C66: 3775 | D66: 11.2 | E66: 0.11
A67: 59 | B67: BNP PARIBAS CARDIF VITA | C67: 3526 | D67: -21.3 | E67: 0.1
A68: 60 | B68: ASSICURATRICE MILANESE | C68: 3456 | D68: 3.2 | E68: 0.1
A69: 61 | B69: ZURICH INSURANCE COMPANY | C69: 3294 | D69: -15.8 | E69: 0.1
A70: 62 | B70: INCHIARO ASSICURAZIONI | C70: 3275 | D70: 9.8 | E70: 0.1
A71: 63 | B71: ASSICURAZIONI GENERALI | C71: 3074 | D71: 6.6 | E71: 0.09
A72: 64 | B72: AXA GLOBAL DIRECT SEGUROS Y REASEGUROS | C72: 2820 | D72: 0.6 | E72: 0.08
A73: 65 | B73: ASSICURATRICE VAL PIAVE | C73: 2775 | D73: 5.3 | E73: 0.08
A74: 66 | B74: CNP ASSURANCES | C74: 2552 | D74: 12.3 | E74: 0.07
A75: 67 | B75: ALLIANZ GLOBAL C & S | C75: 2082 | D75: -9.9 | E75: 0.06
A76: 68 | B76: DONAU VERSICHERUNG VIENNA | C76: 1852 | D76: -56.6 | E76: 0.05
A77: 69 | B77: AXA CORPORATE SOLUTIONS | C77: 1710 | D77: -4.6 | E77: 0.05
A78: 70 | B78: FINANCIAL INSURANCE COMPANY | C78: 1488 | D78: -46.7 | E78: 0.04
A79: 71 | B79: INTESA SANPAOLO VITA | C79: 1253 | D79: -6.7 | E79: 0.04
A80: 72 | B80: AWP P&C | C80: 873 | D80: -33.8 | E80: 0.03
A81: 73 | B81: BANCASSURANCE POPOLARI DANNI | C81: 681 | D81: -4.6 | E81: 0.02
A82: 74 | B82: AMTRUST INTERNATIONAL UNDERWRITERS | C82: 585 | D82: (.....) | E82: 0.02
A83: 75 | B83: QUADRA ASSICURAZIONI | C83: 551 | D83: 505.5 | E83: 0.02
A84: 76 | B84: LE ASSICURAZIONI DI ROMA | C84: 497 | D84: -19.4 | E84: 0.01
A85: 77 | B85: TIROLER VERSICHERUNG VAG | C85: 439 | D85: 6.3 | E85: 0.01
A86: 78 | B86: MSIG INSURANCE EUROPE | C86: 386 | D86: 17.3 | E86: 0.01
A87: 79 | B87: AMTRUST EUROPE | C87: 374 | D87: 5242.9 | E87: 0.01
A88: 80 | B88: R+V ALLGEMEINE | C88: 338 | D88: 6.3 | E88: 0.01
A89: 81 | B89: RBM SALUTE | C89: 324 | D89: 60.4 | E89: 0.01
A90: 82 | B90: PRAMERICA LIFE | C90: 257 | D90: 140.2 | E90: 0.01
A91: 83 | B91: AFI ESCA IARD | C91: 233 | D91: 676.7 | E91: 0.01
A92: 84 | B92: AXERIA PREVOYANCE | C92: 225 | D92: -5.9 | E92: 0.01
A93: 85 | B93: NET INSURANCE | C93: 201 | D93: -42.2 | E93: 0.01
A94: 86 | B94: INTER PARTNER ASSISTANCE | C94: 115 | D94: 25 | E94: 0
A95: 87 | B95: TOKIO MARINE EUROPE | C95: 54 | D95: -36.5 | E95: 0
A96: 88 | B96: SACE BT | C96: 16 | D96: -20 | E96: 0
A97: 89 | B97: MAPFRE ASISTENCIA | C97: 13 | D97: -65.8 | E97: 0
A98: 90 | B98: POPOLARE VITA | C98: 12 | D98: -7.7 | E98: 0
A99: 91 | B99: CNP PARTNERS DE SEGUROS Y REASEGUROS | C99: 7 | D99: 75 | E99: 0
A100: 92 | B100: ASSICURAZIONI RISCHI AGRICOLI VMG 1857 | C100: 2 | D100: 0 | E100: 0
A101: 93 | B101: SIAT | C101: 1 | D101: 0 | E101: 0
A102: 94 | B102: CBA VITA | C102: 1 | D102: 0 | E102: 0

Sheet Quota Mal (2016) (hidden)
E1: 2 - MALATTIA
B2: Imprese in ordine decrescente | C2: premi | D2: variaz. | E2: incid. sul
D3: 2016/2015 | E3: totale
C4: (migliaia di EURO) | D4: (%) | E4: (%)
B6: TOTALE RAMO | C6: 2473581 | D6: 8.3 | E6: 100
B7: di cui Imprese Italiane ed Extra-UE | C7: 2348526 | D7: 9.6 | E7: -94.9
B8: di cui Imprese UE | C8: 125055 | D8: -10.7 | E8: -5.1
A9: 1 | B9: GENERALI ITALIA | C9: 459699 | D9: 0.2 | E9: 18.58
A10: 2 | B10: RBM SALUTE | C10: 353558 | D10: 10.7 | E10: 14.29
A11: 3 | B11: UNISALUTE | C11: 320636 | D11: 12.9 | E11: 12.96
A12: 4 | B12: UNIPOLSAI ASSICURAZIONI | C12: 223269 | D12: -1.8 | E12: 9.03
A13: 5 | B13: ALLIANZ S.P.A. | C13: 183982 | D13: 2.3 | E13: 7.44
A14: 6 | B14: SOCIETA' REALE MUTUA | C14: 91365 | D14: 1.5 | E14: 3.69
A15: 7 | B15: INTESA SANPAOLO ASSICURA | C15: 80812 | D15: 122.7 | E15: 3.27
A16: 8 | B16: AXA ASSICURAZIONI | C16: 70429 | D16: 12.2 | E16: 2.85
A17: 9 | B17: EUROP ASSISTANCE ITALIA | C17: 63002 | D17: 18.4 | E17: 2.55
A18: 10 | B18: SOCIETA' CATTOLICA | C18: 55298 | D18: -9.5 | E18: 2.24
A19: 11 | B19: CARGEAS ASSICURAZIONI | C19: 48439 | D19: 4.2 | E19: 1.96
A20: 12 | B20: ZURICH INSURANCE PLC | C20: 44961 | D20: 1.9 | E20: 1.82
A21: 13 | B21: CREDITRAS ASSICURAZIONI | C21: 38996 | D21: 142.2 | E21: 1.58
A22: 14 | B22: UNIQA ASSICURAZIONE | C22: 35219 | D22: 0.7 | E22: 1.42
A23: 15 | B23: INCONTRA ASSICURAZIONI | C23: 29390 | D23: 1038.3 | E23: 1.19
A24: 16 | B24: AVIPOP ASSICURAZIONI | C24: 25982 | D24: 40.7 | E24: 1.05
A25: 17 | B25: ASSICURAZIONI GENERALI | C25: 21552 | D25: 2.2 | E25: 0.87
A26: 18 | B26: AWP P&C | C26: 20800 | D26: -7.2 | E26: 0.84
A27: 19 | B27: MEDIOLANUM ASSICURAZIONI | C27: 19962 | D27: -9 | E27: 0.81
A28: 20 | B28: METLIFE EUROPE LIMITED | C28: 19832 | D28: -17.1 | E28: 0.8
A29: 21 | B29: GROUPAMA ASSICURAZIONI | C29: 19715 | D29: -2.6 | E29: 0.8
A30: 22 | B30: FILO DIRETTO | C30: 17523 | D30: 4.6 | E30: 0.71
A31: 23 | B31: POSTE ASSICURA - Gruppo Assicurativo Poste Vita | C31: 17434 | D31: 135.6 | E31: 0.7
A32: 24 | B32: ITALIANA ASSICURAZIONI | C32: 17223 | D32: -0.2 | E32: 0.7
A33: 25 | B33: AXA MPS ASSICURAZIONI DANNI | C33: 16604 | D33: 39.1 | E33: 0.67
A34: 26 | B34: ITAS MUTUA | C34: 13782 | D34: 10.7 | E34: 0.56
A35: 27 | B35: ARCA ASSICURAZIONI | C35: 13181 | D35: 6.7 | E35: 0.53
A36: 28 | B36: VITTORIA ASSICURAZIONI | C36: 13038 | D36: 5.5 | E36: 0.53
A37: 29 | B37: ACE EUROPEAN GROUP LTD | C37: 11832 | D37: -6.3 | E37: 0.48
A38: 30 | B38: ASSIMOCO | C38: 11403 | D38: 6.9 | E38: 0.46
A39: 31 | B39: AVIVA ITALIA | C39: 10797 | D39: 8.5 | E39: 0.44
A40: 32 | B40: CARDIF ASSURANCES RISQUES DIVERS | C40: 9139 | D40: -62 | E40: 0.37
A41: 33 | B41: CREDIT AGRICOLE ASSICURAZIONI | C41: 7729 | D41: 0.2 | E41: 0.31
A42: 34 | B42: SARA ASSICURAZIONI | C42: 7489 | D42: -1.5 | E42: 0.3
A43: 35 | B43: AIG EUROPE LIMITED | C43: 7089 | D43: -1.3 | E43: 0.29
A44: 36 | B44: BNP PARIBAS CARDIF VITA | C44: 6203 | D44: 131.3 | E44: 0.25
A45: 37 | B45: CREDEMASSICURAZIONI | C45: 6094 | D45: -23 | E45: 0.25
A46: 38 | B46: HELVETIA SA | C46: 5698 | D46: -5 | E46: 0.23
A47: 39 | B47: INTER PARTNER ASSISTANCE | C47: 5443 | D47: 40.5 | E47: 0.22
A48: 40 | B48: ALLEANZA ASSICURAZIONI | C48: 5395 | D48: 6.2 | E48: 0.22
A49: 41 | B49: CNP ASSURANCES | C49: 4271 | D49: 280.7 | E49: 0.17
A50: 42 | B50: CARIGE R.D. ASSICURAZIONI E RIASSICURAZIONI | C50: 4123 | D50: -3.3 | E50: 0.17
A51: 43 | B51: BCC ASSICURAZIONI | C51: 3405 | D51: 13.2 | E51: 0.14
A52: 44 | B52: BIPIEMME VITA | C52: 3273 | D52: 6 | E52: 0.13
A53: 45 | B53: GLOBAL ASSISTANCE | C53: 2753 | D53: -27.6 | E53: 0.11
A54: 46 | B54: ARISCOM COMPAGNIA DI ASSICURAZIONI | C54: 2627 | D54: -6.3 | E54: 0.11
A55: 47 | B55: CHIARA ASSICURAZIONI | C55: 2567 | D55: 4.7 | E55: 0.1
A56: 48 | B56: BIPIEMME ASSICURAZIONI | C56: 2461 | D56: -43.6 | E56: 0.1
A57: 49 | B57: ERGO ASSICURAZIONI | C57: 2365 | D57: -7 | E57: 0.1
A58: 50 | B58: HDI ASSICURAZIONI | C58: 2285 | D58: 0.7 | E58: 0.09
A59: 51 | B59: GENERTEL | C59: 2145 | D59: -14.5 | E59: 0.09
A60: 52 | B60: TUA ASSICURAZIONI | C60: 1930 | D60: 11.9 | E60: 0.08
A61: 53 | B61: CF ASSICURAZIONI | C61: 1757 | D61: 44 | E61: 0.07
A62: 54 | B62: ABC ASSICURA | C62: 1534 | D62: -34.9 | E62: 0.06
A63: 55 | B63: FINANCIAL INSURANCE COMPANY | C63: 1481 | D63: 143.6 | E63: 0.06
A64: 56 | B64: CBA VITA | C64: 1209 | D64: -16.7 | E64: 0.05
A65: 57 | B65: INCHIARO ASSICURAZIONI | C65: 850 | D65: -13.2 | E65: 0.03
A66: 58 | B66: NOBIS ASSICURAZIONI | C66: 651 | D66: 29.9 | E66: 0.03
A67: 59 | B67: ASSICURATRICE VAL PIAVE | C67: 520 | D67: 8.1 | E67: 0.02
A68: 60 | B68: BANCASSURANCE POPOLARI DANNI | C68: 291 | D68: -7.9 | E68: 0.01
A69: 61 | B69: HELVETIA ITALIA ASSICURAZIONI | C69: 200 | D69: 14.3 | E69: 0.01
A70: 62 | B70: HDI GLOBAL | C70: 178 | D70: 147.2 | E70: 0.01
A71: 63 | B71: PRAMERICA LIFE | C71: 131 | D71: 101.5 | E71: 0.01
A72: 64 | B72: ASSICURATRICE MILANESE | C72: 130 | D72: -13.3 | E72: 0.01
A73: 65 | B73: QUADRA ASSICURAZIONI | C73: 123 | D73: 324.1 | E73: 0
A74: 66 | B74: NET INSURANCE | C74: 116 | D74: -29.7 | E74: 0
A75: 67 | B75: POPOLARE VITA | C75: 76 | D75: 0 | E75: 0
A76: 68 | B76: POSTE VITA - Gruppo Assicurativo Poste Vita | C76: 55 | D76: -1.8 | E76: 0
A77: 69 | B77: LE ASSICURAZIONI DI ROMA | C77: 32 | D77: -50.8 | E77: 0
A78: 70 | B78: AMTRUST EUROPE | C78: 14 | D78: (.....) | E78: 0
A79: 71 | B79: IMA - ITALIA ASSISTANCE | C79: 10 | D79: (.....) | E79: 0
A80: 72 | B80: LLOYD'S | C80: 9 | D80: -57.1 | E80: 0
A81: 73 | B81: INTESA SANPAOLO VITA | C81: 6 | D81: -14.3 | E81: 0
A82: 74 | B82: MAPFRE ASISTENCIA | C82: 6 | D82: -90.8 | E82: 0
A83: 75 | B83: ASSICURAZIONI RISCHI AGRICOLI VMG 1857 | C83: 1 | D83: 0 | E83: 0
A84: 76 | B84: GENIALLOYD | C84: 1 | D84: 0 | E84: 0
A85: 77 | B85: COMPAGNIA ASS. LINEAR | C85: 1 | D85: 0 | E85: 0

Sheet TAV INF_MAL_semestre (hidden)
A1: Tavola 1 - Distribuzione % dei premi per principali garanzie assicurative
A2: Importi in migliaia di euro
B3: Premi Contabilizzati | H3: di cui: Premi Nuova Produzione | N3: % Nuova Prod. su Contab.
A4: Garanzie assicurative | B4: I semestre 2015 | D4: I semestre 2016 | H4: I semestre 2015 | J4: I semestre 2016
B5: Premi | C5: Distrib. | D5: Premi | E5: Distrib. | F5: Var. annua | H5: Premi | I5: Distrib. | J5: Premi | K5: Distrib. | L5: Var. annua | N5: I sem. 2015 | O5: I sem. 2016
A6: INFORTUNI
A7: Morte | B7: =+#REF!/1000 ->  | C7: =+B7/$B$12 ->  | D7: =+#REF!/1000 ->  | E7: =+D7/$D$12 ->  | F7: =+D7/B7-1 ->  | H7: =+#REF!/1000 ->  | I7: =+H7/$H$12 ->  | J7: =+#REF!/1000 ->  | K7: =+J7/$J$12 ->  | L7: =+J7/H7-1 ->  | N7: =+H7/B7 ->  | O7: =+J7/D7 -> 
A8: Invalidità permanente | B8: =+#REF!/1000 ->  | D8: =+#REF!/1000 ->  | F8: =+D8/B8-1 ->  | H8: =+#REF!/1000 ->  | J8: =+#REF!/1000 -> 
A9: Inabilità temporanea | B9: =+#REF!/1000 ->  | D9: =+#REF!/1000 ->  | H9: =+#REF!/1000 ->  | J9: =+#REF!/1000 -> 
A10: Infortunio del conducente | B10: =+#REF!/1000 ->  | D10: =+#REF!/1000 ->  | H10: =+#REF!/1000 ->  | J10: =+#REF!/1000 -> 
A11: Altro* | B11: =+#REF!/1000 ->  | D11: =+#REF!/1000 ->  | H11: =+#REF!/1000 ->  | J11: =+#REF!/1000 -> 
A12: Totale | B12: =+#REF!/1000 ->  | D12: =+#REF!/1000 ->  | H12: =+#REF!/1000 ->  | J12: =+#REF!/1000 -> 
A13: MALATTIA
A14: Rimborso spese mediche | B14: =+#REF!/1000 ->  | C14: =+B14/$B$19 ->  | D14: =+#REF!/1000 ->  | E14: =+D14/$D$19 ->  | F14: =+D14/B14-1 ->  | H14: =+#REF!/1000 ->  | I14: =+H14/$H$19 ->  | J14: =+#REF!/1000 ->  | K14: =+J14/$J$19 ->  | L14: =+J14/H14-1 ->  | N14: =+H14/B14 ->  | O14: =+J14/D14 -> 
A15: Invalidità permanente | B15: =+#REF!/1000 ->  | D15: =+#REF!/1000 ->  | H15: =+#REF!/1000 ->  | J15: =+#REF!/1000 -> 
A16: Diaria | B16: =+#REF!/1000 ->  | D16: =+#REF!/1000 ->  | H16: =+#REF!/1000 ->  | J16: =+#REF!/1000 -> 
A17: Long term care | B17: =+#REF!/1000 ->  | D17: =+#REF!/1000 ->  | H17: =+#REF!/1000 ->  | J17: =+#REF!/1000 -> 
A18: Altro** | B18: =+#REF!/1000 ->  | D18: =+#REF!/1000 ->  | H18: =+#REF!/1000 ->  | J18: =+#REF!/1000 -> 
A19: Totale | B19: =+#REF!/1000 ->  | D19: =+#REF!/1000 ->  | H19: =+#REF!/1000 ->  | J19: =+#REF!/1000 -> 
A20: Fonte: ANIA
A21: (*): Nella voce Altro sono incluse anche altre garanzie come l'indennità di ricovero, il rimborso delle spese per la cura e la riabilitazione rese necessarie a seguito dell'infortunio, nonché ulteriori altre garanzie che non rientrano in quelle indicate o che le imprese non riescono a distinguere.
A22: (**): Nella voce Altro sono incluse porzioni di premi attinenti a coperture di rischio che non rientrano in quelle già indicate (come ad esempio l’inabilità temporanea presente nelle polizze di alcune compagnie) o che non possono essere altrimenti allocate per mancanza di informazioni.

Sheet TAV INF_MAL_anno 2015-2016 (hidden)
A1: Tavola 1 - Distribuzione % dei premi per principali garanzie assicurative
A2: Importi in migliaia di euro
B3: Premi Contabilizzati | H3: di cui: Premi Nuova Produzione | N3: % Nuova Prod. su Contab.
A4: Garanzie assicurative | B4: 2015 | D4: 2016 | H4: 2015 | J4: 2016
B5: Premi | C5: Distrib. | D5: Premi | E5: Distrib. | F5: Var. annua | H5: Premi | I5: Distrib. | J5: Premi | K5: Distrib. | L5: Var. annua | N5: 2015 | O5: 2016
A6: INFORTUNI
A7: Morte | B7: =+#REF!/1000 ->  | C7: =+B7/$B$12 ->  | D7: =+#REF!/1000 ->  | E7: =+D7/$D$12 ->  | F7: =+D7/B7-1 ->  | H7: =+#REF!/1000 ->  | I7: =+H7/$H$12 ->  | J7: =+#REF!/1000 ->  | K7: =+J7/$J$12 ->  | L7: =+J7/H7-1 ->  | N7: =+H7/B7 ->  | O7: =+J7/D7 -> 
A8: Invalidità permanente | B8: =+#REF!/1000 ->  | D8: =+#REF!/1000 ->  | H8: =+#REF!/1000 ->  | J8: =+#REF!/1000 -> 
A9: Inabilità temporanea | B9: =+#REF!/1000 ->  | D9: =+#REF!/1000 ->  | H9: =+#REF!/1000 ->  | J9: =+#REF!/1000 -> 
A10: Infortunio del conducente | B10: =+#REF!/1000 ->  | D10: =+#REF!/1000 ->  | H10: =+#REF!/1000 ->  | J10: =+#REF!/1000 -> 
A11: Altro* | B11: =+#REF!/1000 ->  | D11: =+#REF!/1000 ->  | H11: =+#REF!/1000 ->  | J11: =+#REF!/1000 -> 
A12: Totale | B12: =+#REF!/1000 ->  | D12: =+#REF!/1000 ->  | H12: =+#REF!/1000 ->  | J12: =+#REF!/1000 -> 
A14: MALATTIA
A15: Rimborso spese mediche | B15: =+#REF!/1000 ->  | C15: =+B15/$B$20 ->  | D15: =+#REF!/1000 ->  | E15: =+D15/$D$20 ->  | F15: =+D15/B15-1 ->  | H15: =+#REF!/1000 ->  | I15: =+H15/$H$20 ->  | J15: =+#REF!/1000 ->  | K15: =+J15/$J$20 ->  | L15: =+J15/H15-1 ->  | N15: =+H15/B15 ->  | O15: =+J15/D15 -> 
A16: Invalidità permanente | B16: =+#REF!/1000 ->  | D16: =+#REF!/1000 ->  | H16: =+#REF!/1000 ->  | J16: =+#REF!/1000 -> 
A17: Diaria | B17: =+#REF!/1000 ->  | D17: =+#REF!/1000 ->  | H17: =+#REF!/1000 ->  | J17: =+#REF!/1000 -> 
A18: Long term care | B18: =+#REF!/1000 ->  | D18: =+#REF!/1000 ->  | H18: =+#REF!/1000 ->  | J18: =+#REF!/1000 -> 
A19: Altro** | B19: =+#REF!/1000 ->  | D19: =+#REF!/1000 ->  | H19: =+#REF!/1000 ->  | J19: =+#REF!/1000 -> 
A20: Totale | B20: =+#REF!/1000 ->  | D20: =+#REF!/1000 ->  | H20: =+#REF!/1000 ->  | J20: =+#REF!/1000 -> 
A21: Fonte: ANIA
A22: (*): Nella voce Altro sono incluse anche altre garanzie come l'indennità di ricovero, il rimborso delle spese per la cura e la riabilitazione rese necessarie a seguito dell'infortunio, nonché ulteriori altre garanzie che non rientrano in quelle indicate o che le imprese non riescono a distinguere.
A23: (**): Nella voce Altro sono incluse porzioni di premi attinenti a coperture di rischio che non rientrano in quelle già indicate (come ad esempio l’inabilità temporanea presente nelle polizze di alcune compagnie) o che non possono essere altrimenti allocate per mancanza di informazioni.

Sheet TAV INF_MAL_semestre (2017) (hidden)
A1: Tavola 1 - Distribuzione % dei premi per principali garanzie assicurative
A2: Importi in migliaia di euro
F3: Premi Contabilizzati | L3: di cui: Premi Nuova Produzione | R3: % Nuova Prod. su Contab.
A4: Garanzie assicurative | B4: I semestre 2014 | D4: I semestre 2015 | F4: I semestre 2016 | H4: I semestre 2017 | L4: I semestre 2016 | N4: I semestre 2017
B5: Premi | C5: Distrib. | D5: Premi | E5: Distrib. | F5: Premi | G5: Distrib. | H5: Premi | I5: Distrib. | J5: Var. annua | L5: Premi | M5: Distrib. | N5: Premi | O5: Distrib. | P5: Var. annua | R5: I sem. 2016 | S5: I sem. 2017
A6: INFORTUNI
A7: Morte | B7: =+#REF!/1000 ->  | C7: =+B7/$D$12 ->  | D7: =+#REF!/1000 ->  | E7: =+D7/$D$12 ->  | F7: =+#REF!/1000 ->  | G7: =+F7/$F$12 ->  | H7: =+#REF!/1000 ->  | I7: =+H7/$H$12 ->  | J7: =+H7/F7-1 ->  | L7: =+#REF!/1000 ->  | M7: =+L7/$L$12 ->  | N7: =+#REF!/1000 ->  | O7: =+N7/$N$12 ->  | P7: =+N7/L7-1 ->  | R7: =+L7/F7 ->  | S7: =+N7/H7 -> 
A8: Invalidità permanente | B8: =+#REF!/1000 ->  | C8: =+B8/$D$12 ->  | D8: =+#REF!/1000 ->  | E8: =+D8/$D$12 ->  | F8: =+#REF!/1000 ->  | H8: =+#REF!/1000 ->  | L8: =+#REF!/1000 ->  | N8: =+#REF!/1000 -> 
A9: Inabilità temporanea | B9: =+#REF!/1000 ->  | D9: =+#REF!/1000 ->  | F9: =+#REF!/1000 ->  | H9: =+#REF!/1000 ->  | L9: =+#REF!/1000 ->  | N9: =+#REF!/1000 -> 
A10: Infortunio del conducente | B10: =+#REF!/1000 ->  | D10: =+#REF!/1000 ->  | F10: =+#REF!/1000 ->  | H10: =+#REF!/1000 ->  | L10: =+#REF!/1000 ->  | N10: =+#REF!/1000 -> 
A11: Altro* | B11: =+#REF!/1000 ->  | D11: =+#REF!/1000 ->  | F11: =+#REF!/1000 ->  | H11: =+#REF!/1000 ->  | L11: =+#REF!/1000 ->  | N11: =+#REF!/1000 -> 
A12: Totale | B12: =+#REF!/1000 ->  | D12: =+#REF!/1000 ->  | F12: =+#REF!/1000 ->  | H12: =+#REF!/1000 ->  | L12: =+#REF!/1000 ->  | N12: =+#REF!/1000 -> 
A13: MALATTIA
A14: Rimborso spese mediche | B14: =+#REF!/1000 ->  | C14: =+B14/$D$19 ->  | D14: =+#REF!/1000 ->  | E14: =+D14/$D$19 ->  | F14: =+#REF!/1000 ->  | G14: =+F14/$F$19 ->  | H14: =+#REF!/1000 ->  | I14: =+H14/$H$19 ->  | J14: =+H14/F14-1 ->  | L14: =+#REF!/1000 ->  | M14: =+L14/$L$19 ->  | N14: =+#REF!/1000 ->  | O14: =+N14/$N$19 ->  | P14: =+N14/L14-1 ->  | R14: =+L14/F14 ->  | S14: =+N14/H14 -> 
A15: Invalidità permanente | B15: =+#REF!/1000 ->  | C15: =+B15/$D$19 ->  | D15: =+#REF!/1000 ->  | E15: =+D15/$D$19 ->  | F15: =+#REF!/1000 ->  | H15: =+#REF!/1000 ->  | L15: =+#REF!/1000 ->  | N15: =+#REF!/1000 -> 
A16: Diaria | B16: =+#REF!/1000 ->  | D16: =+#REF!/1000 ->  | F16: =+#REF!/1000 ->  | H16: =+#REF!/1000 ->  | L16: =+#REF!/1000 ->  | N16: =+#REF!/1000 -> 
A17: Long term care | B17: =+#REF!/1000 ->  | D17: =+#REF!/1000 ->  | F17: =+#REF!/1000 ->  | H17: =+#REF!/1000 ->  | L17: =+#REF!/1000 ->  | N17: =+#REF!/1000 -> 
A18: Altro** | B18: =+#REF!/1000 ->  | D18: =+#REF!/1000 ->  | F18: =+#REF!/1000 ->  | H18: =+#REF!/1000 ->  | L18: =+#REF!/1000 ->  | N18: =+#REF!/1000 -> 
A19: Totale | B19: =+#REF!/1000 ->  | D19: =+#REF!/1000 ->  | F19: =+#REF!/1000 ->  | H19: =+#REF!/1000 ->  | L19: =+#REF!/1000 ->  | N19: =+#REF!/1000 -> 
A20: Fonte: ANIA
A21: (*): Nella voce Altro sono incluse altre garanzie come l'indennità di ricovero, il rimborso delle spese per la cura e la riabilitazione rese necessarie a seguito dell'infortunio, nonché ulteriori garanzie che non rientrano in quelle indicate o che le imprese non riescono a distinguere.
A22: (**): Nella voce Altro sono incluse quote di premi di coperture che non rientrano in quelle già indicate (come ad esempio l’inabilità temporanea) o che non possono essere allocate a una specifica garanzia per mancanza di informazioni.

Sheet TAVOLA1inf(semestre) (hidden)
A1: Tavola 1 - Distribuzione % dei premi per principali tipologie
A2: Importi in migliaia
D3: Premi Contabilizzati | K3: Per memoria | P3: di cui: Premi Nuova Produzione | W3: % Nuova Prod. su Contab.
A4: Garanzie assicurative | B4: I semestre 2014 | D4: I semestre 2015 | G4: I semestre 2016 | K4: Anno 2014 | M4: Anno 2015 | P4: I semestre 2015 | S4: I semestre 2016
B5: Premi | C5: Distrib. % | D5: Premi | E5: Distrib. | F5: Var. % annua | G5: Premi | H5: Distrib. | I5: Var. annua | K5: Premi | L5: Distrib. % | M5: Premi | N5: Distrib. % | O5: Var. % annua | P5: Premi | Q5: Distrib. | R5: Var. % annua | S5: Premi | T5: Distrib. | U5: Var. annua | W5: I sem. 2015 | X5: I sem. 2016 | Z5: 2015-06-01 | AA5: 2016-06-01 | AC5: 2015
A6: POLIZZE INDIVIDUALI
A7: Morte | B7: =(+#REF!)/1000 ->  | C7: =+#REF! ->  | D7: =(+#REF!)/1000 ->  | E7: =+D7/$D$12 ->  | F7: =+D7/B7-1 ->  | G7: =(+#REF!)/1000 ->  | H7: =+G7/$G$12 ->  | I7: =+G7/D7-1 ->  | K7: =(+#REF!)/1000 ->  | L7: =+#REF! ->  | M7: =(+#REF!)/1000 ->  | N7: =+#REF! ->  | O7: =+M7/K7-1 ->  | P7: =+#REF!/1000 ->  | Q7: =+P7/$P$12 ->  | R7: =+#REF!/#REF!-1 ->  | S7: =+#REF!/1000 ->  | T7: =+S7/$S$12 ->  | U7: =+S7/P7-1 ->  | W7: =+P7/D7 ->  | X7: =+S7/G7 ->  | Z7: =+E7/C7-1 ->  | AA7: =+G7/D7-1 ->  | AC7: =+M7/K7-1 -> 
A8: Invalidità permanente | B8: =(+#REF!)/1000 ->  | C8: =+#REF! ->  | D8: =(+#REF!)/1000 ->  | G8: =(+#REF!)/1000 ->  | K8: =(+#REF!)/1000 ->  | L8: =+#REF! ->  | M8: =(+#REF!)/1000 ->  | N8: =+#REF! ->  | P8: =+#REF!/1000 ->  | R8: =+#REF!/#REF!-1 ->  | S8: =+#REF!/1000 ->  | AA8: =+G8/D8-1 -> 
A9: Inabilità temporanea | B9: =(+#REF!)/1000 ->  | C9: =+#REF! ->  | D9: =(+#REF!)/1000 ->  | G9: =(+#REF!)/1000 ->  | K9: =(+#REF!)/1000 ->  | L9: =+#REF! ->  | M9: =(+#REF!)/1000 ->  | N9: =+#REF! ->  | P9: =+#REF!/1000 ->  | R9: =+#REF!/#REF!-1 ->  | S9: =+#REF!/1000 -> 
A10: Infortunio del conducente | B10: =(+#REF!)/1000 ->  | C10: =+#REF! ->  | D10: =(+#REF!)/1000 ->  | G10: =(+#REF!)/1000 ->  | K10: =(+#REF!)/1000 ->  | L10: =+#REF! ->  | M10: =(+#REF!)/1000 ->  | N10: =+#REF! ->  | P10: =+#REF!/1000 ->  | R10: =+#REF!/#REF!-1 ->  | S10: =+#REF!/1000 -> 
A11: Altro* | B11: =(+#REF!)/1000 ->  | C11: =+#REF! ->  | D11: =(+#REF!)/1000 ->  | G11: =(+#REF!)/1000 ->  | K11: =(+#REF!)/1000 ->  | L11: =+#REF! ->  | M11: =(+#REF!)/1000 ->  | N11: =+#REF! ->  | P11: =+#REF!/1000 ->  | R11: =+#REF!/#REF!-1 ->  | S11: =+#REF!/1000 -> 
A12: Totale | B12: =(+#REF!)/1000 ->  | C12: =+#REF! ->  | D12: =(+#REF!)/1000 ->  | G12: =(+#REF!)/1000 ->  | K12: =(+#REF!)/1000 ->  | L12: =+#REF! ->  | M12: =(+#REF!)/1000 ->  | N12: =+#REF! ->  | P12: =+#REF!/1000 ->  | R12: =+#REF!/#REF!-1 ->  | S12: =+#REF!/1000 -> 
A13: POLIZZE COLLETTIVE
A14: Morte | B14: =(+#REF!)/1000 ->  | C14: =+#REF! ->  | D14: =(+#REF!)/1000 ->  | E14: =+D14/$D$19 ->  | F14: =+D14/B14-1 ->  | G14: =(+#REF!)/1000 ->  | H14: =+G14/$G$19 ->  | I14: =+G14/D14-1 ->  | K14: =(+#REF!)/1000 ->  | L14: =+#REF! ->  | M14: =(+#REF!)/1000 ->  | N14: =+#REF! ->  | O14: =+M14/K14-1 ->  | P14: =+#REF!/1000 ->  | Q14: =+P14/$P$19 ->  | R14: =+#REF!/#REF!-1 ->  | S14: =+#REF!/1000 ->  | T14: =+S14/$S$19 ->  | U14: =+S14/P14-1 ->  | W14: =+P14/D14 ->  | X14: =+S14/G14 ->  | Z14: =+E14/C14-1 ->  | AC14: =+M14/K14-1 -> 
A15: Invalidità permanente | B15: =(+#REF!)/1000 ->  | C15: =+#REF! ->  | D15: =(+#REF!)/1000 ->  | E15: =+D15/$D$19 ->  | G15: =(+#REF!)/1000 ->  | K15: =(+#REF!)/1000 ->  | L15: =+#REF! ->  | M15: =(+#REF!)/1000 ->  | N15: =+#REF! ->  | P15: =+#REF!/1000 ->  | R15: =+#REF!/#REF!-1 ->  | S15: =+#REF!/1000 -> 
A16: Inabilità temporanea | B16: =(+#REF!)/1000 ->  | C16: =+#REF! ->  | D16: =(+#REF!)/1000 ->  | G16: =(+#REF!)/1000 ->  | K16: =(+#REF!)/1000 ->  | L16: =+#REF! ->  | M16: =(+#REF!)/1000 ->  | N16: =+#REF! ->  | P16: =+#REF!/1000 ->  | R16: =+#REF!/#REF!-1 ->  | S16: =+#REF!/1000 -> 
A17: Infortunio del conducente | B17: =(+#REF!)/1000 ->  | C17: =+#REF! ->  | D17: =(+#REF!)/1000 ->  | G17: =(+#REF!)/1000 ->  | K17: =(+#REF!)/1000 ->  | L17: =+#REF! ->  | M17: =(+#REF!)/1000 ->  | N17: =+#REF! ->  | P17: =+#REF!/1000 ->  | R17: =+#REF!/#REF!-1 ->  | S17: =+#REF!/1000 -> 
A18: Altro* | B18: =(+#REF!)/1000 ->  | C18: =+#REF! ->  | D18: =(+#REF!)/1000 ->  | G18: =(+#REF!)/1000 ->  | K18: =(+#REF!)/1000 ->  | L18: =+#REF! ->  | M18: =(+#REF!)/1000 ->  | N18: =+#REF! ->  | P18: =+#REF!/1000 ->  | R18: =+#REF!/#REF!-1 ->  | S18: =+#REF!/1000 -> 
A19: Totale | B19: =(+#REF!)/1000 ->  | C19: =+#REF! ->  | D19: =(+#REF!)/1000 ->  | G19: =(+#REF!)/1000 ->  | K19: =(+#REF!)/1000 ->  | L19: =+#REF! ->  | M19: =(+#REF!)/1000 ->  | N19: =+#REF! ->  | P19: =+#REF!/1000 ->  | R19: =+#REF!/#REF!-1 ->  | S19: =+#REF!/1000 -> 
A20: POLIZZE INDIVIDUALI E COLLETTIVE
A21: Morte | B21: =(+#REF!)/1000 ->  | C21: =+#REF! ->  | D21: =(+#REF!)/1000 ->  | F21: =+D21/B21-1 ->  | G21: =(+#REF!)/1000 ->  | H21: =+#REF! ->  | I21: =+G21/D21-1 ->  | K21: =(+#REF!)/1000 ->  | L21: =+#REF! ->  | M21: =(+#REF!)/1000 ->  | N21: =+#REF! ->  | O21: =+M21/K21-1 ->  | P21: =+#REF!/1000 ->  | Q21: =+P21/$P$26 ->  | R21: =+#REF!/#REF!-1 ->  | S21: =+#REF!/1000 ->  | T21: =+#REF! ->  | U21: =+S21/P21-1 ->  | W21: =+P21/D21 ->  | X21: =+S21/G21 ->  | Z21: =+E21/C21-1 ->  | AC21: =+M21/K21-1 -> 
A22: Invalidità permanente | B22: =(+#REF!)/1000 ->  | C22: =+#REF! ->  | D22: =(+#REF!)/1000 ->  | G22: =(+#REF!)/1000 ->  | H22: =+#REF! ->  | K22: =(+#REF!)/1000 ->  | L22: =+#REF! ->  | M22: =(+#REF!)/1000 ->  | N22: =+#REF! ->  | P22: =+#REF!/1000 ->  | R22: =+#REF!/#REF!-1 ->  | S22: =+#REF!/1000 ->  | T22: =+#REF! -> 
A23: Inabilità temporanea | B23: =(+#REF!)/1000 ->  | C23: =+#REF! ->  | D23: =(+#REF!)/1000 ->  | G23: =(+#REF!)/1000 ->  | H23: =+#REF! ->  | K23: =(+#REF!)/1000 ->  | L23: =+#REF! ->  | M23: =(+#REF!)/1000 ->  | N23: =+#REF! ->  | P23: =+#REF!/1000 ->  | R23: =+#REF!/#REF!-1 ->  | S23: =+#REF!/1000 ->  | T23: =+#REF! -> 
A24: Infortunio del conducente | B24: =(+#REF!)/1000 ->  | C24: =+#REF! ->  | D24: =(+#REF!)/1000 ->  | G24: =(+#REF!)/1000 ->  | H24: =+#REF! ->  | K24: =(+#REF!)/1000 ->  | L24: =+#REF! ->  | M24: =(+#REF!)/1000 ->  | N24: =+#REF! ->  | P24: =+#REF!/1000 ->  | R24: =+#REF!/#REF!-1 ->  | S24: =+#REF!/1000 ->  | T24: =+#REF! -> 
A25: Altro* | B25: =(+#REF!)/1000 ->  | C25: =+#REF! ->  | D25: =(+#REF!)/1000 ->  | G25: =(+#REF!)/1000 ->  | H25: =+#REF! ->  | K25: =(+#REF!)/1000 ->  | L25: =+#REF! ->  | M25: =(+#REF!)/1000 ->  | N25: =+#REF! ->  | P25: =+#REF!/1000 ->  | R25: =+#REF!/#REF!-1 ->  | S25: =+#REF!/1000 ->  | T25: =+#REF! -> 
A26: Totale | B26: =(+#REF!)/1000 ->  | C26: =+#REF! ->  | D26: =(+#REF!)/1000 ->  | G26: =(+#REF!)/1000 ->  | H26: =+#REF! ->  | K26: =(+#REF!)/1000 ->  | L26: =+#REF! ->  | M26: =(+#REF!)/1000 ->  | N26: =+#REF! ->  | P26: =+#REF!/1000 ->  | R26: =+#REF!/#REF!-1 ->  | S26: =+#REF!/1000 ->  | T26: =+#REF! -> 
A28: (*): Nella voce Altro sono incluse anche altre garanzie come l'indennità di ricovero, il rimborso delle spese per la cura e la riabilitazione rese necessarie a seguito dell'infortunio, nonché ulteriori altre garanzie che non rientrano in quelle indicate o che le imprese non riescono a distinguere.
E32: POLIZZE INDIVIDUALI | G32: POLIZZE COLLETTIVE | Q32: POLIZZE INDIVIDUALI | S32: POLIZZE COLLETTIVE
A33: Morte | E33: =+H7 ->  | G33: =+H14 ->  | Q33: =+T7 ->  | S33: =+T14 -> 
A34: Invalidità permanente | E34: =+H8 ->  | G34: =+H15 ->  | Q34: =+T8 ->  | S34: =+T15 -> 
A35: Inabilità temporanea | E35: =+H9 ->  | G35: =+H16 ->  | Q35: =+T9 ->  | S35: =+T16 -> 
A36: Infortunio del conducente | E36: =+H10 ->  | G36: =+H17 ->  | Q36: =+T10 ->  | S36: =+T17 -> 
A37: Altro* | E37: =+H11 ->  | G37: =+H18 ->  | Q37: =+T11 ->  | S37: =+T18 -> 

Sheet Quota Inf (2017) (hidden)
E1: 1 - INFORTUNI
B3: Imprese in ordine decrescente | C3: premi | D3: variaz. | E3: incid. sul
D4: 2017/2016 | E4: totale
C5: (migliaia di EURO) | D5: (%) | E5: (%)
B6: TOTALE RAMO | C6: =SUM(C9:C102) -> 3514470
B7: di cui Imprese Italiane ed Extra-UE
B8: di cui Imprese UE
A9: 1 | B9: UNIPOLSAI ASSICURAZIONI | C9: 616901 | D9: -0.01592165671 | E9: =+C9/$C$6*100 -> 17.55317302
A10: 2 | B10: GENERALI ITALIA | C10: 573083 | D10: -0.00512641571 | E10: =+C10/$C$6*100 -> 16.30638475
A11: 3 | B11: ALLIANZ S.P.A. | C11: 362163 | D11: 0.01505927857 | E11: 10.30491084
A12: 4 | B12: SOCIETA' CATTOLICA | C12: 173971 | D12: 0.0296335314 | E12: 4.950134729
A13: 5 | B13: AXA ASSICURAZIONI | C13: 120139 | D13: 0.06095180904 | E13: 3.418410173
A14: 6 | B14: GROUPAMA ASSICURAZIONI | C14: 102981 | D14: 0.02741612044 | E14: 2.930200002
A15: 7 | B15: ZURICH INSURANCE PLC | C15: 93169 | D15: 0.004192713947 | E15: 2.65101139
A16: 8 | B16: SOCIETA' REALE MUTUA | C16: 91141 | D16: -0.001960140166 | E16: 2.593307099
A17: 9 | B17: VITTORIA ASSICURAZIONI | C17: 90826 | D17: 0.124362466 | E17: 2.584344154
A18: 10 | B18: AIG EUROPE LIMITED | C18: 89312 | D18: -0.01737245712 | E18: 2.541265113
A19: 11 | B19: ACE EUROPEAN GROUP LTD | C19: 69849 | D19: -0.02633193008 | E19: 1.98746895 | F19: chubb
A20: 12 | B20: POSTE ASSICURA - Gruppo Assicurativo Poste Vita | C20: 64033 | D20: 0.2246681712 | E20: 1.821981693
A21: 13 | B21: INTESA SANPAOLO ASSICURA | C21: 63634 | D21: 0.287772696 | E21: 1.81062863
A22: 14 | B22: SARA ASSICURAZIONI | C22: 59034 | D22: 0.1060234192 | E22: 1.679741184
A23: 15 | B23: ITAS MUTUA | C23: 56239 | D23: 0.03422339917 | E23: 1.600212834
A24: 16 | B24: METLIFE EUROPE LIMITED | C24: 55620 | D24: -0.001884253028 | E24: 1.582599937
A25: 17 | B25: AXA MPS ASSICURAZIONI DANNI | C25: 50675 | D25: -0.01895303365 | E25: 1.441895933
A26: 18 | B26: ITALIANA ASSICURAZIONI | C26: 44315 | D26: -0.006367855782 | E26: 1.260929813
A27: 19 | B27: AVIVA ITALIA | C27: 43721 | D27: -0.03132823751 | E27: 1.24402826
A28: 20 | B28: DIRECT LINE INSURANCE | C28: 42492 | D28: 0.1280063711 | E28: 1.209058549
A29: 21 | B29: CARIGE R.D. ASSICURAZIONI E RIASSICURAZIONI | C29: 40393 | D29: 0.05371210935 | E29: 1.149334039
A30: 22 | B30: CREDITRAS | C30: 38535 | D30: 0.3594510689 | E30: 1.096466893
A31: 23 | B31: CARGEAS ASSICURAZIONI | C31: 37902 | D31: 0.03588510208 | E31: 1.078455642
A32: 24 | B32: CARDIF ASSURANCES RISQUES DIVERS | C32: 37066 | D32: 0.06096862835 | E32: 1.054668271
A33: 25 | B33: HELVETIA SA | C33: 36782 | D33: -0.01372874993 | E33: 1.046587394
A34: 26 | B34: ASSIMOCO | C34: 31098 | D34: 0.06056885615 | E34: 0.884856038
A35: 27 | B35: LLOYD'S | C35: 31088 | D35: 0.0277704311 | E35: 0.8845715001
A36: 28 | B36: HDI ASSICURAZIONI | C36: 23398 | D36: 0.02156828502 | E36: 0.6657618361
A37: 29 | B37: GENIALLOYD | C37: 22644 | D37: 0.01738778811 | E37: 0.6443076765
A38: 30 | B38: ARCA ASSICURAZIONI | C38: 21639 | D38: 0.1043686843 | E38: 0.6157116151
A39: 31 | B39: HELVETIA ITALIA ASSICURAZIONI | C39: 20830 | D39: -0.09584165292 | E39: 0.592692497
A40: 32 | B40: AVIPOP ASSICURAZIONI | C40: 20654 | D40: 0.1639990983 | E40: 0.5876846295
A41: 33 | B41: TUA ASSICURAZIONI | C41: 18489 | D41: 0.05045167888 | E41: 0.5260821689
A42: 34 | B42: GENERTEL | C42: 18268 | D42: -0.1066992665 | E42: 0.5197938807
A43: 35 | B43: CHIARA ASSICURAZIONI | C43: 17055 | D43: 0.1204914263 | E43: 0.4852794305
A44: 36 | B44: UNIQA ASSICURAZIONI | C44: 16089 | D44: -0.009481007203 | E44: 0.4577930669
A45: 37 | B45: MEDIOLANUM ASSICURAZIONI | C45: 15324 | D45: -0.09832303619 | E45: 0.4360259157
A46: 38 | B46: INCONTRA ASSICURAZIONI | C46: 14582 | D46: 1.540860777 | E46: 0.4149132017
A47: 39 | B47: ALLEANZA ASSICURAZIONI | C47: 13953 | D47: -0.06917945297 | E47: 0.3970157662
A48: 40 | B48: UNISALUTE | C48: 13110 | D48: -0.1544663012 | E48: 0.3730292192
A49: 41 | B49: NOBIS COMPAGNIA DI ASSICURAZIONI | C49: 12194 | D49: 0.08362214521 | E49: 0.3469655453
A50: 42 | B50: EUROP ASSISTANCE ITALIA | C50: 12077 | D50: 0.3706730224 | E50: 0.3436364516
A51: 43 | B51: CREDIT AGRICOLE ASSICURAZIONI | C51: 11524 | D51: 0.1086099086 | E51: 0.3279015044
A52: 44 | B52: WIENER STÄDTISCHE VERSICHERUNG AG VIENNA INS.GROUP | C52: 11447 | D52: 0.1016264075 | E52: 0.3257105623
A53: 45 | B53: COMPAGNIA ASS. LINEAR | C53: 9732 | D53: 0.1208107797 | E53: 0.2769123083
A54: 46 | B54: GREAT LAKES INSURANCE SE | C54: 8990 | D54: 0.5771929825 | E54: 0.2557995942
A55: 47 | B55: CREDEMASSICURAZIONI | C55: 7551 | D55: 0.456316297 | E55: 0.2148545869
A56: 48 | B56: ERGO ASSICURAZIONI | C56: 7281 | D56: -0.1015547878 | E56: 0.2071720629
A57: 49 | B57: HDI GLOBAL SE | C57: 6404 | D57: 0.1031869078 | E57: 0.1822180869
A58: 50 | B58: BIPIEMME ASSICURAZIONI | C58: 6359 | D58: 0.2895964307 | E58: 0.1809376663
A59: 51 | B59: ABC ASSICURA | C59: 5895 | D59: -0.05815625499 | E59: 0.1677351066
A60: 52 | B60: AMTRUST INTERNATIONAL UNDERWRITERS DAC | C60: 5141 | D60: 7.788034188 | E60: 0.1462809471
A61: 53 | B61: CNP ASSURANCES | C61: 4875 | D61: 0.9102664577 | E61: 0.1387122383
A62: 54 | B62: CF ASSICURAZIONI | C62: 4632 | D62: -0.001724137931 | E62: 0.1317979667
A63: 55 | B63: GLOBAL ASSISTANCE | C63: 4270 | D63: -0.1466826539 | E63: 0.1214976938
A64: 56 | B64: ASSICURATRICE MILANESE | C64: 3844 | D64: 0.1122685185 | E64: 0.1093763782
A65: 57 | B65: BCC ASSICURAZIONI | C65: 3753 | D65: -0.2325153374 | E65: 0.1067870831
A66: 58 | B66: BNP PARIBAS CARDIF VITA Compagni di Ass. e Riass. | C66: 3751 | D66: 0.06381168463 | E66: 0.1067301755
A67: 59 | B67: BIPIEMME VITA | C67: 3682 | D67: -0.141524831 | E67: 0.1047668639
A68: 60 | B68: ASSICURAZIONI GENERALI | C68: 3178 | D68: 0.03383214053 | E68: 0.09042615245
A69: 61 | B69: ZURICH INSURANCE COMPANY LIMITED | C69: 3109 | D69: -0.0561627201 | E69: 0.08846284077
A70: 62 | B70: ASSICURATRICE VAL PIAVE | C70: 2937 | D70: 0.05837837838 | E70: 0.08356878847
A71: 63 | B71: AXA GLOBAL DIRECT SEGUROS Y REASEGUROS S.A.U. | C71: 2744 | D71: -0.02695035461 | E71: 0.07807720652
A72: 64 | B72: XL INSURANCE COMPANY SE | C72: 2350 | E72: 0.06686641229
A73: 65 | B73: ARISCOM COMPAGNIA DI ASSICURAZIONI | C73: 2079 | D73: -0.6274861136 | E73: 0.05915543453
A74: 66 | B74: FINANCIAL INSURANCE CO. LTD (FICL) | C74: 2015 | D74: 0.3541666667 | E74: =+C74/$C$6*100 -> 0.05733439181
A75: 67 | B75: ALLIANZ GLOBAL CORPORATE & SPECIALITY SE | C75: 1504 | D75: -0.2776176753 | E75: 0.04279450387
A76: 68 | B76: AXA CORPORATE SOLUTIONS ASSURANCE | C76: 1315 | D76: -0.230994152 | E76: 0.03741673709
A77: 69 | B77: INTESA SANPAOLO VITA | C77: 1038 | D77: -0.1715881883 | E77: 0.02953503658
A78: 70 | B78: DONAU VERSICHERUNG AG VIENNA INSURANCE GROUP | C78: 958 | D78: -0.4824419233 | E78: 0.02725873318
A79: 71 | B79: AWP P&C S.A. | C79: 678 | D79: -0.2233676976 | E79: 0.01929167129
A80: 72 | B80: BANCASSURANCE POPOLARI DANNI | C80: 570 | D80: -0.1629955947 | E80: 0.0162186617
A81: 73 | B81: SOMPO JAPAN NIPPONKOA INSURANCE CO. OF EUROPE LTD. | C81: 559 | E81: 0.01590566999
A82: 74 | B82: LE ASSICURAZIONI DI ROMA | C82: 511 | D82: 0.02816901408 | E82: 0.01453988795
A83: 75 | B83: BENE ASSICURAZIONI | C83: 464 | E83: 0.0132025597
A84: 76 | B84: TIROLER VERSICHERUNG VAG | C84: 464 | D84: 0.0569476082 | E84: 0.0132025597
A85: 77 | B85: PRAMERICA LIFE | C85: 405 | D85: 0.5758754864 | E85: 0.01152378595
A86: 78 | B86: MSIG INSURANCE EUROPE AG | C86: 367 | D86: -0.04922279793 | E86: 0.01044254183
A87: 79 | B87: R+V ALLGEMEINE | C87: 333 | D87: -0.01479289941 | E87: 0.00947511289
A88: 80 | B88: AXERIA PREVOYANCE | C88: 247 | D88: 0.09777777778 | E88: 0.007028086739
A89: 81 | B89: RBM SALUTE | C89: 224 | D89: -0.3086419753 | E89: 0.006373649512
A90: 82 | B90: AFI ESCA IARD | C90: 204 | D90: -0.1244635193 | E90: 0.005804573663
A91: 83 | B91: NET INSURANCE | C91: 191 | D91: -0.04975124378 | E91: 0.005434674361
A92: 84 | B92: INTER PARTNER ASSISTANCE | C92: 143 | D92: 1.306451613 | E92: 0.004068892322
A93: 85 | B93: AMTRUST EUROPE LIMITED | C93: 92 | D93: -0.7540106952 | E93: 0.002617748907
A94: 86 | B94: TOKIO MARINE KILN INSURANCE LIMITED | C94: 64 | D94: 0.1851851852 | E94: 0.001821042718
A95: 87 | B95: SIAT | C95: 57 | D95: 56 | E95: 0.00162186617
A96: 88 | B96: ELBA COMPAGNIA DI ASS. NI E RIASS.NI | C96: 20 | E96: 0.0005690758493
A97: 89 | B97: POPOLARE VITA | C97: 15 | D97: 0.25 | E97: 0.000426806887
A98: 90 | B98: SACE BT | C98: 15 | D98: -0.0625 | E98: 0.000426806887
A99: 91 | B99: MAPFRE ASISTENCIA COMP INTERN. DE SEGUROS Y REAS. | C99: 9 | D99: -0.3076923077 | E99: 0.0002560841322
A100: 92 | B100: CNP PARTNERS DE SEGUROS Y REASEGUROS S.A. | C100: 7 | D100: 0 | E100: 0.0001991765472
A101: 93 | B101: IMA - ITALIA ASSISTANCE | C101: 3 | E101: 8.536137739e-05
A102: 94 | B102: ASSICURAZIONI RISCHI AGRICOLI VMG 1857 | C102: 2 | D102: 0 | E102: 5.690758493e-05

Sheet Quota Mal (2017) (hidden)
E1: 2 - MALATTIA
B2: Imprese in ordine decrescente | C2: premi | D2: variaz. | E2: incid. sul
D3: 2016/2015 | E3: totale
C4: (migliaia di EURO) | D4: (%) | E4: (%)
B6: TOTALE RAMO | C6: =SUM(C9:C87) -> 2704019 | D6: 9.4 | E6: 100
B7: di cui Imprese Italiane ed Extra-UE
B8: di cui Imprese UE
A9: 1 | B9: GENERALI ITALIA | C9: 476369 | D9: 0.03626285896 | E9: =+C9/$C$6*100 -> 17.61707296
A10: 2 | B10: RBM SALUTE | C10: 430128 | D10: 0.2165698414 | E10: =+C10/$C$6*100 -> 15.90698882
A11: 3 | B11: UNISALUTE | C11: 357039 | D11: 0.1135337267 | E11: 13.20401225
A12: 4 | B12: UNIPOLSAI ASSICURAZIONI | C12: 227716 | D12: 0.01991767778 | E12: 8.42139053
A13: 5 | B13: ALLIANZ S.P.A. | C13: 216557 | D13: 0.1770553641 | E13: 8.008708519
A14: 6 | B14: INTESA SANPAOLO ASSICURA | C14: 87773 | D14: 0.0861381973 | E14: 3.246020091
A15: 7 | B15: SOCIETA' REALE MUTUA | C15: 87038 | D15: -0.04735949215 | E15: 3.218838329
A16: 8 | B16: AXA ASSICURAZIONI | C16: 76860 | D16: 0.08940923007 | E16: 2.842435649
A17: 9 | B17: SOCIETA' CATTOLICA | C17: 65516 | D17: 0.1847806431 | E17: 2.422911969
A18: 10 | B18: EUROP ASSISTANCE ITALIA | C18: 61697 | D18: -0.02071362814 | E18: 2.281677754
A19: 11 | B19: CREDITRAS | C19: 45601 | D19: 0.1693763463 | E19: 1.686415665
A20: 12 | B20: ZURICH INSURANCE PLC | C20: 45285 | D20: 0.007206245413 | E20: 1.674729357
A21: 13 | B21: CARGEAS ASSICURAZIONI | C21: 39356 | D21: -0.1875141931 | E21: 1.455463146
A22: 14 | B22: UNIQA ASSICURAZIONI | C22: 34639 | D22: -0.01646838354 | E22: 1.281019105
A23: 15 | B23: INCONTRA ASSICURAZIONI | C23: 33201 | D23: 0.1296699558 | E23: 1.227839006
A24: 16 | B24: ASSICURAZIONI GENERALI | C24: 30259 | D24: 0.4039996288 | E24: 1.119037995
A25: 17 | B25: AVIPOP ASSICURAZIONI | C25: 29548 | D25: 0.1372488646 | E25: 1.092743801
A26: 18 | B26: MEDIOLANUM ASSICURAZIONI | C26: 24639 | D26: 0.2342951608 | E26: 0.9111992186
A27: 19 | B27: POSTE ASSICURA - Gruppo Assicurativo Poste Vita | C27: 24633 | D27: 0.4129287599 | E27: 0.9109773267
A28: 20 | B28: NOBIS COMPAGNIA DI ASSICURAZIONI | C28: 21590 | D28: 0.1879608232 | E28: 0.7984411352
A29: 21 | B29: GROUPAMA ASSICURAZIONI | C29: 21367 | D29: 0.08379406543 | E29: 0.7901941517
A30: 22 | B30: METLIFE EUROPE LIMITED | C30: 20987 | D30: 0.05823920936 | E30: 0.7761409961
A31: 23 | B31: AWP P&C S.A. | C31: 20156 | D31: -0.03096153846 | E31: 0.7454089635
A32: 24 | B32: AXA MPS ASSICURAZIONI DANNI | C32: 17970 | D32: 0.08226933269 | E32: 0.6645663363
A33: 25 | B33: ITALIANA ASSICURAZIONI | C33: 17052 | D33: -0.00992858387 | E33: 0.6306168707
A34: 26 | B34: ITAS MUTUA | C34: 14093 | D34: 0.02256566536 | E34: 0.5211871662
A35: 27 | B35: ARCA ASSICURAZIONI | C35: 13857 | D35: 0.05128594189 | E35: 0.5124594169
A36: 28 | B36: VITTORIA ASSICURAZIONI | C36: 13832 | D36: 0.06089891088 | E36: 0.5115348672
A37: 29 | B37: ASSIMOCO | C37: 12886 | D37: 0.1300534947 | E37: 0.4765499059
A38: 30 | B38: ACE EUROPEAN GROUP LTD | C38: 11427 | D38: -0.03422920892 | E38: 0.4225931844 | F38: chubb
A39: 31 | B39: AVIVA ITALIA | C39: 11079 | D39: 0.02611836621 | E39: 0.4097234524
A40: 32 | B40: CNP ASSURANCES | C40: 8850 | D40: 1.072114259 | E40: 0.3272905997
A41: 33 | B41: SARA ASSICURAZIONI | C41: 7974 | D41: 0.06476165042 | E41: 0.2948943776
A42: 34 | B42: AIG EUROPE LIMITED | C42: 7900 | D42: 0.1144025956 | E42: 0.2921577104
A43: 35 | B43: CREDIT AGRICOLE ASSICURAZIONI | C43: 7300 | D43: -0.05550524001 | E43: 0.2699685172
A44: 36 | B44: BNP PARIBAS CARDIF VITA Compagni di Ass. e Riass. | C44: 6290 | D44: 0.01402547155 | E44: 0.2326167087
A45: 37 | B45: INTER PARTNER ASSISTANCE | C45: 5980 | D45: 1.300884956 | E45: 0.2211522922
A46: 38 | B46: CARDIF ASSURANCES RISQUES DIVERS | C46: 5813 | D46: -0.363934785 | E46: 0.2149763001
A47: 39 | B47: CREDEMASSICURAZIONI | C47: 5741 | D47: -0.05792582868 | E47: 0.2123135969
A48: 40 | B48: HELVETIA SA | C48: 5669 | D48: -0.00508950509 | E48: 0.2096508937
A49: 41 | B49: BCC ASSICURAZIONI | C49: 5647 | D49: 0.6584434655 | E49: 0.20883729
A50: 42 | B50: ALLEANZA ASSICURAZIONI | C50: 5320 | D50: -0.01390176089 | E50: 0.1967441797
A51: 43 | B51: CARIGE R.D. ASSICURAZIONI E RIASSICURAZIONI | C51: 5257 | D51: 0.2750424448 | E51: 0.1944143144 | F51: amissima
A52: 44 | B52: CHIARA ASSICURAZIONI | C52: 4220 | D52: 0.6439423451 | E52: 0.1560639922
A53: 45 | B53: HDI ASSICURAZIONI | C53: 4146 | D53: -0.04536034999 | E53: 0.153327325
A54: 46 | B54: BIPIEMME VITA | C54: 3424 | D54: 0.0461350443 | E54: 0.1266263292
A55: 47 | B55: FINANCIAL INSURANCE CO. LTD (FICL) | C55: 3036 | D55: 1.049966239 | E55: 0.1122773176
A56: 48 | B56: XL INSURANCE COMPANY SE | C56: 2784 | E56: 0.1029578564
A57: 49 | B57: TUA ASSICURAZIONI | C57: 2214 | D57: 0.1471502591 | E57: 0.0818781229
A58: 50 | B58: BIPIEMME ASSICURAZIONI | C58: 2127 | D58: -0.1357171881 | E58: 0.07866068988
A59: 51 | B59: GLOBAL ASSISTANCE | C59: 2122 | D59: -0.2292045042 | E59: 0.07847577994
A60: 52 | B60: ERGO ASSICURAZIONI | C60: 2089 | D60: -0.1167019027 | E60: 0.07725537432 | F60: darag
A61: 53 | B61: CF ASSICURAZIONI | C61: 1799 | D61: 0.02390438247 | E61: 0.0665305976
A62: 54 | B62: GENERTEL | C62: 1762 | D62: -0.1785547786 | E62: 0.06516226402
A63: 55 | B63: ABC ASSICURA | C63: 1707 | D63: 0.1127770535 | E63: 0.06312825465
A64: 56 | B64: BENE ASSICURAZIONI | C64: 1240 | E64: 0.04585766594
A65: 57 | B65: ARISCOM COMPAGNIA DI ASSICURAZIONI | C65: 764 | D65: -0.7091739627 | E65: 0.02825423934
A66: 58 | B66: ASSICURATRICE VAL PIAVE | C66: 544 | D66: 0.04615384615 | E66: 0.02011820183
A67: 59 | B67: AMTRUST EUROPE LIMITED | C67: 343 | D67: 23.5 | E67: 0.01268482211
A68: 60 | B68: PRAMERICA LIFE | C68: 318 | D68: 1.427480916 | E68: 0.01176027239
A69: 61 | B69: LE ASSICURAZIONI DI ROMA | C69: 285 | D69: 7.90625 | E69: 0.01053986677
A70: 62 | B70: IMA - ITALIA ASSISTANCE | C70: 259 | D70: 24.9 | E70: 0.009578335063
A71: 63 | B71: BANCASSURANCE POPOLARI DANNI | C71: 229 | D71: -0.2130584192 | E71: 0.008468875404
A72: 64 | B72: HDI GLOBAL SE | C72: 223 | D72: 0.2528089888 | E72: 0.008246983472
A73: 65 | B73: NET INSURANCE | C73: 158 | D73: 0.3620689655 | E73: 0.005843154209
A74: 66 | B74: HELVETIA ITALIA ASSICURAZIONI | C74: 107 | D74: -0.465 | E74: =+C74/$C$6*100 -> 0.003957072787
A75: 67 | B75: ASSICURATRICE MILANESE | C75: 105 | D75: -0.1923076923 | E75: 0.00388310881
A76: 68 | B76: POPOLARE VITA | C76: 75 | D76: -0.01315789474 | E76: 0.00277364915
A77: 69 | B77: AMTRUST INTERNATIONAL UNDERWRITERS DAC | C77: 21 | E77: 0.0007766217619
A78: 70 | B78: SOMPO JAPAN NIPPONKOA INSURANCE CO. OF EUROPE LTD. | C78: 8 | E78: 0.0002958559093
A79: 71 | B79: GENIALLOYD | C79: 6 | D79: 5 | E79: 0.000221891932
A80: 72 | B80: INTESA SANPAOLO VITA | C80: 5 | D80: -0.1666666667 | E80: 0.0001849099433
A81: 73 | B81: GREAT LAKES INSURANCE SE | C81: 4 | E81: 0.0001479279546
A82: 74 | B82: MAPFRE ASISTENCIA COMP INTERN. DE SEGUROS Y REAS. | C82: 1 | D82: -0.8333333333 | E82: 3.698198866e-05
A83: 75 | B83: COMPAGNIA ASS. LINEAR | C83: 1 | D83: 0 | E83: 3.698198866e-05
A84: 76 | B84: ASSICURAZIONI RISCHI AGRICOLI VMG 1857 | C84: 1 | D84: 0 | E84: 3.698198866e-05
A85: 77 | B85: AFI ESCA IARD | C85: 1 | E85: 3.698198866e-05
A86: 78 | B86: TUTELA LEGALE | C86: 0 | E86: 0
A87: 79 | B87: POSTE VITA - Gruppo Assicurativo Poste Vita | C87: 0 | D87: -1 | E87: 0

Sheet TAVOLA1inf(anno 2015-2016) (hidden)
A1: Tavola 1 - Distribuzione % dei premi per principali tipologie
A2: Importi in migliaia
D3: Premi Contabilizzati | K3: Per memoria | P3: di cui: Premi Nuova Produzione | W3: % Nuova Prod. su Contab.
A4: Garanzie assicurative | B4: I semestre 2014 | D4: 2015 | G4: 2016 | K4: Anno 2014 | M4: Anno 2015 | P4: 2015 | S4: 2016
B5: Premi | C5: Distrib. % | D5: Premi | E5: Distrib. | F5: Var. % annua | G5: Premi | H5: Distrib. | I5: Var. annua | K5: Premi | L5: Distrib. % | M5: Premi | N5: Distrib. % | O5: Var. % annua | P5: Premi | Q5: Distrib. | R5: Var. % annua | S5: Premi | T5: Distrib. | U5: Var. annua | W5: 2015 | X5: 2016 | Z5: 2015-06-01 | AA5: 2016-06-01 | AC5: 2015
A6: POLIZZE INDIVIDUALI
A7: Morte | B7: =(+#REF!)/1000 ->  | C7: =+#REF! ->  | D7: =(+#REF!)/1000 ->  | E7: =+D7/$D$12 ->  | F7: =+D7/B7-1 ->  | G7: =(+#REF!)/1000 ->  | H7: =+G7/$G$12 ->  | I7: =+G7/D7-1 ->  | K7: =(+#REF!)/1000 ->  | L7: =+#REF! ->  | M7: =(+#REF!)/1000 ->  | N7: =+#REF! ->  | O7: =+M7/K7-1 ->  | P7: =+#REF!/1000 ->  | Q7: =+P7/$P$12 ->  | R7: =+#REF!/#REF!-1 ->  | S7: =+#REF!/1000 ->  | T7: =+S7/$S$12 ->  | U7: =+S7/P7-1 ->  | W7: =+P7/D7 ->  | X7: =+S7/G7 ->  | Z7: =+E7/C7-1 ->  | AA7: =+G7/D7-1 ->  | AC7: =+M7/K7-1 -> 
A8: Invalidità permanente | B8: =(+#REF!)/1000 ->  | C8: =+#REF! ->  | D8: =(+#REF!)/1000 ->  | G8: =(+#REF!)/1000 ->  | K8: =(+#REF!)/1000 ->  | L8: =+#REF! ->  | M8: =(+#REF!)/1000 ->  | N8: =+#REF! ->  | P8: =+#REF!/1000 ->  | R8: =+#REF!/#REF!-1 ->  | S8: =+#REF!/1000 ->  | AA8: =+G8/D8-1 -> 
A9: Inabilità temporanea | B9: =(+#REF!)/1000 ->  | C9: =+#REF! ->  | D9: =(+#REF!)/1000 ->  | G9: =(+#REF!)/1000 ->  | K9: =(+#REF!)/1000 ->  | L9: =+#REF! ->  | M9: =(+#REF!)/1000 ->  | N9: =+#REF! ->  | P9: =+#REF!/1000 ->  | R9: =+#REF!/#REF!-1 ->  | S9: =+#REF!/1000 -> 
A10: Infortunio del conducente | B10: =(+#REF!)/1000 ->  | C10: =+#REF! ->  | D10: =(+#REF!)/1000 ->  | G10: =(+#REF!)/1000 ->  | K10: =(+#REF!)/1000 ->  | L10: =+#REF! ->  | M10: =(+#REF!)/1000 ->  | N10: =+#REF! ->  | P10: =+#REF!/1000 ->  | R10: =+#REF!/#REF!-1 ->  | S10: =+#REF!/1000 -> 
A11: Altro* | B11: =(+#REF!)/1000 ->  | C11: =+#REF! ->  | D11: =(+#REF!)/1000 ->  | G11: =(+#REF!)/1000 ->  | K11: =(+#REF!)/1000 ->  | L11: =+#REF! ->  | M11: =(+#REF!)/1000 ->  | N11: =+#REF! ->  | P11: =+#REF!/1000 ->  | R11: =+#REF!/#REF!-1 ->  | S11: =+#REF!/1000 -> 
A12: Totale | B12: =(+#REF!)/1000 ->  | C12: =+#REF! ->  | D12: =(+#REF!)/1000 ->  | G12: =(+#REF!)/1000 ->  | K12: =(+#REF!)/1000 ->  | L12: =+#REF! ->  | M12: =(+#REF!)/1000 ->  | N12: =+#REF! ->  | P12: =+#REF!/1000 ->  | R12: =+#REF!/#REF!-1 ->  | S12: =+#REF!/1000 -> 
A13: POLIZZE COLLETTIVE
A14: Morte | B14: =(+#REF!)/1000 ->  | C14: =+#REF! ->  | D14: =(+#REF!)/1000 ->  | E14: =+D14/$D$19 ->  | F14: =+D14/B14-1 ->  | G14: =(+#REF!)/1000 ->  | H14: =+G14/$G$19 ->  | I14: =+G14/D14-1 ->  | K14: =(+#REF!)/1000 ->  | L14: =+#REF! ->  | M14: =(+#REF!)/1000 ->  | N14: =+#REF! ->  | O14: =+M14/K14-1 ->  | P14: =+#REF!/1000 ->  | Q14: =+P14/$P$19 ->  | R14: =+#REF!/#REF!-1 ->  | S14: =+#REF!/1000 ->  | T14: =+S14/$S$19 ->  | U14: =+S14/P14-1 ->  | W14: =+P14/D14 ->  | X14: =+S14/G14 ->  | Z14: =+E14/C14-1 ->  | AC14: =+M14/K14-1 -> 
A15: Invalidità permanente | B15: =(+#REF!)/1000 ->  | C15: =+#REF! ->  | D15: =(+#REF!)/1000 ->  | E15: =+D15/$D$19 ->  | G15: =(+#REF!)/1000 ->  | K15: =(+#REF!)/1000 ->  | L15: =+#REF! ->  | M15: =(+#REF!)/1000 ->  | N15: =+#REF! ->  | P15: =+#REF!/1000 ->  | R15: =+#REF!/#REF!-1 ->  | S15: =+#REF!/1000 -> 
A16: Inabilità temporanea | B16: =(+#REF!)/1000 ->  | C16: =+#REF! ->  | D16: =(+#REF!)/1000 ->  | G16: =(+#REF!)/1000 ->  | K16: =(+#REF!)/1000 ->  | L16: =+#REF! ->  | M16: =(+#REF!)/1000 ->  | N16: =+#REF! ->  | P16: =+#REF!/1000 ->  | R16: =+#REF!/#REF!-1 ->  | S16: =+#REF!/1000 -> 
A17: Infortunio del conducente | B17: =(+#REF!)/1000 ->  | C17: =+#REF! ->  | D17: =(+#REF!)/1000 ->  | G17: =(+#REF!)/1000 ->  | K17: =(+#REF!)/1000 ->  | L17: =+#REF! ->  | M17: =(+#REF!)/1000 ->  | N17: =+#REF! ->  | P17: =+#REF!/1000 ->  | R17: =+#REF!/#REF!-1 ->  | S17: =+#REF!/1000 -> 
A18: Altro* | B18: =(+#REF!)/1000 ->  | C18: =+#REF! ->  | D18: =(+#REF!)/1000 ->  | G18: =(+#REF!)/1000 ->  | K18: =(+#REF!)/1000 ->  | L18: =+#REF! ->  | M18: =(+#REF!)/1000 ->  | N18: =+#REF! ->  | P18: =+#REF!/1000 ->  | R18: =+#REF!/#REF!-1 ->  | S18: =+#REF!/1000 -> 
A19: Totale | B19: =(+#REF!)/1000 ->  | C19: =+#REF! ->  | D19: =(+#REF!)/1000 ->  | G19: =(+#REF!)/1000 ->  | K19: =(+#REF!)/1000 ->  | L19: =+#REF! ->  | M19: =(+#REF!)/1000 ->  | N19: =+#REF! ->  | P19: =+#REF!/1000 ->  | R19: =+#REF!/#REF!-1 ->  | S19: =+#REF!/1000 -> 
A20: POLIZZE INDIVIDUALI E COLLETTIVE
A21: Morte | B21: =(+#REF!)/1000 ->  | C21: =+#REF! ->  | D21: =(+#REF!)/1000 ->  | F21: =+D21/B21-1 ->  | G21: =(+#REF!)/1000 ->  | H21: =+#REF! ->  | I21: =+G21/D21-1 ->  | K21: =(+#REF!)/1000 ->  | L21: =+#REF! ->  | M21: =(+#REF!)/1000 ->  | N21: =+#REF! ->  | O21: =+M21/K21-1 ->  | P21: =+#REF!/1000 ->  | Q21: =+P21/$P$26 ->  | R21: =+#REF!/#REF!-1 ->  | S21: =+#REF!/1000 ->  | T21: =+#REF! ->  | U21: =+S21/P21-1 ->  | W21: =+P21/D21 ->  | X21: =+S21/G21 ->  | Z21: =+E21/C21-1 ->  | AC21: =+M21/K21-1 -> 
A22: Invalidità permanente | B22: =(+#REF!)/1000 ->  | C22: =+#REF! ->  | D22: =(+#REF!)/1000 ->  | G22: =(+#REF!)/1000 ->  | H22: =+#REF! ->  | K22: =(+#REF!)/1000 ->  | L22: =+#REF! ->  | M22: =(+#REF!)/1000 ->  | N22: =+#REF! ->  | P22: =+#REF!/1000 ->  | R22: =+#REF!/#REF!-1 ->  | S22: =+#REF!/1000 ->  | T22: =+#REF! -> 
A23: Inabilità temporanea | B23: =(+#REF!)/1000 ->  | C23: =+#REF! ->  | D23: =(+#REF!)/1000 ->  | G23: =(+#REF!)/1000 ->  | H23: =+#REF! ->  | K23: =(+#REF!)/1000 ->  | L23: =+#REF! ->  | M23: =(+#REF!)/1000 ->  | N23: =+#REF! ->  | P23: =+#REF!/1000 ->  | R23: =+#REF!/#REF!-1 ->  | S23: =+#REF!/1000 ->  | T23: =+#REF! -> 
A24: Infortunio del conducente | B24: =(+#REF!)/1000 ->  | C24: =+#REF! ->  | D24: =(+#REF!)/1000 ->  | G24: =(+#REF!)/1000 ->  | H24: =+#REF! ->  | K24: =(+#REF!)/1000 ->  | L24: =+#REF! ->  | M24: =(+#REF!)/1000 ->  | N24: =+#REF! ->  | P24: =+#REF!/1000 ->  | R24: =+#REF!/#REF!-1 ->  | S24: =+#REF!/1000 ->  | T24: =+#REF! -> 
A25: Altro* | B25: =(+#REF!)/1000 ->  | C25: =+#REF! ->  | D25: =(+#REF!)/1000 ->  | G25: =(+#REF!)/1000 ->  | H25: =+#REF! ->  | K25: =(+#REF!)/1000 ->  | L25: =+#REF! ->  | M25: =(+#REF!)/1000 ->  | N25: =+#REF! ->  | P25: =+#REF!/1000 ->  | R25: =+#REF!/#REF!-1 ->  | S25: =+#REF!/1000 ->  | T25: =+#REF! -> 
A26: Totale | B26: =(+#REF!)/1000 ->  | C26: =+#REF! ->  | D26: =(+#REF!)/1000 ->  | G26: =(+#REF!)/1000 ->  | H26: =+#REF! ->  | K26: =(+#REF!)/1000 ->  | L26: =+#REF! ->  | M26: =(+#REF!)/1000 ->  | N26: =+#REF! ->  | P26: =+#REF!/1000 ->  | R26: =+#REF!/#REF!-1 ->  | S26: =+#REF!/1000 ->  | T26: =+#REF! -> 
A28: (*): Nella voce Altro sono incluse anche altre garanzie come l'indennità di ricovero, il rimborso delle spese per la cura e la riabilitazione rese necessarie a seguito dell'infortunio, nonché ulteriori altre garanzie che non rientrano in quelle indicate o che le imprese non riescono a distinguere.
E32: POLIZZE INDIVIDUALI | G32: POLIZZE COLLETTIVE | Q32: POLIZZE INDIVIDUALI | S32: POLIZZE COLLETTIVE
A33: Morte | E33: =+H7 ->  | G33: =+H14 ->  | Q33: =+T7 ->  | S33: =+T14 -> 
A34: Invalidità permanente | E34: =+H8 ->  | G34: =+H15 ->  | Q34: =+T8 ->  | S34: =+T15 -> 
A35: Inabilità temporanea | E35: =+H9 ->  | G35: =+H16 ->  | Q35: =+T9 ->  | S35: =+T16 -> 
A36: Infortunio del conducente | E36: =+H10 ->  | G36: =+H17 ->  | Q36: =+T10 ->  | S36: =+T17 -> 
A37: Altro* | E37: =+H11 ->  | G37: =+H18 ->  | Q37: =+T11 ->  | S37: =+T18 -> 

Sheet Allegato I inf
B1: Premi contabilizzati per garanzia - ramo Infortuni
B2: Importi in migliaia di euro
B3: POLIZZE INDIVIDUALI | C3: Morte | E3: Invalidità permanente | G3: Inabilità temporanea | I3: Infortunio del conducente | K3: Altro | M3: Totale
C4: Premi | D4: Variaz. annua | E4: Premi | F4: Variaz. annua | G4: Premi | H4: Variaz. annua | I4: Premi | J4: Variaz. annua | K4: Premi | L4: Variaz. annua | M4: Premi | N4: Variaz. annua
B5: I semestre 2014 | C5: =+'[1]PIVOT allegato I'!B58 -> 155714.8602 | D5: =+'[1]PIVOT allegato I'!C58 -> n.d. | E5: =+'[1]PIVOT allegato I'!D58 -> 381986.6618 | F5: =+'[1]PIVOT allegato I'!E58 -> n.d. | G5: =+'[1]PIVOT allegato I'!F58 -> 61182.5717 | H5: =+'[1]PIVOT allegato I'!G58 -> n.d. | I5: =+'[1]PIVOT allegato I'!H58 -> 367136.2098 | J5: =+'[1]PIVOT allegato I'!I58 -> n.d. | K5: =+'[1]PIVOT allegato I'!J58 -> 212107.3889 | L5: =+'[1]PIVOT allegato I'!K58 -> n.d. | M5: =+'[1]PIVOT allegato I'!L58 -> 1178127.692 | N5: =+'[1]PIVOT allegato I'!M58 -> n.d.
B6: I semestre 2015 | C6: =+'[1]PIVOT allegato I'!B59 -> 147320.356 | D6: =+'[1]PIVOT allegato I'!C59 -> -0.05390946071 | E6: =+'[1]PIVOT allegato I'!D59 -> 374277.3544 | F6: =+'[1]PIVOT allegato I'!E59 -> -0.02018213767 | G6: =+'[1]PIVOT allegato I'!F59 -> 68711.2146 | H6: =+'[1]PIVOT allegato I'!G59 -> 0.1230520831 | I6: =+'[1]PIVOT allegato I'!H59 -> 355647.8981 | J6: =+'[1]PIVOT allegato I'!I59 -> -0.0312916879 | K6: =+'[1]PIVOT allegato I'!J59 -> 191707.0789 | L6: =+'[1]PIVOT allegato I'!K59 -> -0.09617915732 | M6: =+'[1]PIVOT allegato I'!L59 -> 1137663.902 | N6: =+'[1]PIVOT allegato I'!M59 -> -0.03434584427
B7: I semestre 2016 | C7: =+'[1]PIVOT allegato I'!B60 -> 147484.5846 | D7: =+'[1]PIVOT allegato I'!C60 -> 0.001114772053 | E7: =+'[1]PIVOT allegato I'!D60 -> 381422.9968 | F7: =+'[1]PIVOT allegato I'!E60 -> 0.01909183752 | G7: =+'[1]PIVOT allegato I'!F60 -> 64996.78137 | H7: =+'[1]PIVOT allegato I'!G60 -> -0.05405861691 | I7: =+'[1]PIVOT allegato I'!H60 -> 348340.579 | J7: =+'[1]PIVOT allegato I'!I60 -> -0.02054649886 | K7: =+'[1]PIVOT allegato I'!J60 -> 223976.5959 | L7: =+'[1]PIVOT allegato I'!K60 -> 0.1683272058 | M7: =+'[1]PIVOT allegato I'!L60 -> 1166221.538 | N7: =+'[1]PIVOT allegato I'!M60 -> 0.0251019968
B8: I semestre 2017 | C8: =+'[1]PIVOT allegato I'!B61 -> 151115.2956 | D8: =+'[1]PIVOT allegato I'!C61 -> 0.02461756268 | E8: =+'[1]PIVOT allegato I'!D61 -> 439899.1455 | F8: =+'[1]PIVOT allegato I'!E61 -> 0.1533104957 | G8: =+'[1]PIVOT allegato I'!F61 -> 70738.21152 | H8: =+'[1]PIVOT allegato I'!G61 -> 0.08833406863 | I8: =+'[1]PIVOT allegato I'!H61 -> 372443.3712 | J8: =+'[1]PIVOT allegato I'!I61 -> 0.06919317937 | K8: =+'[1]PIVOT allegato I'!J61 -> 211832.1789 | L8: =+'[1]PIVOT allegato I'!K61 -> -0.05422181246 | M8: =+'[1]PIVOT allegato I'!L61 -> 1246028.203 | N8: =+'[1]PIVOT allegato I'!M61 -> 0.06843182233
B9: I semestre 2018 | C9: =+'[1]PIVOT allegato I'!B62 -> 150833.2596 | D9: =+'[1]PIVOT allegato I'!C62 -> -0.001866363305 | E9: =+'[1]PIVOT allegato I'!D62 -> 444956.5636 | F9: =+'[1]PIVOT allegato I'!E62 -> 0.01149676706 | G9: =+'[1]PIVOT allegato I'!F62 -> 84144.49641 | H9: =+'[1]PIVOT allegato I'!G62 -> 0.1895197037 | I9: =+'[1]PIVOT allegato I'!H62 -> 370637.9505 | J9: =+'[1]PIVOT allegato I'!I62 -> -0.004847503917 | K9: =+'[1]PIVOT allegato I'!J62 -> 232968.535 | L9: =+'[1]PIVOT allegato I'!K62 -> 0.0997787788 | M9: =+'[1]PIVOT allegato I'!L62 -> 1283540.805 | N9: =+'[1]PIVOT allegato I'!M62 -> 0.03010574093
B10: I semestre 2019 | C10: =+'[1]PIVOT allegato I'!B63 -> 160530.6375 | D10: =+'[1]PIVOT allegato I'!C63 -> 0.06429203926 | E10: =+'[1]PIVOT allegato I'!D63 -> 482436.2215 | F10: =+'[1]PIVOT allegato I'!E63 -> 0.08423217241 | G10: =+'[1]PIVOT allegato I'!F63 -> 92394.23771 | H10: =+'[1]PIVOT allegato I'!G63 -> 0.09804255363 | I10: =+'[1]PIVOT allegato I'!H63 -> 376920.3639 | J10: =+'[1]PIVOT allegato I'!I63 -> 0.01695027017 | K10: =+'[1]PIVOT allegato I'!J63 -> 270862.4823 | L10: =+'[1]PIVOT allegato I'!K63 -> 0.1626569324 | M10: =+'[1]PIVOT allegato I'!L63 -> 1383143.943 | N10: =+'[1]PIVOT allegato I'!M63 -> 0.07760028928
B11: I semestre 2020 | C11: =+'[1]PIVOT allegato I'!B64 -> 144969.5797 | D11: =+'[1]PIVOT allegato I'!C64 -> -0.09693512697 | E11: =+'[1]PIVOT allegato I'!D64 -> 436765.3239 | F11: =+'[1]PIVOT allegato I'!E64 -> -0.09466722357 | G11: =+'[1]PIVOT allegato I'!F64 -> 95079.82685 | H11: =+'[1]PIVOT allegato I'!G64 -> 0.02906663021 | I11: =+'[1]PIVOT allegato I'!H64 -> 354414.6502 | J11: =+'[1]PIVOT allegato I'!I64 -> -0.05970946613 | K11: =+'[1]PIVOT allegato I'!J64 -> 292461.6098 | L11: =+'[1]PIVOT allegato I'!K64 -> 0.07974204221 | M11: =+'[1]PIVOT allegato I'!L64 -> 1323690.99 | N11: =+'[1]PIVOT allegato I'!M64 -> -0.04298392278
B12: I semestre 2021 | C12: =+'[1]PIVOT allegato I'!B65 -> 146602.6605 | D12: =+'[1]PIVOT allegato I'!C65 -> 0.01126498926 | E12: =+'[1]PIVOT allegato I'!D65 -> 481226.2926 | F12: =+'[1]PIVOT allegato I'!E65 -> 0.1017960133 | G12: =+'[1]PIVOT allegato I'!F65 -> 99696.63441 | H12: =+'[1]PIVOT allegato I'!G65 -> 0.04855717253 | I12: =+'[1]PIVOT allegato I'!H65 -> 352121.0786 | J12: =+'[1]PIVOT allegato I'!I65 -> -0.006471435621 | K12: =+'[1]PIVOT allegato I'!J65 -> 306328.4374 | L12: =+'[1]PIVOT allegato I'!K65 -> 0.04741418084 | M12: =+'[1]PIVOT allegato I'!L65 -> 1385975.103 | N12: =+'[1]PIVOT allegato I'!M65 -> 0.04705336332
B14: Anno 2014 | C14: =+'[1]PIVOT allegato I'!B67 -> 302985.0905 | D14: =+'[1]PIVOT allegato I'!C67 -> n.d. | E14: =+'[1]PIVOT allegato I'!D67 -> 707264.542 | F14: =+'[1]PIVOT allegato I'!E67 -> n.d. | G14: =+'[1]PIVOT allegato I'!F67 -> 121708.1765 | H14: =+'[1]PIVOT allegato I'!G67 -> n.d. | I14: =+'[1]PIVOT allegato I'!H67 -> 669133.5074 | J14: =+'[1]PIVOT allegato I'!I67 -> n.d. | K14: =+'[1]PIVOT allegato I'!J67 -> 403410.5809 | L14: =+'[1]PIVOT allegato I'!K67 -> n.d. | M14: =+'[1]PIVOT allegato I'!L67 -> 2204501.897 | N14: =+'[1]PIVOT allegato I'!M67 -> n.d.
B15: Anno 2015 | C15: =+'[1]PIVOT allegato I'!B68 -> 290954.3422 | D15: =+'[1]PIVOT allegato I'!C68 -> -0.03970739369 | E15: =+'[1]PIVOT allegato I'!D68 -> 732645.4731 | F15: =+'[1]PIVOT allegato I'!E68 -> 0.03588605048 | G15: =+'[1]PIVOT allegato I'!F68 -> 133643.6455 | H15: =+'[1]PIVOT allegato I'!G68 -> 0.09806628686 | I15: =+'[1]PIVOT allegato I'!H68 -> 679076.3879 | J15: =+'[1]PIVOT allegato I'!I68 -> 0.01485933721 | K15: =+'[1]PIVOT allegato I'!J68 -> 380551.5262 | L15: =+'[1]PIVOT allegato I'!K68 -> -0.05666448968 | M15: =+'[1]PIVOT allegato I'!L68 -> 2216871.375 | N15: =+'[1]PIVOT allegato I'!M68 -> 0.005611007858
B16: Anno 2016 | C16: =+'[1]PIVOT allegato I'!B69 -> 279126.0795 | D16: =+'[1]PIVOT allegato I'!C69 -> -0.04065332949 | E16: =+'[1]PIVOT allegato I'!D69 -> 793363.6366 | F16: =+'[1]PIVOT allegato I'!E69 -> 0.08287523194 | G16: =+'[1]PIVOT allegato I'!F69 -> 131065.7715 | H16: =+'[1]PIVOT allegato I'!G69 -> -0.01928916233 | I16: =+'[1]PIVOT allegato I'!H69 -> 704287.0802 | J16: =+'[1]PIVOT allegato I'!I69 -> 0.03712497264 | K16: =+'[1]PIVOT allegato I'!J69 -> 407387.8681 | L16: =+'[1]PIVOT allegato I'!K69 -> 0.0705196014 | M16: =+'[1]PIVOT allegato I'!L69 -> 2315230.436 | N16: =+'[1]PIVOT allegato I'!M69 -> 0.04436841135
B17: Anno 2017 | C17: =+'[1]PIVOT allegato I'!B70 -> 280548.2289 | D17: =+'[1]PIVOT allegato I'!C70 -> 0.00509500728 | E17: =+'[1]PIVOT allegato I'!D70 -> 854347.6243 | F17: =+'[1]PIVOT allegato I'!E70 -> 0.0768676365 | G17: =+'[1]PIVOT allegato I'!F70 -> 142893.4243 | H17: =+'[1]PIVOT allegato I'!G70 -> 0.09024211807 | I17: =+'[1]PIVOT allegato I'!H70 -> 742034.6934 | J17: =+'[1]PIVOT allegato I'!I70 -> 0.05359691272 | K17: =+'[1]PIVOT allegato I'!J70 -> 445708.1896 | L17: =+'[1]PIVOT allegato I'!K70 -> 0.09406348231 | M17: =+'[1]PIVOT allegato I'!L70 -> 2465532.16 | N17: =+'[1]PIVOT allegato I'!M70 -> 0.06491868897
B18: Anno 2018 | C18: =+'[1]PIVOT allegato I'!B71 -> 303938.9842 | D18: =+'[1]PIVOT allegato I'!C71 -> 0.08337516663 | E18: =+'[1]PIVOT allegato I'!D71 -> 897728.8392 | F18: =+'[1]PIVOT allegato I'!E71 -> 0.05077700656 | G18: =+'[1]PIVOT allegato I'!F71 -> 170561.8515 | H18: =+'[1]PIVOT allegato I'!G71 -> 0.1936298141 | I18: =+'[1]PIVOT allegato I'!H71 -> 724885.5275 | J18: =+'[1]PIVOT allegato I'!I71 -> -0.02311100278 | K18: =+'[1]PIVOT allegato I'!J71 -> 465955.7534 | L18: =+'[1]PIVOT allegato I'!K71 -> 0.04542784764 | M18: =+'[1]PIVOT allegato I'!L71 -> 2563070.956 | N18: =+'[1]PIVOT allegato I'!M71 -> 0.03956095032
B19: Anno 2019 | C19: =+'[1]PIVOT allegato I'!B72 -> 302732.2978 | D19: =+'[1]PIVOT allegato I'!C72 -> -0.003970160206 | E19: =+'[1]PIVOT allegato I'!D72 -> 926527.1576 | F19: =+'[1]PIVOT allegato I'!E72 -> 0.03207908349 | G19: =+'[1]PIVOT allegato I'!F72 -> 182446.1171 | H19: =+'[1]PIVOT allegato I'!G72 -> 0.06967716096 | I19: =+'[1]PIVOT allegato I'!H72 -> 729810.8968 | J19: =+'[1]PIVOT allegato I'!I72 -> 0.006794685619 | K19: =+'[1]PIVOT allegato I'!J72 -> 592739.3142 | L19: =+'[1]PIVOT allegato I'!K72 -> 0.2720935624 | M19: =+'[1]PIVOT allegato I'!L72 -> 2734255.783 | N19: =+'[1]PIVOT allegato I'!M72 -> 0.06678895379
B20: Anno 2020 | C20: =+'[1]PIVOT allegato I'!B73 -> 308110.8947 | D20: =+'[1]PIVOT allegato I'!C73 -> 0.01776684231 | E20: =+'[1]PIVOT allegato I'!D73 -> 930860.0438 | F20: =+'[1]PIVOT allegato I'!E73 -> 0.004676480579 | G20: =+'[1]PIVOT allegato I'!F73 -> 196107.7291 | H20: =+'[1]PIVOT allegato I'!G73 -> 0.07488025619 | I20: =+'[1]PIVOT allegato I'!H73 -> 699531.7243 | J20: =+'[1]PIVOT allegato I'!I73 -> -0.04148906604 | K20: =+'[1]PIVOT allegato I'!J73 -> 577381.609 | L20: =+'[1]PIVOT allegato I'!K73 -> -0.02590971251 | M20: =+'[1]PIVOT allegato I'!L73 -> 2711992.001 | N20: =+'[1]PIVOT allegato I'!M73 -> -0.008142538314
B22: POLIZZE COLLETTIVE | C22: Morte | E22: Invalidità permanente | G22: Inabilità temporanea | I22: Infortunio del conducente | K22: Altro | M22: Totale
C23: Premi | D23: Variaz. annua | E23: Premi | F23: Variaz. annua | G23: Premi | H23: Variaz. annua | I23: Premi | J23: Variaz. annua | K23: Premi | L23: Variaz. annua | M23: Premi | N23: Variaz. annua
B24: I semestre 2014 | C24: =+'[1]PIVOT allegato I'!B75 -> 128857.3208 | D24: =+'[1]PIVOT allegato I'!C75 -> n.d. | E24: =+'[1]PIVOT allegato I'!D75 -> 166199.4476 | F24: =+'[1]PIVOT allegato I'!E75 -> n.d. | G24: =+'[1]PIVOT allegato I'!F75 -> 83306.55917 | H24: =+'[1]PIVOT allegato I'!G75 -> n.d. | I24: =+'[1]PIVOT allegato I'!H75 -> 22415.60697 | J24: =+'[1]PIVOT allegato I'!I75 -> n.d. | K24: =+'[1]PIVOT allegato I'!J75 -> 61698.37312 | L24: =+'[1]PIVOT allegato I'!K75 -> n.d. | M24: =+'[1]PIVOT allegato I'!L75 -> 462477.3077 | N24: =+'[1]PIVOT allegato I'!M75 -> n.d. | Q24: =+C24+E24+G24+I24+K24-M24 -> 0
B25: I semestre 2015 | C25: =+'[1]PIVOT allegato I'!B76 -> 149984.1958 | D25: =+'[1]PIVOT allegato I'!C76 -> 0.1639555667 | E25: =+'[1]PIVOT allegato I'!D76 -> 186353.5273 | F25: =+'[1]PIVOT allegato I'!E76 -> 0.1212644205 | G25: =+'[1]PIVOT allegato I'!F76 -> 97737.87466 | H25: =+'[1]PIVOT allegato I'!G76 -> 0.1732314434 | I25: =+'[1]PIVOT allegato I'!H76 -> 19403.67575 | J25: =+'[1]PIVOT allegato I'!I76 -> -0.1343675958 | K25: =+'[1]PIVOT allegato I'!J76 -> 71204.82435 | L25: =+'[1]PIVOT allegato I'!K76 -> 0.1540794473 | M25: =+'[1]PIVOT allegato I'!L76 -> 524684.0979 | N25: =+'[1]PIVOT allegato I'!M76 -> 0.1345077677 | Q25: =+C25+E25+G25+I25+K25-M25 -> 0
B26: I semestre 2016 | C26: =+'[1]PIVOT allegato I'!B77 -> 143001.7725 | D26: =+'[1]PIVOT allegato I'!C77 -> -0.04655439414 | E26: =+'[1]PIVOT allegato I'!D77 -> 203632.2856 | F26: =+'[1]PIVOT allegato I'!E77 -> 0.09272031805 | G26: =+'[1]PIVOT allegato I'!F77 -> 82018.06411 | H26: =+'[1]PIVOT allegato I'!G77 -> -0.1608364271 | I26: =+'[1]PIVOT allegato I'!H77 -> 13531.32114 | J26: =+'[1]PIVOT allegato I'!I77 -> -0.3026413496 | K26: =+'[1]PIVOT allegato I'!J77 -> 70923.01893 | L26: =+'[1]PIVOT allegato I'!K77 -> -0.003957673098 | M26: =+'[1]PIVOT allegato I'!L77 -> 513106.4623 | N26: =+'[1]PIVOT allegato I'!M77 -> -0.02206591676 | Q26: 0
B27: I semestre 2017 | C27: =+'[1]PIVOT allegato I'!B78 -> 136446.901 | D27: =+'[1]PIVOT allegato I'!C78 -> -0.04583769376 | E27: =+'[1]PIVOT allegato I'!D78 -> 183457.7739 | F27: =+'[1]PIVOT allegato I'!E78 -> -0.09907324717 | G27: =+'[1]PIVOT allegato I'!F78 -> 86010.90208 | H27: =+'[1]PIVOT allegato I'!G78 -> 0.04868242154 | I27: =+'[1]PIVOT allegato I'!H78 -> 16414.39298 | J27: =+'[1]PIVOT allegato I'!I78 -> 0.2130665448 | K27: =+'[1]PIVOT allegato I'!J78 -> 62461.82728 | L27: =+'[1]PIVOT allegato I'!K78 -> -0.1193010645 | M27: =+'[1]PIVOT allegato I'!L78 -> 484791.7972 | N27: =+'[1]PIVOT allegato I'!M78 -> -0.05518282685 | Q27: 0
B28: I semestre 2018 | C28: =+'[1]PIVOT allegato I'!B79 -> 134960.2426 | D28: =+'[1]PIVOT allegato I'!C79 -> -0.01089550889 | E28: =+'[1]PIVOT allegato I'!D79 -> 168300.1649 | F28: =+'[1]PIVOT allegato I'!E79 -> -0.08262178609 | G28: =+'[1]PIVOT allegato I'!F79 -> 63943.30017 | H28: =+'[1]PIVOT allegato I'!G79 -> -0.2565674976 | I28: =+'[1]PIVOT allegato I'!H79 -> 10433.42445 | J28: =+'[1]PIVOT allegato I'!I79 -> -0.3643734214 | K28: =+'[1]PIVOT allegato I'!J79 -> 60699.06282 | L28: =+'[1]PIVOT allegato I'!K79 -> -0.02822146792 | M28: =+'[1]PIVOT allegato I'!L79 -> 438336.1949 | N28: =+'[1]PIVOT allegato I'!M79 -> -0.09582588347 | Q28: 0
B29: I semestre 2019 | C29: =+'[1]PIVOT allegato I'!B80 -> 138855.7743 | D29: =+'[1]PIVOT allegato I'!C80 -> 0.02886429076 | E29: =+'[1]PIVOT allegato I'!D80 -> 162840.1274 | F29: =+'[1]PIVOT allegato I'!E80 -> -0.03244225885 | G29: =+'[1]PIVOT allegato I'!F80 -> 54793.53575 | H29: =+'[1]PIVOT allegato I'!G80 -> -0.1430918391 | I29: =+'[1]PIVOT allegato I'!H80 -> 9675.397602 | J29: =+'[1]PIVOT allegato I'!I80 -> -0.07265369571 | K29: =+'[1]PIVOT allegato I'!J80 -> 61326.22215 | L29: =+'[1]PIVOT allegato I'!K80 -> 0.01033227362 | M29: =+'[1]PIVOT allegato I'!L80 -> 427491.0572 | N29: =+'[1]PIVOT allegato I'!M80 -> -0.02474159766 | Q29: 0
B30: I semestre 2020 | C30: =+'[1]PIVOT allegato I'!B81 -> 135970.1786 | D30: =+'[1]PIVOT allegato I'!C81 -> -0.02078124327 | E30: =+'[1]PIVOT allegato I'!D81 -> 156759.2114 | F30: =+'[1]PIVOT allegato I'!E81 -> -0.03734285985 | G30: =+'[1]PIVOT allegato I'!F81 -> 42425.67553 | H30: =+'[1]PIVOT allegato I'!G81 -> -0.2257175057 | I30: =+'[1]PIVOT allegato I'!H81 -> 9825.505709 | J30: =+'[1]PIVOT allegato I'!I81 -> 0.01551441219 | K30: =+'[1]PIVOT allegato I'!J81 -> 77364.43837 | L30: =+'[1]PIVOT allegato I'!K81 -> 0.2615229776 | M30: =+'[1]PIVOT allegato I'!L81 -> 422345.0096 | N30: =+'[1]PIVOT allegato I'!M81 -> -0.01203778999 | Q30: 0
B31: I semestre 2021 | C31: =+'[1]PIVOT allegato I'!B82 -> 151991.4122 | D31: =+'[1]PIVOT allegato I'!C82 -> 0.1178290249 | E31: =+'[1]PIVOT allegato I'!D82 -> 156421.6869 | F31: =+'[1]PIVOT allegato I'!E82 -> -0.002153139706 | G31: =+'[1]PIVOT allegato I'!F82 -> 29838.73022 | H31: =+'[1]PIVOT allegato I'!G82 -> -0.2966822602 | I31: =+'[1]PIVOT allegato I'!H82 -> 20898.06294 | J31: =+'[1]PIVOT allegato I'!I82 -> 1.126919831 | K31: =+'[1]PIVOT allegato I'!J82 -> 74901.00427 | L31: =+'[1]PIVOT allegato I'!K82 -> -0.03184194384 | M31: =+'[1]PIVOT allegato I'!L82 -> 434050.8965 | N31: =+'[1]PIVOT allegato I'!M82 -> 0.02771640872
Q32: 0
B33: Anno 2014 | C33: =+'[1]PIVOT allegato I'!B84 -> 331648.6943 | D33: =+'[1]PIVOT allegato I'!C84 -> n.d. | E33: =+'[1]PIVOT allegato I'!D84 -> 418518.546 | F33: =+'[1]PIVOT allegato I'!E84 -> n.d. | G33: =+'[1]PIVOT allegato I'!F84 -> 185992.1828 | H33: =+'[1]PIVOT allegato I'!G84 -> n.d. | I33: =+'[1]PIVOT allegato I'!H84 -> 73487.9474 | J33: =+'[1]PIVOT allegato I'!I84 -> n.d. | K33: =+'[1]PIVOT allegato I'!J84 -> 166727.7322 | L33: =+'[1]PIVOT allegato I'!K84 -> n.d. | M33: =+'[1]PIVOT allegato I'!L84 -> 1176375.103 | N33: =+'[1]PIVOT allegato I'!M84 -> n.d. | Q33: 0
B34: Anno 2015 | C34: =+'[1]PIVOT allegato I'!B85 -> 343217.0173 | D34: =+'[1]PIVOT allegato I'!C85 -> 0.03488125606 | E34: =+'[1]PIVOT allegato I'!D85 -> 459558.388 | F34: =+'[1]PIVOT allegato I'!E85 -> 0.09805979305 | G34: =+'[1]PIVOT allegato I'!F85 -> 171348.9915 | H34: =+'[1]PIVOT allegato I'!G85 -> -0.07873014345 | I34: =+'[1]PIVOT allegato I'!H85 -> 39505.60566 | J34: =+'[1]PIVOT allegato I'!I85 -> -0.4624206138 | K34: =+'[1]PIVOT allegato I'!J85 -> 163375.6226 | L34: =+'[1]PIVOT allegato I'!K85 -> -0.02010529078 | M34: =+'[1]PIVOT allegato I'!L85 -> 1177005.625 | N34: =+'[1]PIVOT allegato I'!M85 -> 0.0005359876527 | Q34: 0
B35: Anno 2016 | C35: =+'[1]PIVOT allegato I'!B86 -> 310877.1039 | D35: =+'[1]PIVOT allegato I'!C86 -> -0.09422584481 | E35: =+'[1]PIVOT allegato I'!D86 -> 440245.7088 | F35: =+'[1]PIVOT allegato I'!E86 -> -0.04202442989 | G35: =+'[1]PIVOT allegato I'!F86 -> 160859.782 | H35: =+'[1]PIVOT allegato I'!G86 -> -0.06121547256 | I35: =+'[1]PIVOT allegato I'!H86 -> 32248.15375 | J35: =+'[1]PIVOT allegato I'!I86 -> -0.1837068889 | K35: =+'[1]PIVOT allegato I'!J86 -> 163157.8156 | L35: =+'[1]PIVOT allegato I'!K86 -> -0.001333167051 | M35: =+'[1]PIVOT allegato I'!L86 -> 1107388.564 | N35: =+'[1]PIVOT allegato I'!M86 -> -0.05914760267 | Q35: 0
B36: Anno 2017 | C36: =+'[1]PIVOT allegato I'!B87 -> 325444.5033 | D36: =+'[1]PIVOT allegato I'!C87 -> 0.04685902962 | E36: =+'[1]PIVOT allegato I'!D87 -> 397890.4647 | F36: =+'[1]PIVOT allegato I'!E87 -> -0.09620819285 | G36: =+'[1]PIVOT allegato I'!F87 -> 136681.699 | H36: =+'[1]PIVOT allegato I'!G87 -> -0.1503053329 | I36: =+'[1]PIVOT allegato I'!H87 -> 35055.33656 | J36: =+'[1]PIVOT allegato I'!I87 -> 0.08704941173 | K36: =+'[1]PIVOT allegato I'!J87 -> 153865.836 | L36: =+'[1]PIVOT allegato I'!K87 -> -0.05695087067 | M36: =+'[1]PIVOT allegato I'!L87 -> 1048937.84 | N36: =+'[1]PIVOT allegato I'!M87 -> -0.05278248887 | Q36: 0
B37: Anno 2018 | C37: =+'[1]PIVOT allegato I'!B88 -> 301164.5227 | D37: =+'[1]PIVOT allegato I'!C88 -> -0.07460559449 | E37: =+'[1]PIVOT allegato I'!D88 -> 369639.3239 | F37: =+'[1]PIVOT allegato I'!E88 -> -0.07100230668 | G37: =+'[1]PIVOT allegato I'!F88 -> 130788.3432 | H37: =+'[1]PIVOT allegato I'!G88 -> -0.04311737304 | I37: =+'[1]PIVOT allegato I'!H88 -> 35330.12974 | J37: =+'[1]PIVOT allegato I'!I88 -> 0.007838840237 | K37: =+'[1]PIVOT allegato I'!J88 -> 142041.7247 | L37: =+'[1]PIVOT allegato I'!K88 -> -0.07684689184 | M37: =+'[1]PIVOT allegato I'!L88 -> 978964.0442 | N37: =+'[1]PIVOT allegato I'!M88 -> -0.0667091916 | Q37: 0
B38: Anno 2019 | C38: =+'[1]PIVOT allegato I'!B89 -> 291516.0963 | D38: =+'[1]PIVOT allegato I'!C89 -> -0.03203706177 | E38: =+'[1]PIVOT allegato I'!D89 -> 338566.4686 | F38: =+'[1]PIVOT allegato I'!E89 -> -0.08406263429 | G38: =+'[1]PIVOT allegato I'!F89 -> 102670.8518 | H38: =+'[1]PIVOT allegato I'!G89 -> -0.2149846894 | I38: =+'[1]PIVOT allegato I'!H89 -> 27938.87077 | J38: =+'[1]PIVOT allegato I'!I89 -> -0.2092055428 | K38: =+'[1]PIVOT allegato I'!J89 -> 163996.9291 | L38: =+'[1]PIVOT allegato I'!K89 -> 0.1545686975 | M38: =+'[1]PIVOT allegato I'!L89 -> 924689.2166 | N38: =+'[1]PIVOT allegato I'!M89 -> -0.05544108382 | Q38: 0
B39: Anno 2020 | C39: =+'[1]PIVOT allegato I'!B90 -> 288379.6493 | D39: =+'[1]PIVOT allegato I'!C90 -> -0.01075908662 | E39: =+'[1]PIVOT allegato I'!D90 -> 321368.2934 | F39: =+'[1]PIVOT allegato I'!E90 -> -0.05079704216 | G39: =+'[1]PIVOT allegato I'!F90 -> 78667.65648 | H39: =+'[1]PIVOT allegato I'!G90 -> -0.233787827 | I39: =+'[1]PIVOT allegato I'!H90 -> 28065.75995 | J39: =+'[1]PIVOT allegato I'!I90 -> 0.004541671489 | K39: =+'[1]PIVOT allegato I'!J90 -> 156215.6399 | L39: =+'[1]PIVOT allegato I'!K90 -> -0.04744777406 | M39: =+'[1]PIVOT allegato I'!L90 -> 872696.9991 | N39: =+'[1]PIVOT allegato I'!M90 -> -0.05622669389 | Q39: 0
Q40: 0
B41: TOTALE RAMO | C41: Morte | E41: Invalidità permanente | G41: Inabilità temporanea | I41: Infortunio del conducente | K41: Altro | M41: Totale
C42: Premi | D42: Variaz. annua | E42: Premi | F42: Variaz. annua | G42: Premi | H42: Variaz. annua | I42: Premi | J42: Variaz. annua | K42: Premi | L42: Variaz. annua | M42: Premi | N42: Variaz. annua
B43: I semestre 2014 | C43: =+'[1]PIVOT allegato I'!B92 -> 284572.1809 | D43: =+'[1]PIVOT allegato I'!C92 -> n.d. | E43: =+'[1]PIVOT allegato I'!D92 -> 548186.1094 | F43: =+'[1]PIVOT allegato I'!E92 -> n.d. | G43: =+'[1]PIVOT allegato I'!F92 -> 144489.1309 | H43: =+'[1]PIVOT allegato I'!G92 -> n.d. | I43: =+'[1]PIVOT allegato I'!H92 -> 389551.8168 | J43: =+'[1]PIVOT allegato I'!I92 -> n.d. | K43: =+'[1]PIVOT allegato I'!J92 -> 273805.762 | L43: =+'[1]PIVOT allegato I'!K92 -> n.d. | M43: =+'[1]PIVOT allegato I'!L92 -> 1640605 | N43: =+'[1]PIVOT allegato I'!M92 -> n.d. | Q43: 0 | R43: =+C5+C24-C43 -> 0 | S43: =+E5+E24-E43 -> 0 | T43: =+G5+G24-G43 -> 0 | U43: =+I5+I24-I43 -> 0 | V43: =+K5+K24-K43 -> 0 | W43: =+M5+M24-M43 -> 0
B44: I semestre 2015 | C44: =+'[1]PIVOT allegato I'!B93 -> 297304.5519 | D44: =+'[1]PIVOT allegato I'!C93 -> 0.04474214898 | E44: =+'[1]PIVOT allegato I'!D93 -> 560630.8817 | F44: =+'[1]PIVOT allegato I'!E93 -> 0.02270172864 | G44: =+'[1]PIVOT allegato I'!F93 -> 166449.0893 | H44: =+'[1]PIVOT allegato I'!G93 -> 0.1519834624 | I44: =+'[1]PIVOT allegato I'!H93 -> 375051.5739 | J44: =+'[1]PIVOT allegato I'!I93 -> -0.03722288611 | K44: =+'[1]PIVOT allegato I'!J93 -> 262911.9033 | L44: =+'[1]PIVOT allegato I'!K93 -> -0.03978681315 | M44: =+'[1]PIVOT allegato I'!L93 -> 1662348 | N44: =+'[1]PIVOT allegato I'!M93 -> 0.01325303775 | Q44: 0 | R44: 0 | S44: 0 | T44: 0 | U44: 0 | V44: 0 | W44: 0
B45: I semestre 2016 | C45: =+'[1]PIVOT allegato I'!B94 -> 290486.3571 | D45: =+'[1]PIVOT allegato I'!C94 -> -0.02293336819 | E45: =+'[1]PIVOT allegato I'!D94 -> 585055.2825 | F45: =+'[1]PIVOT allegato I'!E94 -> 0.0435659211 | G45: =+'[1]PIVOT allegato I'!F94 -> 147014.8455 | H45: =+'[1]PIVOT allegato I'!G94 -> -0.1167578859 | I45: =+'[1]PIVOT allegato I'!H94 -> 361871.9001 | J45: =+'[1]PIVOT allegato I'!I94 -> -0.03514096372 | K45: =+'[1]PIVOT allegato I'!J94 -> 294899.6148 | L45: =+'[1]PIVOT allegato I'!K94 -> 0.1216670342 | M45: =+'[1]PIVOT allegato I'!L94 -> 1679328 | N45: =+'[1]PIVOT allegato I'!M94 -> 0.01021446773 | Q45: 0 | R45: 0 | S45: 0 | T45: 0 | U45: 0 | V45: 0 | W45: 0
B46: I semestre 2017 | C46: =+'[1]PIVOT allegato I'!B95 -> 287562.1967 | D46: =+'[1]PIVOT allegato I'!C95 -> -0.01006642954 | E46: =+'[1]PIVOT allegato I'!D95 -> 623356.9194 | F46: =+'[1]PIVOT allegato I'!E95 -> 0.06546669708 | G46: =+'[1]PIVOT allegato I'!F95 -> 156749.1136 | H46: =+'[1]PIVOT allegato I'!G95 -> 0.06621282419 | I46: =+'[1]PIVOT allegato I'!H95 -> 388857.7641 | J46: =+'[1]PIVOT allegato I'!I95 -> 0.07457297457 | K46: =+'[1]PIVOT allegato I'!J95 -> 274294.0062 | L46: =+'[1]PIVOT allegato I'!K95 -> -0.06987329788 | M46: =+'[1]PIVOT allegato I'!L95 -> 1730820 | N46: =+'[1]PIVOT allegato I'!M95 -> 0.03066226491 | Q46: 0 | R46: 0 | S46: 0 | T46: 0 | U46: 0 | V46: 0 | W46: 0
B47: I semestre 2018 | C47: =+'[1]PIVOT allegato I'!B96 -> 285793.5022 | D47: =+'[1]PIVOT allegato I'!C96 -> -0.006150650139 | E47: =+'[1]PIVOT allegato I'!D96 -> 613256.7285 | F47: =+'[1]PIVOT allegato I'!E96 -> -0.01620290179 | G47: =+'[1]PIVOT allegato I'!F96 -> 148087.7966 | H47: =+'[1]PIVOT allegato I'!G96 -> -0.05525592348 | I47: =+'[1]PIVOT allegato I'!H96 -> 381071.3749 | J47: =+'[1]PIVOT allegato I'!I96 -> -0.02002374633 | K47: =+'[1]PIVOT allegato I'!J96 -> 293667.5978 | L47: =+'[1]PIVOT allegato I'!K96 -> 0.07063075106 | M47: =+'[1]PIVOT allegato I'!L96 -> 1721877 | N47: =+'[1]PIVOT allegato I'!M96 -> -0.005166915104 | Q47: 0 | R47: 0 | S47: 0 | T47: 0 | U47: 0 | V47: 0 | W47: 0
B48: I semestre 2019 | C48: =+'[1]PIVOT allegato I'!B97 -> 299386.4117 | D48: =+'[1]PIVOT allegato I'!C97 -> 0.04756199643 | E48: =+'[1]PIVOT allegato I'!D97 -> 645276.3489 | F48: =+'[1]PIVOT allegato I'!E97 -> 0.05221242421 | G48: =+'[1]PIVOT allegato I'!F97 -> 147187.7735 | H48: =+'[1]PIVOT allegato I'!G97 -> -0.00607763192 | I48: =+'[1]PIVOT allegato I'!H97 -> 386595.7615 | J48: =+'[1]PIVOT allegato I'!I97 -> 0.01449698642 | K48: =+'[1]PIVOT allegato I'!J97 -> 332188.7044 | L48: =+'[1]PIVOT allegato I'!K97 -> 0.1311724782 | M48: =+'[1]PIVOT allegato I'!L97 -> 1810635 | N48: =+'[1]PIVOT allegato I'!M97 -> 0.05154723595 | Q48: 0 | R48: 0 | S48: 0 | T48: 0 | U48: 0 | V48: 0 | W48: 0
B49: I semestre 2020 | C49: =+'[1]PIVOT allegato I'!B98 -> 280939.7584 | D49: =+'[1]PIVOT allegato I'!C98 -> -0.06161486503 | E49: =+'[1]PIVOT allegato I'!D98 -> 593524.5352 | F49: =+'[1]PIVOT allegato I'!E98 -> -0.08020100811 | G49: =+'[1]PIVOT allegato I'!F98 -> 137505.5024 | H49: =+'[1]PIVOT allegato I'!G98 -> -0.06578176197 | I49: =+'[1]PIVOT allegato I'!H98 -> 364240.1559 | J49: =+'[1]PIVOT allegato I'!I98 -> -0.05782682539 | K49: =+'[1]PIVOT allegato I'!J98 -> 369826.0481 | L49: =+'[1]PIVOT allegato I'!K98 -> 0.1133010943 | M49: =+'[1]PIVOT allegato I'!L98 -> 1746036 | N49: =+'[1]PIVOT allegato I'!M98 -> -0.03567753854 | Q49: 0 | R49: 0 | S49: 0 | T49: 0 | U49: 0 | V49: 0 | W49: 0
B50: I semestre 2021 | C50: =+'[1]PIVOT allegato I'!B99 -> 298594.0727 | D50: =+'[1]PIVOT allegato I'!C99 -> 0.06284021324 | E50: =+'[1]PIVOT allegato I'!D99 -> 637647.9795 | F50: =+'[1]PIVOT allegato I'!E99 -> 0.07434139891 | G50: =+'[1]PIVOT allegato I'!F99 -> 129535.3646 | H50: =+'[1]PIVOT allegato I'!G99 -> -0.05796231869 | I50: =+'[1]PIVOT allegato I'!H99 -> 373019.1415 | J50: =+'[1]PIVOT allegato I'!I99 -> 0.02410219054 | K50: =+'[1]PIVOT allegato I'!J99 -> 381229.4417 | L50: =+'[1]PIVOT allegato I'!K99 -> 0.0308344791 | M50: =+'[1]PIVOT allegato I'!L99 -> 1820026 | N50: =+'[1]PIVOT allegato I'!M99 -> 0.04237598767
Q51: 0 | R51: =+C13+C32-C51 -> 0 | S51: =+E13+E32-E51 -> 0 | T51: =+G13+G32-G51 -> 0 | U51: =+I13+I32-I51 -> 0 | V51: =+K13+K32-K51 -> 0 | W51: =+M13+M32-M51 -> 0
B52: Anno 2014 | C52: =+'[1]PIVOT allegato I'!B101 -> 634633.7848 | D52: =+'[1]PIVOT allegato I'!C101 -> n.d. | E52: =+'[1]PIVOT allegato I'!D101 -> 1125783.088 | F52: =+'[1]PIVOT allegato I'!E101 -> n.d. | G52: =+'[1]PIVOT allegato I'!F101 -> 307700.3593 | H52: =+'[1]PIVOT allegato I'!G101 -> n.d. | I52: =+'[1]PIVOT allegato I'!H101 -> 742621.4548 | J52: =+'[1]PIVOT allegato I'!I101 -> n.d. | K52: =+'[1]PIVOT allegato I'!J101 -> 570138.3131 | L52: =+'[1]PIVOT allegato I'!K101 -> n.d. | M52: =+'[1]PIVOT allegato I'!L101 -> 3380877 | N52: =+'[1]PIVOT allegato I'!M101 -> n.d. | Q52: 0 | R52: 0 | S52: 0 | T52: 0 | U52: 0 | V52: 0 | W52: 0
B53: Anno 2015 | C53: =+'[1]PIVOT allegato I'!B102 -> 634171.3595 | D53: =+'[1]PIVOT allegato I'!C102 -> -0.0007286489551 | E53: =+'[1]PIVOT allegato I'!D102 -> 1192203.861 | F53: =+'[1]PIVOT allegato I'!E102 -> 0.05899961882 | G53: =+'[1]PIVOT allegato I'!F102 -> 304992.637 | H53: =+'[1]PIVOT allegato I'!G102 -> -0.008799867127 | I53: =+'[1]PIVOT allegato I'!H102 -> 718581.9935 | J53: =+'[1]PIVOT allegato I'!I102 -> -0.03237108376 | K53: =+'[1]PIVOT allegato I'!J102 -> 543927.1488 | L53: =+'[1]PIVOT allegato I'!K102 -> -0.04597334302 | M53: =+'[1]PIVOT allegato I'!L102 -> 3393877 | N53: =+'[1]PIVOT allegato I'!M102 -> 0.003845156153 | Q53: 0 | R53: 0 | S53: 0 | T53: 0 | U53: 0 | V53: 0 | W53: 0
B54: Anno 2016 | C54: =+'[1]PIVOT allegato I'!B103 -> 590003.1834 | D54: =+'[1]PIVOT allegato I'!C103 -> -0.06964706855 | E54: =+'[1]PIVOT allegato I'!D103 -> 1233609.345 | F54: =+'[1]PIVOT allegato I'!E103 -> 0.03473020479 | G54: =+'[1]PIVOT allegato I'!F103 -> 291925.5536 | H54: =+'[1]PIVOT allegato I'!G103 -> -0.04284393089 | I54: =+'[1]PIVOT allegato I'!H103 -> 736535.2339 | J54: =+'[1]PIVOT allegato I'!I103 -> 0.02498426147 | K54: =+'[1]PIVOT allegato I'!J103 -> 570545.6838 | L54: =+'[1]PIVOT allegato I'!K103 -> 0.04893768403 | M54: =+'[1]PIVOT allegato I'!L103 -> 3422619 | N54: =+'[1]PIVOT allegato I'!M103 -> 0.008468780689 | Q54: 0 | R54: 0 | S54: 0 | T54: 0 | U54: 0 | V54: 0 | W54: 0
B55: Anno 2017 | C55: =+'[1]PIVOT allegato I'!B104 -> 605992.7322 | D55: =+'[1]PIVOT allegato I'!C104 -> 0.02710078399 | E55: =+'[1]PIVOT allegato I'!D104 -> 1252238.089 | F55: =+'[1]PIVOT allegato I'!E104 -> 0.01510100718 | G55: =+'[1]PIVOT allegato I'!F104 -> 279575.1233 | H55: =+'[1]PIVOT allegato I'!G104 -> -0.0423067803 | I55: =+'[1]PIVOT allegato I'!H104 -> 777090.0299 | J55: =+'[1]PIVOT allegato I'!I104 -> 0.05506158309 | K55: =+'[1]PIVOT allegato I'!J104 -> 599574.0256 | L55: =+'[1]PIVOT allegato I'!K104 -> 0.05087820782 | M55: =+'[1]PIVOT allegato I'!L104 -> 3514470 | N55: =+'[1]PIVOT allegato I'!M104 -> 0.02683646646 | Q55: 0 | R55: 0 | S55: 0 | T55: 0 | U55: 0 | V55: 0 | W55: 0
B56: Anno 2018 | C56: =+'[1]PIVOT allegato I'!B105 -> 605103.5069 | D56: =+'[1]PIVOT allegato I'!C105 -> -0.001467386103 | E56: =+'[1]PIVOT allegato I'!D105 -> 1267368.163 | F56: =+'[1]PIVOT allegato I'!E105 -> 0.01208242606 | G56: =+'[1]PIVOT allegato I'!F105 -> 301350.1947 | H56: =+'[1]PIVOT allegato I'!G105 -> 0.07788629809 | I56: =+'[1]PIVOT allegato I'!H105 -> 760215.6572 | J56: =+'[1]PIVOT allegato I'!I105 -> -0.02171482328 | K56: =+'[1]PIVOT allegato I'!J105 -> 607997.4781 | L56: =+'[1]PIVOT allegato I'!K105 -> 0.01404906169 | M56: =+'[1]PIVOT allegato I'!L105 -> 3542035 | N56: =+'[1]PIVOT allegato I'!M105 -> 0.007843287893 | Q56: 0 | R56: 0 | S56: 0 | T56: 0 | U56: 0 | V56: 0 | W56: 0
B57: Anno 2019 | C57: =+'[1]PIVOT allegato I'!B106 -> 594248.394 | D57: =+'[1]PIVOT allegato I'!C106 -> -0.01793926618 | E57: =+'[1]PIVOT allegato I'!D106 -> 1265093.626 | F57: =+'[1]PIVOT allegato I'!E106 -> -0.001794693115 | G57: =+'[1]PIVOT allegato I'!F106 -> 285116.9689 | H57: =+'[1]PIVOT allegato I'!G106 -> -0.05386831014 | I57: =+'[1]PIVOT allegato I'!H106 -> 757749.7675 | J57: =+'[1]PIVOT allegato I'!I106 -> -0.003243671289 | K57: =+'[1]PIVOT allegato I'!J106 -> 756736.2434 | L57: =+'[1]PIVOT allegato I'!K106 -> 0.2446371418 | M57: =+'[1]PIVOT allegato I'!L106 -> 3658945 | N57: =+'[1]PIVOT allegato I'!M106 -> 0.03300644968 | Q57: 0 | R57: 0 | S57: 0 | T57: 0 | U57: 0 | V57: 0 | W57: 0
B58: Anno 2020 | C58: =+'[1]PIVOT allegato I'!B107 -> 596490.5441 | D58: =+'[1]PIVOT allegato I'!C107 -> 0.003773085614 | E58: =+'[1]PIVOT allegato I'!D107 -> 1252228.337 | F58: =+'[1]PIVOT allegato I'!E107 -> -0.0101694362 | G58: =+'[1]PIVOT allegato I'!F107 -> 274775.3856 | H58: =+'[1]PIVOT allegato I'!G107 -> -0.03627137098 | I58: =+'[1]PIVOT allegato I'!H107 -> 727597.4842 | J58: =+'[1]PIVOT allegato I'!I107 -> -0.03979187406 | K58: =+'[1]PIVOT allegato I'!J107 -> 733597.2489 | L58: =+'[1]PIVOT allegato I'!K107 -> -0.03057735726 | M58: =+'[1]PIVOT allegato I'!L107 -> 3584689 | N58: =+'[1]PIVOT allegato I'!M107 -> -0.02029437447 | Q58: 0 | R58: 0 | S58: 0 | T58: 0 | U58: 0 | V58: 0 | W58: 0
B60: Eventuali varizioni dei dati relativi a semestri precedenti rispetto a quelli già pubblicati in passato sono dovute ad affinamenti nella ripartizione dei premi da parte delle imprese.
Q96: TIPOLOGIA | R96: GARANZIA | S96: I semestre 2014 | T96: I semestre 2015 | U96: I semestre 2016 | V96: I semestre 2017 | W96: I semestre 2018 | X96: I semestre 2019 | Y96: I semestre 2020 | Z96: I semestre 2021 | AA96: Anno 2014 | AB96: Anno 2015 | AC96: Anno 2016 | AD96: Anno 2017 | AE96: Anno 2018 | AF96: Anno 2019 | AG96: Anno 2020
Q97: IND | R97: Morte | S97: 155714.8602 | T97: 147320.356 | U97: 147484.5846 | V97: 151115.2956 | W97: 150833.2596 | X97: 160530.6375 | Y97: 144969.5797 | Z97: 147218.5815 | AA97: 302985.0905 | AB97: 290954.3422 | AC97: 279126.0795 | AD97: 280548.2289 | AE97: 303938.9842 | AF97: 302732.2978 | AG97: 308110.8947
R98: Invalidità permanente | S98: 381986.6618 | T98: 374277.3544 | U98: 381422.9968 | V98: 439899.1455 | W98: 444956.5636 | X98: 482436.2215 | Y98: 436765.3239 | Z98: 480883.2205 | AA98: 707264.542 | AB98: 732645.4731 | AC98: 793363.6366 | AD98: 854347.6243 | AE98: 897728.8392 | AF98: 926527.1576 | AG98: 930860.0438
R99: Inabilità temporanea | S99: 61182.5717 | T99: 68711.2146 | U99: 64996.78137 | V99: 70738.21152 | W99: 84144.49641 | X99: 92394.23771 | Y99: 95079.82685 | Z99: 100392.0338 | AA99: 121708.1765 | AB99: 133643.6455 | AC99: 131065.7715 | AD99: 142893.4243 | AE99: 170561.8515 | AF99: 182446.1171 | AG99: 196107.7291
R100: Infortunio del conducente | S100: 367136.2098 | T100: 355647.8981 | U100: 348340.579 | V100: 372443.3712 | W100: 370637.9505 | X100: 376920.3639 | Y100: 354414.6502 | Z100: 351420.0466 | AA100: 669133.5074 | AB100: 679076.3879 | AC100: 704287.0802 | AD100: 742034.6934 | AE100: 724885.5275 | AF100: 729810.8968 | AG100: 699531.7243
R101: Altro | S101: 212107.3889 | T101: 191707.0789 | U101: 223976.5959 | V101: 211832.1789 | W101: 232968.535 | X101: 270862.4823 | Y101: 292461.6098 | Z101: 307310.6095 | AA101: 403410.5809 | AB101: 380551.5262 | AC101: 407387.8681 | AD101: 445708.1896 | AE101: 465955.7534 | AF101: 592739.3142 | AG101: 577381.609
R102: Totale | S102: 1178127.692 | T102: 1137663.902 | U102: 1166221.538 | V102: 1246028.203 | W102: 1283540.805 | X102: 1383143.943 | Y102: 1323690.99 | Z102: 1387224.492 | AA102: 2204501.897 | AB102: 2216871.375 | AC102: 2315230.436 | AD102: 2465532.16 | AE102: 2563070.956 | AF102: 2734255.783 | AG102: 2711992.001
Q103: COL | R103: Morte | S103: 128857.3208 | T103: 149984.1958 | U103: 143001.7725 | V103: 136446.901 | W103: 134960.2426 | X103: 138855.7743 | Y103: 135970.1786 | Z103: 151331.0943 | AA103: 331648.6943 | AB103: 343217.0173 | AC103: 310877.1039 | AD103: 325444.5033 | AE103: 301164.5227 | AF103: 291516.0963 | AG103: 288379.6493
R104: Invalidità permanente | S104: 166199.4476 | T104: 186353.5273 | U104: 203632.2856 | V104: 183457.7739 | W104: 168300.1649 | X104: 162840.1274 | Y104: 156759.2114 | Z104: 156331.4735 | AA104: 418518.546 | AB104: 459558.388 | AC104: 440245.7088 | AD104: 397890.4647 | AE104: 369639.3239 | AF104: 338566.4686 | AG104: 321368.2934
R105: Inabilità temporanea | S105: 83306.55917 | T105: 97737.87466 | U105: 82018.06411 | V105: 86010.90208 | W105: 63943.30017 | X105: 54793.53575 | Y105: 42425.67553 | Z105: 29738.26557 | AA105: 185992.1828 | AB105: 171348.9915 | AC105: 160859.782 | AD105: 136681.699 | AE105: 130788.3432 | AF105: 102670.8518 | AG105: 78667.65648
R106: Infortunio del conducente | S106: 22415.60697 | T106: 19403.67575 | U106: 13531.32114 | V106: 16414.39298 | W106: 10433.42445 | X106: 9675.397602 | Y106: 9825.505709 | Z106: 20815.53432 | AA106: 73487.9474 | AB106: 39505.60566 | AC106: 32248.15375 | AD106: 35055.33656 | AE106: 35330.12974 | AF106: 27938.87077 | AG106: 28065.75995
R107: Altro | S107: 61698.37312 | T107: 71204.82435 | U107: 70923.01893 | V107: 62461.82728 | W107: 60699.06282 | X107: 61326.22215 | Y107: 77364.43837 | Z107: 74585.1405 | AA107: 166727.7322 | AB107: 163375.6226 | AC107: 163157.8156 | AD107: 153865.836 | AE107: 142041.7247 | AF107: 163996.9291 | AG107: 156215.6399
R108: Totale | S108: 462477.3077 | T108: 524684.0979 | U108: 513106.4623 | V108: 484791.7972 | W108: 438336.1949 | X108: 427491.0572 | Y108: 422345.0096 | Z108: 432801.5082 | AA108: 1176375.103 | AB108: 1177005.625 | AC108: 1107388.564 | AD108: 1048937.84 | AE108: 978964.0442 | AF108: 924689.2166 | AG108: 872696.9991
Q109: TOT | R109: Morte | S109: 284572.1809 | T109: 297304.5519 | U109: 290486.3571 | V109: 287562.1967 | W109: 285793.5022 | X109: 299386.4117 | Y109: 280939.7584 | Z109: 298549.6758 | AA109: 634633.7848 | AB109: 634171.3595 | AC109: 590003.1834 | AD109: 605992.7322 | AE109: 605103.5069 | AF109: 594248.394 | AG109: 596490.5441
R110: Invalidità permanente | S110: 548186.1094 | T110: 560630.8817 | U110: 585055.2825 | V110: 623356.9194 | W110: 613256.7285 | X110: 645276.3489 | Y110: 593524.5352 | Z110: 637214.694 | AA110: 1125783.088 | AB110: 1192203.861 | AC110: 1233609.345 | AD110: 1252238.089 | AE110: 1267368.163 | AF110: 1265093.626 | AG110: 1252228.337
R111: Inabilità temporanea | S111: 144489.1309 | T111: 166449.0893 | U111: 147014.8455 | V111: 156749.1136 | W111: 148087.7966 | X111: 147187.7735 | Y111: 137505.5024 | Z111: 130130.2993 | AA111: 307700.3593 | AB111: 304992.637 | AC111: 291925.5536 | AD111: 279575.1233 | AE111: 301350.1947 | AF111: 285116.9689 | AG111: 274775.3856
R112: Infortunio del conducente | S112: 389551.8168 | T112: 375051.5739 | U112: 361871.9001 | V112: 388857.7641 | W112: 381071.3749 | X112: 386595.7615 | Y112: 364240.1559 | Z112: 372235.5809 | AA112: 742621.4548 | AB112: 718581.9935 | AC112: 736535.2339 | AD112: 777090.0299 | AE112: 760215.6572 | AF112: 757749.7675 | AG112: 727597.4842
R113: Altro | S113: 273805.762 | T113: 262911.9033 | U113: 294899.6148 | V113: 274294.0062 | W113: 293667.5978 | X113: 332188.7044 | Y113: 369826.0481 | Z113: 381895.75 | AA113: 570138.3131 | AB113: 543927.1488 | AC113: 570545.6838 | AD113: 599574.0256 | AE113: 607997.4781 | AF113: 756736.2434 | AG113: 733597.2489
R114: Totale | S114: 1640605 | T114: 1662348 | U114: 1679328 | V114: 1730820 | W114: 1721877 | X114: 1810635 | Y114: 1746036 | Z114: 1820026 | AA114: 3380877 | AB114: 3393877 | AC114: 3422619 | AD114: 3514470 | AE114: 3542035 | AF114: 3658945 | AG114: 3584689
R116: =+R96 -> GARANZIA | S116: =+S96 -> I semestre 2014 | T116: I semestre 2015 | U116: I semestre 2016 | V116: I semestre 2017 | W116: I semestre 2018 | X116: I semestre 2019 | Y116: I semestre 2020 | Z116: =+Z96 -> I semestre 2021 | AA116: =+AA96 -> Anno 2014 | AB116: Anno 2015 | AC116: Anno 2016 | AD116: Anno 2017 | AE116: Anno 2018 | AF116: Anno 2019 | AG116: Anno 2020
Q117: =+Q97 -> IND | R117: =+R102 -> Totale | S117: =+S102 -> 1178127.692 | T117: 1137663.902 | U117: 1166221.538 | V117: 1246028.203 | W117: 1283540.805 | X117: 1383143.943 | Y117: 1323690.99 | Z117: =+Z102 -> 1387224.492 | AA117: =+AA102 -> 2204501.897 | AB117: 2216871.375 | AC117: 2315230.436 | AD117: 2465532.16 | AE117: 2563070.956 | AF117: 2734255.783 | AG117: 2711992.001
Q118: =+Q103 -> COL | R118: =+R108 -> Totale | S118: =+S108 -> 462477.3077 | T118: 524684.0979 | U118: 513106.4623 | V118: 484791.7972 | W118: 438336.1949 | X118: 427491.0572 | Y118: 422345.0096 | Z118: =+Z108 -> 432801.5082 | AA118: =+AA108 -> 1176375.103 | AB118: 1177005.625 | AC118: 1107388.564 | AD118: 1048937.84 | AE118: 978964.0442 | AF118: 924689.2166 | AG118: 872696.9991
Q119: =+Q109 -> TOT | R119: =+R114 -> Totale | S119: =+S114 -> 1640605 | T119: 1662348 | U119: 1679328 | V119: 1730820 | W119: 1721877 | X119: 1810635 | Y119: =+Y114 -> 1746036 | Z119: 1820026 | AA119: =+AA114 -> 3380877 | AB119: 3393877 | AC119: 3422619 | AD119: 3514470 | AE119: 3542035 | AF119: 3658945 | AG119: 3584689
R120: Individuali | S120: =+S117/S$119 -> 0.7181056332 | T120: =+T117/T$119 -> 0.6843716852 | U120: 0.6944572696 | V120: 0.7199062888 | W120: 0.7454311807 | X120: 0.7638999262 | Y120: =+Y117/Y$119 -> 0.7581120838 | Z120: 0.7622003706 | AA120: =+AA117/AA$119 -> 0.6520503104 | AB120: 0.6531973241 | AC120: 0.6764499455 | AD120: 0.7015374041 | AE120: 0.7236153668 | AF120: 0.7472798261 | AG120: 0.7565487553
R121: Collettive | S121: =+S118/S$119 -> 0.2818943668 | T121: =+T118/T$119 -> 0.3156283148 | U121: 0.3055427304 | V121: 0.2800937112 | W121: 0.2545688193 | X121: 0.2361000738 | Y121: =+Y118/Y$119 -> 0.2418879162 | Z121: 0.2377996294 | AA121: 0.3479496896 | AB121: 0.3468026759 | AC121: 0.3235500545 | AD121: 0.2984625959 | AE121: 0.2763846332 | AF121: 0.2527201739 | AG121: 0.2434512447
S125: I semestre 2014 | T125: I semestre 2015 | U125: I semestre 2016 | V125: I semestre 2017 | W125: I semestre 2018 | X125: I semestre 2019 | Y125: I semestre 2020 | Z125: I semestre 2021 | AA125: Anno 2014 | AB125: Anno 2015 | AC125: Anno 2016 | AD125: Anno 2017 | AE125: Anno 2018 | AF125: Anno 2019 | AG125: Anno 2020
R127: INDIVIDUALI
R128: Morte | S128: =+S97/S$102 -> 0.1321714625 | T128: =+T97/T$102 -> 0.1294937422 | U128: =+U97/U$102 -> 0.1264636091 | V128: 0.1212775885 | W128: 0.1175134121 | X128: =+X97/X$102 -> 0.1160621339 | Y128: 0.1095192011 | Z128: 0.1061245547 | AA128: 0.1374392514 | AB128: 0.1312454775 | AC128: 0.1205608198 | AD128: 0.1137881036 | AE128: 0.1185839134 | AF128: 0.1107183533 | AG128: 0.113610547
R129: Invalidità permanente | S129: =+S98/S$102 -> 0.3242319693 | T129: 0.3289876331 | U129: =+U98/U$102 -> 0.327058783 | V129: 0.3530410825 | W129: 0.3466633564 | X129: 0.3487968292 | Y129: =+Y98/Y$102 -> 0.3299601849 | Z129: 0.3466513339 | AA129: =+AA98/AA$102 -> 0.3208273683 | AB129: 0.3304862345 | AC129: 0.3426715649 | AD129: 0.34651652 | AE129: 0.3502551645 | AF129: 0.3388589916 | AG129: 0.3432384917
R130: Inabilità temporanea | S130: 0.05193203767 | T130: 0.06039676083 | U130: =+U99/U$102 -> 0.05573279113 | V130: 0.0567709554 | W130: 0.06555654178 | X130: 0.06680016074 | Y130: =+Y99/Y$102 -> 0.07182932236 | Z130: 0.07236898884 | AA130: 0.05520892347 | AB130: 0.06028479911 | AC130: 0.05661024902 | AD130: 0.05795642281 | AE130: 0.06654589532 | AF130: 0.06672606061 | AG130: 0.07231132284
R131: Infortunio del conducente | S131: 0.31162684 | T131: 0.3126124486 | U131: =+U100/U$102 -> 0.2986916017 | V131: 0.2989044472 | W131: 0.2887621095 | X131: 0.2725098612 | Y131: =+Y100/Y$102 -> 0.2677472709 | Z131: 0.2533260108 | AA131: 0.3035304747 | AB131: 0.3063219615 | AC131: 0.3041974005 | AD131: 0.3009632992 | AE131: 0.2828191416 | AF131: 0.2669139081 | AG131: 0.2579401871
R132: Altro | S132: =+S101/S$102 -> 0.1800376905 | T132: =+T101/T$102 -> 0.1685094153 | U132: =+U101/U$102 -> 0.1920532151 | V132: 0.1700059264 | W132: 0.1815045802 | X132: 0.195831015 | Y132: =+Y101/Y$102 -> 0.2209440208 | Z132: 0.2215291118 | AA132: 0.1829939822 | AB132: 0.1716615274 | AC132: 0.1759599657 | AD132: 0.1807756544 | AE132: 0.1817958853 | AF132: 0.2167826865 | AG132: 0.2128994513
R133: Totale | S133: 1 | T133: 1 | U133: =+U102/U$102 -> 1 | V133: 1 | W133: 1 | X133: 1 | Y133: =+Y102/Y$102 -> 1 | Z133: 1 | AA133: 1 | AB133: 1 | AC133: 1 | AD133: 1 | AE133: 1 | AF133: 1 | AG133: 1
R135: COLLETTIVE ORIGINALE
R136: Morte | S136: =+S103/S$108 -> 0.2786240939 | T136: =+T103/T$108 -> 0.2858561874 | U136: =+U103/U$108 -> 0.2786980539 | V136: 0.2814546405 | W136: 0.3078920795 | X136: 0.3248156235 | Y136: 0.3219410093 | Z136: =+Z103/Z$108 -> 0.3496547296 | AA136: =+AA103/AA$108 -> 0.2819242719 | AB136: 0.2916018496 | AC136: 0.2807299208 | AD136: 0.3102610003 | AE136: 0.3076359387 | AF136: 0.3152584577 | AG136: 0.3304464776
R137: Invalidità permanente | S137: =+S104/S$108 -> 0.3593677892 | T137: 0.3551728136 | U137: =+U104/U$108 -> 0.3968616664 | V137: 0.3784259035 | W137: 0.3839522423 | X137: 0.3809205472 | Y137: 0.3711638774 | Z137: =+Z104/Z$108 -> 0.3612082457 | AA137: 0.3557696394 | AB137: 0.3904470618 | AC137: 0.3975530568 | AD137: 0.3793270199 | AE137: 0.3775821248 | AF137: 0.3661408207 | AG137: 0.3682472769
R138: Inabilità temporanea | S138: 0.1801311281 | T138: 0.1862794681 | U138: =+U105/U$108 -> 0.1598460946 | V138: 0.177418229 | W138: 0.145877299 | X138: 0.1281746947 | Y138: 0.1004526502 | Z138: =+Z105/Z$108 -> 0.06871109505 | AA138: 0.1581061877 | AB138: 0.1455804355 | AC138: 0.1452604689 | AD138: 0.1303048606 | AE138: 0.1335987199 | AF138: 0.1110328205 | AG138: 0.09014314999
R139: Infortunio del conducente | S139: 0.04846855532 | T139: 0.03698163491 | U139: =+U106/U$108 -> 0.0263713715 | V139: 0.03385864421 | W139: 0.02380233384 | X139: 0.02263298247 | Y139: 0.02326416907 | Z139: =+Z106/Z$108 -> 0.04809487473 | AA139: 0.06246982551 | AB139: 0.0335645003 | AC139: 0.02912090191 | AD139: 0.03341984171 | AE139: 0.03608930272 | AF139: 0.03021433609 | AG139: 0.03215979885
R140: Altro | S140: 0.1334084334 | T140: 0.135709896 | U140: =+U107/U$108 -> 0.1382228137 | V140: 0.1288425828 | W140: 0.1384760454 | X140: 0.1434561522 | Y140: 0.1831782941 | Z140: =+Z107/Z$108 -> 0.172331055 | AA140: 0.1417300756 | AB140: 0.1388061528 | AC140: 0.1473356516 | AD140: 0.1466872775 | AE140: 0.1450939139 | AF140: 0.1773535651 | AG140: 0.1790032967
R141: Totale | S141: 1 | T141: 1 | U141: =+U108/U$108 -> 1 | V141: 1 | W141: 1 | X141: 1 | Y141: 1 | Z141: =+Z108/Z$108 -> 1 | AA141: 1 | AB141: 1 | AC141: 1 | AD141: 1 | AE141: 1 | AF141: 1 | AG141: 1
R143: TOTALE
R144: Morte | S144: =+S109/S$114 -> 0.1734556343 | T144: =+T109/T$114 -> 0.1788461573 | U144: =+U109/U$114 -> 0.172977737 | V144: 0.1661421735 | W144: 0.1659778847 | X144: 0.1653488482 | Y144: 0.1609014696 | Z144: =+Z109/Z$114 -> 0.16403594 | AA144: =+AA109/AA$114 -> 0.1877127694 | AB144: 0.1868574965 | AC144: 0.1723835412 | AD144: 0.1724279144 | AE144: 0.170834988 | AF144: 0.162409764 | AG144: 0.1663995242
R145: Invalidità permanente | S145: =+S110/S$114 -> 0.334136559 | T145: 0.3372524175 | U145: =+U110/U$114 -> 0.3483865466 | V145: 0.3601512112 | W145: 0.356155944 | X145: 0.3563812413 | Y145: 0.3399268602 | Z145: =+Z110/Z$114 -> 0.3501129621 | AA145: 0.3329855206 | AB145: 0.3512808099 | AC145: 0.3604284746 | AD145: 0.356309227 | AE145: 0.3578079164 | AF145: 0.3457536602 | AG145: 0.3493269116
R146: Inabilità temporanea | S146: 0.08807063911 | T146: 0.1001289076 | U146: =+U111/U$114 -> 0.08754385414 | V146: 0.090563498 | W146: 0.08600370211 | X146: 0.08129069274 | Y146: 0.07875295949 | Z146: =+Z111/Z$114 -> 0.07149914305 | AA146: 0.09101199461 | AB146: 0.08986555406 | AC146: 0.08529303249 | AD146: 0.07954972536 | AE146: 0.08507826565 | AF146: 0.07792327268 | AG146: 0.07665250335
R147: Infortunio del conducente | S147: 0.2374440019 | T147: 0.2256155594 | U147: =+U112/U$114 -> 0.215486135 | V147: 0.2246667846 | W147: 0.2213116122 | X147: 0.2135139117 | Y147: 0.2086097628 | Z147: =+Z112/Z$114 -> 0.2045221227 | AA147: 0.2196534967 | AB147: 0.2117289441 | AC147: 0.2151963844 | AD147: 0.2211115844 | AE147: 0.2146268056 | AF147: 0.2070951511 | AG147: 0.2029736706
R148: Altro | S148: 0.1668931656 | T148: 0.1581569583 | U148: =+U113/U$114 -> 0.1756057273 | V148: 0.1584763327 | W148: 0.1705508569 | X148: 0.1834653061 | Y148: 0.2118089479 | Z148: =+Z113/Z$114 -> 0.2098298321 | AA148: 0.1686362187 | AB148: 0.1602671955 | AC148: 0.1666985673 | AD148: 0.1706015489 | AE148: 0.1716520244 | AF148: 0.206818152 | AG148: 0.2046473903
R149: Totale | S149: 1 | T149: 1 | U149: =+U114/U$114 -> 1 | V149: 1 | W149: 1 | X149: 1 | Y149: 1 | Z149: =+Z114/Z$114 -> 1 | AA149: 1 | AB149: 1 | AC149: 1 | AD149: 1 | AE149: 1 | AF149: 1 | AG149: 1

Sheet TAVOLA2mal (anno 2015-2016) (hidden)
A1: Tavola 2 - Distribuzione % dei premi per principali tipologie
A2: Importi in migliaia
B3: Premi Contabilizzati | P3: di cui: Premi Nuova Produzione | W3: % Nuova Prod. su Contab.
A4: Garanzie assicurative | B4: I semestre 2014 | D4: 2015 | G4: 2016 | K4: Anno 2014 | M4: Anno 2015 | P4: 2015 | S4: 2016
B5: Premi | C5: Distrib. % | D5: Premi | E5: Distrib. | F5: Var. % annua | G5: Premi | H5: Distrib. | I5: Var. annua | K5: Premi | L5: Distrib. % | M5: Premi | N5: Distrib. % | O5: Var. % annua | P5: Premi | Q5: Distrib. | R5: Var. % annua | S5: Premi | T5: Distrib. | U5: Var. annua | W5: 2015 | X5: 2016
A6: POLIZZE INDIVIDUALI
A7: Rimborso spese mediche | B7: =(+#REF!)/1000 ->  | C7: =+#REF! ->  | D7: =(+#REF!)/1000 ->  | E7: =+D7/$D$12 ->  | F7: =+D7/B7-1 ->  | G7: =+#REF!/1000 ->  | H7: =+G7/$G$12 ->  | I7: =+G7/D7-1 ->  | K7: =(+#REF!)/1000 ->  | L7: =+#REF! ->  | M7: =(+#REF!)/1000 ->  | N7: =+#REF! ->  | O7: =+M7/K7-1 ->  | P7: =+#REF!/1000 ->  | Q7: =+P7/$P$12 ->  | R7: =+P7/N7-1 ->  | S7: =+#REF!/1000 ->  | T7: =+S7/$S$12 ->  | U7: =+S7/P7-1 ->  | W7: =+P7/D7 ->  | X7: =+S7/G7 -> 
A8: Invalidità permanente | B8: =(+#REF!)/1000 ->  | C8: =+#REF! ->  | D8: =(+#REF!)/1000 ->  | G8: =+#REF!/1000 ->  | K8: =(+#REF!)/1000 ->  | L8: =+#REF! ->  | M8: =(+#REF!)/1000 ->  | N8: =+#REF! ->  | P8: =+#REF!/1000 ->  | S8: =+#REF!/1000 -> 
A9: Diaria | B9: =(+#REF!)/1000 ->  | C9: =+#REF! ->  | D9: =(+#REF!)/1000 ->  | G9: =+#REF!/1000 ->  | K9: =(+#REF!)/1000 ->  | L9: =+#REF! ->  | M9: =(+#REF!)/1000 ->  | N9: =+#REF! ->  | P9: =+#REF!/1000 ->  | S9: =+#REF!/1000 -> 
A10: Long term care | B10: =(+#REF!)/1000 ->  | C10: =+#REF! ->  | D10: =(+#REF!)/1000 ->  | G10: =+#REF!/1000 ->  | K10: =(+#REF!)/1000 ->  | L10: =+#REF! ->  | M10: =(+#REF!)/1000 ->  | N10: =+#REF! ->  | P10: =+#REF!/1000 ->  | S10: =+#REF!/1000 -> 
